Workbook

Sheet Overview
B2: NPV Tool - User Guidance
B4: Certain user inputs are required in the white cells in the 'NPV tool' tab, for the tool to function correctly: 1) the Entry Point, 2) Project Cost, 3) first capacity quarter and 4) capacity profile. User inputs are required on the 'NPV tool' tab only.
B5: NPV tool Tab - Used to calculate the value of the market signal. If this is greater than or equal to 50% of the project cost then the Net Present Value (NPV) test shall be passed. If the value is lower than 50% then a premium will be the lowest price (to 4 decimal places) that can be added to the Reserve Price to allow the NPV test to be passed.
B6: LTSR Tab - Long Term Summary Report which contains the Allocation of Obligated Entry Capacity and Release Obligation Summary
B7: Sold Tab - Quantity of capacity sold at a specific point in time
B8: Data Tab - Contains the latest published prices for each of the different Entry points
B9: If you have any queries about this tool then please contact ntsinvestment@nationalgrid.com
B12: NPV Tool - Version History
A14: 1 | B14: Initial version of this tool published alongside v5.0 of the Entry Capacity Release methdology statement.
A15: 1.1 | B15: 22/10/19 - ''LTSR' & 'Sold' tabs updated with latest available data.

Sheet NPV tool
B1: (User Revenue) >= (f-factor)*(estimated increase in allowed revenue)
B3: Entry Point | C3: Avonmouth
B5: Input | C5: Value | D5: Description
B6: Project Cost (£) | D6: National Grid to determine Project Cost in accordance with the Entry Capacity Release (ECR) methodology statement.
B7: Sharing Factor | C7: 0.5 | D7: as defined in the ECR
B8: User Commitment (£) | C8: =C6*C7 -> 0 | D8: calculation
B9: Discount Rate - Annual | C9: 0.0785 | D9: as defined in the ECR (5.05% + inflation).
B10: Discount Rate - Quarterly | C10: =((1+C9)^(1/4)-1) -> 0.01907239485
B11: User Revenue NPV (£) | C11: =C30 -> 0 | D11: calculation
B13: Capacity Profile & revenue | C13: 1 | D13: 2 | E13: 3 | F13: 4 | G13: 5 | H13: 6 | I13: 7 | J13: 8 | K13: 9 | L13: 10 | M13: 11 | N13: 12 | O13: 13 | P13: 14 | Q13: 15 | R13: 16 | S13: 17 | T13: 18 | U13: 19 | V13: 20 | W13: 21 | X13: 22 | Y13: 23 | Z13: 24 | AA13: 25 | AB13: 26 | AC13: 27 | AD13: 28 | AE13: 29 | AF13: 30 | AG13: 31 | AH13: 32 | AI13: 33 | AJ13: 34 | AK13: 35 | AL13: 36 | AM13: 37 | AN13: 38 | AO13: 39 | AP13: 40 | AQ13: 41 | AR13: 42 | AS13: 43 | AT13: 44 | AU13: 45 | AV13: 46 | AW13: 47 | AX13: 48 | AY13: 49 | AZ13: 50 | BA13: 51 | BB13: 52 | BC13: 53 | BD13: 54 | BE13: 55 | BF13: 56 | BG13: 57 | BH13: 58 | BI13: 59 | BJ13: 60
B14: Quarter | C14: Y1 Q1 | D14: Y1 Q2 | E14: Y1 Q3 | F14: Y1 Q4 | G14: Y2 Q1 | H14: Y2 Q2 | I14: Y2 Q3 | J14: Y2 Q4 | K14: Y3 Q1 | L14: Y3 Q2 | M14: Y3 Q3 | N14: Y3 Q4 | O14: Y4 Q1 | P14: Y4 Q2 | Q14: Y4 Q3 | R14: Y4 Q4 | S14: Y5 Q1 | T14: Y5 Q2 | U14: Y5 Q3 | V14: Y5 Q4 | W14: Y6 Q1 | X14: Y6 Q2 | Y14: Y6 Q3 | Z14: Y6 Q4 | AA14: Y7 Q1 | AB14: Y7 Q2 | AC14: Y7 Q3 | AD14: Y7 Q4 | AE14: Y8 Q1 | AF14: Y8 Q2 | AG14: Y8 Q3 | AH14: Y8 Q4 | AI14: Y9 Q1 | AJ14: Y9 Q2 | AK14: Y9 Q3 | AL14: Y9 Q4 | AM14: Y10 Q1 | AN14: Y10 Q2 | AO14: Y10 Q3 | AP14: Y10 Q4 | AQ14: Y11 Q1 | AR14: Y11 Q2 | AS14: Y11 Q3 | AT14: Y11 Q4 | AU14: Y12 Q1 | AV14: Y12 Q2 | AW14: Y12 Q3 | AX14: Y12 Q4 | AY14: Y13 Q1 | AZ14: Y13 Q2 | BA14: Y13 Q3 | BB14: Y13 Q4 | BC14: Y14 Q1 | BD14: Y14 Q2 | BE14: Y14 Q3 | BF14: Y14 Q4 | BG14: Y15 Q1 | BH14: Y15 Q2 | BI14: Y15 Q3 | BJ14: Y15 Q4
B15: Start of Quarter | C15: 2020-10-01 | D15: =EDATE(C15,3) -> 2021-01-01 | E15: =EDATE(D15,3) -> 2021-04-01 | F15: =EDATE(E15,3) -> 2021-07-01 | G15: 2021-10-01 | H15: 2022-01-01 | I15: 2022-04-01 | J15: 2022-07-01 | K15: 2022-10-01 | L15: 2023-01-01 | M15: 2023-04-01 | N15: 2023-07-01 | O15: 2023-10-01 | P15: 2024-01-01 | Q15: 2024-04-01 | R15: 2024-07-01 | S15: 2024-10-01 | T15: 2025-01-01 | U15: 2025-04-01 | V15: 2025-07-01 | W15: 2025-10-01 | X15: 2026-01-01 | Y15: 2026-04-01 | Z15: 2026-07-01 | AA15: 2026-10-01 | AB15: 2027-01-01 | AC15: 2027-04-01 | AD15: 2027-07-01 | AE15: 2027-10-01 | AF15: 2028-01-01 | AG15: 2028-04-01 | AH15: 2028-07-01 | AI15: 2028-10-01 | AJ15: 2029-01-01 | AK15: 2029-04-01 | AL15: 2029-07-01 | AM15: 2029-10-01 | AN15: 2030-01-01 | AO15: 2030-04-01 | AP15: 2030-07-01 | AQ15: 2030-10-01 | AR15: 2031-01-01 | AS15: 2031-04-01 | AT15: 2031-07-01 | AU15: 2031-10-01 | AV15: 2032-01-01 | AW15: 2032-04-01 | AX15: 2032-07-01 | AY15: 2032-10-01 | AZ15: 2033-01-01 | BA15: 2033-04-01 | BB15: 2033-07-01 | BC15: 2033-10-01 | BD15: 2034-01-01 | BE15: 2034-04-01 | BF15: 2034-07-01 | BG15: 2034-10-01 | BH15: 2035-01-01 | BI15: 2035-04-01 | BJ15: 2035-07-01
B16: End of Quarter | C16: =EDATE(C15,3)-1 -> 2020-12-31 | D16: =EDATE(D15,3)-1 -> 2021-03-31 | E16: 2021-06-30 | F16: 2021-09-30 | G16: 2021-12-31 | H16: 2022-03-31 | I16: 2022-06-30 | J16: 2022-09-30 | K16: 2022-12-31 | L16: 2023-03-31 | M16: 2023-06-30 | N16: 2023-09-30 | O16: 2023-12-31 | P16: 2024-03-31 | Q16: 2024-06-30 | R16: 2024-09-30 | S16: 2024-12-31 | T16: 2025-03-31 | U16: 2025-06-30 | V16: 2025-09-30 | W16: 2025-12-31 | X16: 2026-03-31 | Y16: 2026-06-30 | Z16: 2026-09-30 | AA16: 2026-12-31 | AB16: 2027-03-31 | AC16: 2027-06-30 | AD16: 2027-09-30 | AE16: 2027-12-31 | AF16: 2028-03-31 | AG16: 2028-06-30 | AH16: 2028-09-30 | AI16: 2028-12-31 | AJ16: 2029-03-31 | AK16: 2029-06-30 | AL16: 2029-09-30 | AM16: 2029-12-31 | AN16: 2030-03-31 | AO16: 2030-06-30 | AP16: 2030-09-30 | AQ16: 2030-12-31 | AR16: 2031-03-31 | AS16: 2031-06-30 | AT16: 2031-09-30 | AU16: 2031-12-31 | AV16: 2032-03-31 | AW16: 2032-06-30 | AX16: 2032-09-30 | AY16: 2032-12-31 | AZ16: 2033-03-31 | BA16: 2033-06-30 | BB16: 2033-09-30 | BC16: 2033-12-31 | BD16: 2034-03-31 | BE16: 2034-06-30 | BF16: 2034-09-30 | BG16: 2034-12-31 | BH16: 2035-03-31 | BI16: 2035-06-30 | BJ16: 2035-09-30
B17: Days in Quarter | C17: =C16-C15+1 -> 92 | D17: =D16-D15+1 -> 90 | E17: =E16-E15+1 -> 91 | F17: 92 | G17: 92 | H17: 90 | I17: 91 | J17: 92 | K17: 92 | L17: 90 | M17: 91 | N17: 92 | O17: 92 | P17: 91 | Q17: 91 | R17: 92 | S17: 92 | T17: 90 | U17: 91 | V17: 92 | W17: 92 | X17: 90 | Y17: 91 | Z17: 92 | AA17: 92 | AB17: 90 | AC17: 91 | AD17: 92 | AE17: 92 | AF17: 91 | AG17: 91 | AH17: 92 | AI17: 92 | AJ17: 90 | AK17: 91 | AL17: 92 | AM17: 92 | AN17: 90 | AO17: 91 | AP17: 92 | AQ17: 92 | AR17: 90 | AS17: 91 | AT17: 92 | AU17: 92 | AV17: 91 | AW17: 91 | AX17: 92 | AY17: 92 | AZ17: 90 | BA17: 91 | BB17: 92 | BC17: 92 | BD17: 90 | BE17: 91 | BF17: 92 | BG17: 92 | BH17: 90 | BI17: 91 | BJ17: 92
B18: Capacity requested (kWh/d)
B19: Non-Incremental (kWh/d) | C19: =IFERROR(VLOOKUP(C15,LTSR!$B:$CX,MATCH($C$3,LTSR!7:7,0)-1,0),0) -> 179300000 | D19: =IFERROR(VLOOKUP(D15,LTSR!$B:$CX,MATCH($C$3,LTSR!7:7,0)-1,0),0) -> 179300000 | E19: =IFERROR(VLOOKUP(E15,LTSR!$B:$CX,MATCH($C$3,LTSR!7:7,0)-1,0),0) -> 179300000 | F19: =IFERROR(VLOOKUP(F15,LTSR!$B:$CX,MATCH($C$3,LTSR!7:7,0)-1,0),0) -> 179300000 | G19: =IFERROR(VLOOKUP(G15,LTSR!$B:$CX,MATCH($C$3,LTSR!7:7,0)-1,0),0) -> 179300000 | H19: =IFERROR(VLOOKUP(H15,LTSR!$B:$CX,MATCH($C$3,LTSR!7:7,0)-1,0),0) -> 179300000 | I19: =IFERROR(VLOOKUP(I15,LTSR!$B:$CX,MATCH($C$3,LTSR!7:7,0)-1,0),0) -> 179300000 | J19: =IFERROR(VLOOKUP(J15,LTSR!$B:$CX,MATCH($C$3,LTSR!7:7,0)-1,0),0) -> 179300000 | K19: =IFERROR(VLOOKUP(K15,LTSR!$B:$CX,MATCH($C$3,LTSR!7:7,0)-1,0),0) -> 179300000 | L19: =IFERROR(VLOOKUP(L15,LTSR!$B:$CX,MATCH($C$3,LTSR!7:7,0)-1,0),0) -> 179300000 | M19: =IFERROR(VLOOKUP(M15,LTSR!$B:$CX,MATCH($C$3,LTSR!7:7,0)-1,0),0) -> 179300000 | N19: =IFERROR(VLOOKUP(N15,LTSR!$B:$CX,MATCH($C$3,LTSR!7:7,0)-1,0),0) -> 179300000 | O19: =IFERROR(VLOOKUP(O15,LTSR!$B:$CX,MATCH($C$3,LTSR!7:7,0)-1,0),0) -> 179300000 | P19: =IFERROR(VLOOKUP(P15,LTSR!$B:$CX,MATCH($C$3,LTSR!7:7,0)-1,0),0) -> 179300000 | Q19: =IFERROR(VLOOKUP(Q15,LTSR!$B:$CX,MATCH($C$3,LTSR!7:7,0)-1,0),0) -> 179300000 | R19: =IFERROR(VLOOKUP(R15,LTSR!$B:$CX,MATCH($C$3,LTSR!7:7,0)-1,0),0) -> 179300000 | S19: =IFERROR(VLOOKUP(S15,LTSR!$B:$CX,MATCH($C$3,LTSR!7:7,0)-1,0),0) -> 179300000 | T19: =IFERROR(VLOOKUP(T15,LTSR!$B:$CX,MATCH($C$3,LTSR!7:7,0)-1,0),0) -> 179300000 | U19: =IFERROR(VLOOKUP(U15,LTSR!$B:$CX,MATCH($C$3,LTSR!7:7,0)-1,0),0) -> 179300000 | V19: =IFERROR(VLOOKUP(V15,LTSR!$B:$CX,MATCH($C$3,LTSR!7:7,0)-1,0),0) -> 179300000 | W19: =IFERROR(VLOOKUP(W15,LTSR!$B:$CX,MATCH($C$3,LTSR!7:7,0)-1,0),0) -> 179300000 | X19: =IFERROR(VLOOKUP(X15,LTSR!$B:$CX,MATCH($C$3,LTSR!7:7,0)-1,0),0) -> 179300000 | Y19: =IFERROR(VLOOKUP(Y15,LTSR!$B:$CX,MATCH($C$3,LTSR!7:7,0)-1,0),0) -> 179300000 | Z19: =IFERROR(VLOOKUP(Z15,LTSR!$B:$CX,MATCH($C$3,LTSR!7:7,0)-1,0),0) -> 179300000 | AA19: =IFERROR(VLOOKUP(AA15,LTSR!$B:$CX,MATCH($C$3,LTSR!7:7,0)-1,0),0) -> 179300000 | AB19: =IFERROR(VLOOKUP(AB15,LTSR!$B:$CX,MATCH($C$3,LTSR!7:7,0)-1,0),0) -> 179300000 | AC19: =IFERROR(VLOOKUP(AC15,LTSR!$B:$CX,MATCH($C$3,LTSR!7:7,0)-1,0),0) -> 179300000 | AD19: =IFERROR(VLOOKUP(AD15,LTSR!$B:$CX,MATCH($C$3,LTSR!7:7,0)-1,0),0) -> 179300000 | AE19: =IFERROR(VLOOKUP(AE15,LTSR!$B:$CX,MATCH($C$3,LTSR!7:7,0)-1,0),0) -> 179300000 | AF19: =IFERROR(VLOOKUP(AF15,LTSR!$B:$CX,MATCH($C$3,LTSR!7:7,0)-1,0),0) -> 179300000 | AG19: =IFERROR(VLOOKUP(AG15,LTSR!$B:$CX,MATCH($C$3,LTSR!7:7,0)-1,0),0) -> 179300000 | AH19: =IFERROR(VLOOKUP(AH15,LTSR!$B:$CX,MATCH($C$3,LTSR!7:7,0)-1,0),0) -> 179300000 | AI19: =IFERROR(VLOOKUP(AI15,LTSR!$B:$CX,MATCH($C$3,LTSR!7:7,0)-1,0),0) -> 179300000 | AJ19: =IFERROR(VLOOKUP(AJ15,LTSR!$B:$CX,MATCH($C$3,LTSR!7:7,0)-1,0),0) -> 179300000 | AK19: =IFERROR(VLOOKUP(AK15,LTSR!$B:$CX,MATCH($C$3,LTSR!7:7,0)-1,0),0) -> 179300000 | AL19: =IFERROR(VLOOKUP(AL15,LTSR!$B:$CX,MATCH($C$3,LTSR!7:7,0)-1,0),0) -> 179300000 | AM19: =IFERROR(VLOOKUP(AM15,LTSR!$B:$CX,MATCH($C$3,LTSR!7:7,0)-1,0),0) -> 179300000 | AN19: =IFERROR(VLOOKUP(AN15,LTSR!$B:$CX,MATCH($C$3,LTSR!7:7,0)-1,0),0) -> 179300000 | AO19: =IFERROR(VLOOKUP(AO15,LTSR!$B:$CX,MATCH($C$3,LTSR!7:7,0)-1,0),0) -> 179300000 | AP19: =IFERROR(VLOOKUP(AP15,LTSR!$B:$CX,MATCH($C$3,LTSR!7:7,0)-1,0),0) -> 179300000 | AQ19: =IFERROR(VLOOKUP(AQ15,LTSR!$B:$CX,MATCH($C$3,LTSR!7:7,0)-1,0),0) -> 179300000 | AR19: =IFERROR(VLOOKUP(AR15,LTSR!$B:$CX,MATCH($C$3,LTSR!7:7,0)-1,0),0) -> 179300000 | AS19: =IFERROR(VLOOKUP(AS15,LTSR!$B:$CX,MATCH($C$3,LTSR!7:7,0)-1,0),0) -> 179300000 | AT19: =IFERROR(VLOOKUP(AT15,LTSR!$B:$CX,MATCH($C$3,LTSR!7:7,0)-1,0),0) -> 179300000 | AU19: =IFERROR(VLOOKUP(AU15,LTSR!$B:$CX,MATCH($C$3,LTSR!7:7,0)-1,0),0) -> 179300000 | AV19: =IFERROR(VLOOKUP(AV15,LTSR!$B:$CX,MATCH($C$3,LTSR!7:7,0)-1,0),0) -> 179300000 | AW19: =IFERROR(VLOOKUP(AW15,LTSR!$B:$CX,MATCH($C$3,LTSR!7:7,0)-1,0),0) -> 179300000 | AX19: =IFERROR(VLOOKUP(AX15,LTSR!$B:$CX,MATCH($C$3,LTSR!7:7,0)-1,0),0) -> 179300000 | AY19: =IFERROR(VLOOKUP(AY15,LTSR!$B:$CX,MATCH($C$3,LTSR!7:7,0)-1,0),0) -> 179300000 | AZ19: =IFERROR(VLOOKUP(AZ15,LTSR!$B:$CX,MATCH($C$3,LTSR!7:7,0)-1,0),0) -> 179300000 | BA19: =IFERROR(VLOOKUP(BA15,LTSR!$B:$CX,MATCH($C$3,LTSR!7:7,0)-1,0),0) -> 179300000 | BB19: =IFERROR(VLOOKUP(BB15,LTSR!$B:$CX,MATCH($C$3,LTSR!7:7,0)-1,0),0) -> 179300000 | BC19: =IFERROR(VLOOKUP(BC15,LTSR!$B:$CX,MATCH($C$3,LTSR!7:7,0)-1,0),0) -> 179300000 | BD19: =IFERROR(VLOOKUP(BD15,LTSR!$B:$CX,MATCH($C$3,LTSR!7:7,0)-1,0),0) -> 179300000 | BE19: =IFERROR(VLOOKUP(BE15,LTSR!$B:$CX,MATCH($C$3,LTSR!7:7,0)-1,0),0) -> 179300000 | BF19: =IFERROR(VLOOKUP(BF15,LTSR!$B:$CX,MATCH($C$3,LTSR!7:7,0)-1,0),0) -> 179300000 | BG19: =IFERROR(VLOOKUP(BG15,LTSR!$B:$CX,MATCH($C$3,LTSR!7:7,0)-1,0),0) -> 179300000 | BH19: =IFERROR(VLOOKUP(BH15,LTSR!$B:$CX,MATCH($C$3,LTSR!7:7,0)-1,0),0) -> 179300000 | BI19: =IFERROR(VLOOKUP(BI15,LTSR!$B:$CX,MATCH($C$3,LTSR!7:7,0)-1,0),0) -> 179300000 | BJ19: =IFERROR(VLOOKUP(BJ15,LTSR!$B:$CX,MATCH($C$3,LTSR!7:7,0)-1,0),0) -> 179300000
B20: Incremental (kWh/d) | C20: =IFERROR(VLOOKUP(C15,LTSR!$B:$CX,MATCH($C$3,LTSR!7:7,0)+1,0),0) -> 0 | D20: =IFERROR(VLOOKUP(D15,LTSR!$B:$CX,MATCH($C$3,LTSR!7:7,0)+1,0),0) -> 0 | E20: =IFERROR(VLOOKUP(E15,LTSR!$B:$CX,MATCH($C$3,LTSR!7:7,0)+1,0),0) -> 0 | F20: =IFERROR(VLOOKUP(F15,LTSR!$B:$CX,MATCH($C$3,LTSR!7:7,0)+1,0),0) -> 0 | G20: =IFERROR(VLOOKUP(G15,LTSR!$B:$CX,MATCH($C$3,LTSR!7:7,0)+1,0),0) -> 0 | H20: =IFERROR(VLOOKUP(H15,LTSR!$B:$CX,MATCH($C$3,LTSR!7:7,0)+1,0),0) -> 0 | I20: =IFERROR(VLOOKUP(I15,LTSR!$B:$CX,MATCH($C$3,LTSR!7:7,0)+1,0),0) -> 0 | J20: =IFERROR(VLOOKUP(J15,LTSR!$B:$CX,MATCH($C$3,LTSR!7:7,0)+1,0),0) -> 0 | K20: =IFERROR(VLOOKUP(K15,LTSR!$B:$CX,MATCH($C$3,LTSR!7:7,0)+1,0),0) -> 0 | L20: =IFERROR(VLOOKUP(L15,LTSR!$B:$CX,MATCH($C$3,LTSR!7:7,0)+1,0),0) -> 0 | M20: =IFERROR(VLOOKUP(M15,LTSR!$B:$CX,MATCH($C$3,LTSR!7:7,0)+1,0),0) -> 0 | N20: =IFERROR(VLOOKUP(N15,LTSR!$B:$CX,MATCH($C$3,LTSR!7:7,0)+1,0),0) -> 0 | O20: =IFERROR(VLOOKUP(O15,LTSR!$B:$CX,MATCH($C$3,LTSR!7:7,0)+1,0),0) -> 0 | P20: =IFERROR(VLOOKUP(P15,LTSR!$B:$CX,MATCH($C$3,LTSR!7:7,0)+1,0),0) -> 0 | Q20: =IFERROR(VLOOKUP(Q15,LTSR!$B:$CX,MATCH($C$3,LTSR!7:7,0)+1,0),0) -> 0 | R20: =IFERROR(VLOOKUP(R15,LTSR!$B:$CX,MATCH($C$3,LTSR!7:7,0)+1,0),0) -> 0 | S20: =IFERROR(VLOOKUP(S15,LTSR!$B:$CX,MATCH($C$3,LTSR!7:7,0)+1,0),0) -> 0 | T20: =IFERROR(VLOOKUP(T15,LTSR!$B:$CX,MATCH($C$3,LTSR!7:7,0)+1,0),0) -> 0 | U20: =IFERROR(VLOOKUP(U15,LTSR!$B:$CX,MATCH($C$3,LTSR!7:7,0)+1,0),0) -> 0 | V20: =IFERROR(VLOOKUP(V15,LTSR!$B:$CX,MATCH($C$3,LTSR!7:7,0)+1,0),0) -> 0 | W20: =IFERROR(VLOOKUP(W15,LTSR!$B:$CX,MATCH($C$3,LTSR!7:7,0)+1,0),0) -> 0 | X20: =IFERROR(VLOOKUP(X15,LTSR!$B:$CX,MATCH($C$3,LTSR!7:7,0)+1,0),0) -> 0 | Y20: =IFERROR(VLOOKUP(Y15,LTSR!$B:$CX,MATCH($C$3,LTSR!7:7,0)+1,0),0) -> 0 | Z20: =IFERROR(VLOOKUP(Z15,LTSR!$B:$CX,MATCH($C$3,LTSR!7:7,0)+1,0),0) -> 0 | AA20: =IFERROR(VLOOKUP(AA15,LTSR!$B:$CX,MATCH($C$3,LTSR!7:7,0)+1,0),0) -> 0 | AB20: =IFERROR(VLOOKUP(AB15,LTSR!$B:$CX,MATCH($C$3,LTSR!7:7,0)+1,0),0) -> 0 | AC20: =IFERROR(VLOOKUP(AC15,LTSR!$B:$CX,MATCH($C$3,LTSR!7:7,0)+1,0),0) -> 0 | AD20: =IFERROR(VLOOKUP(AD15,LTSR!$B:$CX,MATCH($C$3,LTSR!7:7,0)+1,0),0) -> 0 | AE20: =IFERROR(VLOOKUP(AE15,LTSR!$B:$CX,MATCH($C$3,LTSR!7:7,0)+1,0),0) -> 0 | AF20: =IFERROR(VLOOKUP(AF15,LTSR!$B:$CX,MATCH($C$3,LTSR!7:7,0)+1,0),0) -> 0 | AG20: =IFERROR(VLOOKUP(AG15,LTSR!$B:$CX,MATCH($C$3,LTSR!7:7,0)+1,0),0) -> 0 | AH20: =IFERROR(VLOOKUP(AH15,LTSR!$B:$CX,MATCH($C$3,LTSR!7:7,0)+1,0),0) -> 0 | AI20: =IFERROR(VLOOKUP(AI15,LTSR!$B:$CX,MATCH($C$3,LTSR!7:7,0)+1,0),0) -> 0 | AJ20: =IFERROR(VLOOKUP(AJ15,LTSR!$B:$CX,MATCH($C$3,LTSR!7:7,0)+1,0),0) -> 0 | AK20: =IFERROR(VLOOKUP(AK15,LTSR!$B:$CX,MATCH($C$3,LTSR!7:7,0)+1,0),0) -> 0 | AL20: =IFERROR(VLOOKUP(AL15,LTSR!$B:$CX,MATCH($C$3,LTSR!7:7,0)+1,0),0) -> 0 | AM20: =IFERROR(VLOOKUP(AM15,LTSR!$B:$CX,MATCH($C$3,LTSR!7:7,0)+1,0),0) -> 0 | AN20: =IFERROR(VLOOKUP(AN15,LTSR!$B:$CX,MATCH($C$3,LTSR!7:7,0)+1,0),0) -> 0 | AO20: =IFERROR(VLOOKUP(AO15,LTSR!$B:$CX,MATCH($C$3,LTSR!7:7,0)+1,0),0) -> 0 | AP20: =IFERROR(VLOOKUP(AP15,LTSR!$B:$CX,MATCH($C$3,LTSR!7:7,0)+1,0),0) -> 0 | AQ20: =IFERROR(VLOOKUP(AQ15,LTSR!$B:$CX,MATCH($C$3,LTSR!7:7,0)+1,0),0) -> 0 | AR20: =IFERROR(VLOOKUP(AR15,LTSR!$B:$CX,MATCH($C$3,LTSR!7:7,0)+1,0),0) -> 0 | AS20: =IFERROR(VLOOKUP(AS15,LTSR!$B:$CX,MATCH($C$3,LTSR!7:7,0)+1,0),0) -> 0 | AT20: =IFERROR(VLOOKUP(AT15,LTSR!$B:$CX,MATCH($C$3,LTSR!7:7,0)+1,0),0) -> 0 | AU20: =IFERROR(VLOOKUP(AU15,LTSR!$B:$CX,MATCH($C$3,LTSR!7:7,0)+1,0),0) -> 0 | AV20: =IFERROR(VLOOKUP(AV15,LTSR!$B:$CX,MATCH($C$3,LTSR!7:7,0)+1,0),0) -> 0 | AW20: =IFERROR(VLOOKUP(AW15,LTSR!$B:$CX,MATCH($C$3,LTSR!7:7,0)+1,0),0) -> 0 | AX20: =IFERROR(VLOOKUP(AX15,LTSR!$B:$CX,MATCH($C$3,LTSR!7:7,0)+1,0),0) -> 0 | AY20: =IFERROR(VLOOKUP(AY15,LTSR!$B:$CX,MATCH($C$3,LTSR!7:7,0)+1,0),0) -> 0 | AZ20: =IFERROR(VLOOKUP(AZ15,LTSR!$B:$CX,MATCH($C$3,LTSR!7:7,0)+1,0),0) -> 0 | BA20: =IFERROR(VLOOKUP(BA15,LTSR!$B:$CX,MATCH($C$3,LTSR!7:7,0)+1,0),0) -> 0 | BB20: =IFERROR(VLOOKUP(BB15,LTSR!$B:$CX,MATCH($C$3,LTSR!7:7,0)+1,0),0) -> 0 | BC20: =IFERROR(VLOOKUP(BC15,LTSR!$B:$CX,MATCH($C$3,LTSR!7:7,0)+1,0),0) -> 0 | BD20: =IFERROR(VLOOKUP(BD15,LTSR!$B:$CX,MATCH($C$3,LTSR!7:7,0)+1,0),0) -> 0 | BE20: =IFERROR(VLOOKUP(BE15,LTSR!$B:$CX,MATCH($C$3,LTSR!7:7,0)+1,0),0) -> 0 | BF20: =IFERROR(VLOOKUP(BF15,LTSR!$B:$CX,MATCH($C$3,LTSR!7:7,0)+1,0),0) -> 0 | BG20: =IFERROR(VLOOKUP(BG15,LTSR!$B:$CX,MATCH($C$3,LTSR!7:7,0)+1,0),0) -> 0 | BH20: =IFERROR(VLOOKUP(BH15,LTSR!$B:$CX,MATCH($C$3,LTSR!7:7,0)+1,0),0) -> 0 | BI20: =IFERROR(VLOOKUP(BI15,LTSR!$B:$CX,MATCH($C$3,LTSR!7:7,0)+1,0),0) -> 0 | BJ20: =IFERROR(VLOOKUP(BJ15,LTSR!$B:$CX,MATCH($C$3,LTSR!7:7,0)+1,0),0) -> 0
B21: Sold Capacity (kWh/d) | C21: =IFERROR(VLOOKUP(C15,Sold!$B:$DW,MATCH($C$3,Sold!7:7,0),0),0) -> 0 | D21: =IFERROR(VLOOKUP(D15,Sold!$B:$DW,MATCH($C$3,Sold!7:7,0),0),0) -> 0 | E21: =IFERROR(VLOOKUP(E15,Sold!$B:$DW,MATCH($C$3,Sold!7:7,0),0),0) -> 0 | F21: =IFERROR(VLOOKUP(F15,Sold!$B:$DW,MATCH($C$3,Sold!7:7,0),0),0) -> 0 | G21: =IFERROR(VLOOKUP(G15,Sold!$B:$DW,MATCH($C$3,Sold!7:7,0),0),0) -> 0 | H21: =IFERROR(VLOOKUP(H15,Sold!$B:$DW,MATCH($C$3,Sold!7:7,0),0),0) -> 0 | I21: =IFERROR(VLOOKUP(I15,Sold!$B:$DW,MATCH($C$3,Sold!7:7,0),0),0) -> 0 | J21: =IFERROR(VLOOKUP(J15,Sold!$B:$DW,MATCH($C$3,Sold!7:7,0),0),0) -> 0 | K21: =IFERROR(VLOOKUP(K15,Sold!$B:$DW,MATCH($C$3,Sold!7:7,0),0),0) -> 0 | L21: =IFERROR(VLOOKUP(L15,Sold!$B:$DW,MATCH($C$3,Sold!7:7,0),0),0) -> 0 | M21: =IFERROR(VLOOKUP(M15,Sold!$B:$DW,MATCH($C$3,Sold!7:7,0),0),0) -> 0 | N21: =IFERROR(VLOOKUP(N15,Sold!$B:$DW,MATCH($C$3,Sold!7:7,0),0),0) -> 0 | O21: =IFERROR(VLOOKUP(O15,Sold!$B:$DW,MATCH($C$3,Sold!7:7,0),0),0) -> 0 | P21: =IFERROR(VLOOKUP(P15,Sold!$B:$DW,MATCH($C$3,Sold!7:7,0),0),0) -> 0 | Q21: =IFERROR(VLOOKUP(Q15,Sold!$B:$DW,MATCH($C$3,Sold!7:7,0),0),0) -> 0 | R21: =IFERROR(VLOOKUP(R15,Sold!$B:$DW,MATCH($C$3,Sold!7:7,0),0),0) -> 0 | S21: =IFERROR(VLOOKUP(S15,Sold!$B:$DW,MATCH($C$3,Sold!7:7,0),0),0) -> 0 | T21: =IFERROR(VLOOKUP(T15,Sold!$B:$DW,MATCH($C$3,Sold!7:7,0),0),0) -> 0 | U21: =IFERROR(VLOOKUP(U15,Sold!$B:$DW,MATCH($C$3,Sold!7:7,0),0),0) -> 0 | V21: =IFERROR(VLOOKUP(V15,Sold!$B:$DW,MATCH($C$3,Sold!7:7,0),0),0) -> 0 | W21: =IFERROR(VLOOKUP(W15,Sold!$B:$DW,MATCH($C$3,Sold!7:7,0),0),0) -> 0 | X21: =IFERROR(VLOOKUP(X15,Sold!$B:$DW,MATCH($C$3,Sold!7:7,0),0),0) -> 0 | Y21: =IFERROR(VLOOKUP(Y15,Sold!$B:$DW,MATCH($C$3,Sold!7:7,0),0),0) -> 0 | Z21: =IFERROR(VLOOKUP(Z15,Sold!$B:$DW,MATCH($C$3,Sold!7:7,0),0),0) -> 0 | AA21: =IFERROR(VLOOKUP(AA15,Sold!$B:$DW,MATCH($C$3,Sold!7:7,0),0),0) -> 0 | AB21: =IFERROR(VLOOKUP(AB15,Sold!$B:$DW,MATCH($C$3,Sold!7:7,0),0),0) -> 0 | AC21: =IFERROR(VLOOKUP(AC15,Sold!$B:$DW,MATCH($C$3,Sold!7:7,0),0),0) -> 0 | AD21: =IFERROR(VLOOKUP(AD15,Sold!$B:$DW,MATCH($C$3,Sold!7:7,0),0),0) -> 0 | AE21: =IFERROR(VLOOKUP(AE15,Sold!$B:$DW,MATCH($C$3,Sold!7:7,0),0),0) -> 0 | AF21: =IFERROR(VLOOKUP(AF15,Sold!$B:$DW,MATCH($C$3,Sold!7:7,0),0),0) -> 0 | AG21: =IFERROR(VLOOKUP(AG15,Sold!$B:$DW,MATCH($C$3,Sold!7:7,0),0),0) -> 0 | AH21: =IFERROR(VLOOKUP(AH15,Sold!$B:$DW,MATCH($C$3,Sold!7:7,0),0),0) -> 0 | AI21: =IFERROR(VLOOKUP(AI15,Sold!$B:$DW,MATCH($C$3,Sold!7:7,0),0),0) -> 0 | AJ21: =IFERROR(VLOOKUP(AJ15,Sold!$B:$DW,MATCH($C$3,Sold!7:7,0),0),0) -> 0 | AK21: =IFERROR(VLOOKUP(AK15,Sold!$B:$DW,MATCH($C$3,Sold!7:7,0),0),0) -> 0 | AL21: =IFERROR(VLOOKUP(AL15,Sold!$B:$DW,MATCH($C$3,Sold!7:7,0),0),0) -> 0 | AM21: =IFERROR(VLOOKUP(AM15,Sold!$B:$DW,MATCH($C$3,Sold!7:7,0),0),0) -> 0 | AN21: =IFERROR(VLOOKUP(AN15,Sold!$B:$DW,MATCH($C$3,Sold!7:7,0),0),0) -> 0 | AO21: =IFERROR(VLOOKUP(AO15,Sold!$B:$DW,MATCH($C$3,Sold!7:7,0),0),0) -> 0 | AP21: =IFERROR(VLOOKUP(AP15,Sold!$B:$DW,MATCH($C$3,Sold!7:7,0),0),0) -> 0 | AQ21: =IFERROR(VLOOKUP(AQ15,Sold!$B:$DW,MATCH($C$3,Sold!7:7,0),0),0) -> 0 | AR21: =IFERROR(VLOOKUP(AR15,Sold!$B:$DW,MATCH($C$3,Sold!7:7,0),0),0) -> 0 | AS21: =IFERROR(VLOOKUP(AS15,Sold!$B:$DW,MATCH($C$3,Sold!7:7,0),0),0) -> 0 | AT21: =IFERROR(VLOOKUP(AT15,Sold!$B:$DW,MATCH($C$3,Sold!7:7,0),0),0) -> 0 | AU21: =IFERROR(VLOOKUP(AU15,Sold!$B:$DW,MATCH($C$3,Sold!7:7,0),0),0) -> 0 | AV21: =IFERROR(VLOOKUP(AV15,Sold!$B:$DW,MATCH($C$3,Sold!7:7,0),0),0) -> 0 | AW21: =IFERROR(VLOOKUP(AW15,Sold!$B:$DW,MATCH($C$3,Sold!7:7,0),0),0) -> 0 | AX21: =IFERROR(VLOOKUP(AX15,Sold!$B:$DW,MATCH($C$3,Sold!7:7,0),0),0) -> 0 | AY21: =IFERROR(VLOOKUP(AY15,Sold!$B:$DW,MATCH($C$3,Sold!7:7,0),0),0) -> 0 | AZ21: =IFERROR(VLOOKUP(AZ15,Sold!$B:$DW,MATCH($C$3,Sold!7:7,0),0),0) -> 0 | BA21: =IFERROR(VLOOKUP(BA15,Sold!$B:$DW,MATCH($C$3,Sold!7:7,0),0),0) -> 0 | BB21: =IFERROR(VLOOKUP(BB15,Sold!$B:$DW,MATCH($C$3,Sold!7:7,0),0),0) -> 0 | BC21: =IFERROR(VLOOKUP(BC15,Sold!$B:$DW,MATCH($C$3,Sold!7:7,0),0),0) -> 0 | BD21: =IFERROR(VLOOKUP(BD15,Sold!$B:$DW,MATCH($C$3,Sold!7:7,0),0),0) -> 0 | BE21: =IFERROR(VLOOKUP(BE15,Sold!$B:$DW,MATCH($C$3,Sold!7:7,0),0),0) -> 0 | BF21: =IFERROR(VLOOKUP(BF15,Sold!$B:$DW,MATCH($C$3,Sold!7:7,0),0),0) -> 0 | BG21: =IFERROR(VLOOKUP(BG15,Sold!$B:$DW,MATCH($C$3,Sold!7:7,0),0),0) -> 0 | BH21: =IFERROR(VLOOKUP(BH15,Sold!$B:$DW,MATCH($C$3,Sold!7:7,0),0),0) -> 0 | BI21: =IFERROR(VLOOKUP(BI15,Sold!$B:$DW,MATCH($C$3,Sold!7:7,0),0),0) -> 0 | BJ21: =IFERROR(VLOOKUP(BJ15,Sold!$B:$DW,MATCH($C$3,Sold!7:7,0),0),0) -> 0
B22: Withheld (kWh/d) | C22: =(MIN(C19-C21,0.1*C19)) -> 17930000 | D22: =(MIN(D19-D21,0.1*D19)) -> 17930000 | E22: 17930000 | F22: 17930000 | G22: 17930000 | H22: 17930000 | I22: 17930000 | J22: 17930000 | K22: 17930000 | L22: 17930000 | M22: 17930000 | N22: 17930000 | O22: 17930000 | P22: 17930000 | Q22: 17930000 | R22: 17930000 | S22: 17930000 | T22: 17930000 | U22: 17930000 | V22: 17930000 | W22: 17930000 | X22: 17930000 | Y22: =0.1*Y19 -> 17930000 | Z22: 17930000 | AA22: 17930000 | AB22: 17930000 | AC22: 17930000 | AD22: 17930000 | AE22: 17930000 | AF22: 17930000 | AG22: 17930000 | AH22: 17930000 | AI22: 17930000 | AJ22: 17930000 | AK22: 17930000 | AL22: 17930000 | AM22: 17930000 | AN22: 17930000 | AO22: 17930000 | AP22: 17930000 | AQ22: 17930000 | AR22: 17930000 | AS22: 17930000 | AT22: 17930000 | AU22: 17930000 | AV22: 17930000 | AW22: 17930000 | AX22: 17930000 | AY22: 17930000 | AZ22: 17930000 | BA22: 17930000 | BB22: 17930000 | BC22: 17930000 | BD22: 17930000 | BE22: 17930000 | BF22: 17930000 | BG22: 17930000 | BH22: 17930000 | BI22: 17930000 | BJ22: 17930000
B23: Available Capacity (kWh/d) | C23: =C19+C20-C21-C22 -> 161370000 | D23: =D19+D20-D21-D22 -> 161370000 | E23: 161370000 | F23: 161370000 | G23: 161370000 | H23: 161370000 | I23: 161370000 | J23: 161370000 | K23: 161370000 | L23: 161370000 | M23: 161370000 | N23: 161370000 | O23: 161370000 | P23: 161370000 | Q23: 161370000 | R23: 161370000 | S23: 161370000 | T23: 161370000 | U23: 161370000 | V23: 161370000 | W23: 161370000 | X23: 161370000 | Y23: 161370000 | Z23: 161370000 | AA23: 161370000 | AB23: 161370000 | AC23: 161370000 | AD23: 161370000 | AE23: 161370000 | AF23: 161370000 | AG23: 161370000 | AH23: 161370000 | AI23: 161370000 | AJ23: 161370000 | AK23: 161370000 | AL23: 161370000 | AM23: 161370000 | AN23: 161370000 | AO23: 161370000 | AP23: 161370000 | AQ23: 161370000 | AR23: 161370000 | AS23: 161370000 | AT23: 161370000 | AU23: 161370000 | AV23: 161370000 | AW23: 161370000 | AX23: 161370000 | AY23: 161370000 | AZ23: 161370000 | BA23: 161370000 | BB23: 161370000 | BC23: 161370000 | BD23: 161370000 | BE23: 161370000 | BF23: 161370000 | BG23: 161370000 | BH23: 161370000 | BI23: 161370000 | BJ23: 161370000
B24: Existing Capacity Requested (kWh/d) | C24: =MIN(C18,MAX(C23,0)) -> 161370000 | D24: =MIN(D18,MAX(D23,0)) -> 161370000 | E24: 161370000 | F24: 161370000 | G24: 161370000 | H24: 161370000 | I24: 161370000 | J24: 161370000 | K24: 161370000 | L24: 161370000 | M24: 161370000 | N24: 161370000 | O24: 161370000 | P24: 161370000 | Q24: 161370000 | R24: 161370000 | S24: 161370000 | T24: 161370000 | U24: 161370000 | V24: 161370000 | W24: 161370000 | X24: 161370000 | Y24: 161370000 | Z24: 161370000 | AA24: 161370000 | AB24: 161370000 | AC24: 161370000 | AD24: 161370000 | AE24: 161370000 | AF24: 161370000 | AG24: 161370000 | AH24: 161370000 | AI24: 161370000 | AJ24: 161370000 | AK24: 161370000 | AL24: 161370000 | AM24: 161370000 | AN24: 161370000 | AO24: 161370000 | AP24: 161370000 | AQ24: 161370000 | AR24: 161370000 | AS24: 161370000 | AT24: 161370000 | AU24: 161370000 | AV24: 161370000 | AW24: 161370000 | AX24: 161370000 | AY24: 161370000 | AZ24: 161370000 | BA24: 161370000 | BB24: 161370000 | BC24: 161370000 | BD24: 161370000 | BE24: 161370000 | BF24: 161370000 | BG24: 161370000 | BH24: 161370000 | BI24: 161370000 | BJ24: 161370000
B25: New Incremental Requested (kWh/d) | C25: =MAX(0,C18-C24) -> 0 | D25: 0 | E25: 0 | F25: 0 | G25: 0 | H25: 0 | I25: 0 | J25: 0 | K25: 0 | L25: 0 | M25: 0 | N25: 0 | O25: 0 | P25: 0 | Q25: 0 | R25: 0 | S25: 0 | T25: 0 | U25: 0 | V25: 0 | W25: 0 | X25: 0 | Y25: 0 | Z25: 0 | AA25: 0 | AB25: 0 | AC25: 0 | AD25: 0 | AE25: 0 | AF25: 0 | AG25: 0 | AH25: 0 | AI25: =MAX(0,AI18-AI24) -> 0 | AJ25: 0 | AK25: 0 | AL25: 0 | AM25: 0 | AN25: 0 | AO25: 0 | AP25: 0 | AQ25: 0 | AR25: 0 | AS25: 0 | AT25: 0 | AU25: 0 | AV25: 0 | AW25: 0 | AX25: 0 | AY25: 0 | AZ25: 0 | BA25: 0 | BB25: 0 | BC25: 0 | BD25: 0 | BE25: 0 | BF25: 0 | BG25: 0 | BH25: 0 | BI25: 0 | BJ25: 0
B26: Capacity Requested (kWh) | C26: =C17*C18 -> 0 | D26: =D17*D18 -> 0 | E26: =E17*E18 -> 0 | F26: =F17*F18 -> 0 | G26: 0 | H26: 0 | I26: 0 | J26: 0 | K26: 0 | L26: 0 | M26: 0 | N26: 0 | O26: 0 | P26: 0 | Q26: 0 | R26: 0 | S26: 0 | T26: 0 | U26: 0 | V26: 0 | W26: 0 | X26: 0 | Y26: 0 | Z26: 0 | AA26: 0 | AB26: 0 | AC26: 0 | AD26: 0 | AE26: 0 | AF26: 0 | AG26: 0 | AH26: 0 | AI26: =AI17*AI18 -> 0 | AJ26: 0 | AK26: 0 | AL26: 0 | AM26: 0 | AN26: 0 | AO26: 0 | AP26: 0 | AQ26: 0 | AR26: 0 | AS26: 0 | AT26: 0 | AU26: 0 | AV26: 0 | AW26: 0 | AX26: 0 | AY26: 0 | AZ26: 0 | BA26: 0 | BB26: 0 | BC26: 0 | BD26: 0 | BE26: 0 | BF26: 0 | BG26: 0 | BH26: 0 | BI26: 0 | BJ26: 0
B27: Forecast Price (p/kWh/d) | C27: =VLOOKUP(C3,Data!B:C,2,FALSE) -> 0.001 | D27: =C27 -> 0.001 | E27: =D27 -> 0.001 | F27: 0.001 | G27: 0.001 | H27: 0.001 | I27: 0.001 | J27: 0.001 | K27: 0.001 | L27: 0.001 | M27: 0.001 | N27: 0.001 | O27: 0.001 | P27: 0.001 | Q27: 0.001 | R27: 0.001 | S27: 0.001 | T27: 0.001 | U27: 0.001 | V27: 0.001 | W27: 0.001 | X27: 0.001 | Y27: 0.001 | Z27: 0.001 | AA27: 0.001 | AB27: 0.001 | AC27: 0.001 | AD27: 0.001 | AE27: 0.001 | AF27: 0.001 | AG27: 0.001 | AH27: 0.001 | AI27: 0.001 | AJ27: 0.001 | AK27: 0.001 | AL27: 0.001 | AM27: 0.001 | AN27: 0.001 | AO27: 0.001 | AP27: 0.001 | AQ27: 0.001 | AR27: 0.001 | AS27: 0.001 | AT27: 0.001 | AU27: 0.001 | AV27: 0.001 | AW27: 0.001 | AX27: 0.001 | AY27: 0.001 | AZ27: 0.001 | BA27: 0.001 | BB27: 0.001 | BC27: 0.001 | BD27: 0.001 | BE27: 0.001 | BF27: 0.001 | BG27: 0.001 | BH27: 0.001 | BI27: 0.001 | BJ27: 0.001
B28: Non-Discounted Revenue (£) | C28: =C27*C25*C17/100 -> 0 | D28: =D27*D25*D17/100 -> 0 | E28: 0 | F28: 0 | G28: 0 | H28: 0 | I28: 0 | J28: 0 | K28: 0 | L28: 0 | M28: 0 | N28: =N27*N25*N17/100 -> 0 | O28: 0 | P28: 0 | Q28: 0 | R28: 0 | S28: 0 | T28: 0 | U28: 0 | V28: 0 | W28: 0 | X28: 0 | Y28: 0 | Z28: 0 | AA28: 0 | AB28: 0 | AC28: 0 | AD28: 0 | AE28: 0 | AF28: 0 | AG28: 0 | AH28: 0 | AI28: 0 | AJ28: 0 | AK28: 0 | AL28: 0 | AM28: 0 | AN28: 0 | AO28: 0 | AP28: 0 | AQ28: 0 | AR28: 0 | AS28: 0 | AT28: =AT27*AT25*AT17/100 -> 0 | AU28: 0 | AV28: 0 | AW28: 0 | AX28: 0 | AY28: 0 | AZ28: 0 | BA28: 0 | BB28: 0 | BC28: 0 | BD28: 0 | BE28: 0 | BF28: 0 | BG28: 0 | BH28: 0 | BI28: 0 | BJ28: 0
B29: Discounted Revenue (£) | C29: =C28/((1+$C10)^(C13-1)) -> 0 | D29: =D28/((1+$C10)^(D13-1)) -> 0 | E29: 0 | F29: =F28/((1+$C10)^(F13-1)) -> 0 | G29: =G28/((1+$C10)^(G13-1)) -> 0 | H29: =H28/((1+$C10)^(H13-1)) -> 0 | I29: =I28/((1+$C10)^(I13-1)) -> 0 | J29: =J28/((1+$C10)^(J13-1)) -> 0 | K29: =K28/((1+$C10)^(K13-1)) -> 0 | L29: =L28/((1+$C10)^(L13-1)) -> 0 | M29: =M28/((1+$C10)^(M13-1)) -> 0 | N29: =N28/((1+$C10)^(N13-1)) -> 0 | O29: =O28/((1+$C10)^(O13-1)) -> 0 | P29: =P28/((1+$C10)^(P13-1)) -> 0 | Q29: =Q28/((1+$C10)^(Q13-1)) -> 0 | R29: =R28/((1+$C10)^(R13-1)) -> 0 | S29: =S28/((1+$C10)^(S13-1)) -> 0 | T29: =T28/((1+$C10)^(T13-1)) -> 0 | U29: =U28/((1+$C10)^(U13-1)) -> 0 | V29: =V28/((1+$C10)^(V13-1)) -> 0 | W29: =W28/((1+$C10)^(W13-1)) -> 0 | X29: =X28/((1+$C10)^(X13-1)) -> 0 | Y29: =Y28/((1+$C10)^(Y13-1)) -> 0 | Z29: =Z28/((1+$C10)^(Z13-1)) -> 0 | AA29: =AA28/((1+$C10)^(AA13-1)) -> 0 | AB29: =AB28/((1+$C10)^(AB13-1)) -> 0 | AC29: =AC28/((1+$C10)^(AC13-1)) -> 0 | AD29: =AD28/((1+$C10)^(AD13-1)) -> 0 | AE29: =AE28/((1+$C10)^(AE13-1)) -> 0 | AF29: =AF28/((1+$C10)^(AF13-1)) -> 0 | AG29: =AG28/((1+$C10)^(AG13-1)) -> 0 | AH29: =AH28/((1+$C10)^(AH13-1)) -> 0 | AI29: =AI28/((1+$C10)^(AI13-1)) -> 0 | AJ29: =AJ28/((1+$C10)^(AJ13-1)) -> 0 | AK29: =AK28/((1+$C10)^(AK13-1)) -> 0 | AL29: =AL28/((1+$C10)^(AL13-1)) -> 0 | AM29: =AM28/((1+$C10)^(AM13-1)) -> 0 | AN29: =AN28/((1+$C10)^(AN13-1)) -> 0 | AO29: =AO28/((1+$C10)^(AO13-1)) -> 0 | AP29: =AP28/((1+$C10)^(AP13-1)) -> 0 | AQ29: =AQ28/((1+$C10)^(AQ13-1)) -> 0 | AR29: =AR28/((1+$C10)^(AR13-1)) -> 0 | AS29: =AS28/((1+$C10)^(AS13-1)) -> 0 | AT29: =AT28/((1+$C10)^(AT13-1)) -> 0 | AU29: =AU28/((1+$C10)^(AU13-1)) -> 0 | AV29: =AV28/((1+$C10)^(AV13-1)) -> 0 | AW29: =AW28/((1+$C10)^(AW13-1)) -> 0 | AX29: =AX28/((1+$C10)^(AX13-1)) -> 0 | AY29: =AY28/((1+$C10)^(AY13-1)) -> 0 | AZ29: =AZ28/((1+$C10)^(AZ13-1)) -> 0 | BA29: =BA28/((1+$C10)^(BA13-1)) -> 0 | BB29: =BB28/((1+$C10)^(BB13-1)) -> 0 | BC29: =BC28/((1+$C10)^(BC13-1)) -> 0 | BD29: =BD28/((1+$C10)^(BD13-1)) -> 0 | BE29: =BE28/((1+$C10)^(BE13-1)) -> 0 | BF29: =BF28/((1+$C10)^(BF13-1)) -> 0 | BG29: =BG28/((1+$C10)^(BG13-1)) -> 0 | BH29: =BH28/((1+$C10)^(BH13-1)) -> 0 | BI29: =BI28/((1+$C10)^(BI13-1)) -> 0 | BJ29: =BJ28/((1+$C10)^(BJ13-1)) -> 0
B30: NPV | C30: =SUM(C29:BJ29) -> 0
B32: Output | L32: possible outcomes for test
B33: Test Passed with no premium? | C33: =IF(C11>=C8,"yes","no") -> yes | E33: if the NPV of User Revenue is >= the required User commitment then the test is passed | L33: yes | M33: no
E34: The premium will be 0 if the NPV of User Revenue already is >= the required User commitment
B35: Premium Calculation
B36: Shortfall (£) | C36: =MAX((C8)-C30,0) -> 0
B37: Total Capacity (kWh) | C37: =SUM(C26:BJ26) -> 0
B38: Premium (p/kWh) | C38: 5.421010862e-20
B40: Calculated Premium Shortfall (£) | C40: =$C$38*((1-$C10)^(C13-1))*C26/100 -> 0 | D40: =$C$38*((1-$C10)^(D13-1))*D26/100 -> 0 | E40: 0 | F40: 0 | G40: 0 | H40: 0 | I40: 0 | J40: 0 | K40: 0 | L40: 0 | M40: 0 | N40: 0 | O40: 0 | P40: 0 | Q40: 0 | R40: 0 | S40: 0 | T40: 0 | U40: 0 | V40: 0 | W40: 0 | X40: 0 | Y40: 0 | Z40: 0 | AA40: 0 | AB40: 0 | AC40: 0 | AD40: 0 | AE40: 0 | AF40: 0 | AG40: 0 | AH40: 0 | AI40: 0 | AJ40: 0 | AK40: 0 | AL40: 0 | AM40: 0 | AN40: 0 | AO40: 0 | AP40: 0 | AQ40: 0 | AR40: 0 | AS40: 0 | AT40: 0 | AU40: 0 | AV40: 0 | AW40: 0 | AX40: 0 | AY40: 0 | AZ40: 0 | BA40: 0 | BB40: 0 | BC40: 0 | BD40: 0 | BE40: 0 | BF40: 0 | BG40: 0 | BH40: 0 | BI40: 0 | BJ40: 0
B41: Total Shortfall Collected (£) | C41: =SUM(C40:BJ40) -> 0

Sheet LTSR
B1: Allocation of Obligated Entry Capacity and Release Obligation Summary Report
B4: Monthly Report as @ 1st October 2019
B5: Units: UK standard units used i.e. kWh (with a combustion reference temperature of 288.15 K)
B7: Month | C7: Avonmouth | G7: Bacton IP | K7: Bacton UKCS | O7: Burton Point | S7: Barrow | W7: Barton Stacey | AA7: Canonbie | AE7: Cheshire | AI7: Caythorpe | AM7: Dynevor Arms | AQ7: Easington (incl. Rough) | AU7: Fleetwood | AY7: Glenmavis | BC7: Garton | BG7: Hole House Farm | BK7: Hatfield Moor (onshore) | BO7: Hornsea | BS7: Hatfield Moor (storage) | BW7: Isle of Grain | CA7: Milford Haven | CE7: Murrow | CI7: Partington | CM7: St Fergus | CQ7: Teesside | CU7: Theddlethorpe | CY7: Wytch Farm
C8: AV | G8: BI | K8: BU | O8: BP | S8: BR | W8: BS | AA8: CB | AE8: CH | AI8: CT | AM8: DA | AQ8: EA | AU8: FL | AY8: GM | BC8: GR | BG8: HH | BK8: HM | BO8: HS | BS8: HT | BW8: IG | CA8: MH | CE8: MU | CI8: PR | CM8: SF | CQ8: TE | CU8: TH | CY8: WF
C9: Non-Incremental | D9: Legacy Incremental | E9: Funded Incremental | F9: Total Obligated | G9: Non-Incremental | H9: Legacy Incremental | I9: Funded Incremental | J9: Total Obligated | K9: Non-Incremental | L9: Legacy Incremental | M9: Funded Incremental | N9: Total Obligated | O9: Non-Incremental | P9: Legacy Incremental | Q9: Funded Incremental | R9: Total Obligated | S9: Non-Incremental | T9: Legacy Incremental | U9: Funded Incremental | V9: Total Obligated | W9: Non-Incremental | X9: Legacy Incremental | Y9: Funded Incremental | Z9: Total Obligated | AA9: Non-Incremental | AB9: Legacy Incremental | AC9: Funded Incremental | AD9: Total Obligated | AE9: Non-Incremental | AF9: Legacy Incremental | AG9: Funded Incremental | AH9: Total Obligated | AI9: Non-Incremental | AJ9: Legacy Incremental | AK9: Funded Incremental | AL9: Total Obligated | AM9: Non-Incremental | AN9: Legacy Incremental | AO9: Funded Incremental | AP9: Total Obligated | AQ9: Non-Incremental | AR9: Legacy Incremental | AS9: Funded Incremental | AT9: Total Obligated | AU9: Non-Incremental | AV9: Legacy Incremental | AW9: Funded Incremental | AX9: Total Obligated | AY9: Non-Incremental | AZ9: Legacy Incremental | BA9: Funded Incremental | BB9: Total Obligated | BC9: Non-Incremental | BD9: Legacy Incremental | BE9: Funded Incremental | BF9: Total Obligated | BG9: Non-Incremental | BH9: Legacy Incremental | BI9: Funded Incremental | BJ9: Total Obligated | BK9: Non-Incremental | BL9: Legacy Incremental | BM9: Funded Incremental | BN9: Total Obligated | BO9: Non-Incremental | BP9: Legacy Incremental | BQ9: Funded Incremental | BR9: Total Obligated | BS9: Non-Incremental | BT9: Legacy Incremental | BU9: Funded Incremental | BV9: Total Obligated | BW9: Non-Incremental | BX9: Legacy Incremental | BY9: Funded Incremental | BZ9: Total Obligated | CA9: Non-Incremental | CB9: Legacy Incremental | CC9: Funded Incremental | CD9: Total Obligated | CE9: Non-Incremental | CF9: Legacy Incremental | CG9: Funded Incremental | CH9: Total Obligated | CI9: Non-Incremental | CJ9: Legacy Incremental | CK9: Funded Incremental | CL9: Total Obligated | CM9: Non-Incremental | CN9: Legacy Incremental | CO9: Funded Incremental | CP9: Total Obligated | CQ9: Non-Incremental | CR9: Legacy Incremental | CS9: Funded Incremental | CT9: Total Obligated | CU9: Non-Incremental | CV9: Legacy Incremental | CW9: Funded Incremental | CX9: Total Obligated | CY9: Non-Incremental | CZ9: Legacy Incremental | DA9: Funded Incremental | DB9: Total Obligated
C10: kWh/d | D10: kWh/d | E10: kWh/d | F10: kWh/d | G10: kWh/d | H10: kWh/d | I10: kWh/d | J10: kWh/d | K10: kWh/d | L10: kWh/d | M10: kWh/d | N10: kWh/d | O10: kWh/d | P10: kWh/d | Q10: kWh/d | R10: kWh/d | S10: kWh/d | T10: kWh/d | U10: kWh/d | V10: kWh/d | W10: kWh/d | X10: kWh/d | Y10: kWh/d | Z10: kWh/d | AA10: kWh/d | AB10: kWh/d | AC10: kWh/d | AD10: kWh/d | AE10: kWh/d | AF10: kWh/d | AG10: kWh/d | AH10: kWh/d | AI10: kWh/d | AJ10: kWh/d | AK10: kWh/d | AL10: kWh/d | AM10: kWh/d | AN10: kWh/d | AO10: kWh/d | AP10: kWh/d | AQ10: kWh/d | AR10: kWh/d | AS10: kWh/d | AT10: kWh/d | AU10: kWh/d | AV10: kWh/d | AW10: kWh/d | AX10: kWh/d | AY10: kWh/d | AZ10: kWh/d | BA10: kWh/d | BB10: kWh/d | BC10: kWh/d | BD10: kWh/d | BE10: kWh/d | BF10: kWh/d | BG10: kWh/d | BH10: kWh/d | BI10: kWh/d | BJ10: kWh/d | BK10: kWh/d | BL10: kWh/d | BM10: kWh/d | BN10: kWh/d | BO10: kWh/d | BP10: kWh/d | BQ10: kWh/d | BR10: kWh/d | BS10: kWh/d | BT10: kWh/d | BU10: kWh/d | BV10: kWh/d | BW10: kWh/d | BX10: kWh/d | BY10: kWh/d | BZ10: kWh/d | CA10: kWh/d | CB10: kWh/d | CC10: kWh/d | CD10: kWh/d | CE10: kWh/d | CF10: kWh/d | CG10: kWh/d | CH10: kWh/d | CI10: kWh/d | CJ10: kWh/d | CK10: kWh/d | CL10: kWh/d | CM10: kWh/d | CN10: kWh/d | CO10: kWh/d | CP10: kWh/d | CQ10: kWh/d | CR10: kWh/d | CS10: kWh/d | CT10: kWh/d | CU10: kWh/d | CV10: kWh/d | CW10: kWh/d | CX10: kWh/d | CY10: kWh/d | CZ10: kWh/d | DA10: kWh/d | DB10: kWh/d
B11: 2019-10-01 | C11: 179300000 | D11: 0 | E11: 0 | F11: 179300000 | G11: 1297800000 | H11: 0 | I11: 0 | J11: 1297800000 | K11: 485600000 | L11: 0 | M11: 0 | N11: 485600000 | O11: 73500000 | P11: 0 | Q11: 0 | R11: 73500000 | S11: 340010000 | T11: 0 | U11: 0 | V11: 340010000 | W11: 172600000 | X11: 0 | Y11: 0 | Z11: 172600000 | AA11: 0 | AB11: 0 | AC11: 0 | AD11: 0 | AE11: =542700000+13567500 -> 556267500 | AF11: 0 | AG11: 0 | AH11: =542700000+13567500 -> 556267500 | AI11: 90000000 | AJ11: 0 | AK11: 0 | AL11: 90000000 | AM11: 49000000 | AN11: 0 | AO11: 0 | AP11: 49000000 | AQ11: 1407150000 | AR11: 0 | AS11: 0 | AT11: 1407150000 | AU11: 350000000 | AV11: 0 | AW11: 0 | AX11: 350000000 | AY11: 99000000 | AZ11: 0 | BA11: 0 | BB11: 99000000 | BC11: 420000000 | BD11: 0 | BE11: 0 | BF11: 420000000 | BG11: 296600000 | BH11: 0 | BI11: 0 | BJ11: 296600000 | BK11: 300000 | BL11: 0 | BM11: 0 | BN11: 300000 | BO11: 233100000 | BP11: 0 | BQ11: 0 | BR11: 233100000 | BS11: 25000000 | BT11: 0 | BU11: 0 | BV11: 25000000 | BW11: 699680000 | BX11: 0 | BY11: 0 | BZ11: 699680000 | CA11: 950000000 | CB11: 0 | CC11: 0 | CD11: 950000000 | CE11: 0 | CF11: 0 | CG11: 0 | CH11: 0 | CI11: 201432500 | CJ11: 0 | CK11: 0 | CL11: 201432500 | CM11: 1670700000 | CN11: 0 | CO11: 0 | CP11: 1670700000 | CQ11: 445090000 | CR11: 0 | CS11: 0 | CT11: 445090000 | CU11: 610700000 | CV11: 0 | CW11: 0 | CX11: 610700000 | CY11: 3300000 | CZ11: 0 | DA11: 0 | DB11: 3300000
B12: 2019-11-01 | C12: 179300000 | D12: 0 | E12: 0 | F12: 179300000 | G12: 1297800000 | H12: 0 | I12: 0 | J12: 1297800000 | K12: 485600000 | L12: 0 | M12: 0 | N12: 485600000 | O12: 73500000 | P12: 0 | Q12: 0 | R12: 73500000 | S12: 340010000 | T12: 0 | U12: 0 | V12: 340010000 | W12: 172600000 | X12: 0 | Y12: 0 | Z12: 172600000 | AA12: 0 | AB12: 0 | AC12: 0 | AD12: 0 | AE12: 556267500 | AF12: 0 | AG12: 0 | AH12: 556267500 | AI12: 90000000 | AJ12: 0 | AK12: 0 | AL12: 90000000 | AM12: 49000000 | AN12: 0 | AO12: 0 | AP12: 49000000 | AQ12: 1407150000 | AR12: 0 | AS12: 0 | AT12: 1407150000 | AU12: 350000000 | AV12: 0 | AW12: 0 | AX12: 350000000 | AY12: 99000000 | AZ12: 0 | BA12: 0 | BB12: 99000000 | BC12: 420000000 | BD12: 0 | BE12: 0 | BF12: 420000000 | BG12: 296600000 | BH12: 0 | BI12: 0 | BJ12: 296600000 | BK12: 300000 | BL12: 0 | BM12: 0 | BN12: 300000 | BO12: 233100000 | BP12: 0 | BQ12: 0 | BR12: 233100000 | BS12: 25000000 | BT12: 0 | BU12: 0 | BV12: 25000000 | BW12: 699680000 | BX12: 0 | BY12: 0 | BZ12: 699680000 | CA12: 950000000 | CB12: 0 | CC12: 0 | CD12: 950000000 | CE12: 0 | CF12: 0 | CG12: 0 | CH12: 0 | CI12: 201432500 | CJ12: 0 | CK12: 0 | CL12: 201432500 | CM12: 1670700000 | CN12: 0 | CO12: 0 | CP12: 1670700000 | CQ12: 445090000 | CR12: 0 | CS12: 0 | CT12: 445090000 | CU12: 610700000 | CV12: 0 | CW12: 0 | CX12: 610700000 | CY12: 3300000 | CZ12: 0 | DA12: 0 | DB12: 3300000
B13: 2019-12-01 | C13: 179300000 | D13: 0 | E13: 0 | F13: 179300000 | G13: 1297800000 | H13: 0 | I13: 0 | J13: 1297800000 | K13: 485600000 | L13: 0 | M13: 0 | N13: 485600000 | O13: 73500000 | P13: 0 | Q13: 0 | R13: 73500000 | S13: 340010000 | T13: 0 | U13: 0 | V13: 340010000 | W13: 172600000 | X13: 0 | Y13: 0 | Z13: 172600000 | AA13: 0 | AB13: 0 | AC13: 0 | AD13: 0 | AE13: 556267500 | AF13: 0 | AG13: 0 | AH13: 556267500 | AI13: 90000000 | AJ13: 0 | AK13: 0 | AL13: 90000000 | AM13: 49000000 | AN13: 0 | AO13: 0 | AP13: 49000000 | AQ13: 1407150000 | AR13: 0 | AS13: 0 | AT13: 1407150000 | AU13: 350000000 | AV13: 0 | AW13: 0 | AX13: 350000000 | AY13: 99000000 | AZ13: 0 | BA13: 0 | BB13: 99000000 | BC13: 420000000 | BD13: 0 | BE13: 0 | BF13: 420000000 | BG13: 296600000 | BH13: 0 | BI13: 0 | BJ13: 296600000 | BK13: 300000 | BL13: 0 | BM13: 0 | BN13: 300000 | BO13: 233100000 | BP13: 0 | BQ13: 0 | BR13: 233100000 | BS13: 25000000 | BT13: 0 | BU13: 0 | BV13: 25000000 | BW13: 699680000 | BX13: 0 | BY13: 0 | BZ13: 699680000 | CA13: 950000000 | CB13: 0 | CC13: 0 | CD13: 950000000 | CE13: 0 | CF13: 0 | CG13: 0 | CH13: 0 | CI13: 201432500 | CJ13: 0 | CK13: 0 | CL13: 201432500 | CM13: 1670700000 | CN13: 0 | CO13: 0 | CP13: 1670700000 | CQ13: 445090000 | CR13: 0 | CS13: 0 | CT13: 445090000 | CU13: 610700000 | CV13: 0 | CW13: 0 | CX13: 610700000 | CY13: 3300000 | CZ13: 0 | DA13: 0 | DB13: 3300000
B14: 2020-01-01 | C14: 179300000 | D14: 0 | E14: 0 | F14: 179300000 | G14: 1297800000 | H14: 0 | I14: 0 | J14: 1297800000 | K14: 485600000 | L14: 0 | M14: 0 | N14: 485600000 | O14: 73500000 | P14: 0 | Q14: 0 | R14: 73500000 | S14: 340010000 | T14: 0 | U14: 0 | V14: 340010000 | W14: 172600000 | X14: 0 | Y14: 0 | Z14: 172600000 | AA14: 0 | AB14: 0 | AC14: 0 | AD14: 0 | AE14: 556267500 | AF14: 0 | AG14: 0 | AH14: 556267500 | AI14: 90000000 | AJ14: 0 | AK14: 0 | AL14: 90000000 | AM14: 49000000 | AN14: 0 | AO14: 0 | AP14: 49000000 | AQ14: 1407150000 | AR14: 0 | AS14: 0 | AT14: 1407150000 | AU14: 350000000 | AV14: 0 | AW14: 0 | AX14: 350000000 | AY14: 99000000 | AZ14: 0 | BA14: 0 | BB14: 99000000 | BC14: 420000000 | BD14: 0 | BE14: 0 | BF14: 420000000 | BG14: 296600000 | BH14: 0 | BI14: 0 | BJ14: 296600000 | BK14: 300000 | BL14: 0 | BM14: 0 | BN14: 300000 | BO14: 233100000 | BP14: 0 | BQ14: 0 | BR14: 233100000 | BS14: 25000000 | BT14: 0 | BU14: 0 | BV14: 25000000 | BW14: 699680000 | BX14: 0 | BY14: 0 | BZ14: 699680000 | CA14: 950000000 | CB14: 0 | CC14: 0 | CD14: 950000000 | CE14: 0 | CF14: 0 | CG14: 0 | CH14: 0 | CI14: 201432500 | CJ14: 0 | CK14: 0 | CL14: 201432500 | CM14: 1670700000 | CN14: 0 | CO14: 0 | CP14: 1670700000 | CQ14: 445090000 | CR14: 0 | CS14: 0 | CT14: 445090000 | CU14: 610700000 | CV14: 0 | CW14: 0 | CX14: 610700000 | CY14: 3300000 | CZ14: 0 | DA14: 0 | DB14: 3300000
B15: 2020-02-01 | C15: 179300000 | D15: 0 | E15: 0 | F15: 179300000 | G15: 1297800000 | H15: 0 | I15: 0 | J15: 1297800000 | K15: 485600000 | L15: 0 | M15: 0 | N15: 485600000 | O15: 73500000 | P15: 0 | Q15: 0 | R15: 73500000 | S15: 340010000 | T15: 0 | U15: 0 | V15: 340010000 | W15: 172600000 | X15: 0 | Y15: 0 | Z15: 172600000 | AA15: 0 | AB15: 0 | AC15: 0 | AD15: 0 | AE15: 556267500 | AF15: 0 | AG15: 0 | AH15: 556267500 | AI15: 90000000 | AJ15: 0 | AK15: 0 | AL15: 90000000 | AM15: 49000000 | AN15: 0 | AO15: 0 | AP15: 49000000 | AQ15: 1407150000 | AR15: 0 | AS15: 0 | AT15: 1407150000 | AU15: 350000000 | AV15: 0 | AW15: 0 | AX15: 350000000 | AY15: 99000000 | AZ15: 0 | BA15: 0 | BB15: 99000000 | BC15: 420000000 | BD15: 0 | BE15: 0 | BF15: 420000000 | BG15: 296600000 | BH15: 0 | BI15: 0 | BJ15: 296600000 | BK15: 300000 | BL15: 0 | BM15: 0 | BN15: 300000 | BO15: 233100000 | BP15: 0 | BQ15: 0 | BR15: 233100000 | BS15: 25000000 | BT15: 0 | BU15: 0 | BV15: 25000000 | BW15: 699680000 | BX15: 0 | BY15: 0 | BZ15: 699680000 | CA15: 950000000 | CB15: 0 | CC15: 0 | CD15: 950000000 | CE15: 0 | CF15: 0 | CG15: 0 | CH15: 0 | CI15: 201432500 | CJ15: 0 | CK15: 0 | CL15: 201432500 | CM15: 1670700000 | CN15: 0 | CO15: 0 | CP15: 1670700000 | CQ15: 445090000 | CR15: 0 | CS15: 0 | CT15: 445090000 | CU15: 610700000 | CV15: 0 | CW15: 0 | CX15: 610700000 | CY15: 3300000 | CZ15: 0 | DA15: 0 | DB15: 3300000
B16: 2020-03-01 | C16: 179300000 | D16: 0 | E16: 0 | F16: 179300000 | G16: 1297800000 | H16: 0 | I16: 0 | J16: 1297800000 | K16: 485600000 | L16: 0 | M16: 0 | N16: 485600000 | O16: 73500000 | P16: 0 | Q16: 0 | R16: 73500000 | S16: 340010000 | T16: 0 | U16: 0 | V16: 340010000 | W16: 172600000 | X16: 0 | Y16: 0 | Z16: 172600000 | AA16: 0 | AB16: 0 | AC16: 0 | AD16: 0 | AE16: 556267500 | AF16: 0 | AG16: 0 | AH16: 556267500 | AI16: 90000000 | AJ16: 0 | AK16: 0 | AL16: 90000000 | AM16: 49000000 | AN16: 0 | AO16: 0 | AP16: 49000000 | AQ16: 1407150000 | AR16: 0 | AS16: 0 | AT16: 1407150000 | AU16: 350000000 | AV16: 0 | AW16: 0 | AX16: 350000000 | AY16: 99000000 | AZ16: 0 | BA16: 0 | BB16: 99000000 | BC16: 420000000 | BD16: 0 | BE16: 0 | BF16: 420000000 | BG16: 296600000 | BH16: 0 | BI16: 0 | BJ16: 296600000 | BK16: 300000 | BL16: 0 | BM16: 0 | BN16: 300000 | BO16: 233100000 | BP16: 0 | BQ16: 0 | BR16: 233100000 | BS16: 25000000 | BT16: 0 | BU16: 0 | BV16: 25000000 | BW16: 699680000 | BX16: 0 | BY16: 0 | BZ16: 699680000 | CA16: 950000000 | CB16: 0 | CC16: 0 | CD16: 950000000 | CE16: 0 | CF16: 0 | CG16: 0 | CH16: 0 | CI16: 201432500 | CJ16: 0 | CK16: 0 | CL16: 201432500 | CM16: 1670700000 | CN16: 0 | CO16: 0 | CP16: 1670700000 | CQ16: 445090000 | CR16: 0 | CS16: 0 | CT16: 445090000 | CU16: 610700000 | CV16: 0 | CW16: 0 | CX16: 610700000 | CY16: 3300000 | CZ16: 0 | DA16: 0 | DB16: 3300000
B17: 2020-04-01 | C17: 179300000 | D17: 0 | E17: 0 | F17: 179300000 | G17: 1297800000 | H17: 0 | I17: 0 | J17: 1297800000 | K17: 485600000 | L17: 0 | M17: 0 | N17: 485600000 | O17: 73500000 | P17: 0 | Q17: 0 | R17: 73500000 | S17: 340010000 | T17: 0 | U17: 0 | V17: 340010000 | W17: 172600000 | X17: 0 | Y17: 0 | Z17: 172600000 | AA17: 0 | AB17: 0 | AC17: 0 | AD17: 0 | AE17: 556267500 | AF17: 0 | AG17: 0 | AH17: 556267500 | AI17: 90000000 | AJ17: 0 | AK17: 0 | AL17: 90000000 | AM17: 49000000 | AN17: 0 | AO17: 0 | AP17: 49000000 | AQ17: 1407150000 | AR17: 0 | AS17: 0 | AT17: 1407150000 | AU17: 350000000 | AV17: 0 | AW17: 0 | AX17: 350000000 | AY17: 99000000 | AZ17: 0 | BA17: 0 | BB17: 99000000 | BC17: 420000000 | BD17: 0 | BE17: 0 | BF17: 420000000 | BG17: 296600000 | BH17: 0 | BI17: 0 | BJ17: 296600000 | BK17: 300000 | BL17: 0 | BM17: 0 | BN17: 300000 | BO17: 233100000 | BP17: 0 | BQ17: 0 | BR17: 233100000 | BS17: 25000000 | BT17: 0 | BU17: 0 | BV17: 25000000 | BW17: 699680000 | BX17: 0 | BY17: 0 | BZ17: 699680000 | CA17: 950000000 | CB17: 0 | CC17: 0 | CD17: 950000000 | CE17: 0 | CF17: 0 | CG17: 0 | CH17: 0 | CI17: 201432500 | CJ17: 0 | CK17: 0 | CL17: 201432500 | CM17: 1670700000 | CN17: 0 | CO17: 0 | CP17: 1670700000 | CQ17: 445090000 | CR17: 0 | CS17: 0 | CT17: 445090000 | CU17: 610700000 | CV17: 0 | CW17: 0 | CX17: 610700000 | CY17: 3300000 | CZ17: 0 | DA17: 0 | DB17: 3300000
B18: 2020-05-01 | C18: 179300000 | D18: 0 | E18: 0 | F18: 179300000 | G18: 1297800000 | H18: 0 | I18: 0 | J18: 1297800000 | K18: 485600000 | L18: 0 | M18: 0 | N18: 485600000 | O18: 73500000 | P18: 0 | Q18: 0 | R18: 73500000 | S18: 340010000 | T18: 0 | U18: 0 | V18: 340010000 | W18: 172600000 | X18: 0 | Y18: 0 | Z18: 172600000 | AA18: 0 | AB18: 0 | AC18: 0 | AD18: 0 | AE18: 556267500 | AF18: 0 | AG18: 0 | AH18: 556267500 | AI18: 90000000 | AJ18: 0 | AK18: 0 | AL18: 90000000 | AM18: 49000000 | AN18: 0 | AO18: 0 | AP18: 49000000 | AQ18: 1407150000 | AR18: 0 | AS18: 0 | AT18: 1407150000 | AU18: 350000000 | AV18: 0 | AW18: 0 | AX18: 350000000 | AY18: 99000000 | AZ18: 0 | BA18: 0 | BB18: 99000000 | BC18: 420000000 | BD18: 0 | BE18: 0 | BF18: 420000000 | BG18: 296600000 | BH18: 0 | BI18: 0 | BJ18: 296600000 | BK18: 300000 | BL18: 0 | BM18: 0 | BN18: 300000 | BO18: 233100000 | BP18: 0 | BQ18: 0 | BR18: 233100000 | BS18: 25000000 | BT18: 0 | BU18: 0 | BV18: 25000000 | BW18: 699680000 | BX18: 0 | BY18: 0 | BZ18: 699680000 | CA18: 950000000 | CB18: 0 | CC18: 0 | CD18: 950000000 | CE18: 0 | CF18: 0 | CG18: 0 | CH18: 0 | CI18: 201432500 | CJ18: 0 | CK18: 0 | CL18: 201432500 | CM18: 1670700000 | CN18: 0 | CO18: 0 | CP18: 1670700000 | CQ18: 445090000 | CR18: 0 | CS18: 0 | CT18: 445090000 | CU18: 610700000 | CV18: 0 | CW18: 0 | CX18: 610700000 | CY18: 3300000 | CZ18: 0 | DA18: 0 | DB18: 3300000
B19: 2020-06-01 | C19: 179300000 | D19: 0 | E19: 0 | F19: 179300000 | G19: 1297800000 | H19: 0 | I19: 0 | J19: 1297800000 | K19: 485600000 | L19: 0 | M19: 0 | N19: 485600000 | O19: 73500000 | P19: 0 | Q19: 0 | R19: 73500000 | S19: 340010000 | T19: 0 | U19: 0 | V19: 340010000 | W19: 172600000 | X19: 0 | Y19: 0 | Z19: 172600000 | AA19: 0 | AB19: 0 | AC19: 0 | AD19: 0 | AE19: 556267500 | AF19: 0 | AG19: 0 | AH19: 556267500 | AI19: 90000000 | AJ19: 0 | AK19: 0 | AL19: 90000000 | AM19: 49000000 | AN19: 0 | AO19: 0 | AP19: 49000000 | AQ19: 1407150000 | AR19: 0 | AS19: 0 | AT19: 1407150000 | AU19: 350000000 | AV19: 0 | AW19: 0 | AX19: 350000000 | AY19: 99000000 | AZ19: 0 | BA19: 0 | BB19: 99000000 | BC19: 420000000 | BD19: 0 | BE19: 0 | BF19: 420000000 | BG19: 296600000 | BH19: 0 | BI19: 0 | BJ19: 296600000 | BK19: 300000 | BL19: 0 | BM19: 0 | BN19: 300000 | BO19: 233100000 | BP19: 0 | BQ19: 0 | BR19: 233100000 | BS19: 25000000 | BT19: 0 | BU19: 0 | BV19: 25000000 | BW19: 699680000 | BX19: 0 | BY19: 0 | BZ19: 699680000 | CA19: 950000000 | CB19: 0 | CC19: 0 | CD19: 950000000 | CE19: 0 | CF19: 0 | CG19: 0 | CH19: 0 | CI19: 201432500 | CJ19: 0 | CK19: 0 | CL19: 201432500 | CM19: 1670700000 | CN19: 0 | CO19: 0 | CP19: 1670700000 | CQ19: 445090000 | CR19: 0 | CS19: 0 | CT19: 445090000 | CU19: 610700000 | CV19: 0 | CW19: 0 | CX19: 610700000 | CY19: 3300000 | CZ19: 0 | DA19: 0 | DB19: 3300000
B20: 2020-07-01 | C20: 179300000 | D20: 0 | E20: 0 | F20: 179300000 | G20: 1297800000 | H20: 0 | I20: 0 | J20: 1297800000 | K20: 485600000 | L20: 0 | M20: 0 | N20: 485600000 | O20: 73500000 | P20: 0 | Q20: 0 | R20: 73500000 | S20: 340010000 | T20: 0 | U20: 0 | V20: 340010000 | W20: 172600000 | X20: 0 | Y20: 0 | Z20: 172600000 | AA20: 0 | AB20: 0 | AC20: 0 | AD20: 0 | AE20: 556267500 | AF20: 0 | AG20: 0 | AH20: 556267500 | AI20: 90000000 | AJ20: 0 | AK20: 0 | AL20: 90000000 | AM20: 49000000 | AN20: 0 | AO20: 0 | AP20: 49000000 | AQ20: 1407150000 | AR20: 0 | AS20: 0 | AT20: 1407150000 | AU20: 350000000 | AV20: 0 | AW20: 0 | AX20: 350000000 | AY20: 99000000 | AZ20: 0 | BA20: 0 | BB20: 99000000 | BC20: 420000000 | BD20: 0 | BE20: 0 | BF20: 420000000 | BG20: 296600000 | BH20: 0 | BI20: 0 | BJ20: 296600000 | BK20: 300000 | BL20: 0 | BM20: 0 | BN20: 300000 | BO20: 233100000 | BP20: 0 | BQ20: 0 | BR20: 233100000 | BS20: 25000000 | BT20: 0 | BU20: 0 | BV20: 25000000 | BW20: 699680000 | BX20: 0 | BY20: 0 | BZ20: 699680000 | CA20: 950000000 | CB20: 0 | CC20: 0 | CD20: 950000000 | CE20: 0 | CF20: 0 | CG20: 0 | CH20: 0 | CI20: 201432500 | CJ20: 0 | CK20: 0 | CL20: 201432500 | CM20: 1670700000 | CN20: 0 | CO20: 0 | CP20: 1670700000 | CQ20: 445090000 | CR20: 0 | CS20: 0 | CT20: 445090000 | CU20: 610700000 | CV20: 0 | CW20: 0 | CX20: 610700000 | CY20: 3300000 | CZ20: 0 | DA20: 0 | DB20: 3300000
B21: 2020-08-01 | C21: 179300000 | D21: 0 | E21: 0 | F21: 179300000 | G21: 1297800000 | H21: 0 | I21: 0 | J21: 1297800000 | K21: 485600000 | L21: 0 | M21: 0 | N21: 485600000 | O21: 73500000 | P21: 0 | Q21: 0 | R21: 73500000 | S21: 340010000 | T21: 0 | U21: 0 | V21: 340010000 | W21: 172600000 | X21: 0 | Y21: 0 | Z21: 172600000 | AA21: 0 | AB21: 0 | AC21: 0 | AD21: 0 | AE21: 556267500 | AF21: 0 | AG21: 0 | AH21: 556267500 | AI21: 90000000 | AJ21: 0 | AK21: 0 | AL21: 90000000 | AM21: 49000000 | AN21: 0 | AO21: 0 | AP21: 49000000 | AQ21: 1407150000 | AR21: 0 | AS21: 0 | AT21: 1407150000 | AU21: 350000000 | AV21: 0 | AW21: 0 | AX21: 350000000 | AY21: 99000000 | AZ21: 0 | BA21: 0 | BB21: 99000000 | BC21: 420000000 | BD21: 0 | BE21: 0 | BF21: 420000000 | BG21: 296600000 | BH21: 0 | BI21: 0 | BJ21: 296600000 | BK21: 300000 | BL21: 0 | BM21: 0 | BN21: 300000 | BO21: 233100000 | BP21: 0 | BQ21: 0 | BR21: 233100000 | BS21: 25000000 | BT21: 0 | BU21: 0 | BV21: 25000000 | BW21: 699680000 | BX21: 0 | BY21: 0 | BZ21: 699680000 | CA21: 950000000 | CB21: 0 | CC21: 0 | CD21: 950000000 | CE21: 0 | CF21: 0 | CG21: 0 | CH21: 0 | CI21: 201432500 | CJ21: 0 | CK21: 0 | CL21: 201432500 | CM21: 1670700000 | CN21: 0 | CO21: 0 | CP21: 1670700000 | CQ21: 445090000 | CR21: 0 | CS21: 0 | CT21: 445090000 | CU21: 610700000 | CV21: 0 | CW21: 0 | CX21: 610700000 | CY21: 3300000 | CZ21: 0 | DA21: 0 | DB21: 3300000
B22: 2020-09-01 | C22: 179300000 | D22: 0 | E22: 0 | F22: 179300000 | G22: 1297800000 | H22: 0 | I22: 0 | J22: 1297800000 | K22: 485600000 | L22: 0 | M22: 0 | N22: 485600000 | O22: 73500000 | P22: 0 | Q22: 0 | R22: 73500000 | S22: 340010000 | T22: 0 | U22: 0 | V22: 340010000 | W22: 172600000 | X22: 0 | Y22: 0 | Z22: 172600000 | AA22: 0 | AB22: 0 | AC22: 0 | AD22: 0 | AE22: 556267500 | AF22: 0 | AG22: 0 | AH22: 556267500 | AI22: 90000000 | AJ22: 0 | AK22: 0 | AL22: 90000000 | AM22: 49000000 | AN22: 0 | AO22: 0 | AP22: 49000000 | AQ22: 1407150000 | AR22: 0 | AS22: 0 | AT22: 1407150000 | AU22: 350000000 | AV22: 0 | AW22: 0 | AX22: 350000000 | AY22: 99000000 | AZ22: 0 | BA22: 0 | BB22: 99000000 | BC22: 420000000 | BD22: 0 | BE22: 0 | BF22: 420000000 | BG22: 296600000 | BH22: 0 | BI22: 0 | BJ22: 296600000 | BK22: 300000 | BL22: 0 | BM22: 0 | BN22: 300000 | BO22: 233100000 | BP22: 0 | BQ22: 0 | BR22: 233100000 | BS22: 25000000 | BT22: 0 | BU22: 0 | BV22: 25000000 | BW22: 699680000 | BX22: 0 | BY22: 0 | BZ22: 699680000 | CA22: 950000000 | CB22: 0 | CC22: 0 | CD22: 950000000 | CE22: 0 | CF22: 0 | CG22: 0 | CH22: 0 | CI22: 201432500 | CJ22: 0 | CK22: 0 | CL22: 201432500 | CM22: 1670700000 | CN22: 0 | CO22: 0 | CP22: 1670700000 | CQ22: 445090000 | CR22: 0 | CS22: 0 | CT22: 445090000 | CU22: 610700000 | CV22: 0 | CW22: 0 | CX22: 610700000 | CY22: 3300000 | CZ22: 0 | DA22: 0 | DB22: 3300000
B23: 2020-10-01 | C23: 179300000 | D23: 0 | E23: 0 | F23: 179300000 | G23: 1297800000 | H23: 0 | I23: 0 | J23: 1297800000 | K23: 485600000 | L23: 0 | M23: 0 | N23: 485600000 | O23: 73500000 | P23: 0 | Q23: 0 | R23: 73500000 | S23: 340010000 | T23: 0 | U23: 0 | V23: 340010000 | W23: 172600000 | X23: 0 | Y23: 0 | Z23: 172600000 | AA23: 0 | AB23: 0 | AC23: 0 | AD23: 0 | AE23: 556267500 | AF23: 0 | AG23: 0 | AH23: 556267500 | AI23: 90000000 | AJ23: 0 | AK23: 0 | AL23: 90000000 | AM23: 49000000 | AN23: 0 | AO23: 0 | AP23: 49000000 | AQ23: 1407150000 | AR23: 0 | AS23: 0 | AT23: 1407150000 | AU23: 350000000 | AV23: 0 | AW23: 0 | AX23: 350000000 | AY23: 99000000 | AZ23: 0 | BA23: 0 | BB23: 99000000 | BC23: 420000000 | BD23: 0 | BE23: 0 | BF23: 420000000 | BG23: 296600000 | BH23: 0 | BI23: 0 | BJ23: 296600000 | BK23: 300000 | BL23: 0 | BM23: 0 | BN23: 300000 | BO23: 233100000 | BP23: 0 | BQ23: 0 | BR23: 233100000 | BS23: 25000000 | BT23: 0 | BU23: 0 | BV23: 25000000 | BW23: 699680000 | BX23: 0 | BY23: 0 | BZ23: 699680000 | CA23: 950000000 | CB23: 0 | CC23: 0 | CD23: 950000000 | CE23: 500000 | CF23: 0 | CG23: 0 | CH23: 500000 | CI23: 201432500 | CJ23: 0 | CK23: 0 | CL23: 201432500 | CM23: 1670700000 | CN23: 0 | CO23: 0 | CP23: 1670700000 | CQ23: 445090000 | CR23: 0 | CS23: 0 | CT23: 445090000 | CU23: 610700000 | CV23: 0 | CW23: 0 | CX23: 610700000 | CY23: 3300000 | CZ23: 0 | DA23: 0 | DB23: 3300000
B24: 2020-11-01 | C24: 179300000 | D24: 0 | E24: 0 | F24: 179300000 | G24: 1297800000 | H24: 0 | I24: 0 | J24: 1297800000 | K24: 485600000 | L24: 0 | M24: 0 | N24: 485600000 | O24: 73500000 | P24: 0 | Q24: 0 | R24: 73500000 | S24: 340010000 | T24: 0 | U24: 0 | V24: 340010000 | W24: 172600000 | X24: 0 | Y24: 0 | Z24: 172600000 | AA24: 0 | AB24: 0 | AC24: 0 | AD24: 0 | AE24: 556267500 | AF24: 0 | AG24: 0 | AH24: 556267500 | AI24: 90000000 | AJ24: 0 | AK24: 0 | AL24: 90000000 | AM24: 49000000 | AN24: 0 | AO24: 0 | AP24: 49000000 | AQ24: 1407150000 | AR24: 0 | AS24: 0 | AT24: 1407150000 | AU24: 350000000 | AV24: 0 | AW24: 0 | AX24: 350000000 | AY24: 99000000 | AZ24: 0 | BA24: 0 | BB24: 99000000 | BC24: 420000000 | BD24: 0 | BE24: 0 | BF24: 420000000 | BG24: 296600000 | BH24: 0 | BI24: 0 | BJ24: 296600000 | BK24: 300000 | BL24: 0 | BM24: 0 | BN24: 300000 | BO24: 233100000 | BP24: 0 | BQ24: 0 | BR24: 233100000 | BS24: 25000000 | BT24: 0 | BU24: 0 | BV24: 25000000 | BW24: 699680000 | BX24: 0 | BY24: 0 | BZ24: 699680000 | CA24: 950000000 | CB24: 0 | CC24: 0 | CD24: 950000000 | CE24: 500000 | CF24: 0 | CG24: 0 | CH24: 500000 | CI24: 201432500 | CJ24: 0 | CK24: 0 | CL24: 201432500 | CM24: 1670700000 | CN24: 0 | CO24: 0 | CP24: 1670700000 | CQ24: 445090000 | CR24: 0 | CS24: 0 | CT24: 445090000 | CU24: 610700000 | CV24: 0 | CW24: 0 | CX24: 610700000 | CY24: 3300000 | CZ24: 0 | DA24: 0 | DB24: 3300000
B25: 2020-12-01 | C25: 179300000 | D25: 0 | E25: 0 | F25: 179300000 | G25: 1297800000 | H25: 0 | I25: 0 | J25: 1297800000 | K25: 485600000 | L25: 0 | M25: 0 | N25: 485600000 | O25: 73500000 | P25: 0 | Q25: 0 | R25: 73500000 | S25: 340010000 | T25: 0 | U25: 0 | V25: 340010000 | W25: 172600000 | X25: 0 | Y25: 0 | Z25: 172600000 | AA25: 0 | AB25: 0 | AC25: 0 | AD25: 0 | AE25: 556267500 | AF25: 0 | AG25: 0 | AH25: 556267500 | AI25: 90000000 | AJ25: 0 | AK25: 0 | AL25: 90000000 | AM25: 49000000 | AN25: 0 | AO25: 0 | AP25: 49000000 | AQ25: 1407150000 | AR25: 0 | AS25: 0 | AT25: 1407150000 | AU25: 350000000 | AV25: 0 | AW25: 0 | AX25: 350000000 | AY25: 99000000 | AZ25: 0 | BA25: 0 | BB25: 99000000 | BC25: 420000000 | BD25: 0 | BE25: 0 | BF25: 420000000 | BG25: 296600000 | BH25: 0 | BI25: 0 | BJ25: 296600000 | BK25: 300000 | BL25: 0 | BM25: 0 | BN25: 300000 | BO25: 233100000 | BP25: 0 | BQ25: 0 | BR25: 233100000 | BS25: 25000000 | BT25: 0 | BU25: 0 | BV25: 25000000 | BW25: 699680000 | BX25: 0 | BY25: 0 | BZ25: 699680000 | CA25: 950000000 | CB25: 0 | CC25: 0 | CD25: 950000000 | CE25: 500000 | CF25: 0 | CG25: 0 | CH25: 500000 | CI25: 201432500 | CJ25: 0 | CK25: 0 | CL25: 201432500 | CM25: 1670700000 | CN25: 0 | CO25: 0 | CP25: 1670700000 | CQ25: 445090000 | CR25: 0 | CS25: 0 | CT25: 445090000 | CU25: 610700000 | CV25: 0 | CW25: 0 | CX25: 610700000 | CY25: 3300000 | CZ25: 0 | DA25: 0 | DB25: 3300000
B26: 2021-01-01 | C26: 179300000 | D26: 0 | E26: 0 | F26: 179300000 | G26: 1297800000 | H26: 0 | I26: 0 | J26: 1297800000 | K26: 485600000 | L26: 0 | M26: 0 | N26: 485600000 | O26: 73500000 | P26: 0 | Q26: 0 | R26: 73500000 | S26: 340010000 | T26: 0 | U26: 0 | V26: 340010000 | W26: 172600000 | X26: 0 | Y26: 0 | Z26: 172600000 | AA26: 0 | AB26: 0 | AC26: 0 | AD26: 0 | AE26: 556267500 | AF26: 0 | AG26: 0 | AH26: 556267500 | AI26: 90000000 | AJ26: 0 | AK26: 0 | AL26: 90000000 | AM26: 49000000 | AN26: 0 | AO26: 0 | AP26: 49000000 | AQ26: 1407150000 | AR26: 0 | AS26: 0 | AT26: 1407150000 | AU26: 350000000 | AV26: 0 | AW26: 0 | AX26: 350000000 | AY26: 99000000 | AZ26: 0 | BA26: 0 | BB26: 99000000 | BC26: 420000000 | BD26: 0 | BE26: 0 | BF26: 420000000 | BG26: 296600000 | BH26: 0 | BI26: 0 | BJ26: 296600000 | BK26: 300000 | BL26: 0 | BM26: 0 | BN26: 300000 | BO26: 233100000 | BP26: 0 | BQ26: 0 | BR26: 233100000 | BS26: 25000000 | BT26: 0 | BU26: 0 | BV26: 25000000 | BW26: 699680000 | BX26: 0 | BY26: 0 | BZ26: 699680000 | CA26: 950000000 | CB26: 0 | CC26: 0 | CD26: 950000000 | CE26: 500000 | CF26: 0 | CG26: 0 | CH26: 500000 | CI26: 201432500 | CJ26: 0 | CK26: 0 | CL26: 201432500 | CM26: 1670700000 | CN26: 0 | CO26: 0 | CP26: 1670700000 | CQ26: 445090000 | CR26: 0 | CS26: 0 | CT26: 445090000 | CU26: 610700000 | CV26: 0 | CW26: 0 | CX26: 610700000 | CY26: 3300000 | CZ26: 0 | DA26: 0 | DB26: 3300000
B27: 2021-02-01 | C27: 179300000 | D27: 0 | E27: 0 | F27: 179300000 | G27: 1297800000 | H27: 0 | I27: 0 | J27: 1297800000 | K27: 485600000 | L27: 0 | M27: 0 | N27: 485600000 | O27: 73500000 | P27: 0 | Q27: 0 | R27: 73500000 | S27: 340010000 | T27: 0 | U27: 0 | V27: 340010000 | W27: 172600000 | X27: 0 | Y27: 0 | Z27: 172600000 | AA27: 0 | AB27: 0 | AC27: 0 | AD27: 0 | AE27: 556267500 | AF27: 0 | AG27: 0 | AH27: 556267500 | AI27: 90000000 | AJ27: 0 | AK27: 0 | AL27: 90000000 | AM27: 49000000 | AN27: 0 | AO27: 0 | AP27: 49000000 | AQ27: 1407150000 | AR27: 0 | AS27: 0 | AT27: 1407150000 | AU27: 350000000 | AV27: 0 | AW27: 0 | AX27: 350000000 | AY27: 99000000 | AZ27: 0 | BA27: 0 | BB27: 99000000 | BC27: 420000000 | BD27: 0 | BE27: 0 | BF27: 420000000 | BG27: 296600000 | BH27: 0 | BI27: 0 | BJ27: 296600000 | BK27: 300000 | BL27: 0 | BM27: 0 | BN27: 300000 | BO27: 233100000 | BP27: 0 | BQ27: 0 | BR27: 233100000 | BS27: 25000000 | BT27: 0 | BU27: 0 | BV27: 25000000 | BW27: 699680000 | BX27: 0 | BY27: 0 | BZ27: 699680000 | CA27: 950000000 | CB27: 0 | CC27: 0 | CD27: 950000000 | CE27: 500000 | CF27: 0 | CG27: 0 | CH27: 500000 | CI27: 201432500 | CJ27: 0 | CK27: 0 | CL27: 201432500 | CM27: 1670700000 | CN27: 0 | CO27: 0 | CP27: 1670700000 | CQ27: 445090000 | CR27: 0 | CS27: 0 | CT27: 445090000 | CU27: 610700000 | CV27: 0 | CW27: 0 | CX27: 610700000 | CY27: 3300000 | CZ27: 0 | DA27: 0 | DB27: 3300000
B28: 2021-03-01 | C28: 179300000 | D28: 0 | E28: 0 | F28: 179300000 | G28: 1297800000 | H28: 0 | I28: 0 | J28: 1297800000 | K28: 485600000 | L28: 0 | M28: 0 | N28: 485600000 | O28: 73500000 | P28: 0 | Q28: 0 | R28: 73500000 | S28: 340010000 | T28: 0 | U28: 0 | V28: 340010000 | W28: 172600000 | X28: 0 | Y28: 0 | Z28: 172600000 | AA28: 0 | AB28: 0 | AC28: 0 | AD28: 0 | AE28: 556267500 | AF28: 0 | AG28: 0 | AH28: 556267500 | AI28: 90000000 | AJ28: 0 | AK28: 0 | AL28: 90000000 | AM28: 49000000 | AN28: 0 | AO28: 0 | AP28: 49000000 | AQ28: 1407150000 | AR28: 0 | AS28: 0 | AT28: 1407150000 | AU28: 350000000 | AV28: 0 | AW28: 0 | AX28: 350000000 | AY28: 99000000 | AZ28: 0 | BA28: 0 | BB28: 99000000 | BC28: 420000000 | BD28: 0 | BE28: 0 | BF28: 420000000 | BG28: 296600000 | BH28: 0 | BI28: 0 | BJ28: 296600000 | BK28: 300000 | BL28: 0 | BM28: 0 | BN28: 300000 | BO28: 233100000 | BP28: 0 | BQ28: 0 | BR28: 233100000 | BS28: 25000000 | BT28: 0 | BU28: 0 | BV28: 25000000 | BW28: 699680000 | BX28: 0 | BY28: 0 | BZ28: 699680000 | CA28: 950000000 | CB28: 0 | CC28: 0 | CD28: 950000000 | CE28: 500000 | CF28: 0 | CG28: 0 | CH28: 500000 | CI28: 201432500 | CJ28: 0 | CK28: 0 | CL28: 201432500 | CM28: 1670700000 | CN28: 0 | CO28: 0 | CP28: 1670700000 | CQ28: 445090000 | CR28: 0 | CS28: 0 | CT28: 445090000 | CU28: 610700000 | CV28: 0 | CW28: 0 | CX28: 610700000 | CY28: 3300000 | CZ28: 0 | DA28: 0 | DB28: 3300000
B29: 2021-04-01 | C29: 179300000 | D29: 0 | E29: 0 | F29: 179300000 | G29: 1297800000 | H29: 0 | I29: 0 | J29: 1297800000 | K29: 485600000 | L29: 0 | M29: 0 | N29: 485600000 | O29: 73500000 | P29: 0 | Q29: 0 | R29: 73500000 | S29: 340010000 | T29: 0 | U29: 0 | V29: 340010000 | W29: 172600000 | X29: 0 | Y29: 0 | Z29: 172600000 | AA29: 0 | AB29: 0 | AC29: 0 | AD29: 0 | AE29: 556267500 | AF29: 0 | AG29: 0 | AH29: 556267500 | AI29: 90000000 | AJ29: 0 | AK29: 0 | AL29: 90000000 | AM29: 49000000 | AN29: 0 | AO29: 0 | AP29: 49000000 | AQ29: 1407150000 | AR29: 0 | AS29: 0 | AT29: 1407150000 | AU29: 350000000 | AV29: 0 | AW29: 0 | AX29: 350000000 | AY29: 99000000 | AZ29: 0 | BA29: 0 | BB29: 99000000 | BC29: 420000000 | BD29: 0 | BE29: 0 | BF29: 420000000 | BG29: 296600000 | BH29: 0 | BI29: 0 | BJ29: 296600000 | BK29: 300000 | BL29: 0 | BM29: 0 | BN29: 300000 | BO29: 233100000 | BP29: 0 | BQ29: 0 | BR29: 233100000 | BS29: 25000000 | BT29: 0 | BU29: 0 | BV29: 25000000 | BW29: 699680000 | BX29: 0 | BY29: 0 | BZ29: 699680000 | CA29: 950000000 | CB29: 0 | CC29: 0 | CD29: 950000000 | CE29: 500000 | CF29: 0 | CG29: 0 | CH29: 500000 | CI29: 201432500 | CJ29: 0 | CK29: 0 | CL29: 201432500 | CM29: 1670700000 | CN29: 0 | CO29: 0 | CP29: 1670700000 | CQ29: 445090000 | CR29: 0 | CS29: 0 | CT29: 445090000 | CU29: 610700000 | CV29: 0 | CW29: 0 | CX29: 610700000 | CY29: 3300000 | CZ29: 0 | DA29: 0 | DB29: 3300000
B30: 2021-05-01 | C30: 179300000 | D30: 0 | E30: 0 | F30: 179300000 | G30: 1297800000 | H30: 0 | I30: 0 | J30: 1297800000 | K30: 485600000 | L30: 0 | M30: 0 | N30: 485600000 | O30: 73500000 | P30: 0 | Q30: 0 | R30: 73500000 | S30: 340010000 | T30: 0 | U30: 0 | V30: 340010000 | W30: 172600000 | X30: 0 | Y30: 0 | Z30: 172600000 | AA30: 0 | AB30: 0 | AC30: 0 | AD30: 0 | AE30: 556267500 | AF30: 0 | AG30: 0 | AH30: 556267500 | AI30: 90000000 | AJ30: 0 | AK30: 0 | AL30: 90000000 | AM30: 49000000 | AN30: 0 | AO30: 0 | AP30: 49000000 | AQ30: 1407150000 | AR30: 0 | AS30: 0 | AT30: 1407150000 | AU30: 350000000 | AV30: 0 | AW30: 0 | AX30: 350000000 | AY30: 99000000 | AZ30: 0 | BA30: 0 | BB30: 99000000 | BC30: 420000000 | BD30: 0 | BE30: 0 | BF30: 420000000 | BG30: 296600000 | BH30: 0 | BI30: 0 | BJ30: 296600000 | BK30: 300000 | BL30: 0 | BM30: 0 | BN30: 300000 | BO30: 233100000 | BP30: 0 | BQ30: 0 | BR30: 233100000 | BS30: 25000000 | BT30: 0 | BU30: 0 | BV30: 25000000 | BW30: 699680000 | BX30: 0 | BY30: 0 | BZ30: 699680000 | CA30: 950000000 | CB30: 0 | CC30: 0 | CD30: 950000000 | CE30: 500000 | CF30: 0 | CG30: 0 | CH30: 500000 | CI30: 201432500 | CJ30: 0 | CK30: 0 | CL30: 201432500 | CM30: 1670700000 | CN30: 0 | CO30: 0 | CP30: 1670700000 | CQ30: 445090000 | CR30: 0 | CS30: 0 | CT30: 445090000 | CU30: 610700000 | CV30: 0 | CW30: 0 | CX30: 610700000 | CY30: 3300000 | CZ30: 0 | DA30: 0 | DB30: 3300000
B31: 2021-06-01 | C31: 179300000 | D31: 0 | E31: 0 | F31: 179300000 | G31: 1297800000 | H31: 0 | I31: 0 | J31: 1297800000 | K31: 485600000 | L31: 0 | M31: 0 | N31: 485600000 | O31: 73500000 | P31: 0 | Q31: 0 | R31: 73500000 | S31: 340010000 | T31: 0 | U31: 0 | V31: 340010000 | W31: 172600000 | X31: 0 | Y31: 0 | Z31: 172600000 | AA31: 0 | AB31: 0 | AC31: 0 | AD31: 0 | AE31: 556267500 | AF31: 0 | AG31: 0 | AH31: 556267500 | AI31: 90000000 | AJ31: 0 | AK31: 0 | AL31: 90000000 | AM31: 49000000 | AN31: 0 | AO31: 0 | AP31: 49000000 | AQ31: 1407150000 | AR31: 0 | AS31: 0 | AT31: 1407150000 | AU31: 350000000 | AV31: 0 | AW31: 0 | AX31: 350000000 | AY31: 99000000 | AZ31: 0 | BA31: 0 | BB31: 99000000 | BC31: 420000000 | BD31: 0 | BE31: 0 | BF31: 420000000 | BG31: 296600000 | BH31: 0 | BI31: 0 | BJ31: 296600000 | BK31: 300000 | BL31: 0 | BM31: 0 | BN31: 300000 | BO31: 233100000 | BP31: 0 | BQ31: 0 | BR31: 233100000 | BS31: 25000000 | BT31: 0 | BU31: 0 | BV31: 25000000 | BW31: 699680000 | BX31: 0 | BY31: 0 | BZ31: 699680000 | CA31: 950000000 | CB31: 0 | CC31: 0 | CD31: 950000000 | CE31: 500000 | CF31: 0 | CG31: 0 | CH31: 500000 | CI31: 201432500 | CJ31: 0 | CK31: 0 | CL31: 201432500 | CM31: 1670700000 | CN31: 0 | CO31: 0 | CP31: 1670700000 | CQ31: 445090000 | CR31: 0 | CS31: 0 | CT31: 445090000 | CU31: 610700000 | CV31: 0 | CW31: 0 | CX31: 610700000 | CY31: 3300000 | CZ31: 0 | DA31: 0 | DB31: 3300000
B32: 2021-07-01 | C32: 179300000 | D32: 0 | E32: 0 | F32: 179300000 | G32: 1297800000 | H32: 0 | I32: 0 | J32: 1297800000 | K32: 485600000 | L32: 0 | M32: 0 | N32: 485600000 | O32: 73500000 | P32: 0 | Q32: 0 | R32: 73500000 | S32: 340010000 | T32: 0 | U32: 0 | V32: 340010000 | W32: 172600000 | X32: 0 | Y32: 0 | Z32: 172600000 | AA32: 0 | AB32: 0 | AC32: 0 | AD32: 0 | AE32: 556267500 | AF32: 0 | AG32: 0 | AH32: 556267500 | AI32: 90000000 | AJ32: 0 | AK32: 0 | AL32: 90000000 | AM32: 49000000 | AN32: 0 | AO32: 0 | AP32: 49000000 | AQ32: 1407150000 | AR32: 0 | AS32: 0 | AT32: 1407150000 | AU32: 350000000 | AV32: 0 | AW32: 0 | AX32: 350000000 | AY32: 99000000 | AZ32: 0 | BA32: 0 | BB32: 99000000 | BC32: 420000000 | BD32: 0 | BE32: 0 | BF32: 420000000 | BG32: 296600000 | BH32: 0 | BI32: 0 | BJ32: 296600000 | BK32: 300000 | BL32: 0 | BM32: 0 | BN32: 300000 | BO32: 233100000 | BP32: 0 | BQ32: 0 | BR32: 233100000 | BS32: 25000000 | BT32: 0 | BU32: 0 | BV32: 25000000 | BW32: 699680000 | BX32: 0 | BY32: 0 | BZ32: 699680000 | CA32: 950000000 | CB32: 0 | CC32: 0 | CD32: 950000000 | CE32: 500000 | CF32: 0 | CG32: 0 | CH32: 500000 | CI32: 201432500 | CJ32: 0 | CK32: 0 | CL32: 201432500 | CM32: 1670700000 | CN32: 0 | CO32: 0 | CP32: 1670700000 | CQ32: 445090000 | CR32: 0 | CS32: 0 | CT32: 445090000 | CU32: 610700000 | CV32: 0 | CW32: 0 | CX32: 610700000 | CY32: 3300000 | CZ32: 0 | DA32: 0 | DB32: 3300000
B33: 2021-08-01 | C33: 179300000 | D33: 0 | E33: 0 | F33: 179300000 | G33: 1297800000 | H33: 0 | I33: 0 | J33: 1297800000 | K33: 485600000 | L33: 0 | M33: 0 | N33: 485600000 | O33: 73500000 | P33: 0 | Q33: 0 | R33: 73500000 | S33: 340010000 | T33: 0 | U33: 0 | V33: 340010000 | W33: 172600000 | X33: 0 | Y33: 0 | Z33: 172600000 | AA33: 0 | AB33: 0 | AC33: 0 | AD33: 0 | AE33: 556267500 | AF33: 0 | AG33: 0 | AH33: 556267500 | AI33: 90000000 | AJ33: 0 | AK33: 0 | AL33: 90000000 | AM33: 49000000 | AN33: 0 | AO33: 0 | AP33: 49000000 | AQ33: 1407150000 | AR33: 0 | AS33: 0 | AT33: 1407150000 | AU33: 350000000 | AV33: 0 | AW33: 0 | AX33: 350000000 | AY33: 99000000 | AZ33: 0 | BA33: 0 | BB33: 99000000 | BC33: 420000000 | BD33: 0 | BE33: 0 | BF33: 420000000 | BG33: 296600000 | BH33: 0 | BI33: 0 | BJ33: 296600000 | BK33: 300000 | BL33: 0 | BM33: 0 | BN33: 300000 | BO33: 233100000 | BP33: 0 | BQ33: 0 | BR33: 233100000 | BS33: 25000000 | BT33: 0 | BU33: 0 | BV33: 25000000 | BW33: 699680000 | BX33: 0 | BY33: 0 | BZ33: 699680000 | CA33: 950000000 | CB33: 0 | CC33: 0 | CD33: 950000000 | CE33: 500000 | CF33: 0 | CG33: 0 | CH33: 500000 | CI33: 201432500 | CJ33: 0 | CK33: 0 | CL33: 201432500 | CM33: 1670700000 | CN33: 0 | CO33: 0 | CP33: 1670700000 | CQ33: 445090000 | CR33: 0 | CS33: 0 | CT33: 445090000 | CU33: 610700000 | CV33: 0 | CW33: 0 | CX33: 610700000 | CY33: 3300000 | CZ33: 0 | DA33: 0 | DB33: 3300000
B34: 2021-09-01 | C34: 179300000 | D34: 0 | E34: 0 | F34: 179300000 | G34: 1297800000 | H34: 0 | I34: 0 | J34: 1297800000 | K34: 485600000 | L34: 0 | M34: 0 | N34: 485600000 | O34: 73500000 | P34: 0 | Q34: 0 | R34: 73500000 | S34: 340010000 | T34: 0 | U34: 0 | V34: 340010000 | W34: 172600000 | X34: 0 | Y34: 0 | Z34: 172600000 | AA34: 0 | AB34: 0 | AC34: 0 | AD34: 0 | AE34: 556267500 | AF34: 0 | AG34: 0 | AH34: 556267500 | AI34: 90000000 | AJ34: 0 | AK34: 0 | AL34: 90000000 | AM34: 49000000 | AN34: 0 | AO34: 0 | AP34: 49000000 | AQ34: 1407150000 | AR34: 0 | AS34: 0 | AT34: 1407150000 | AU34: 350000000 | AV34: 0 | AW34: 0 | AX34: 350000000 | AY34: 99000000 | AZ34: 0 | BA34: 0 | BB34: 99000000 | BC34: 420000000 | BD34: 0 | BE34: 0 | BF34: 420000000 | BG34: 296600000 | BH34: 0 | BI34: 0 | BJ34: 296600000 | BK34: 300000 | BL34: 0 | BM34: 0 | BN34: 300000 | BO34: 233100000 | BP34: 0 | BQ34: 0 | BR34: 233100000 | BS34: 25000000 | BT34: 0 | BU34: 0 | BV34: 25000000 | BW34: 699680000 | BX34: 0 | BY34: 0 | BZ34: 699680000 | CA34: 950000000 | CB34: 0 | CC34: 0 | CD34: 950000000 | CE34: 500000 | CF34: 0 | CG34: 0 | CH34: 500000 | CI34: 201432500 | CJ34: 0 | CK34: 0 | CL34: 201432500 | CM34: 1670700000 | CN34: 0 | CO34: 0 | CP34: 1670700000 | CQ34: 445090000 | CR34: 0 | CS34: 0 | CT34: 445090000 | CU34: 610700000 | CV34: 0 | CW34: 0 | CX34: 610700000 | CY34: 3300000 | CZ34: 0 | DA34: 0 | DB34: 3300000
B35: 2021-10-01 | C35: 179300000 | D35: 0 | E35: 0 | F35: 179300000 | G35: 1297800000 | H35: 0 | I35: 0 | J35: 1297800000 | K35: 485600000 | L35: 0 | M35: 0 | N35: 485600000 | O35: 73500000 | P35: 0 | Q35: 0 | R35: 73500000 | S35: 340010000 | T35: 0 | U35: 0 | V35: 340010000 | W35: 172600000 | X35: 0 | Y35: 0 | Z35: 172600000 | AA35: 0 | AB35: 0 | AC35: 0 | AD35: 0 | AE35: 556267500 | AF35: 0 | AG35: 0 | AH35: 556267500 | AI35: 90000000 | AJ35: 0 | AK35: 0 | AL35: 90000000 | AM35: 49000000 | AN35: 0 | AO35: 0 | AP35: 49000000 | AQ35: 1407150000 | AR35: 0 | AS35: 0 | AT35: 1407150000 | AU35: 350000000 | AV35: 0 | AW35: 0 | AX35: 350000000 | AY35: 99000000 | AZ35: 0 | BA35: 0 | BB35: 99000000 | BC35: 420000000 | BD35: 0 | BE35: 0 | BF35: 420000000 | BG35: 296600000 | BH35: 0 | BI35: 0 | BJ35: 296600000 | BK35: 300000 | BL35: 0 | BM35: 0 | BN35: 300000 | BO35: 233100000 | BP35: 0 | BQ35: 0 | BR35: 233100000 | BS35: 25000000 | BT35: 0 | BU35: 0 | BV35: 25000000 | BW35: 699680000 | BX35: 0 | BY35: 0 | BZ35: 699680000 | CA35: 950000000 | CB35: 0 | CC35: 0 | CD35: 950000000 | CE35: 500000 | CF35: 0 | CG35: 0 | CH35: 500000 | CI35: 201432500 | CJ35: 0 | CK35: 0 | CL35: 201432500 | CM35: 1670700000 | CN35: 0 | CO35: 0 | CP35: 1670700000 | CQ35: 445090000 | CR35: 0 | CS35: 0 | CT35: 445090000 | CU35: 610700000 | CV35: 0 | CW35: 0 | CX35: 610700000 | CY35: 3300000 | CZ35: 0 | DA35: 0 | DB35: 3300000
B36: 2021-11-01 | C36: 179300000 | D36: 0 | E36: 0 | F36: 179300000 | G36: 1297800000 | H36: 0 | I36: 0 | J36: 1297800000 | K36: 485600000 | L36: 0 | M36: 0 | N36: 485600000 | O36: 73500000 | P36: 0 | Q36: 0 | R36: 73500000 | S36: 340010000 | T36: 0 | U36: 0 | V36: 340010000 | W36: 172600000 | X36: 0 | Y36: 0 | Z36: 172600000 | AA36: 0 | AB36: 0 | AC36: 0 | AD36: 0 | AE36: 556267500 | AF36: 0 | AG36: 0 | AH36: 556267500 | AI36: 90000000 | AJ36: 0 | AK36: 0 | AL36: 90000000 | AM36: 49000000 | AN36: 0 | AO36: 0 | AP36: 49000000 | AQ36: 1407150000 | AR36: 0 | AS36: 0 | AT36: 1407150000 | AU36: 350000000 | AV36: 0 | AW36: 0 | AX36: 350000000 | AY36: 99000000 | AZ36: 0 | BA36: 0 | BB36: 99000000 | BC36: 420000000 | BD36: 0 | BE36: 0 | BF36: 420000000 | BG36: 296600000 | BH36: 0 | BI36: 0 | BJ36: 296600000 | BK36: 300000 | BL36: 0 | BM36: 0 | BN36: 300000 | BO36: 233100000 | BP36: 0 | BQ36: 0 | BR36: 233100000 | BS36: 25000000 | BT36: 0 | BU36: 0 | BV36: 25000000 | BW36: 699680000 | BX36: 0 | BY36: 0 | BZ36: 699680000 | CA36: 950000000 | CB36: 0 | CC36: 0 | CD36: 950000000 | CE36: 500000 | CF36: 0 | CG36: 0 | CH36: 500000 | CI36: 201432500 | CJ36: 0 | CK36: 0 | CL36: 201432500 | CM36: 1670700000 | CN36: 0 | CO36: 0 | CP36: 1670700000 | CQ36: 445090000 | CR36: 0 | CS36: 0 | CT36: 445090000 | CU36: 610700000 | CV36: 0 | CW36: 0 | CX36: 610700000 | CY36: 3300000 | CZ36: 0 | DA36: 0 | DB36: 3300000
B37: 2021-12-01 | C37: 179300000 | D37: 0 | E37: 0 | F37: 179300000 | G37: 1297800000 | H37: 0 | I37: 0 | J37: 1297800000 | K37: 485600000 | L37: 0 | M37: 0 | N37: 485600000 | O37: 73500000 | P37: 0 | Q37: 0 | R37: 73500000 | S37: 340010000 | T37: 0 | U37: 0 | V37: 340010000 | W37: 172600000 | X37: 0 | Y37: 0 | Z37: 172600000 | AA37: 0 | AB37: 0 | AC37: 0 | AD37: 0 | AE37: 556267500 | AF37: 0 | AG37: 0 | AH37: 556267500 | AI37: 90000000 | AJ37: 0 | AK37: 0 | AL37: 90000000 | AM37: 49000000 | AN37: 0 | AO37: 0 | AP37: 49000000 | AQ37: 1407150000 | AR37: 0 | AS37: 0 | AT37: 1407150000 | AU37: 350000000 | AV37: 0 | AW37: 0 | AX37: 350000000 | AY37: 99000000 | AZ37: 0 | BA37: 0 | BB37: 99000000 | BC37: 420000000 | BD37: 0 | BE37: 0 | BF37: 420000000 | BG37: 296600000 | BH37: 0 | BI37: 0 | BJ37: 296600000 | BK37: 300000 | BL37: 0 | BM37: 0 | BN37: 300000 | BO37: 233100000 | BP37: 0 | BQ37: 0 | BR37: 233100000 | BS37: 25000000 | BT37: 0 | BU37: 0 | BV37: 25000000 | BW37: 699680000 | BX37: 0 | BY37: 0 | BZ37: 699680000 | CA37: 950000000 | CB37: 0 | CC37: 0 | CD37: 950000000 | CE37: 500000 | CF37: 0 | CG37: 0 | CH37: 500000 | CI37: 201432500 | CJ37: 0 | CK37: 0 | CL37: 201432500 | CM37: 1670700000 | CN37: 0 | CO37: 0 | CP37: 1670700000 | CQ37: 445090000 | CR37: 0 | CS37: 0 | CT37: 445090000 | CU37: 610700000 | CV37: 0 | CW37: 0 | CX37: 610700000 | CY37: 3300000 | CZ37: 0 | DA37: 0 | DB37: 3300000
B38: 2022-01-01 | C38: 179300000 | D38: 0 | E38: 0 | F38: 179300000 | G38: 1297800000 | H38: 0 | I38: 0 | J38: 1297800000 | K38: 485600000 | L38: 0 | M38: 0 | N38: 485600000 | O38: 73500000 | P38: 0 | Q38: 0 | R38: 73500000 | S38: 340010000 | T38: 0 | U38: 0 | V38: 340010000 | W38: 172600000 | X38: 0 | Y38: 0 | Z38: 172600000 | AA38: 0 | AB38: 0 | AC38: 0 | AD38: 0 | AE38: 556267500 | AF38: 0 | AG38: 0 | AH38: 556267500 | AI38: 90000000 | AJ38: 0 | AK38: 0 | AL38: 90000000 | AM38: 49000000 | AN38: 0 | AO38: 0 | AP38: 49000000 | AQ38: 1407150000 | AR38: 0 | AS38: 0 | AT38: 1407150000 | AU38: 350000000 | AV38: 0 | AW38: 0 | AX38: 350000000 | AY38: 99000000 | AZ38: 0 | BA38: 0 | BB38: 99000000 | BC38: 420000000 | BD38: 0 | BE38: 0 | BF38: 420000000 | BG38: 296600000 | BH38: 0 | BI38: 0 | BJ38: 296600000 | BK38: 300000 | BL38: 0 | BM38: 0 | BN38: 300000 | BO38: 233100000 | BP38: 0 | BQ38: 0 | BR38: 233100000 | BS38: 25000000 | BT38: 0 | BU38: 0 | BV38: 25000000 | BW38: 699680000 | BX38: 0 | BY38: 0 | BZ38: 699680000 | CA38: 950000000 | CB38: 0 | CC38: 0 | CD38: 950000000 | CE38: 500000 | CF38: 0 | CG38: 0 | CH38: 500000 | CI38: 201432500 | CJ38: 0 | CK38: 0 | CL38: 201432500 | CM38: 1670700000 | CN38: 0 | CO38: 0 | CP38: 1670700000 | CQ38: 445090000 | CR38: 0 | CS38: 0 | CT38: 445090000 | CU38: 610700000 | CV38: 0 | CW38: 0 | CX38: 610700000 | CY38: 3300000 | CZ38: 0 | DA38: 0 | DB38: 3300000
B39: 2022-02-01 | C39: 179300000 | D39: 0 | E39: 0 | F39: 179300000 | G39: 1297800000 | H39: 0 | I39: 0 | J39: 1297800000 | K39: 485600000 | L39: 0 | M39: 0 | N39: 485600000 | O39: 73500000 | P39: 0 | Q39: 0 | R39: 73500000 | S39: 340010000 | T39: 0 | U39: 0 | V39: 340010000 | W39: 172600000 | X39: 0 | Y39: 0 | Z39: 172600000 | AA39: 0 | AB39: 0 | AC39: 0 | AD39: 0 | AE39: 556267500 | AF39: 0 | AG39: 0 | AH39: 556267500 | AI39: 90000000 | AJ39: 0 | AK39: 0 | AL39: 90000000 | AM39: 49000000 | AN39: 0 | AO39: 0 | AP39: 49000000 | AQ39: 1407150000 | AR39: 0 | AS39: 0 | AT39: 1407150000 | AU39: 350000000 | AV39: 0 | AW39: 0 | AX39: 350000000 | AY39: 99000000 | AZ39: 0 | BA39: 0 | BB39: 99000000 | BC39: 420000000 | BD39: 0 | BE39: 0 | BF39: 420000000 | BG39: 296600000 | BH39: 0 | BI39: 0 | BJ39: 296600000 | BK39: 300000 | BL39: 0 | BM39: 0 | BN39: 300000 | BO39: 233100000 | BP39: 0 | BQ39: 0 | BR39: 233100000 | BS39: 25000000 | BT39: 0 | BU39: 0 | BV39: 25000000 | BW39: 699680000 | BX39: 0 | BY39: 0 | BZ39: 699680000 | CA39: 950000000 | CB39: 0 | CC39: 0 | CD39: 950000000 | CE39: 500000 | CF39: 0 | CG39: 0 | CH39: 500000 | CI39: 201432500 | CJ39: 0 | CK39: 0 | CL39: 201432500 | CM39: 1670700000 | CN39: 0 | CO39: 0 | CP39: 1670700000 | CQ39: 445090000 | CR39: 0 | CS39: 0 | CT39: 445090000 | CU39: 610700000 | CV39: 0 | CW39: 0 | CX39: 610700000 | CY39: 3300000 | CZ39: 0 | DA39: 0 | DB39: 3300000
B40: 2022-03-01 | C40: 179300000 | D40: 0 | E40: 0 | F40: 179300000 | G40: 1297800000 | H40: 0 | I40: 0 | J40: 1297800000 | K40: 485600000 | L40: 0 | M40: 0 | N40: 485600000 | O40: 73500000 | P40: 0 | Q40: 0 | R40: 73500000 | S40: 340010000 | T40: 0 | U40: 0 | V40: 340010000 | W40: 172600000 | X40: 0 | Y40: 0 | Z40: 172600000 | AA40: 0 | AB40: 0 | AC40: 0 | AD40: 0 | AE40: 556267500 | AF40: 0 | AG40: 0 | AH40: 556267500 | AI40: 90000000 | AJ40: 0 | AK40: 0 | AL40: 90000000 | AM40: 49000000 | AN40: 0 | AO40: 0 | AP40: 49000000 | AQ40: 1407150000 | AR40: 0 | AS40: 0 | AT40: 1407150000 | AU40: 350000000 | AV40: 0 | AW40: 0 | AX40: 350000000 | AY40: 99000000 | AZ40: 0 | BA40: 0 | BB40: 99000000 | BC40: 420000000 | BD40: 0 | BE40: 0 | BF40: 420000000 | BG40: 296600000 | BH40: 0 | BI40: 0 | BJ40: 296600000 | BK40: 300000 | BL40: 0 | BM40: 0 | BN40: 300000 | BO40: 233100000 | BP40: 0 | BQ40: 0 | BR40: 233100000 | BS40: 25000000 | BT40: 0 | BU40: 0 | BV40: 25000000 | BW40: 699680000 | BX40: 0 | BY40: 0 | BZ40: 699680000 | CA40: 950000000 | CB40: 0 | CC40: 0 | CD40: 950000000 | CE40: 500000 | CF40: 0 | CG40: 0 | CH40: 500000 | CI40: 201432500 | CJ40: 0 | CK40: 0 | CL40: 201432500 | CM40: 1670700000 | CN40: 0 | CO40: 0 | CP40: 1670700000 | CQ40: 445090000 | CR40: 0 | CS40: 0 | CT40: 445090000 | CU40: 610700000 | CV40: 0 | CW40: 0 | CX40: 610700000 | CY40: 3300000 | CZ40: 0 | DA40: 0 | DB40: 3300000
B41: 2022-04-01 | C41: 179300000 | D41: 0 | E41: 0 | F41: 179300000 | G41: 1297800000 | H41: 0 | I41: 0 | J41: 1297800000 | K41: 485600000 | L41: 0 | M41: 0 | N41: 485600000 | O41: 73500000 | P41: 0 | Q41: 0 | R41: 73500000 | S41: 340010000 | T41: 0 | U41: 0 | V41: 340010000 | W41: 172600000 | X41: 0 | Y41: 0 | Z41: 172600000 | AA41: 0 | AB41: 0 | AC41: 0 | AD41: 0 | AE41: 556267500 | AF41: 0 | AG41: 0 | AH41: 556267500 | AI41: 90000000 | AJ41: 0 | AK41: 0 | AL41: 90000000 | AM41: 49000000 | AN41: 0 | AO41: 0 | AP41: 49000000 | AQ41: 1407150000 | AR41: 0 | AS41: 0 | AT41: 1407150000 | AU41: 350000000 | AV41: 0 | AW41: 0 | AX41: 350000000 | AY41: 99000000 | AZ41: 0 | BA41: 0 | BB41: 99000000 | BC41: 420000000 | BD41: 0 | BE41: 0 | BF41: 420000000 | BG41: 296600000 | BH41: 0 | BI41: 0 | BJ41: 296600000 | BK41: 300000 | BL41: 0 | BM41: 0 | BN41: 300000 | BO41: 233100000 | BP41: 0 | BQ41: 0 | BR41: 233100000 | BS41: 25000000 | BT41: 0 | BU41: 0 | BV41: 25000000 | BW41: 699680000 | BX41: 0 | BY41: 0 | BZ41: 699680000 | CA41: 950000000 | CB41: 0 | CC41: 0 | CD41: 950000000 | CE41: 500000 | CF41: 0 | CG41: 0 | CH41: 500000 | CI41: 201432500 | CJ41: 0 | CK41: 0 | CL41: 201432500 | CM41: 1670700000 | CN41: 0 | CO41: 0 | CP41: 1670700000 | CQ41: 445090000 | CR41: 0 | CS41: 0 | CT41: 445090000 | CU41: 610700000 | CV41: 0 | CW41: 0 | CX41: 610700000 | CY41: 3300000 | CZ41: 0 | DA41: 0 | DB41: 3300000
B42: 2022-05-01 | C42: 179300000 | D42: 0 | E42: 0 | F42: 179300000 | G42: 1297800000 | H42: 0 | I42: 0 | J42: 1297800000 | K42: 485600000 | L42: 0 | M42: 0 | N42: 485600000 | O42: 73500000 | P42: 0 | Q42: 0 | R42: 73500000 | S42: 340010000 | T42: 0 | U42: 0 | V42: 340010000 | W42: 172600000 | X42: 0 | Y42: 0 | Z42: 172600000 | AA42: 0 | AB42: 0 | AC42: 0 | AD42: 0 | AE42: 556267500 | AF42: 0 | AG42: 0 | AH42: 556267500 | AI42: 90000000 | AJ42: 0 | AK42: 0 | AL42: 90000000 | AM42: 49000000 | AN42: 0 | AO42: 0 | AP42: 49000000 | AQ42: 1407150000 | AR42: 0 | AS42: 0 | AT42: 1407150000 | AU42: 350000000 | AV42: 0 | AW42: 0 | AX42: 350000000 | AY42: 99000000 | AZ42: 0 | BA42: 0 | BB42: 99000000 | BC42: 420000000 | BD42: 0 | BE42: 0 | BF42: 420000000 | BG42: 296600000 | BH42: 0 | BI42: 0 | BJ42: 296600000 | BK42: 300000 | BL42: 0 | BM42: 0 | BN42: 300000 | BO42: 233100000 | BP42: 0 | BQ42: 0 | BR42: 233100000 | BS42: 25000000 | BT42: 0 | BU42: 0 | BV42: 25000000 | BW42: 699680000 | BX42: 0 | BY42: 0 | BZ42: 699680000 | CA42: 950000000 | CB42: 0 | CC42: 0 | CD42: 950000000 | CE42: 500000 | CF42: 0 | CG42: 0 | CH42: 500000 | CI42: 201432500 | CJ42: 0 | CK42: 0 | CL42: 201432500 | CM42: 1670700000 | CN42: 0 | CO42: 0 | CP42: 1670700000 | CQ42: 445090000 | CR42: 0 | CS42: 0 | CT42: 445090000 | CU42: 610700000 | CV42: 0 | CW42: 0 | CX42: 610700000 | CY42: 3300000 | CZ42: 0 | DA42: 0 | DB42: 3300000
B43: 2022-06-01 | C43: 179300000 | D43: 0 | E43: 0 | F43: 179300000 | G43: 1297800000 | H43: 0 | I43: 0 | J43: 1297800000 | K43: 485600000 | L43: 0 | M43: 0 | N43: 485600000 | O43: 73500000 | P43: 0 | Q43: 0 | R43: 73500000 | S43: 340010000 | T43: 0 | U43: 0 | V43: 340010000 | W43: 172600000 | X43: 0 | Y43: 0 | Z43: 172600000 | AA43: 0 | AB43: 0 | AC43: 0 | AD43: 0 | AE43: 556267500 | AF43: 0 | AG43: 0 | AH43: 556267500 | AI43: 90000000 | AJ43: 0 | AK43: 0 | AL43: 90000000 | AM43: 49000000 | AN43: 0 | AO43: 0 | AP43: 49000000 | AQ43: 1407150000 | AR43: 0 | AS43: 0 | AT43: 1407150000 | AU43: 350000000 | AV43: 0 | AW43: 0 | AX43: 350000000 | AY43: 99000000 | AZ43: 0 | BA43: 0 | BB43: 99000000 | BC43: 420000000 | BD43: 0 | BE43: 0 | BF43: 420000000 | BG43: 296600000 | BH43: 0 | BI43: 0 | BJ43: 296600000 | BK43: 300000 | BL43: 0 | BM43: 0 | BN43: 300000 | BO43: 233100000 | BP43: 0 | BQ43: 0 | BR43: 233100000 | BS43: 25000000 | BT43: 0 | BU43: 0 | BV43: 25000000 | BW43: 699680000 | BX43: 0 | BY43: 0 | BZ43: 699680000 | CA43: 950000000 | CB43: 0 | CC43: 0 | CD43: 950000000 | CE43: 500000 | CF43: 0 | CG43: 0 | CH43: 500000 | CI43: 201432500 | CJ43: 0 | CK43: 0 | CL43: 201432500 | CM43: 1670700000 | CN43: 0 | CO43: 0 | CP43: 1670700000 | CQ43: 445090000 | CR43: 0 | CS43: 0 | CT43: 445090000 | CU43: 610700000 | CV43: 0 | CW43: 0 | CX43: 610700000 | CY43: 3300000 | CZ43: 0 | DA43: 0 | DB43: 3300000
B44: 2022-07-01 | C44: 179300000 | D44: 0 | E44: 0 | F44: 179300000 | G44: 1297800000 | H44: 0 | I44: 0 | J44: 1297800000 | K44: 485600000 | L44: 0 | M44: 0 | N44: 485600000 | O44: 73500000 | P44: 0 | Q44: 0 | R44: 73500000 | S44: 340010000 | T44: 0 | U44: 0 | V44: 340010000 | W44: 172600000 | X44: 0 | Y44: 0 | Z44: 172600000 | AA44: 0 | AB44: 0 | AC44: 0 | AD44: 0 | AE44: 556267500 | AF44: 0 | AG44: 0 | AH44: 556267500 | AI44: 90000000 | AJ44: 0 | AK44: 0 | AL44: 90000000 | AM44: 49000000 | AN44: 0 | AO44: 0 | AP44: 49000000 | AQ44: 1407150000 | AR44: 0 | AS44: 0 | AT44: 1407150000 | AU44: 350000000 | AV44: 0 | AW44: 0 | AX44: 350000000 | AY44: 99000000 | AZ44: 0 | BA44: 0 | BB44: 99000000 | BC44: 420000000 | BD44: 0 | BE44: 0 | BF44: 420000000 | BG44: 296600000 | BH44: 0 | BI44: 0 | BJ44: 296600000 | BK44: 300000 | BL44: 0 | BM44: 0 | BN44: 300000 | BO44: 233100000 | BP44: 0 | BQ44: 0 | BR44: 233100000 | BS44: 25000000 | BT44: 0 | BU44: 0 | BV44: 25000000 | BW44: 699680000 | BX44: 0 | BY44: 0 | BZ44: 699680000 | CA44: 950000000 | CB44: 0 | CC44: 0 | CD44: 950000000 | CE44: 500000 | CF44: 0 | CG44: 0 | CH44: 500000 | CI44: 201432500 | CJ44: 0 | CK44: 0 | CL44: 201432500 | CM44: 1670700000 | CN44: 0 | CO44: 0 | CP44: 1670700000 | CQ44: 445090000 | CR44: 0 | CS44: 0 | CT44: 445090000 | CU44: 610700000 | CV44: 0 | CW44: 0 | CX44: 610700000 | CY44: 3300000 | CZ44: 0 | DA44: 0 | DB44: 3300000
B45: 2022-08-01 | C45: 179300000 | D45: 0 | E45: 0 | F45: 179300000 | G45: 1297800000 | H45: 0 | I45: 0 | J45: 1297800000 | K45: 485600000 | L45: 0 | M45: 0 | N45: 485600000 | O45: 73500000 | P45: 0 | Q45: 0 | R45: 73500000 | S45: 340010000 | T45: 0 | U45: 0 | V45: 340010000 | W45: 172600000 | X45: 0 | Y45: 0 | Z45: 172600000 | AA45: 0 | AB45: 0 | AC45: 0 | AD45: 0 | AE45: 556267500 | AF45: 0 | AG45: 0 | AH45: 556267500 | AI45: 90000000 | AJ45: 0 | AK45: 0 | AL45: 90000000 | AM45: 49000000 | AN45: 0 | AO45: 0 | AP45: 49000000 | AQ45: 1407150000 | AR45: 0 | AS45: 0 | AT45: 1407150000 | AU45: 350000000 | AV45: 0 | AW45: 0 | AX45: 350000000 | AY45: 99000000 | AZ45: 0 | BA45: 0 | BB45: 99000000 | BC45: 420000000 | BD45: 0 | BE45: 0 | BF45: 420000000 | BG45: 296600000 | BH45: 0 | BI45: 0 | BJ45: 296600000 | BK45: 300000 | BL45: 0 | BM45: 0 | BN45: 300000 | BO45: 233100000 | BP45: 0 | BQ45: 0 | BR45: 233100000 | BS45: 25000000 | BT45: 0 | BU45: 0 | BV45: 25000000 | BW45: 699680000 | BX45: 0 | BY45: 0 | BZ45: 699680000 | CA45: 950000000 | CB45: 0 | CC45: 0 | CD45: 950000000 | CE45: 500000 | CF45: 0 | CG45: 0 | CH45: 500000 | CI45: 201432500 | CJ45: 0 | CK45: 0 | CL45: 201432500 | CM45: 1670700000 | CN45: 0 | CO45: 0 | CP45: 1670700000 | CQ45: 445090000 | CR45: 0 | CS45: 0 | CT45: 445090000 | CU45: 610700000 | CV45: 0 | CW45: 0 | CX45: 610700000 | CY45: 3300000 | CZ45: 0 | DA45: 0 | DB45: 3300000
B46: 2022-09-01 | C46: 179300000 | D46: 0 | E46: 0 | F46: 179300000 | G46: 1297800000 | H46: 0 | I46: 0 | J46: 1297800000 | K46: 485600000 | L46: 0 | M46: 0 | N46: 485600000 | O46: 73500000 | P46: 0 | Q46: 0 | R46: 73500000 | S46: 340010000 | T46: 0 | U46: 0 | V46: 340010000 | W46: 172600000 | X46: 0 | Y46: 0 | Z46: 172600000 | AA46: 0 | AB46: 0 | AC46: 0 | AD46: 0 | AE46: 556267500 | AF46: 0 | AG46: 0 | AH46: 556267500 | AI46: 90000000 | AJ46: 0 | AK46: 0 | AL46: 90000000 | AM46: 49000000 | AN46: 0 | AO46: 0 | AP46: 49000000 | AQ46: 1407150000 | AR46: 0 | AS46: 0 | AT46: 1407150000 | AU46: 350000000 | AV46: 0 | AW46: 0 | AX46: 350000000 | AY46: 99000000 | AZ46: 0 | BA46: 0 | BB46: 99000000 | BC46: 420000000 | BD46: 0 | BE46: 0 | BF46: 420000000 | BG46: 296600000 | BH46: 0 | BI46: 0 | BJ46: 296600000 | BK46: 300000 | BL46: 0 | BM46: 0 | BN46: 300000 | BO46: 233100000 | BP46: 0 | BQ46: 0 | BR46: 233100000 | BS46: 25000000 | BT46: 0 | BU46: 0 | BV46: 25000000 | BW46: 699680000 | BX46: 0 | BY46: 0 | BZ46: 699680000 | CA46: 950000000 | CB46: 0 | CC46: 0 | CD46: 950000000 | CE46: 500000 | CF46: 0 | CG46: 0 | CH46: 500000 | CI46: 201432500 | CJ46: 0 | CK46: 0 | CL46: 201432500 | CM46: 1670700000 | CN46: 0 | CO46: 0 | CP46: 1670700000 | CQ46: 445090000 | CR46: 0 | CS46: 0 | CT46: 445090000 | CU46: 610700000 | CV46: 0 | CW46: 0 | CX46: 610700000 | CY46: 3300000 | CZ46: 0 | DA46: 0 | DB46: 3300000
B47: 2022-10-01 | C47: 179300000 | D47: 0 | E47: 0 | F47: 179300000 | G47: 1297800000 | H47: 0 | I47: 0 | J47: 1297800000 | K47: 485600000 | L47: 0 | M47: 0 | N47: 485600000 | O47: 73500000 | P47: 0 | Q47: 0 | R47: 73500000 | S47: 340010000 | T47: 0 | U47: 0 | V47: 340010000 | W47: 172600000 | X47: 0 | Y47: 0 | Z47: 172600000 | AA47: 0 | AB47: 0 | AC47: 0 | AD47: 0 | AE47: 556267500 | AF47: 0 | AG47: 0 | AH47: 556267500 | AI47: 90000000 | AJ47: 0 | AK47: 0 | AL47: 90000000 | AM47: 49000000 | AN47: 0 | AO47: 0 | AP47: 49000000 | AQ47: 1407150000 | AR47: 0 | AS47: 0 | AT47: 1407150000 | AU47: 350000000 | AV47: 0 | AW47: 0 | AX47: 350000000 | AY47: 99000000 | AZ47: 0 | BA47: 0 | BB47: 99000000 | BC47: 420000000 | BD47: 0 | BE47: 0 | BF47: 420000000 | BG47: 296600000 | BH47: 0 | BI47: 0 | BJ47: 296600000 | BK47: 300000 | BL47: 0 | BM47: 0 | BN47: 300000 | BO47: 233100000 | BP47: 0 | BQ47: 0 | BR47: 233100000 | BS47: 25000000 | BT47: 0 | BU47: 0 | BV47: 25000000 | BW47: 699680000 | BX47: 0 | BY47: 0 | BZ47: 699680000 | CA47: 950000000 | CB47: 0 | CC47: 0 | CD47: 950000000 | CE47: 500000 | CF47: 0 | CG47: 0 | CH47: 500000 | CI47: 201432500 | CJ47: 0 | CK47: 0 | CL47: 201432500 | CM47: 1670700000 | CN47: 0 | CO47: 0 | CP47: 1670700000 | CQ47: 445090000 | CR47: 0 | CS47: 0 | CT47: 445090000 | CU47: 610700000 | CV47: 0 | CW47: 0 | CX47: 610700000 | CY47: 3300000 | CZ47: 0 | DA47: 0 | DB47: 3300000
B48: 2022-11-01 | C48: 179300000 | D48: 0 | E48: 0 | F48: 179300000 | G48: 1297800000 | H48: 0 | I48: 0 | J48: 1297800000 | K48: 485600000 | L48: 0 | M48: 0 | N48: 485600000 | O48: 73500000 | P48: 0 | Q48: 0 | R48: 73500000 | S48: 340010000 | T48: 0 | U48: 0 | V48: 340010000 | W48: 172600000 | X48: 0 | Y48: 0 | Z48: 172600000 | AA48: 0 | AB48: 0 | AC48: 0 | AD48: 0 | AE48: 556267500 | AF48: 0 | AG48: 0 | AH48: 556267500 | AI48: 90000000 | AJ48: 0 | AK48: 0 | AL48: 90000000 | AM48: 49000000 | AN48: 0 | AO48: 0 | AP48: 49000000 | AQ48: 1407150000 | AR48: 0 | AS48: 0 | AT48: 1407150000 | AU48: 350000000 | AV48: 0 | AW48: 0 | AX48: 350000000 | AY48: 99000000 | AZ48: 0 | BA48: 0 | BB48: 99000000 | BC48: 420000000 | BD48: 0 | BE48: 0 | BF48: 420000000 | BG48: 296600000 | BH48: 0 | BI48: 0 | BJ48: 296600000 | BK48: 300000 | BL48: 0 | BM48: 0 | BN48: 300000 | BO48: 233100000 | BP48: 0 | BQ48: 0 | BR48: 233100000 | BS48: 25000000 | BT48: 0 | BU48: 0 | BV48: 25000000 | BW48: 699680000 | BX48: 0 | BY48: 0 | BZ48: 699680000 | CA48: 950000000 | CB48: 0 | CC48: 0 | CD48: 950000000 | CE48: 500000 | CF48: 0 | CG48: 0 | CH48: 500000 | CI48: 201432500 | CJ48: 0 | CK48: 0 | CL48: 201432500 | CM48: 1670700000 | CN48: 0 | CO48: 0 | CP48: 1670700000 | CQ48: 445090000 | CR48: 0 | CS48: 0 | CT48: 445090000 | CU48: 610700000 | CV48: 0 | CW48: 0 | CX48: 610700000 | CY48: 3300000 | CZ48: 0 | DA48: 0 | DB48: 3300000
B49: 2022-12-01 | C49: 179300000 | D49: 0 | E49: 0 | F49: 179300000 | G49: 1297800000 | H49: 0 | I49: 0 | J49: 1297800000 | K49: 485600000 | L49: 0 | M49: 0 | N49: 485600000 | O49: 73500000 | P49: 0 | Q49: 0 | R49: 73500000 | S49: 340010000 | T49: 0 | U49: 0 | V49: 340010000 | W49: 172600000 | X49: 0 | Y49: 0 | Z49: 172600000 | AA49: 0 | AB49: 0 | AC49: 0 | AD49: 0 | AE49: 556267500 | AF49: 0 | AG49: 0 | AH49: 556267500 | AI49: 90000000 | AJ49: 0 | AK49: 0 | AL49: 90000000 | AM49: 49000000 | AN49: 0 | AO49: 0 | AP49: 49000000 | AQ49: 1407150000 | AR49: 0 | AS49: 0 | AT49: 1407150000 | AU49: 350000000 | AV49: 0 | AW49: 0 | AX49: 350000000 | AY49: 99000000 | AZ49: 0 | BA49: 0 | BB49: 99000000 | BC49: 420000000 | BD49: 0 | BE49: 0 | BF49: 420000000 | BG49: 296600000 | BH49: 0 | BI49: 0 | BJ49: 296600000 | BK49: 300000 | BL49: 0 | BM49: 0 | BN49: 300000 | BO49: 233100000 | BP49: 0 | BQ49: 0 | BR49: 233100000 | BS49: 25000000 | BT49: 0 | BU49: 0 | BV49: 25000000 | BW49: 699680000 | BX49: 0 | BY49: 0 | BZ49: 699680000 | CA49: 950000000 | CB49: 0 | CC49: 0 | CD49: 950000000 | CE49: 500000 | CF49: 0 | CG49: 0 | CH49: 500000 | CI49: 201432500 | CJ49: 0 | CK49: 0 | CL49: 201432500 | CM49: 1670700000 | CN49: 0 | CO49: 0 | CP49: 1670700000 | CQ49: 445090000 | CR49: 0 | CS49: 0 | CT49: 445090000 | CU49: 610700000 | CV49: 0 | CW49: 0 | CX49: 610700000 | CY49: 3300000 | CZ49: 0 | DA49: 0 | DB49: 3300000
B50: 2023-01-01 | C50: 179300000 | D50: 0 | E50: 0 | F50: 179300000 | G50: 1297800000 | H50: 0 | I50: 0 | J50: 1297800000 | K50: 485600000 | L50: 0 | M50: 0 | N50: 485600000 | O50: 73500000 | P50: 0 | Q50: 0 | R50: 73500000 | S50: 340010000 | T50: 0 | U50: 0 | V50: 340010000 | W50: 172600000 | X50: 0 | Y50: 0 | Z50: 172600000 | AA50: 0 | AB50: 0 | AC50: 0 | AD50: 0 | AE50: 556267500 | AF50: 0 | AG50: 0 | AH50: 556267500 | AI50: 90000000 | AJ50: 0 | AK50: 0 | AL50: 90000000 | AM50: 49000000 | AN50: 0 | AO50: 0 | AP50: 49000000 | AQ50: 1407150000 | AR50: 0 | AS50: 0 | AT50: 1407150000 | AU50: 350000000 | AV50: 0 | AW50: 0 | AX50: 350000000 | AY50: 99000000 | AZ50: 0 | BA50: 0 | BB50: 99000000 | BC50: 420000000 | BD50: 0 | BE50: 0 | BF50: 420000000 | BG50: 296600000 | BH50: 0 | BI50: 0 | BJ50: 296600000 | BK50: 300000 | BL50: 0 | BM50: 0 | BN50: 300000 | BO50: 233100000 | BP50: 0 | BQ50: 0 | BR50: 233100000 | BS50: 25000000 | BT50: 0 | BU50: 0 | BV50: 25000000 | BW50: 699680000 | BX50: 0 | BY50: 0 | BZ50: 699680000 | CA50: 950000000 | CB50: 0 | CC50: 0 | CD50: 950000000 | CE50: 500000 | CF50: 0 | CG50: 0 | CH50: 500000 | CI50: 201432500 | CJ50: 0 | CK50: 0 | CL50: 201432500 | CM50: 1670700000 | CN50: 0 | CO50: 0 | CP50: 1670700000 | CQ50: 445090000 | CR50: 0 | CS50: 0 | CT50: 445090000 | CU50: 610700000 | CV50: 0 | CW50: 0 | CX50: 610700000 | CY50: 3300000 | CZ50: 0 | DA50: 0 | DB50: 3300000
B51: 2023-02-01 | C51: 179300000 | D51: 0 | E51: 0 | F51: 179300000 | G51: 1297800000 | H51: 0 | I51: 0 | J51: 1297800000 | K51: 485600000 | L51: 0 | M51: 0 | N51: 485600000 | O51: 73500000 | P51: 0 | Q51: 0 | R51: 73500000 | S51: 340010000 | T51: 0 | U51: 0 | V51: 340010000 | W51: 172600000 | X51: 0 | Y51: 0 | Z51: 172600000 | AA51: 0 | AB51: 0 | AC51: 0 | AD51: 0 | AE51: 556267500 | AF51: 0 | AG51: 0 | AH51: 556267500 | AI51: 90000000 | AJ51: 0 | AK51: 0 | AL51: 90000000 | AM51: 49000000 | AN51: 0 | AO51: 0 | AP51: 49000000 | AQ51: 1407150000 | AR51: 0 | AS51: 0 | AT51: 1407150000 | AU51: 350000000 | AV51: 0 | AW51: 0 | AX51: 350000000 | AY51: 99000000 | AZ51: 0 | BA51: 0 | BB51: 99000000 | BC51: 420000000 | BD51: 0 | BE51: 0 | BF51: 420000000 | BG51: 296600000 | BH51: 0 | BI51: 0 | BJ51: 296600000 | BK51: 300000 | BL51: 0 | BM51: 0 | BN51: 300000 | BO51: 233100000 | BP51: 0 | BQ51: 0 | BR51: 233100000 | BS51: 25000000 | BT51: 0 | BU51: 0 | BV51: 25000000 | BW51: 699680000 | BX51: 0 | BY51: 0 | BZ51: 699680000 | CA51: 950000000 | CB51: 0 | CC51: 0 | CD51: 950000000 | CE51: 500000 | CF51: 0 | CG51: 0 | CH51: 500000 | CI51: 201432500 | CJ51: 0 | CK51: 0 | CL51: 201432500 | CM51: 1670700000 | CN51: 0 | CO51: 0 | CP51: 1670700000 | CQ51: 445090000 | CR51: 0 | CS51: 0 | CT51: 445090000 | CU51: 610700000 | CV51: 0 | CW51: 0 | CX51: 610700000 | CY51: 3300000 | CZ51: 0 | DA51: 0 | DB51: 3300000
B52: 2023-03-01 | C52: 179300000 | D52: 0 | E52: 0 | F52: 179300000 | G52: 1297800000 | H52: 0 | I52: 0 | J52: 1297800000 | K52: 485600000 | L52: 0 | M52: 0 | N52: 485600000 | O52: 73500000 | P52: 0 | Q52: 0 | R52: 73500000 | S52: 340010000 | T52: 0 | U52: 0 | V52: 340010000 | W52: 172600000 | X52: 0 | Y52: 0 | Z52: 172600000 | AA52: 0 | AB52: 0 | AC52: 0 | AD52: 0 | AE52: 556267500 | AF52: 0 | AG52: 0 | AH52: 556267500 | AI52: 90000000 | AJ52: 0 | AK52: 0 | AL52: 90000000 | AM52: 49000000 | AN52: 0 | AO52: 0 | AP52: 49000000 | AQ52: 1407150000 | AR52: 0 | AS52: 0 | AT52: 1407150000 | AU52: 350000000 | AV52: 0 | AW52: 0 | AX52: 350000000 | AY52: 99000000 | AZ52: 0 | BA52: 0 | BB52: 99000000 | BC52: 420000000 | BD52: 0 | BE52: 0 | BF52: 420000000 | BG52: 296600000 | BH52: 0 | BI52: 0 | BJ52: 296600000 | BK52: 300000 | BL52: 0 | BM52: 0 | BN52: 300000 | BO52: 233100000 | BP52: 0 | BQ52: 0 | BR52: 233100000 | BS52: 25000000 | BT52: 0 | BU52: 0 | BV52: 25000000 | BW52: 699680000 | BX52: 0 | BY52: 0 | BZ52: 699680000 | CA52: 950000000 | CB52: 0 | CC52: 0 | CD52: 950000000 | CE52: 500000 | CF52: 0 | CG52: 0 | CH52: 500000 | CI52: 201432500 | CJ52: 0 | CK52: 0 | CL52: 201432500 | CM52: 1670700000 | CN52: 0 | CO52: 0 | CP52: 1670700000 | CQ52: 445090000 | CR52: 0 | CS52: 0 | CT52: 445090000 | CU52: 610700000 | CV52: 0 | CW52: 0 | CX52: 610700000 | CY52: 3300000 | CZ52: 0 | DA52: 0 | DB52: 3300000
B53: 2023-04-01 | C53: 179300000 | D53: 0 | E53: 0 | F53: 179300000 | G53: 1297800000 | H53: 0 | I53: 0 | J53: 1297800000 | K53: 485600000 | L53: 0 | M53: 0 | N53: 485600000 | O53: 73500000 | P53: 0 | Q53: 0 | R53: 73500000 | S53: 340010000 | T53: 0 | U53: 0 | V53: 340010000 | W53: 172600000 | X53: 0 | Y53: 0 | Z53: 172600000 | AA53: 0 | AB53: 0 | AC53: 0 | AD53: 0 | AE53: 556267500 | AF53: 0 | AG53: 0 | AH53: 556267500 | AI53: 90000000 | AJ53: 0 | AK53: 0 | AL53: 90000000 | AM53: 49000000 | AN53: 0 | AO53: 0 | AP53: 49000000 | AQ53: 1407150000 | AR53: 0 | AS53: 0 | AT53: 1407150000 | AU53: 350000000 | AV53: 0 | AW53: 0 | AX53: 350000000 | AY53: 99000000 | AZ53: 0 | BA53: 0 | BB53: 99000000 | BC53: 420000000 | BD53: 0 | BE53: 0 | BF53: 420000000 | BG53: 296600000 | BH53: 0 | BI53: 0 | BJ53: 296600000 | BK53: 300000 | BL53: 0 | BM53: 0 | BN53: 300000 | BO53: 233100000 | BP53: 0 | BQ53: 0 | BR53: 233100000 | BS53: 25000000 | BT53: 0 | BU53: 0 | BV53: 25000000 | BW53: 699680000 | BX53: 0 | BY53: 0 | BZ53: 699680000 | CA53: 950000000 | CB53: 0 | CC53: 0 | CD53: 950000000 | CE53: 500000 | CF53: 0 | CG53: 0 | CH53: 500000 | CI53: 201432500 | CJ53: 0 | CK53: 0 | CL53: 201432500 | CM53: 1670700000 | CN53: 0 | CO53: 0 | CP53: 1670700000 | CQ53: 445090000 | CR53: 0 | CS53: 0 | CT53: 445090000 | CU53: 610700000 | CV53: 0 | CW53: 0 | CX53: 610700000 | CY53: 3300000 | CZ53: 0 | DA53: 0 | DB53: 3300000
B54: 2023-05-01 | C54: 179300000 | D54: 0 | E54: 0 | F54: 179300000 | G54: 1297800000 | H54: 0 | I54: 0 | J54: 1297800000 | K54: 485600000 | L54: 0 | M54: 0 | N54: 485600000 | O54: 73500000 | P54: 0 | Q54: 0 | R54: 73500000 | S54: 340010000 | T54: 0 | U54: 0 | V54: 340010000 | W54: 172600000 | X54: 0 | Y54: 0 | Z54: 172600000 | AA54: 0 | AB54: 0 | AC54: 0 | AD54: 0 | AE54: 556267500 | AF54: 0 | AG54: 0 | AH54: 556267500 | AI54: 90000000 | AJ54: 0 | AK54: 0 | AL54: 90000000 | AM54: 49000000 | AN54: 0 | AO54: 0 | AP54: 49000000 | AQ54: 1407150000 | AR54: 0 | AS54: 0 | AT54: 1407150000 | AU54: 350000000 | AV54: 0 | AW54: 0 | AX54: 350000000 | AY54: 99000000 | AZ54: 0 | BA54: 0 | BB54: 99000000 | BC54: 420000000 | BD54: 0 | BE54: 0 | BF54: 420000000 | BG54: 296600000 | BH54: 0 | BI54: 0 | BJ54: 296600000 | BK54: 300000 | BL54: 0 | BM54: 0 | BN54: 300000 | BO54: 233100000 | BP54: 0 | BQ54: 0 | BR54: 233100000 | BS54: 25000000 | BT54: 0 | BU54: 0 | BV54: 25000000 | BW54: 699680000 | BX54: 0 | BY54: 0 | BZ54: 699680000 | CA54: 950000000 | CB54: 0 | CC54: 0 | CD54: 950000000 | CE54: 500000 | CF54: 0 | CG54: 0 | CH54: 500000 | CI54: 201432500 | CJ54: 0 | CK54: 0 | CL54: 201432500 | CM54: 1670700000 | CN54: 0 | CO54: 0 | CP54: 1670700000 | CQ54: 445090000 | CR54: 0 | CS54: 0 | CT54: 445090000 | CU54: 610700000 | CV54: 0 | CW54: 0 | CX54: 610700000 | CY54: 3300000 | CZ54: 0 | DA54: 0 | DB54: 3300000
B55: 2023-06-01 | C55: 179300000 | D55: 0 | E55: 0 | F55: 179300000 | G55: 1297800000 | H55: 0 | I55: 0 | J55: 1297800000 | K55: 485600000 | L55: 0 | M55: 0 | N55: 485600000 | O55: 73500000 | P55: 0 | Q55: 0 | R55: 73500000 | S55: 340010000 | T55: 0 | U55: 0 | V55: 340010000 | W55: 172600000 | X55: 0 | Y55: 0 | Z55: 172600000 | AA55: 0 | AB55: 0 | AC55: 0 | AD55: 0 | AE55: 556267500 | AF55: 0 | AG55: 0 | AH55: 556267500 | AI55: 90000000 | AJ55: 0 | AK55: 0 | AL55: 90000000 | AM55: 49000000 | AN55: 0 | AO55: 0 | AP55: 49000000 | AQ55: 1407150000 | AR55: 0 | AS55: 0 | AT55: 1407150000 | AU55: 350000000 | AV55: 0 | AW55: 0 | AX55: 350000000 | AY55: 99000000 | AZ55: 0 | BA55: 0 | BB55: 99000000 | BC55: 420000000 | BD55: 0 | BE55: 0 | BF55: 420000000 | BG55: 296600000 | BH55: 0 | BI55: 0 | BJ55: 296600000 | BK55: 300000 | BL55: 0 | BM55: 0 | BN55: 300000 | BO55: 233100000 | BP55: 0 | BQ55: 0 | BR55: 233100000 | BS55: 25000000 | BT55: 0 | BU55: 0 | BV55: 25000000 | BW55: 699680000 | BX55: 0 | BY55: 0 | BZ55: 699680000 | CA55: 950000000 | CB55: 0 | CC55: 0 | CD55: 950000000 | CE55: 500000 | CF55: 0 | CG55: 0 | CH55: 500000 | CI55: 201432500 | CJ55: 0 | CK55: 0 | CL55: 201432500 | CM55: 1670700000 | CN55: 0 | CO55: 0 | CP55: 1670700000 | CQ55: 445090000 | CR55: 0 | CS55: 0 | CT55: 445090000 | CU55: 610700000 | CV55: 0 | CW55: 0 | CX55: 610700000 | CY55: 3300000 | CZ55: 0 | DA55: 0 | DB55: 3300000
B56: 2023-07-01 | C56: 179300000 | D56: 0 | E56: 0 | F56: 179300000 | G56: 1297800000 | H56: 0 | I56: 0 | J56: 1297800000 | K56: 485600000 | L56: 0 | M56: 0 | N56: 485600000 | O56: 73500000 | P56: 0 | Q56: 0 | R56: 73500000 | S56: 340010000 | T56: 0 | U56: 0 | V56: 340010000 | W56: 172600000 | X56: 0 | Y56: 0 | Z56: 172600000 | AA56: 0 | AB56: 0 | AC56: 0 | AD56: 0 | AE56: 556267500 | AF56: 0 | AG56: 0 | AH56: 556267500 | AI56: 90000000 | AJ56: 0 | AK56: 0 | AL56: 90000000 | AM56: 49000000 | AN56: 0 | AO56: 0 | AP56: 49000000 | AQ56: 1407150000 | AR56: 0 | AS56: 0 | AT56: 1407150000 | AU56: 350000000 | AV56: 0 | AW56: 0 | AX56: 350000000 | AY56: 99000000 | AZ56: 0 | BA56: 0 | BB56: 99000000 | BC56: 420000000 | BD56: 0 | BE56: 0 | BF56: 420000000 | BG56: 296600000 | BH56: 0 | BI56: 0 | BJ56: 296600000 | BK56: 300000 | BL56: 0 | BM56: 0 | BN56: 300000 | BO56: 233100000 | BP56: 0 | BQ56: 0 | BR56: 233100000 | BS56: 25000000 | BT56: 0 | BU56: 0 | BV56: 25000000 | BW56: 699680000 | BX56: 0 | BY56: 0 | BZ56: 699680000 | CA56: 950000000 | CB56: 0 | CC56: 0 | CD56: 950000000 | CE56: 500000 | CF56: 0 | CG56: 0 | CH56: 500000 | CI56: 201432500 | CJ56: 0 | CK56: 0 | CL56: 201432500 | CM56: 1670700000 | CN56: 0 | CO56: 0 | CP56: 1670700000 | CQ56: 445090000 | CR56: 0 | CS56: 0 | CT56: 445090000 | CU56: 610700000 | CV56: 0 | CW56: 0 | CX56: 610700000 | CY56: 3300000 | CZ56: 0 | DA56: 0 | DB56: 3300000
B57: 2023-08-01 | C57: 179300000 | D57: 0 | E57: 0 | F57: 179300000 | G57: 1297800000 | H57: 0 | I57: 0 | J57: 1297800000 | K57: 485600000 | L57: 0 | M57: 0 | N57: 485600000 | O57: 73500000 | P57: 0 | Q57: 0 | R57: 73500000 | S57: 340010000 | T57: 0 | U57: 0 | V57: 340010000 | W57: 172600000 | X57: 0 | Y57: 0 | Z57: 172600000 | AA57: 0 | AB57: 0 | AC57: 0 | AD57: 0 | AE57: 556267500 | AF57: 0 | AG57: 0 | AH57: 556267500 | AI57: 90000000 | AJ57: 0 | AK57: 0 | AL57: 90000000 | AM57: 49000000 | AN57: 0 | AO57: 0 | AP57: 49000000 | AQ57: 1407150000 | AR57: 0 | AS57: 0 | AT57: 1407150000 | AU57: 350000000 | AV57: 0 | AW57: 0 | AX57: 350000000 | AY57: 99000000 | AZ57: 0 | BA57: 0 | BB57: 99000000 | BC57: 420000000 | BD57: 0 | BE57: 0 | BF57: 420000000 | BG57: 296600000 | BH57: 0 | BI57: 0 | BJ57: 296600000 | BK57: 300000 | BL57: 0 | BM57: 0 | BN57: 300000 | BO57: 233100000 | BP57: 0 | BQ57: 0 | BR57: 233100000 | BS57: 25000000 | BT57: 0 | BU57: 0 | BV57: 25000000 | BW57: 699680000 | BX57: 0 | BY57: 0 | BZ57: 699680000 | CA57: 950000000 | CB57: 0 | CC57: 0 | CD57: 950000000 | CE57: 500000 | CF57: 0 | CG57: 0 | CH57: 500000 | CI57: 201432500 | CJ57: 0 | CK57: 0 | CL57: 201432500 | CM57: 1670700000 | CN57: 0 | CO57: 0 | CP57: 1670700000 | CQ57: 445090000 | CR57: 0 | CS57: 0 | CT57: 445090000 | CU57: 610700000 | CV57: 0 | CW57: 0 | CX57: 610700000 | CY57: 3300000 | CZ57: 0 | DA57: 0 | DB57: 3300000
B58: 2023-09-01 | C58: 179300000 | D58: 0 | E58: 0 | F58: 179300000 | G58: 1297800000 | H58: 0 | I58: 0 | J58: 1297800000 | K58: 485600000 | L58: 0 | M58: 0 | N58: 485600000 | O58: 73500000 | P58: 0 | Q58: 0 | R58: 73500000 | S58: 340010000 | T58: 0 | U58: 0 | V58: 340010000 | W58: 172600000 | X58: 0 | Y58: 0 | Z58: 172600000 | AA58: 0 | AB58: 0 | AC58: 0 | AD58: 0 | AE58: 556267500 | AF58: 0 | AG58: 0 | AH58: 556267500 | AI58: 90000000 | AJ58: 0 | AK58: 0 | AL58: 90000000 | AM58: 49000000 | AN58: 0 | AO58: 0 | AP58: 49000000 | AQ58: 1407150000 | AR58: 0 | AS58: 0 | AT58: 1407150000 | AU58: 350000000 | AV58: 0 | AW58: 0 | AX58: 350000000 | AY58: 99000000 | AZ58: 0 | BA58: 0 | BB58: 99000000 | BC58: 420000000 | BD58: 0 | BE58: 0 | BF58: 420000000 | BG58: 296600000 | BH58: 0 | BI58: 0 | BJ58: 296600000 | BK58: 300000 | BL58: 0 | BM58: 0 | BN58: 300000 | BO58: 233100000 | BP58: 0 | BQ58: 0 | BR58: 233100000 | BS58: 25000000 | BT58: 0 | BU58: 0 | BV58: 25000000 | BW58: 699680000 | BX58: 0 | BY58: 0 | BZ58: 699680000 | CA58: 950000000 | CB58: 0 | CC58: 0 | CD58: 950000000 | CE58: 500000 | CF58: 0 | CG58: 0 | CH58: 500000 | CI58: 201432500 | CJ58: 0 | CK58: 0 | CL58: 201432500 | CM58: 1670700000 | CN58: 0 | CO58: 0 | CP58: 1670700000 | CQ58: 445090000 | CR58: 0 | CS58: 0 | CT58: 445090000 | CU58: 610700000 | CV58: 0 | CW58: 0 | CX58: 610700000 | CY58: 3300000 | CZ58: 0 | DA58: 0 | DB58: 3300000
B59: 2023-10-01 | C59: 179300000 | D59: 0 | E59: 0 | F59: 179300000 | G59: 1297800000 | H59: 0 | I59: 0 | J59: 1297800000 | K59: 485600000 | L59: 0 | M59: 0 | N59: 485600000 | O59: 73500000 | P59: 0 | Q59: 0 | R59: 73500000 | S59: 340010000 | T59: 0 | U59: 0 | V59: 340010000 | W59: 172600000 | X59: 0 | Y59: 0 | Z59: 172600000 | AA59: 0 | AB59: 0 | AC59: 0 | AD59: 0 | AE59: 556267500 | AF59: 0 | AG59: 0 | AH59: 556267500 | AI59: 90000000 | AJ59: 0 | AK59: 0 | AL59: 90000000 | AM59: 49000000 | AN59: 0 | AO59: 0 | AP59: 49000000 | AQ59: 1407150000 | AR59: 0 | AS59: 0 | AT59: 1407150000 | AU59: 350000000 | AV59: 0 | AW59: 0 | AX59: 350000000 | AY59: 99000000 | AZ59: 0 | BA59: 0 | BB59: 99000000 | BC59: 420000000 | BD59: 0 | BE59: 0 | BF59: 420000000 | BG59: 296600000 | BH59: 0 | BI59: 0 | BJ59: 296600000 | BK59: 300000 | BL59: 0 | BM59: 0 | BN59: 300000 | BO59: 233100000 | BP59: 0 | BQ59: 0 | BR59: 233100000 | BS59: 25000000 | BT59: 0 | BU59: 0 | BV59: 25000000 | BW59: 699680000 | BX59: 0 | BY59: 0 | BZ59: 699680000 | CA59: 950000000 | CB59: 0 | CC59: 0 | CD59: 950000000 | CE59: 500000 | CF59: 0 | CG59: 0 | CH59: 500000 | CI59: 201432500 | CJ59: 0 | CK59: 0 | CL59: 201432500 | CM59: 1670700000 | CN59: 0 | CO59: 0 | CP59: 1670700000 | CQ59: 445090000 | CR59: 0 | CS59: 0 | CT59: 445090000 | CU59: 610700000 | CV59: 0 | CW59: 0 | CX59: 610700000 | CY59: 3300000 | CZ59: 0 | DA59: 0 | DB59: 3300000
B60: 2023-11-01 | C60: 179300000 | D60: 0 | E60: 0 | F60: 179300000 | G60: 1297800000 | H60: 0 | I60: 0 | J60: 1297800000 | K60: 485600000 | L60: 0 | M60: 0 | N60: 485600000 | O60: 73500000 | P60: 0 | Q60: 0 | R60: 73500000 | S60: 340010000 | T60: 0 | U60: 0 | V60: 340010000 | W60: 172600000 | X60: 0 | Y60: 0 | Z60: 172600000 | AA60: 0 | AB60: 0 | AC60: 0 | AD60: 0 | AE60: 556267500 | AF60: 0 | AG60: 0 | AH60: 556267500 | AI60: 90000000 | AJ60: 0 | AK60: 0 | AL60: 90000000 | AM60: 49000000 | AN60: 0 | AO60: 0 | AP60: 49000000 | AQ60: 1407150000 | AR60: 0 | AS60: 0 | AT60: 1407150000 | AU60: 350000000 | AV60: 0 | AW60: 0 | AX60: 350000000 | AY60: 99000000 | AZ60: 0 | BA60: 0 | BB60: 99000000 | BC60: 420000000 | BD60: 0 | BE60: 0 | BF60: 420000000 | BG60: 296600000 | BH60: 0 | BI60: 0 | BJ60: 296600000 | BK60: 300000 | BL60: 0 | BM60: 0 | BN60: 300000 | BO60: 233100000 | BP60: 0 | BQ60: 0 | BR60: 233100000 | BS60: 25000000 | BT60: 0 | BU60: 0 | BV60: 25000000 | BW60: 699680000 | BX60: 0 | BY60: 0 | BZ60: 699680000 | CA60: 950000000 | CB60: 0 | CC60: 0 | CD60: 950000000 | CE60: 500000 | CF60: 0 | CG60: 0 | CH60: 500000 | CI60: 201432500 | CJ60: 0 | CK60: 0 | CL60: 201432500 | CM60: 1670700000 | CN60: 0 | CO60: 0 | CP60: 1670700000 | CQ60: 445090000 | CR60: 0 | CS60: 0 | CT60: 445090000 | CU60: 610700000 | CV60: 0 | CW60: 0 | CX60: 610700000 | CY60: 3300000 | CZ60: 0 | DA60: 0 | DB60: 3300000
B61: 2023-12-01 | C61: 179300000 | D61: 0 | E61: 0 | F61: 179300000 | G61: 1297800000 | H61: 0 | I61: 0 | J61: 1297800000 | K61: 485600000 | L61: 0 | M61: 0 | N61: 485600000 | O61: 73500000 | P61: 0 | Q61: 0 | R61: 73500000 | S61: 340010000 | T61: 0 | U61: 0 | V61: 340010000 | W61: 172600000 | X61: 0 | Y61: 0 | Z61: 172600000 | AA61: 0 | AB61: 0 | AC61: 0 | AD61: 0 | AE61: 556267500 | AF61: 0 | AG61: 0 | AH61: 556267500 | AI61: 90000000 | AJ61: 0 | AK61: 0 | AL61: 90000000 | AM61: 49000000 | AN61: 0 | AO61: 0 | AP61: 49000000 | AQ61: 1407150000 | AR61: 0 | AS61: 0 | AT61: 1407150000 | AU61: 350000000 | AV61: 0 | AW61: 0 | AX61: 350000000 | AY61: 99000000 | AZ61: 0 | BA61: 0 | BB61: 99000000 | BC61: 420000000 | BD61: 0 | BE61: 0 | BF61: 420000000 | BG61: 296600000 | BH61: 0 | BI61: 0 | BJ61: 296600000 | BK61: 300000 | BL61: 0 | BM61: 0 | BN61: 300000 | BO61: 233100000 | BP61: 0 | BQ61: 0 | BR61: 233100000 | BS61: 25000000 | BT61: 0 | BU61: 0 | BV61: 25000000 | BW61: 699680000 | BX61: 0 | BY61: 0 | BZ61: 699680000 | CA61: 950000000 | CB61: 0 | CC61: 0 | CD61: 950000000 | CE61: 500000 | CF61: 0 | CG61: 0 | CH61: 500000 | CI61: 201432500 | CJ61: 0 | CK61: 0 | CL61: 201432500 | CM61: 1670700000 | CN61: 0 | CO61: 0 | CP61: 1670700000 | CQ61: 445090000 | CR61: 0 | CS61: 0 | CT61: 445090000 | CU61: 610700000 | CV61: 0 | CW61: 0 | CX61: 610700000 | CY61: 3300000 | CZ61: 0 | DA61: 0 | DB61: 3300000
B62: 2024-01-01 | C62: 179300000 | D62: 0 | E62: 0 | F62: 179300000 | G62: 1297800000 | H62: 0 | I62: 0 | J62: 1297800000 | K62: 485600000 | L62: 0 | M62: 0 | N62: 485600000 | O62: 73500000 | P62: 0 | Q62: 0 | R62: 73500000 | S62: 340010000 | T62: 0 | U62: 0 | V62: 340010000 | W62: 172600000 | X62: 0 | Y62: 0 | Z62: 172600000 | AA62: 0 | AB62: 0 | AC62: 0 | AD62: 0 | AE62: 556267500 | AF62: 0 | AG62: 0 | AH62: 556267500 | AI62: 90000000 | AJ62: 0 | AK62: 0 | AL62: 90000000 | AM62: 49000000 | AN62: 0 | AO62: 0 | AP62: 49000000 | AQ62: 1407150000 | AR62: 0 | AS62: 0 | AT62: 1407150000 | AU62: 350000000 | AV62: 0 | AW62: 0 | AX62: 350000000 | AY62: 99000000 | AZ62: 0 | BA62: 0 | BB62: 99000000 | BC62: 420000000 | BD62: 0 | BE62: 0 | BF62: 420000000 | BG62: 296600000 | BH62: 0 | BI62: 0 | BJ62: 296600000 | BK62: 300000 | BL62: 0 | BM62: 0 | BN62: 300000 | BO62: 233100000 | BP62: 0 | BQ62: 0 | BR62: 233100000 | BS62: 25000000 | BT62: 0 | BU62: 0 | BV62: 25000000 | BW62: 699680000 | BX62: 0 | BY62: 0 | BZ62: 699680000 | CA62: 950000000 | CB62: 0 | CC62: 0 | CD62: 950000000 | CE62: 500000 | CF62: 0 | CG62: 0 | CH62: 500000 | CI62: 201432500 | CJ62: 0 | CK62: 0 | CL62: 201432500 | CM62: 1670700000 | CN62: 0 | CO62: 0 | CP62: 1670700000 | CQ62: 445090000 | CR62: 0 | CS62: 0 | CT62: 445090000 | CU62: 610700000 | CV62: 0 | CW62: 0 | CX62: 610700000 | CY62: 3300000 | CZ62: 0 | DA62: 0 | DB62: 3300000
B63: 2024-02-01 | C63: 179300000 | D63: 0 | E63: 0 | F63: 179300000 | G63: 1297800000 | H63: 0 | I63: 0 | J63: 1297800000 | K63: 485600000 | L63: 0 | M63: 0 | N63: 485600000 | O63: 73500000 | P63: 0 | Q63: 0 | R63: 73500000 | S63: 340010000 | T63: 0 | U63: 0 | V63: 340010000 | W63: 172600000 | X63: 0 | Y63: 0 | Z63: 172600000 | AA63: 0 | AB63: 0 | AC63: 0 | AD63: 0 | AE63: 556267500 | AF63: 0 | AG63: 0 | AH63: 556267500 | AI63: 90000000 | AJ63: 0 | AK63: 0 | AL63: 90000000 | AM63: 49000000 | AN63: 0 | AO63: 0 | AP63: 49000000 | AQ63: 1407150000 | AR63: 0 | AS63: 0 | AT63: 1407150000 | AU63: 350000000 | AV63: 0 | AW63: 0 | AX63: 350000000 | AY63: 99000000 | AZ63: 0 | BA63: 0 | BB63: 99000000 | BC63: 420000000 | BD63: 0 | BE63: 0 | BF63: 420000000 | BG63: 296600000 | BH63: 0 | BI63: 0 | BJ63: 296600000 | BK63: 300000 | BL63: 0 | BM63: 0 | BN63: 300000 | BO63: 233100000 | BP63: 0 | BQ63: 0 | BR63: 233100000 | BS63: 25000000 | BT63: 0 | BU63: 0 | BV63: 25000000 | BW63: 699680000 | BX63: 0 | BY63: 0 | BZ63: 699680000 | CA63: 950000000 | CB63: 0 | CC63: 0 | CD63: 950000000 | CE63: 500000 | CF63: 0 | CG63: 0 | CH63: 500000 | CI63: 201432500 | CJ63: 0 | CK63: 0 | CL63: 201432500 | CM63: 1670700000 | CN63: 0 | CO63: 0 | CP63: 1670700000 | CQ63: 445090000 | CR63: 0 | CS63: 0 | CT63: 445090000 | CU63: 610700000 | CV63: 0 | CW63: 0 | CX63: 610700000 | CY63: 3300000 | CZ63: 0 | DA63: 0 | DB63: 3300000
B64: 2024-03-01 | C64: 179300000 | D64: 0 | E64: 0 | F64: 179300000 | G64: 1297800000 | H64: 0 | I64: 0 | J64: 1297800000 | K64: 485600000 | L64: 0 | M64: 0 | N64: 485600000 | O64: 73500000 | P64: 0 | Q64: 0 | R64: 73500000 | S64: 340010000 | T64: 0 | U64: 0 | V64: 340010000 | W64: 172600000 | X64: 0 | Y64: 0 | Z64: 172600000 | AA64: 0 | AB64: 0 | AC64: 0 | AD64: 0 | AE64: 556267500 | AF64: 0 | AG64: 0 | AH64: 556267500 | AI64: 90000000 | AJ64: 0 | AK64: 0 | AL64: 90000000 | AM64: 49000000 | AN64: 0 | AO64: 0 | AP64: 49000000 | AQ64: 1407150000 | AR64: 0 | AS64: 0 | AT64: 1407150000 | AU64: 350000000 | AV64: 0 | AW64: 0 | AX64: 350000000 | AY64: 99000000 | AZ64: 0 | BA64: 0 | BB64: 99000000 | BC64: 420000000 | BD64: 0 | BE64: 0 | BF64: 420000000 | BG64: 296600000 | BH64: 0 | BI64: 0 | BJ64: 296600000 | BK64: 300000 | BL64: 0 | BM64: 0 | BN64: 300000 | BO64: 233100000 | BP64: 0 | BQ64: 0 | BR64: 233100000 | BS64: 25000000 | BT64: 0 | BU64: 0 | BV64: 25000000 | BW64: 699680000 | BX64: 0 | BY64: 0 | BZ64: 699680000 | CA64: 950000000 | CB64: 0 | CC64: 0 | CD64: 950000000 | CE64: 500000 | CF64: 0 | CG64: 0 | CH64: 500000 | CI64: 201432500 | CJ64: 0 | CK64: 0 | CL64: 201432500 | CM64: 1670700000 | CN64: 0 | CO64: 0 | CP64: 1670700000 | CQ64: 445090000 | CR64: 0 | CS64: 0 | CT64: 445090000 | CU64: 610700000 | CV64: 0 | CW64: 0 | CX64: 610700000 | CY64: 3300000 | CZ64: 0 | DA64: 0 | DB64: 3300000
B65: 2024-04-01 | C65: 179300000 | D65: 0 | E65: 0 | F65: 179300000 | G65: 1297800000 | H65: 0 | I65: 0 | J65: 1297800000 | K65: 485600000 | L65: 0 | M65: 0 | N65: 485600000 | O65: 73500000 | P65: 0 | Q65: 0 | R65: 73500000 | S65: 340010000 | T65: 0 | U65: 0 | V65: 340010000 | W65: 172600000 | X65: 0 | Y65: 0 | Z65: 172600000 | AA65: 0 | AB65: 0 | AC65: 0 | AD65: 0 | AE65: 556267500 | AF65: 0 | AG65: 0 | AH65: 556267500 | AI65: 90000000 | AJ65: 0 | AK65: 0 | AL65: 90000000 | AM65: 49000000 | AN65: 0 | AO65: 0 | AP65: 49000000 | AQ65: 1407150000 | AR65: 0 | AS65: 0 | AT65: 1407150000 | AU65: 350000000 | AV65: 0 | AW65: 0 | AX65: 350000000 | AY65: 99000000 | AZ65: 0 | BA65: 0 | BB65: 99000000 | BC65: 420000000 | BD65: 0 | BE65: 0 | BF65: 420000000 | BG65: 296600000 | BH65: 0 | BI65: 0 | BJ65: 296600000 | BK65: 300000 | BL65: 0 | BM65: 0 | BN65: 300000 | BO65: 233100000 | BP65: 0 | BQ65: 0 | BR65: 233100000 | BS65: 25000000 | BT65: 0 | BU65: 0 | BV65: 25000000 | BW65: 699680000 | BX65: 0 | BY65: 0 | BZ65: 699680000 | CA65: 950000000 | CB65: 0 | CC65: 0 | CD65: 950000000 | CE65: 500000 | CF65: 0 | CG65: 0 | CH65: 500000 | CI65: 201432500 | CJ65: 0 | CK65: 0 | CL65: 201432500 | CM65: 1670700000 | CN65: 0 | CO65: 0 | CP65: 1670700000 | CQ65: 445090000 | CR65: 0 | CS65: 0 | CT65: 445090000 | CU65: 610700000 | CV65: 0 | CW65: 0 | CX65: 610700000 | CY65: 3300000 | CZ65: 0 | DA65: 0 | DB65: 3300000
B66: 2024-05-01 | C66: 179300000 | D66: 0 | E66: 0 | F66: 179300000 | G66: 1297800000 | H66: 0 | I66: 0 | J66: 1297800000 | K66: 485600000 | L66: 0 | M66: 0 | N66: 485600000 | O66: 73500000 | P66: 0 | Q66: 0 | R66: 73500000 | S66: 340010000 | T66: 0 | U66: 0 | V66: 340010000 | W66: 172600000 | X66: 0 | Y66: 0 | Z66: 172600000 | AA66: 0 | AB66: 0 | AC66: 0 | AD66: 0 | AE66: 556267500 | AF66: 0 | AG66: 0 | AH66: 556267500 | AI66: 90000000 | AJ66: 0 | AK66: 0 | AL66: 90000000 | AM66: 49000000 | AN66: 0 | AO66: 0 | AP66: 49000000 | AQ66: 1407150000 | AR66: 0 | AS66: 0 | AT66: 1407150000 | AU66: 350000000 | AV66: 0 | AW66: 0 | AX66: 350000000 | AY66: 99000000 | AZ66: 0 | BA66: 0 | BB66: 99000000 | BC66: 420000000 | BD66: 0 | BE66: 0 | BF66: 420000000 | BG66: 296600000 | BH66: 0 | BI66: 0 | BJ66: 296600000 | BK66: 300000 | BL66: 0 | BM66: 0 | BN66: 300000 | BO66: 233100000 | BP66: 0 | BQ66: 0 | BR66: 233100000 | BS66: 25000000 | BT66: 0 | BU66: 0 | BV66: 25000000 | BW66: 699680000 | BX66: 0 | BY66: 0 | BZ66: 699680000 | CA66: 950000000 | CB66: 0 | CC66: 0 | CD66: 950000000 | CE66: 500000 | CF66: 0 | CG66: 0 | CH66: 500000 | CI66: 201432500 | CJ66: 0 | CK66: 0 | CL66: 201432500 | CM66: 1670700000 | CN66: 0 | CO66: 0 | CP66: 1670700000 | CQ66: 445090000 | CR66: 0 | CS66: 0 | CT66: 445090000 | CU66: 610700000 | CV66: 0 | CW66: 0 | CX66: 610700000 | CY66: 3300000 | CZ66: 0 | DA66: 0 | DB66: 3300000
B67: 2024-06-01 | C67: 179300000 | D67: 0 | E67: 0 | F67: 179300000 | G67: 1297800000 | H67: 0 | I67: 0 | J67: 1297800000 | K67: 485600000 | L67: 0 | M67: 0 | N67: 485600000 | O67: 73500000 | P67: 0 | Q67: 0 | R67: 73500000 | S67: 340010000 | T67: 0 | U67: 0 | V67: 340010000 | W67: 172600000 | X67: 0 | Y67: 0 | Z67: 172600000 | AA67: 0 | AB67: 0 | AC67: 0 | AD67: 0 | AE67: 556267500 | AF67: 0 | AG67: 0 | AH67: 556267500 | AI67: 90000000 | AJ67: 0 | AK67: 0 | AL67: 90000000 | AM67: 49000000 | AN67: 0 | AO67: 0 | AP67: 49000000 | AQ67: 1407150000 | AR67: 0 | AS67: 0 | AT67: 1407150000 | AU67: 350000000 | AV67: 0 | AW67: 0 | AX67: 350000000 | AY67: 99000000 | AZ67: 0 | BA67: 0 | BB67: 99000000 | BC67: 420000000 | BD67: 0 | BE67: 0 | BF67: 420000000 | BG67: 296600000 | BH67: 0 | BI67: 0 | BJ67: 296600000 | BK67: 300000 | BL67: 0 | BM67: 0 | BN67: 300000 | BO67: 233100000 | BP67: 0 | BQ67: 0 | BR67: 233100000 | BS67: 25000000 | BT67: 0 | BU67: 0 | BV67: 25000000 | BW67: 699680000 | BX67: 0 | BY67: 0 | BZ67: 699680000 | CA67: 950000000 | CB67: 0 | CC67: 0 | CD67: 950000000 | CE67: 500000 | CF67: 0 | CG67: 0 | CH67: 500000 | CI67: 201432500 | CJ67: 0 | CK67: 0 | CL67: 201432500 | CM67: 1670700000 | CN67: 0 | CO67: 0 | CP67: 1670700000 | CQ67: 445090000 | CR67: 0 | CS67: 0 | CT67: 445090000 | CU67: 610700000 | CV67: 0 | CW67: 0 | CX67: 610700000 | CY67: 3300000 | CZ67: 0 | DA67: 0 | DB67: 3300000
B68: 2024-07-01 | C68: 179300000 | D68: 0 | E68: 0 | F68: 179300000 | G68: 1297800000 | H68: 0 | I68: 0 | J68: 1297800000 | K68: 485600000 | L68: 0 | M68: 0 | N68: 485600000 | O68: 73500000 | P68: 0 | Q68: 0 | R68: 73500000 | S68: 340010000 | T68: 0 | U68: 0 | V68: 340010000 | W68: 172600000 | X68: 0 | Y68: 0 | Z68: 172600000 | AA68: 0 | AB68: 0 | AC68: 0 | AD68: 0 | AE68: 556267500 | AF68: 0 | AG68: 0 | AH68: 556267500 | AI68: 90000000 | AJ68: 0 | AK68: 0 | AL68: 90000000 | AM68: 49000000 | AN68: 0 | AO68: 0 | AP68: 49000000 | AQ68: 1407150000 | AR68: 0 | AS68: 0 | AT68: 1407150000 | AU68: 350000000 | AV68: 0 | AW68: 0 | AX68: 350000000 | AY68: 99000000 | AZ68: 0 | BA68: 0 | BB68: 99000000 | BC68: 420000000 | BD68: 0 | BE68: 0 | BF68: 420000000 | BG68: 296600000 | BH68: 0 | BI68: 0 | BJ68: 296600000 | BK68: 300000 | BL68: 0 | BM68: 0 | BN68: 300000 | BO68: 233100000 | BP68: 0 | BQ68: 0 | BR68: 233100000 | BS68: 25000000 | BT68: 0 | BU68: 0 | BV68: 25000000 | BW68: 699680000 | BX68: 0 | BY68: 0 | BZ68: 699680000 | CA68: 950000000 | CB68: 0 | CC68: 0 | CD68: 950000000 | CE68: 500000 | CF68: 0 | CG68: 0 | CH68: 500000 | CI68: 201432500 | CJ68: 0 | CK68: 0 | CL68: 201432500 | CM68: 1670700000 | CN68: 0 | CO68: 0 | CP68: 1670700000 | CQ68: 445090000 | CR68: 0 | CS68: 0 | CT68: 445090000 | CU68: 610700000 | CV68: 0 | CW68: 0 | CX68: 610700000 | CY68: 3300000 | CZ68: 0 | DA68: 0 | DB68: 3300000
B69: 2024-08-01 | C69: 179300000 | D69: 0 | E69: 0 | F69: 179300000 | G69: 1297800000 | H69: 0 | I69: 0 | J69: 1297800000 | K69: 485600000 | L69: 0 | M69: 0 | N69: 485600000 | O69: 73500000 | P69: 0 | Q69: 0 | R69: 73500000 | S69: 340010000 | T69: 0 | U69: 0 | V69: 340010000 | W69: 172600000 | X69: 0 | Y69: 0 | Z69: 172600000 | AA69: 0 | AB69: 0 | AC69: 0 | AD69: 0 | AE69: 556267500 | AF69: 0 | AG69: 0 | AH69: 556267500 | AI69: 90000000 | AJ69: 0 | AK69: 0 | AL69: 90000000 | AM69: 49000000 | AN69: 0 | AO69: 0 | AP69: 49000000 | AQ69: 1407150000 | AR69: 0 | AS69: 0 | AT69: 1407150000 | AU69: 350000000 | AV69: 0 | AW69: 0 | AX69: 350000000 | AY69: 99000000 | AZ69: 0 | BA69: 0 | BB69: 99000000 | BC69: 420000000 | BD69: 0 | BE69: 0 | BF69: 420000000 | BG69: 296600000 | BH69: 0 | BI69: 0 | BJ69: 296600000 | BK69: 300000 | BL69: 0 | BM69: 0 | BN69: 300000 | BO69: 233100000 | BP69: 0 | BQ69: 0 | BR69: 233100000 | BS69: 25000000 | BT69: 0 | BU69: 0 | BV69: 25000000 | BW69: 699680000 | BX69: 0 | BY69: 0 | BZ69: 699680000 | CA69: 950000000 | CB69: 0 | CC69: 0 | CD69: 950000000 | CE69: 500000 | CF69: 0 | CG69: 0 | CH69: 500000 | CI69: 201432500 | CJ69: 0 | CK69: 0 | CL69: 201432500 | CM69: 1670700000 | CN69: 0 | CO69: 0 | CP69: 1670700000 | CQ69: 445090000 | CR69: 0 | CS69: 0 | CT69: 445090000 | CU69: 610700000 | CV69: 0 | CW69: 0 | CX69: 610700000 | CY69: 3300000 | CZ69: 0 | DA69: 0 | DB69: 3300000
B70: 2024-09-01 | C70: 179300000 | D70: 0 | E70: 0 | F70: 179300000 | G70: 1297800000 | H70: 0 | I70: 0 | J70: 1297800000 | K70: 485600000 | L70: 0 | M70: 0 | N70: 485600000 | O70: 73500000 | P70: 0 | Q70: 0 | R70: 73500000 | S70: 340010000 | T70: 0 | U70: 0 | V70: 340010000 | W70: 172600000 | X70: 0 | Y70: 0 | Z70: 172600000 | AA70: 0 | AB70: 0 | AC70: 0 | AD70: 0 | AE70: 556267500 | AF70: 0 | AG70: 0 | AH70: 556267500 | AI70: 90000000 | AJ70: 0 | AK70: 0 | AL70: 90000000 | AM70: 49000000 | AN70: 0 | AO70: 0 | AP70: 49000000 | AQ70: 1407150000 | AR70: 0 | AS70: 0 | AT70: 1407150000 | AU70: 350000000 | AV70: 0 | AW70: 0 | AX70: 350000000 | AY70: 99000000 | AZ70: 0 | BA70: 0 | BB70: 99000000 | BC70: 420000000 | BD70: 0 | BE70: 0 | BF70: 420000000 | BG70: 296600000 | BH70: 0 | BI70: 0 | BJ70: 296600000 | BK70: 300000 | BL70: 0 | BM70: 0 | BN70: 300000 | BO70: 233100000 | BP70: 0 | BQ70: 0 | BR70: 233100000 | BS70: 25000000 | BT70: 0 | BU70: 0 | BV70: 25000000 | BW70: 699680000 | BX70: 0 | BY70: 0 | BZ70: 699680000 | CA70: 950000000 | CB70: 0 | CC70: 0 | CD70: 950000000 | CE70: 500000 | CF70: 0 | CG70: 0 | CH70: 500000 | CI70: 201432500 | CJ70: 0 | CK70: 0 | CL70: 201432500 | CM70: 1670700000 | CN70: 0 | CO70: 0 | CP70: 1670700000 | CQ70: 445090000 | CR70: 0 | CS70: 0 | CT70: 445090000 | CU70: 610700000 | CV70: 0 | CW70: 0 | CX70: 610700000 | CY70: 3300000 | CZ70: 0 | DA70: 0 | DB70: 3300000
B71: 2024-10-01 | C71: 179300000 | D71: 0 | E71: 0 | F71: 179300000 | G71: 1297800000 | H71: 0 | I71: 0 | J71: 1297800000 | K71: 485600000 | L71: 0 | M71: 0 | N71: 485600000 | O71: 73500000 | P71: 0 | Q71: 0 | R71: 73500000 | S71: 340010000 | T71: 0 | U71: 0 | V71: 340010000 | W71: 172600000 | X71: 0 | Y71: 0 | Z71: 172600000 | AA71: 0 | AB71: 0 | AC71: 0 | AD71: 0 | AE71: 556267500 | AF71: 0 | AG71: 0 | AH71: 556267500 | AI71: 90000000 | AJ71: 0 | AK71: 0 | AL71: 90000000 | AM71: 49000000 | AN71: 0 | AO71: 0 | AP71: 49000000 | AQ71: 1407150000 | AR71: 0 | AS71: 0 | AT71: 1407150000 | AU71: 350000000 | AV71: 0 | AW71: 0 | AX71: 350000000 | AY71: 99000000 | AZ71: 0 | BA71: 0 | BB71: 99000000 | BC71: 420000000 | BD71: 0 | BE71: 0 | BF71: 420000000 | BG71: 296600000 | BH71: 0 | BI71: 0 | BJ71: 296600000 | BK71: 300000 | BL71: 0 | BM71: 0 | BN71: 300000 | BO71: 233100000 | BP71: 0 | BQ71: 0 | BR71: 233100000 | BS71: 25000000 | BT71: 0 | BU71: 0 | BV71: 25000000 | BW71: 699680000 | BX71: 0 | BY71: 0 | BZ71: 699680000 | CA71: 950000000 | CB71: 0 | CC71: 0 | CD71: 950000000 | CE71: 500000 | CF71: 0 | CG71: 0 | CH71: 500000 | CI71: 201432500 | CJ71: 0 | CK71: 0 | CL71: 201432500 | CM71: 1670700000 | CN71: 0 | CO71: 0 | CP71: 1670700000 | CQ71: 445090000 | CR71: 0 | CS71: 0 | CT71: 445090000 | CU71: 610700000 | CV71: 0 | CW71: 0 | CX71: 610700000 | CY71: 3300000 | CZ71: 0 | DA71: 0 | DB71: 3300000
B72: 2024-11-01 | C72: 179300000 | D72: 0 | E72: 0 | F72: 179300000 | G72: 1297800000 | H72: 0 | I72: 0 | J72: 1297800000 | K72: 485600000 | L72: 0 | M72: 0 | N72: 485600000 | O72: 73500000 | P72: 0 | Q72: 0 | R72: 73500000 | S72: 340010000 | T72: 0 | U72: 0 | V72: 340010000 | W72: 172600000 | X72: 0 | Y72: 0 | Z72: 172600000 | AA72: 0 | AB72: 0 | AC72: 0 | AD72: 0 | AE72: 556267500 | AF72: 0 | AG72: 0 | AH72: 556267500 | AI72: 90000000 | AJ72: 0 | AK72: 0 | AL72: 90000000 | AM72: 49000000 | AN72: 0 | AO72: 0 | AP72: 49000000 | AQ72: 1407150000 | AR72: 0 | AS72: 0 | AT72: 1407150000 | AU72: 350000000 | AV72: 0 | AW72: 0 | AX72: 350000000 | AY72: 99000000 | AZ72: 0 | BA72: 0 | BB72: 99000000 | BC72: 420000000 | BD72: 0 | BE72: 0 | BF72: 420000000 | BG72: 296600000 | BH72: 0 | BI72: 0 | BJ72: 296600000 | BK72: 300000 | BL72: 0 | BM72: 0 | BN72: 300000 | BO72: 233100000 | BP72: 0 | BQ72: 0 | BR72: 233100000 | BS72: 25000000 | BT72: 0 | BU72: 0 | BV72: 25000000 | BW72: 699680000 | BX72: 0 | BY72: 0 | BZ72: 699680000 | CA72: 950000000 | CB72: 0 | CC72: 0 | CD72: 950000000 | CE72: 500000 | CF72: 0 | CG72: 0 | CH72: 500000 | CI72: 201432500 | CJ72: 0 | CK72: 0 | CL72: 201432500 | CM72: 1670700000 | CN72: 0 | CO72: 0 | CP72: 1670700000 | CQ72: 445090000 | CR72: 0 | CS72: 0 | CT72: 445090000 | CU72: 610700000 | CV72: 0 | CW72: 0 | CX72: 610700000 | CY72: 3300000 | CZ72: 0 | DA72: 0 | DB72: 3300000
B73: 2024-12-01 | C73: 179300000 | D73: 0 | E73: 0 | F73: 179300000 | G73: 1297800000 | H73: 0 | I73: 0 | J73: 1297800000 | K73: 485600000 | L73: 0 | M73: 0 | N73: 485600000 | O73: 73500000 | P73: 0 | Q73: 0 | R73: 73500000 | S73: 340010000 | T73: 0 | U73: 0 | V73: 340010000 | W73: 172600000 | X73: 0 | Y73: 0 | Z73: 172600000 | AA73: 0 | AB73: 0 | AC73: 0 | AD73: 0 | AE73: 556267500 | AF73: 0 | AG73: 0 | AH73: 556267500 | AI73: 90000000 | AJ73: 0 | AK73: 0 | AL73: 90000000 | AM73: 49000000 | AN73: 0 | AO73: 0 | AP73: 49000000 | AQ73: 1407150000 | AR73: 0 | AS73: 0 | AT73: 1407150000 | AU73: 350000000 | AV73: 0 | AW73: 0 | AX73: 350000000 | AY73: 99000000 | AZ73: 0 | BA73: 0 | BB73: 99000000 | BC73: 420000000 | BD73: 0 | BE73: 0 | BF73: 420000000 | BG73: 296600000 | BH73: 0 | BI73: 0 | BJ73: 296600000 | BK73: 300000 | BL73: 0 | BM73: 0 | BN73: 300000 | BO73: 233100000 | BP73: 0 | BQ73: 0 | BR73: 233100000 | BS73: 25000000 | BT73: 0 | BU73: 0 | BV73: 25000000 | BW73: 699680000 | BX73: 0 | BY73: 0 | BZ73: 699680000 | CA73: 950000000 | CB73: 0 | CC73: 0 | CD73: 950000000 | CE73: 500000 | CF73: 0 | CG73: 0 | CH73: 500000 | CI73: 201432500 | CJ73: 0 | CK73: 0 | CL73: 201432500 | CM73: 1670700000 | CN73: 0 | CO73: 0 | CP73: 1670700000 | CQ73: 445090000 | CR73: 0 | CS73: 0 | CT73: 445090000 | CU73: 610700000 | CV73: 0 | CW73: 0 | CX73: 610700000 | CY73: 3300000 | CZ73: 0 | DA73: 0 | DB73: 3300000
B74: 2025-01-01 | C74: 179300000 | D74: 0 | E74: 0 | F74: 179300000 | G74: 1297800000 | H74: 0 | I74: 0 | J74: 1297800000 | K74: 485600000 | L74: 0 | M74: 0 | N74: 485600000 | O74: 73500000 | P74: 0 | Q74: 0 | R74: 73500000 | S74: 340010000 | T74: 0 | U74: 0 | V74: 340010000 | W74: 172600000 | X74: 0 | Y74: 0 | Z74: 172600000 | AA74: 0 | AB74: 0 | AC74: 0 | AD74: 0 | AE74: 556267500 | AF74: 0 | AG74: 0 | AH74: 556267500 | AI74: 90000000 | AJ74: 0 | AK74: 0 | AL74: 90000000 | AM74: 49000000 | AN74: 0 | AO74: 0 | AP74: 49000000 | AQ74: 1407150000 | AR74: 0 | AS74: 0 | AT74: 1407150000 | AU74: 350000000 | AV74: 0 | AW74: 0 | AX74: 350000000 | AY74: 99000000 | AZ74: 0 | BA74: 0 | BB74: 99000000 | BC74: 420000000 | BD74: 0 | BE74: 0 | BF74: 420000000 | BG74: 296600000 | BH74: 0 | BI74: 0 | BJ74: 296600000 | BK74: 300000 | BL74: 0 | BM74: 0 | BN74: 300000 | BO74: 233100000 | BP74: 0 | BQ74: 0 | BR74: 233100000 | BS74: 25000000 | BT74: 0 | BU74: 0 | BV74: 25000000 | BW74: 699680000 | BX74: 0 | BY74: 0 | BZ74: 699680000 | CA74: 950000000 | CB74: 0 | CC74: 0 | CD74: 950000000 | CE74: 500000 | CF74: 0 | CG74: 0 | CH74: 500000 | CI74: 201432500 | CJ74: 0 | CK74: 0 | CL74: 201432500 | CM74: 1670700000 | CN74: 0 | CO74: 0 | CP74: 1670700000 | CQ74: 445090000 | CR74: 0 | CS74: 0 | CT74: 445090000 | CU74: 610700000 | CV74: 0 | CW74: 0 | CX74: 610700000 | CY74: 3300000 | CZ74: 0 | DA74: 0 | DB74: 3300000
B75: 2025-02-01 | C75: 179300000 | D75: 0 | E75: 0 | F75: 179300000 | G75: 1297800000 | H75: 0 | I75: 0 | J75: 1297800000 | K75: 485600000 | L75: 0 | M75: 0 | N75: 485600000 | O75: 73500000 | P75: 0 | Q75: 0 | R75: 73500000 | S75: 340010000 | T75: 0 | U75: 0 | V75: 340010000 | W75: 172600000 | X75: 0 | Y75: 0 | Z75: 172600000 | AA75: 0 | AB75: 0 | AC75: 0 | AD75: 0 | AE75: =542700000+13567500 -> 556267500 | AF75: 0 | AG75: 0 | AH75: =542700000+13567500 -> 556267500 | AI75: 90000000 | AJ75: 0 | AK75: 0 | AL75: 90000000 | AM75: 49000000 | AN75: 0 | AO75: 0 | AP75: 49000000 | AQ75: 1407150000 | AR75: 0 | AS75: 0 | AT75: 1407150000 | AU75: 350000000 | AV75: 0 | AW75: 0 | AX75: 350000000 | AY75: 99000000 | AZ75: 0 | BA75: 0 | BB75: 99000000 | BC75: 420000000 | BD75: 0 | BE75: 0 | BF75: 420000000 | BG75: 296600000 | BH75: 0 | BI75: 0 | BJ75: 296600000 | BK75: 300000 | BL75: 0 | BM75: 0 | BN75: 300000 | BO75: 233100000 | BP75: 0 | BQ75: 0 | BR75: 233100000 | BS75: 25000000 | BT75: 0 | BU75: 0 | BV75: 25000000 | BW75: 699680000 | BX75: 0 | BY75: 0 | BZ75: 699680000 | CA75: 950000000 | CB75: 0 | CC75: 0 | CD75: 950000000 | CE75: 500000 | CF75: 0 | CG75: 0 | CH75: 500000 | CI75: 201432500 | CJ75: 0 | CK75: 0 | CL75: 201432500 | CM75: 1670700000 | CN75: 0 | CO75: 0 | CP75: 1670700000 | CQ75: 445090000 | CR75: 0 | CS75: 0 | CT75: 445090000 | CU75: 610700000 | CV75: 0 | CW75: 0 | CX75: 610700000 | CY75: 3300000 | CZ75: 0 | DA75: 0 | DB75: 3300000
B76: 2025-03-01 | C76: 179300000 | D76: 0 | E76: 0 | F76: 179300000 | G76: 1297800000 | H76: 0 | I76: 0 | J76: 1297800000 | K76: 485600000 | L76: 0 | M76: 0 | N76: 485600000 | O76: 73500000 | P76: 0 | Q76: 0 | R76: 73500000 | S76: 340010000 | T76: 0 | U76: 0 | V76: 340010000 | W76: 172600000 | X76: 0 | Y76: 0 | Z76: 172600000 | AA76: 0 | AB76: 0 | AC76: 0 | AD76: 0 | AE76: 556267500 | AF76: 0 | AG76: 0 | AH76: 556267500 | AI76: 90000000 | AJ76: 0 | AK76: 0 | AL76: 90000000 | AM76: 49000000 | AN76: 0 | AO76: 0 | AP76: 49000000 | AQ76: 1407150000 | AR76: 0 | AS76: 0 | AT76: 1407150000 | AU76: 350000000 | AV76: 0 | AW76: 0 | AX76: 350000000 | AY76: 99000000 | AZ76: 0 | BA76: 0 | BB76: 99000000 | BC76: 420000000 | BD76: 0 | BE76: 0 | BF76: 420000000 | BG76: 296600000 | BH76: 0 | BI76: 0 | BJ76: 296600000 | BK76: 300000 | BL76: 0 | BM76: 0 | BN76: 300000 | BO76: 233100000 | BP76: 0 | BQ76: 0 | BR76: 233100000 | BS76: 25000000 | BT76: 0 | BU76: 0 | BV76: 25000000 | BW76: 699680000 | BX76: 0 | BY76: 0 | BZ76: 699680000 | CA76: 950000000 | CB76: 0 | CC76: 0 | CD76: 950000000 | CE76: 500000 | CF76: 0 | CG76: 0 | CH76: 500000 | CI76: 201432500 | CJ76: 0 | CK76: 0 | CL76: 201432500 | CM76: 1670700000 | CN76: 0 | CO76: 0 | CP76: 1670700000 | CQ76: 445090000 | CR76: 0 | CS76: 0 | CT76: 445090000 | CU76: 610700000 | CV76: 0 | CW76: 0 | CX76: 610700000 | CY76: 3300000 | CZ76: 0 | DA76: 0 | DB76: 3300000
B77: 2025-04-01 | C77: 179300000 | D77: 0 | E77: 0 | F77: 179300000 | G77: 1297800000 | H77: 0 | I77: 0 | J77: 1297800000 | K77: 485600000 | L77: 0 | M77: 0 | N77: 485600000 | O77: 73500000 | P77: 0 | Q77: 0 | R77: 73500000 | S77: 340010000 | T77: 0 | U77: 0 | V77: 340010000 | W77: 172600000 | X77: 0 | Y77: 0 | Z77: 172600000 | AA77: 0 | AB77: 0 | AC77: 0 | AD77: 0 | AE77: 556267500 | AF77: 0 | AG77: 0 | AH77: 556267500 | AI77: 90000000 | AJ77: 0 | AK77: 0 | AL77: 90000000 | AM77: 49000000 | AN77: 0 | AO77: 0 | AP77: 49000000 | AQ77: 1407150000 | AR77: 0 | AS77: 0 | AT77: 1407150000 | AU77: 350000000 | AV77: 0 | AW77: 0 | AX77: 350000000 | AY77: 99000000 | AZ77: 0 | BA77: 0 | BB77: 99000000 | BC77: 420000000 | BD77: 0 | BE77: 0 | BF77: 420000000 | BG77: 296600000 | BH77: 0 | BI77: 0 | BJ77: 296600000 | BK77: 300000 | BL77: 0 | BM77: 0 | BN77: 300000 | BO77: 233100000 | BP77: 0 | BQ77: 0 | BR77: 233100000 | BS77: 25000000 | BT77: 0 | BU77: 0 | BV77: 25000000 | BW77: 699680000 | BX77: 0 | BY77: 0 | BZ77: 699680000 | CA77: 950000000 | CB77: 0 | CC77: 0 | CD77: 950000000 | CE77: 500000 | CF77: 0 | CG77: 0 | CH77: 500000 | CI77: 201432500 | CJ77: 0 | CK77: 0 | CL77: 201432500 | CM77: 1670700000 | CN77: 0 | CO77: 0 | CP77: 1670700000 | CQ77: 445090000 | CR77: 0 | CS77: 0 | CT77: 445090000 | CU77: 610700000 | CV77: 0 | CW77: 0 | CX77: 610700000 | CY77: 3300000 | CZ77: 0 | DA77: 0 | DB77: 3300000
B78: 2025-05-01 | C78: 179300000 | D78: 0 | E78: 0 | F78: 179300000 | G78: 1297800000 | H78: 0 | I78: 0 | J78: 1297800000 | K78: 485600000 | L78: 0 | M78: 0 | N78: 485600000 | O78: 73500000 | P78: 0 | Q78: 0 | R78: 73500000 | S78: 340010000 | T78: 0 | U78: 0 | V78: 340010000 | W78: 172600000 | X78: 0 | Y78: 0 | Z78: 172600000 | AA78: 0 | AB78: 0 | AC78: 0 | AD78: 0 | AE78: 556267500 | AF78: 0 | AG78: 0 | AH78: 556267500 | AI78: 90000000 | AJ78: 0 | AK78: 0 | AL78: 90000000 | AM78: 49000000 | AN78: 0 | AO78: 0 | AP78: 49000000 | AQ78: 1407150000 | AR78: 0 | AS78: 0 | AT78: 1407150000 | AU78: 350000000 | AV78: 0 | AW78: 0 | AX78: 350000000 | AY78: 99000000 | AZ78: 0 | BA78: 0 | BB78: 99000000 | BC78: 420000000 | BD78: 0 | BE78: 0 | BF78: 420000000 | BG78: 296600000 | BH78: 0 | BI78: 0 | BJ78: 296600000 | BK78: 300000 | BL78: 0 | BM78: 0 | BN78: 300000 | BO78: 233100000 | BP78: 0 | BQ78: 0 | BR78: 233100000 | BS78: 25000000 | BT78: 0 | BU78: 0 | BV78: 25000000 | BW78: 699680000 | BX78: 0 | BY78: 0 | BZ78: 699680000 | CA78: 950000000 | CB78: 0 | CC78: 0 | CD78: 950000000 | CE78: 500000 | CF78: 0 | CG78: 0 | CH78: 500000 | CI78: 201432500 | CJ78: 0 | CK78: 0 | CL78: 201432500 | CM78: 1670700000 | CN78: 0 | CO78: 0 | CP78: 1670700000 | CQ78: 445090000 | CR78: 0 | CS78: 0 | CT78: 445090000 | CU78: 610700000 | CV78: 0 | CW78: 0 | CX78: 610700000 | CY78: 3300000 | CZ78: 0 | DA78: 0 | DB78: 3300000
B79: 2025-06-01 | C79: 179300000 | D79: 0 | E79: 0 | F79: 179300000 | G79: 1297800000 | H79: 0 | I79: 0 | J79: 1297800000 | K79: 485600000 | L79: 0 | M79: 0 | N79: 485600000 | O79: 73500000 | P79: 0 | Q79: 0 | R79: 73500000 | S79: 340010000 | T79: 0 | U79: 0 | V79: 340010000 | W79: 172600000 | X79: 0 | Y79: 0 | Z79: 172600000 | AA79: 0 | AB79: 0 | AC79: 0 | AD79: 0 | AE79: 556267500 | AF79: 0 | AG79: 0 | AH79: 556267500 | AI79: 90000000 | AJ79: 0 | AK79: 0 | AL79: 90000000 | AM79: 49000000 | AN79: 0 | AO79: 0 | AP79: 49000000 | AQ79: 1407150000 | AR79: 0 | AS79: 0 | AT79: 1407150000 | AU79: 350000000 | AV79: 0 | AW79: 0 | AX79: 350000000 | AY79: 99000000 | AZ79: 0 | BA79: 0 | BB79: 99000000 | BC79: 420000000 | BD79: 0 | BE79: 0 | BF79: 420000000 | BG79: 296600000 | BH79: 0 | BI79: 0 | BJ79: 296600000 | BK79: 300000 | BL79: 0 | BM79: 0 | BN79: 300000 | BO79: 233100000 | BP79: 0 | BQ79: 0 | BR79: 233100000 | BS79: 25000000 | BT79: 0 | BU79: 0 | BV79: 25000000 | BW79: 699680000 | BX79: 0 | BY79: 0 | BZ79: 699680000 | CA79: 950000000 | CB79: 0 | CC79: 0 | CD79: 950000000 | CE79: 500000 | CF79: 0 | CG79: 0 | CH79: 500000 | CI79: 201432500 | CJ79: 0 | CK79: 0 | CL79: 201432500 | CM79: 1670700000 | CN79: 0 | CO79: 0 | CP79: 1670700000 | CQ79: 445090000 | CR79: 0 | CS79: 0 | CT79: 445090000 | CU79: 610700000 | CV79: 0 | CW79: 0 | CX79: 610700000 | CY79: 3300000 | CZ79: 0 | DA79: 0 | DB79: 3300000
B80: 2025-07-01 | C80: 179300000 | D80: 0 | E80: 0 | F80: 179300000 | G80: 1297800000 | H80: 0 | I80: 0 | J80: 1297800000 | K80: 485600000 | L80: 0 | M80: 0 | N80: 485600000 | O80: 73500000 | P80: 0 | Q80: 0 | R80: 73500000 | S80: 340010000 | T80: 0 | U80: 0 | V80: 340010000 | W80: 172600000 | X80: 0 | Y80: 0 | Z80: 172600000 | AA80: 0 | AB80: 0 | AC80: 0 | AD80: 0 | AE80: 556267500 | AF80: 0 | AG80: 0 | AH80: 556267500 | AI80: 90000000 | AJ80: 0 | AK80: 0 | AL80: 90000000 | AM80: 49000000 | AN80: 0 | AO80: 0 | AP80: 49000000 | AQ80: 1407150000 | AR80: 0 | AS80: 0 | AT80: 1407150000 | AU80: 350000000 | AV80: 0 | AW80: 0 | AX80: 350000000 | AY80: 99000000 | AZ80: 0 | BA80: 0 | BB80: 99000000 | BC80: 420000000 | BD80: 0 | BE80: 0 | BF80: 420000000 | BG80: 296600000 | BH80: 0 | BI80: 0 | BJ80: 296600000 | BK80: 300000 | BL80: 0 | BM80: 0 | BN80: 300000 | BO80: 233100000 | BP80: 0 | BQ80: 0 | BR80: 233100000 | BS80: 25000000 | BT80: 0 | BU80: 0 | BV80: 25000000 | BW80: 699680000 | BX80: 0 | BY80: 0 | BZ80: 699680000 | CA80: 950000000 | CB80: 0 | CC80: 0 | CD80: 950000000 | CE80: 500000 | CF80: 0 | CG80: 0 | CH80: 500000 | CI80: 201432500 | CJ80: 0 | CK80: 0 | CL80: 201432500 | CM80: 1670700000 | CN80: 0 | CO80: 0 | CP80: 1670700000 | CQ80: 445090000 | CR80: 0 | CS80: 0 | CT80: 445090000 | CU80: 610700000 | CV80: 0 | CW80: 0 | CX80: 610700000 | CY80: 3300000 | CZ80: 0 | DA80: 0 | DB80: 3300000
B81: 2025-08-01 | C81: 179300000 | D81: 0 | E81: 0 | F81: 179300000 | G81: 1297800000 | H81: 0 | I81: 0 | J81: 1297800000 | K81: 485600000 | L81: 0 | M81: 0 | N81: 485600000 | O81: 73500000 | P81: 0 | Q81: 0 | R81: 73500000 | S81: 340010000 | T81: 0 | U81: 0 | V81: 340010000 | W81: 172600000 | X81: 0 | Y81: 0 | Z81: 172600000 | AA81: 0 | AB81: 0 | AC81: 0 | AD81: 0 | AE81: 556267500 | AF81: 0 | AG81: 0 | AH81: 556267500 | AI81: 90000000 | AJ81: 0 | AK81: 0 | AL81: 90000000 | AM81: 49000000 | AN81: 0 | AO81: 0 | AP81: 49000000 | AQ81: 1407150000 | AR81: 0 | AS81: 0 | AT81: 1407150000 | AU81: 350000000 | AV81: 0 | AW81: 0 | AX81: 350000000 | AY81: 99000000 | AZ81: 0 | BA81: 0 | BB81: 99000000 | BC81: 420000000 | BD81: 0 | BE81: 0 | BF81: 420000000 | BG81: 296600000 | BH81: 0 | BI81: 0 | BJ81: 296600000 | BK81: 300000 | BL81: 0 | BM81: 0 | BN81: 300000 | BO81: 233100000 | BP81: 0 | BQ81: 0 | BR81: 233100000 | BS81: 25000000 | BT81: 0 | BU81: 0 | BV81: 25000000 | BW81: 699680000 | BX81: 0 | BY81: 0 | BZ81: 699680000 | CA81: 950000000 | CB81: 0 | CC81: 0 | CD81: 950000000 | CE81: 500000 | CF81: 0 | CG81: 0 | CH81: 500000 | CI81: 201432500 | CJ81: 0 | CK81: 0 | CL81: 201432500 | CM81: 1670700000 | CN81: 0 | CO81: 0 | CP81: 1670700000 | CQ81: 445090000 | CR81: 0 | CS81: 0 | CT81: 445090000 | CU81: 610700000 | CV81: 0 | CW81: 0 | CX81: 610700000 | CY81: 3300000 | CZ81: 0 | DA81: 0 | DB81: 3300000
B82: 2025-09-01 | C82: 179300000 | D82: 0 | E82: 0 | F82: 179300000 | G82: 1297800000 | H82: 0 | I82: 0 | J82: 1297800000 | K82: 485600000 | L82: 0 | M82: 0 | N82: 485600000 | O82: 73500000 | P82: 0 | Q82: 0 | R82: 73500000 | S82: 340010000 | T82: 0 | U82: 0 | V82: 340010000 | W82: 172600000 | X82: 0 | Y82: 0 | Z82: 172600000 | AA82: 0 | AB82: 0 | AC82: 0 | AD82: 0 | AE82: 556267500 | AF82: 0 | AG82: 0 | AH82: 556267500 | AI82: 90000000 | AJ82: 0 | AK82: 0 | AL82: 90000000 | AM82: 49000000 | AN82: 0 | AO82: 0 | AP82: 49000000 | AQ82: 1407150000 | AR82: 0 | AS82: 0 | AT82: 1407150000 | AU82: 350000000 | AV82: 0 | AW82: 0 | AX82: 350000000 | AY82: 99000000 | AZ82: 0 | BA82: 0 | BB82: 99000000 | BC82: 420000000 | BD82: 0 | BE82: 0 | BF82: 420000000 | BG82: 296600000 | BH82: 0 | BI82: 0 | BJ82: 296600000 | BK82: 300000 | BL82: 0 | BM82: 0 | BN82: 300000 | BO82: 233100000 | BP82: 0 | BQ82: 0 | BR82: 233100000 | BS82: 25000000 | BT82: 0 | BU82: 0 | BV82: 25000000 | BW82: 699680000 | BX82: 0 | BY82: 0 | BZ82: 699680000 | CA82: 950000000 | CB82: 0 | CC82: 0 | CD82: 950000000 | CE82: 500000 | CF82: 0 | CG82: 0 | CH82: 500000 | CI82: 201432500 | CJ82: 0 | CK82: 0 | CL82: 201432500 | CM82: 1670700000 | CN82: 0 | CO82: 0 | CP82: 1670700000 | CQ82: 445090000 | CR82: 0 | CS82: 0 | CT82: 445090000 | CU82: 610700000 | CV82: 0 | CW82: 0 | CX82: 610700000 | CY82: 3300000 | CZ82: 0 | DA82: 0 | DB82: 3300000
B83: 2025-10-01 | C83: 179300000 | D83: 0 | E83: 0 | F83: 179300000 | G83: 1297800000 | H83: 0 | I83: 0 | J83: 1297800000 | K83: 485600000 | L83: 0 | M83: 0 | N83: 485600000 | O83: 73500000 | P83: 0 | Q83: 0 | R83: 73500000 | S83: 340010000 | T83: 0 | U83: 0 | V83: 340010000 | W83: 172600000 | X83: 0 | Y83: 0 | Z83: 172600000 | AA83: 0 | AB83: 0 | AC83: 0 | AD83: 0 | AE83: 556267500 | AF83: 0 | AG83: 0 | AH83: 556267500 | AI83: 90000000 | AJ83: 0 | AK83: 0 | AL83: 90000000 | AM83: 49000000 | AN83: 0 | AO83: 0 | AP83: 49000000 | AQ83: 1407150000 | AR83: 0 | AS83: 0 | AT83: 1407150000 | AU83: 350000000 | AV83: 0 | AW83: 0 | AX83: 350000000 | AY83: 99000000 | AZ83: 0 | BA83: 0 | BB83: 99000000 | BC83: 420000000 | BD83: 0 | BE83: 0 | BF83: 420000000 | BG83: 296600000 | BH83: 0 | BI83: 0 | BJ83: 296600000 | BK83: 300000 | BL83: 0 | BM83: 0 | BN83: 300000 | BO83: 233100000 | BP83: 0 | BQ83: 0 | BR83: 233100000 | BS83: 25000000 | BT83: 0 | BU83: 0 | BV83: 25000000 | BW83: 699680000 | BX83: 0 | BY83: 0 | BZ83: 699680000 | CA83: 950000000 | CB83: 0 | CC83: 0 | CD83: 950000000 | CE83: 0 | CF83: 0 | CG83: 0 | CH83: 0 | CI83: 201432500 | CJ83: 0 | CK83: 0 | CL83: 201432500 | CM83: 1670700000 | CN83: 0 | CO83: 0 | CP83: 1670700000 | CQ83: 445090000 | CR83: 0 | CS83: 0 | CT83: 445090000 | CU83: 610700000 | CV83: 0 | CW83: 0 | CX83: 610700000 | CY83: 3300000 | CZ83: 0 | DA83: 0 | DB83: 3300000
B84: 2025-11-01 | C84: 179300000 | D84: 0 | E84: 0 | F84: 179300000 | G84: 1297800000 | H84: 0 | I84: 0 | J84: 1297800000 | K84: 485600000 | L84: 0 | M84: 0 | N84: 485600000 | O84: 73500000 | P84: 0 | Q84: 0 | R84: 73500000 | S84: 340010000 | T84: 0 | U84: 0 | V84: 340010000 | W84: 172600000 | X84: 0 | Y84: 0 | Z84: 172600000 | AA84: 0 | AB84: 0 | AC84: 0 | AD84: 0 | AE84: 556267500 | AF84: 0 | AG84: 0 | AH84: 556267500 | AI84: 90000000 | AJ84: 0 | AK84: 0 | AL84: 90000000 | AM84: 49000000 | AN84: 0 | AO84: 0 | AP84: 49000000 | AQ84: 1407150000 | AR84: 0 | AS84: 0 | AT84: 1407150000 | AU84: 350000000 | AV84: 0 | AW84: 0 | AX84: 350000000 | AY84: 99000000 | AZ84: 0 | BA84: 0 | BB84: 99000000 | BC84: 420000000 | BD84: 0 | BE84: 0 | BF84: 420000000 | BG84: 296600000 | BH84: 0 | BI84: 0 | BJ84: 296600000 | BK84: 300000 | BL84: 0 | BM84: 0 | BN84: 300000 | BO84: 233100000 | BP84: 0 | BQ84: 0 | BR84: 233100000 | BS84: 25000000 | BT84: 0 | BU84: 0 | BV84: 25000000 | BW84: 699680000 | BX84: 0 | BY84: 0 | BZ84: 699680000 | CA84: 950000000 | CB84: 0 | CC84: 0 | CD84: 950000000 | CE84: 0 | CF84: 0 | CG84: 0 | CH84: 0 | CI84: 201432500 | CJ84: 0 | CK84: 0 | CL84: 201432500 | CM84: 1670700000 | CN84: 0 | CO84: 0 | CP84: 1670700000 | CQ84: 445090000 | CR84: 0 | CS84: 0 | CT84: 445090000 | CU84: 610700000 | CV84: 0 | CW84: 0 | CX84: 610700000 | CY84: 3300000 | CZ84: 0 | DA84: 0 | DB84: 3300000
B85: 2025-12-01 | C85: 179300000 | D85: 0 | E85: 0 | F85: 179300000 | G85: 1297800000 | H85: 0 | I85: 0 | J85: 1297800000 | K85: 485600000 | L85: 0 | M85: 0 | N85: 485600000 | O85: 73500000 | P85: 0 | Q85: 0 | R85: 73500000 | S85: 340010000 | T85: 0 | U85: 0 | V85: 340010000 | W85: 172600000 | X85: 0 | Y85: 0 | Z85: 172600000 | AA85: 0 | AB85: 0 | AC85: 0 | AD85: 0 | AE85: 556267500 | AF85: 0 | AG85: 0 | AH85: 556267500 | AI85: 90000000 | AJ85: 0 | AK85: 0 | AL85: 90000000 | AM85: 49000000 | AN85: 0 | AO85: 0 | AP85: 49000000 | AQ85: 1407150000 | AR85: 0 | AS85: 0 | AT85: 1407150000 | AU85: 350000000 | AV85: 0 | AW85: 0 | AX85: 350000000 | AY85: 99000000 | AZ85: 0 | BA85: 0 | BB85: 99000000 | BC85: 420000000 | BD85: 0 | BE85: 0 | BF85: 420000000 | BG85: 296600000 | BH85: 0 | BI85: 0 | BJ85: 296600000 | BK85: 300000 | BL85: 0 | BM85: 0 | BN85: 300000 | BO85: 233100000 | BP85: 0 | BQ85: 0 | BR85: 233100000 | BS85: 25000000 | BT85: 0 | BU85: 0 | BV85: 25000000 | BW85: 699680000 | BX85: 0 | BY85: 0 | BZ85: 699680000 | CA85: 950000000 | CB85: 0 | CC85: 0 | CD85: 950000000 | CE85: 0 | CF85: 0 | CG85: 0 | CH85: 0 | CI85: 201432500 | CJ85: 0 | CK85: 0 | CL85: 201432500 | CM85: 1670700000 | CN85: 0 | CO85: 0 | CP85: 1670700000 | CQ85: 445090000 | CR85: 0 | CS85: 0 | CT85: 445090000 | CU85: 610700000 | CV85: 0 | CW85: 0 | CX85: 610700000 | CY85: 3300000 | CZ85: 0 | DA85: 0 | DB85: 3300000
B86: 2026-01-01 | C86: 179300000 | D86: 0 | E86: 0 | F86: 179300000 | G86: 1297800000 | H86: 0 | I86: 0 | J86: 1297800000 | K86: 485600000 | L86: 0 | M86: 0 | N86: 485600000 | O86: 73500000 | P86: 0 | Q86: 0 | R86: 73500000 | S86: 340010000 | T86: 0 | U86: 0 | V86: 340010000 | W86: 172600000 | X86: 0 | Y86: 0 | Z86: 172600000 | AA86: 0 | AB86: 0 | AC86: 0 | AD86: 0 | AE86: 556267500 | AF86: 0 | AG86: 0 | AH86: 556267500 | AI86: 90000000 | AJ86: 0 | AK86: 0 | AL86: 90000000 | AM86: 49000000 | AN86: 0 | AO86: 0 | AP86: 49000000 | AQ86: 1407150000 | AR86: 0 | AS86: 0 | AT86: 1407150000 | AU86: 350000000 | AV86: 0 | AW86: 0 | AX86: 350000000 | AY86: 99000000 | AZ86: 0 | BA86: 0 | BB86: 99000000 | BC86: 420000000 | BD86: 0 | BE86: 0 | BF86: 420000000 | BG86: 296600000 | BH86: 0 | BI86: 0 | BJ86: 296600000 | BK86: 300000 | BL86: 0 | BM86: 0 | BN86: 300000 | BO86: 233100000 | BP86: 0 | BQ86: 0 | BR86: 233100000 | BS86: 25000000 | BT86: 0 | BU86: 0 | BV86: 25000000 | BW86: 699680000 | BX86: 0 | BY86: 0 | BZ86: 699680000 | CA86: 950000000 | CB86: 0 | CC86: 163000000 | CD86: 1113000000 | CE86: 0 | CF86: 0 | CG86: 0 | CH86: 0 | CI86: 201432500 | CJ86: 0 | CK86: 0 | CL86: 201432500 | CM86: 1670700000 | CN86: 0 | CO86: 0 | CP86: 1670700000 | CQ86: 445090000 | CR86: 0 | CS86: 0 | CT86: 445090000 | CU86: 610700000 | CV86: 0 | CW86: 0 | CX86: 610700000 | CY86: 3300000 | CZ86: 0 | DA86: 0 | DB86: 3300000
B87: 2026-02-01 | C87: 179300000 | D87: 0 | E87: 0 | F87: 179300000 | G87: 1297800000 | H87: 0 | I87: 0 | J87: 1297800000 | K87: 485600000 | L87: 0 | M87: 0 | N87: 485600000 | O87: 73500000 | P87: 0 | Q87: 0 | R87: 73500000 | S87: 340010000 | T87: 0 | U87: 0 | V87: 340010000 | W87: 172600000 | X87: 0 | Y87: 0 | Z87: 172600000 | AA87: 0 | AB87: 0 | AC87: 0 | AD87: 0 | AE87: 556267500 | AF87: 0 | AG87: 0 | AH87: 556267500 | AI87: 90000000 | AJ87: 0 | AK87: 0 | AL87: 90000000 | AM87: 49000000 | AN87: 0 | AO87: 0 | AP87: 49000000 | AQ87: 1407150000 | AR87: 0 | AS87: 0 | AT87: 1407150000 | AU87: 350000000 | AV87: 0 | AW87: 0 | AX87: 350000000 | AY87: 99000000 | AZ87: 0 | BA87: 0 | BB87: 99000000 | BC87: 420000000 | BD87: 0 | BE87: 0 | BF87: 420000000 | BG87: 296600000 | BH87: 0 | BI87: 0 | BJ87: 296600000 | BK87: 300000 | BL87: 0 | BM87: 0 | BN87: 300000 | BO87: 233100000 | BP87: 0 | BQ87: 0 | BR87: 233100000 | BS87: 25000000 | BT87: 0 | BU87: 0 | BV87: 25000000 | BW87: 699680000 | BX87: 0 | BY87: 0 | BZ87: 699680000 | CA87: 950000000 | CB87: 0 | CC87: 163000000 | CD87: 1113000000 | CE87: 0 | CF87: 0 | CG87: 0 | CH87: 0 | CI87: 201432500 | CJ87: 0 | CK87: 0 | CL87: 201432500 | CM87: 1670700000 | CN87: 0 | CO87: 0 | CP87: 1670700000 | CQ87: 445090000 | CR87: 0 | CS87: 0 | CT87: 445090000 | CU87: 610700000 | CV87: 0 | CW87: 0 | CX87: 610700000 | CY87: 3300000 | CZ87: 0 | DA87: 0 | DB87: 3300000
B88: 2026-03-01 | C88: 179300000 | D88: 0 | E88: 0 | F88: 179300000 | G88: 1297800000 | H88: 0 | I88: 0 | J88: 1297800000 | K88: 485600000 | L88: 0 | M88: 0 | N88: 485600000 | O88: 73500000 | P88: 0 | Q88: 0 | R88: 73500000 | S88: 340010000 | T88: 0 | U88: 0 | V88: 340010000 | W88: 172600000 | X88: 0 | Y88: 0 | Z88: 172600000 | AA88: 0 | AB88: 0 | AC88: 0 | AD88: 0 | AE88: 556267500 | AF88: 0 | AG88: 0 | AH88: 556267500 | AI88: 90000000 | AJ88: 0 | AK88: 0 | AL88: 90000000 | AM88: 49000000 | AN88: 0 | AO88: 0 | AP88: 49000000 | AQ88: 1407150000 | AR88: 0 | AS88: 0 | AT88: 1407150000 | AU88: 350000000 | AV88: 0 | AW88: 0 | AX88: 350000000 | AY88: 99000000 | AZ88: 0 | BA88: 0 | BB88: 99000000 | BC88: 420000000 | BD88: 0 | BE88: 0 | BF88: 420000000 | BG88: 296600000 | BH88: 0 | BI88: 0 | BJ88: 296600000 | BK88: 300000 | BL88: 0 | BM88: 0 | BN88: 300000 | BO88: 233100000 | BP88: 0 | BQ88: 0 | BR88: 233100000 | BS88: 25000000 | BT88: 0 | BU88: 0 | BV88: 25000000 | BW88: 699680000 | BX88: 0 | BY88: 0 | BZ88: 699680000 | CA88: 950000000 | CB88: 0 | CC88: 163000000 | CD88: 1113000000 | CE88: 0 | CF88: 0 | CG88: 0 | CH88: 0 | CI88: 201432500 | CJ88: 0 | CK88: 0 | CL88: 201432500 | CM88: 1670700000 | CN88: 0 | CO88: 0 | CP88: 1670700000 | CQ88: 445090000 | CR88: 0 | CS88: 0 | CT88: 445090000 | CU88: 610700000 | CV88: 0 | CW88: 0 | CX88: 610700000 | CY88: 3300000 | CZ88: 0 | DA88: 0 | DB88: 3300000
B89: 2026-04-01 | C89: 179300000 | D89: 0 | E89: 0 | F89: 179300000 | G89: 1297800000 | H89: 0 | I89: 0 | J89: 1297800000 | K89: 485600000 | L89: 0 | M89: 0 | N89: 485600000 | O89: 73500000 | P89: 0 | Q89: 0 | R89: 73500000 | S89: 340010000 | T89: 0 | U89: 0 | V89: 340010000 | W89: 172600000 | X89: 0 | Y89: 0 | Z89: 172600000 | AA89: 0 | AB89: 0 | AC89: 0 | AD89: 0 | AE89: 556267500 | AF89: 0 | AG89: 0 | AH89: 556267500 | AI89: 90000000 | AJ89: 0 | AK89: 0 | AL89: 90000000 | AM89: 49000000 | AN89: 0 | AO89: 0 | AP89: 49000000 | AQ89: 1407150000 | AR89: 0 | AS89: 0 | AT89: 1407150000 | AU89: 350000000 | AV89: 0 | AW89: 0 | AX89: 350000000 | AY89: 99000000 | AZ89: 0 | BA89: 0 | BB89: 99000000 | BC89: 420000000 | BD89: 0 | BE89: 0 | BF89: 420000000 | BG89: 296600000 | BH89: 0 | BI89: 0 | BJ89: 296600000 | BK89: 300000 | BL89: 0 | BM89: 0 | BN89: 300000 | BO89: 233100000 | BP89: 0 | BQ89: 0 | BR89: 233100000 | BS89: 25000000 | BT89: 0 | BU89: 0 | BV89: 25000000 | BW89: 699680000 | BX89: 0 | BY89: 0 | BZ89: 699680000 | CA89: 950000000 | CB89: 0 | CC89: 163000000 | CD89: 1113000000 | CE89: 0 | CF89: 0 | CG89: 0 | CH89: 0 | CI89: 201432500 | CJ89: 0 | CK89: 0 | CL89: 201432500 | CM89: 1670700000 | CN89: 0 | CO89: 0 | CP89: 1670700000 | CQ89: 445090000 | CR89: 0 | CS89: 0 | CT89: 445090000 | CU89: 610700000 | CV89: 0 | CW89: 0 | CX89: 610700000 | CY89: 3300000 | CZ89: 0 | DA89: 0 | DB89: 3300000
B90: 2026-05-01 | C90: 179300000 | D90: 0 | E90: 0 | F90: 179300000 | G90: 1297800000 | H90: 0 | I90: 0 | J90: 1297800000 | K90: 485600000 | L90: 0 | M90: 0 | N90: 485600000 | O90: 73500000 | P90: 0 | Q90: 0 | R90: 73500000 | S90: 340010000 | T90: 0 | U90: 0 | V90: 340010000 | W90: 172600000 | X90: 0 | Y90: 0 | Z90: 172600000 | AA90: 0 | AB90: 0 | AC90: 0 | AD90: 0 | AE90: 556267500 | AF90: 0 | AG90: 0 | AH90: 556267500 | AI90: 90000000 | AJ90: 0 | AK90: 0 | AL90: 90000000 | AM90: 49000000 | AN90: 0 | AO90: 0 | AP90: 49000000 | AQ90: 1407150000 | AR90: 0 | AS90: 0 | AT90: 1407150000 | AU90: 350000000 | AV90: 0 | AW90: 0 | AX90: 350000000 | AY90: 99000000 | AZ90: 0 | BA90: 0 | BB90: 99000000 | BC90: 420000000 | BD90: 0 | BE90: 0 | BF90: 420000000 | BG90: 296600000 | BH90: 0 | BI90: 0 | BJ90: 296600000 | BK90: 300000 | BL90: 0 | BM90: 0 | BN90: 300000 | BO90: 233100000 | BP90: 0 | BQ90: 0 | BR90: 233100000 | BS90: 25000000 | BT90: 0 | BU90: 0 | BV90: 25000000 | BW90: 699680000 | BX90: 0 | BY90: 0 | BZ90: 699680000 | CA90: 950000000 | CB90: 0 | CC90: 163000000 | CD90: 1113000000 | CE90: 0 | CF90: 0 | CG90: 0 | CH90: 0 | CI90: 201432500 | CJ90: 0 | CK90: 0 | CL90: 201432500 | CM90: 1670700000 | CN90: 0 | CO90: 0 | CP90: 1670700000 | CQ90: 445090000 | CR90: 0 | CS90: 0 | CT90: 445090000 | CU90: 610700000 | CV90: 0 | CW90: 0 | CX90: 610700000 | CY90: 3300000 | CZ90: 0 | DA90: 0 | DB90: 3300000
B91: 2026-06-01 | C91: 179300000 | D91: 0 | E91: 0 | F91: 179300000 | G91: 1297800000 | H91: 0 | I91: 0 | J91: 1297800000 | K91: 485600000 | L91: 0 | M91: 0 | N91: 485600000 | O91: 73500000 | P91: 0 | Q91: 0 | R91: 73500000 | S91: 340010000 | T91: 0 | U91: 0 | V91: 340010000 | W91: 172600000 | X91: 0 | Y91: 0 | Z91: 172600000 | AA91: 0 | AB91: 0 | AC91: 0 | AD91: 0 | AE91: 556267500 | AF91: 0 | AG91: 0 | AH91: 556267500 | AI91: 90000000 | AJ91: 0 | AK91: 0 | AL91: 90000000 | AM91: 49000000 | AN91: 0 | AO91: 0 | AP91: 49000000 | AQ91: 1407150000 | AR91: 0 | AS91: 0 | AT91: 1407150000 | AU91: 350000000 | AV91: 0 | AW91: 0 | AX91: 350000000 | AY91: 99000000 | AZ91: 0 | BA91: 0 | BB91: 99000000 | BC91: 420000000 | BD91: 0 | BE91: 0 | BF91: 420000000 | BG91: 296600000 | BH91: 0 | BI91: 0 | BJ91: 296600000 | BK91: 300000 | BL91: 0 | BM91: 0 | BN91: 300000 | BO91: 233100000 | BP91: 0 | BQ91: 0 | BR91: 233100000 | BS91: 25000000 | BT91: 0 | BU91: 0 | BV91: 25000000 | BW91: 699680000 | BX91: 0 | BY91: 0 | BZ91: 699680000 | CA91: 950000000 | CB91: 0 | CC91: 163000000 | CD91: 1113000000 | CE91: 0 | CF91: 0 | CG91: 0 | CH91: 0 | CI91: 201432500 | CJ91: 0 | CK91: 0 | CL91: 201432500 | CM91: 1670700000 | CN91: 0 | CO91: 0 | CP91: 1670700000 | CQ91: 445090000 | CR91: 0 | CS91: 0 | CT91: 445090000 | CU91: 610700000 | CV91: 0 | CW91: 0 | CX91: 610700000 | CY91: 3300000 | CZ91: 0 | DA91: 0 | DB91: 3300000
B92: 2026-07-01 | C92: 179300000 | D92: 0 | E92: 0 | F92: 179300000 | G92: 1297800000 | H92: 0 | I92: 0 | J92: 1297800000 | K92: 485600000 | L92: 0 | M92: 0 | N92: 485600000 | O92: 73500000 | P92: 0 | Q92: 0 | R92: 73500000 | S92: 340010000 | T92: 0 | U92: 0 | V92: 340010000 | W92: 172600000 | X92: 0 | Y92: 0 | Z92: 172600000 | AA92: 0 | AB92: 0 | AC92: 0 | AD92: 0 | AE92: 556267500 | AF92: 0 | AG92: 0 | AH92: 556267500 | AI92: 90000000 | AJ92: 0 | AK92: 0 | AL92: 90000000 | AM92: 49000000 | AN92: 0 | AO92: 0 | AP92: 49000000 | AQ92: 1407150000 | AR92: 0 | AS92: 0 | AT92: 1407150000 | AU92: 350000000 | AV92: 0 | AW92: 0 | AX92: 350000000 | AY92: 99000000 | AZ92: 0 | BA92: 0 | BB92: 99000000 | BC92: 420000000 | BD92: 0 | BE92: 0 | BF92: 420000000 | BG92: 296600000 | BH92: 0 | BI92: 0 | BJ92: 296600000 | BK92: 300000 | BL92: 0 | BM92: 0 | BN92: 300000 | BO92: 233100000 | BP92: 0 | BQ92: 0 | BR92: 233100000 | BS92: 25000000 | BT92: 0 | BU92: 0 | BV92: 25000000 | BW92: 699680000 | BX92: 0 | BY92: 0 | BZ92: 699680000 | CA92: 950000000 | CB92: 0 | CC92: 163000000 | CD92: 1113000000 | CE92: 0 | CF92: 0 | CG92: 0 | CH92: 0 | CI92: 201432500 | CJ92: 0 | CK92: 0 | CL92: 201432500 | CM92: 1670700000 | CN92: 0 | CO92: 0 | CP92: 1670700000 | CQ92: 445090000 | CR92: 0 | CS92: 0 | CT92: 445090000 | CU92: 610700000 | CV92: 0 | CW92: 0 | CX92: 610700000 | CY92: 3300000 | CZ92: 0 | DA92: 0 | DB92: 3300000
B93: 2026-08-01 | C93: 179300000 | D93: 0 | E93: 0 | F93: 179300000 | G93: 1297800000 | H93: 0 | I93: 0 | J93: 1297800000 | K93: 485600000 | L93: 0 | M93: 0 | N93: 485600000 | O93: 73500000 | P93: 0 | Q93: 0 | R93: 73500000 | S93: 340010000 | T93: 0 | U93: 0 | V93: 340010000 | W93: 172600000 | X93: 0 | Y93: 0 | Z93: 172600000 | AA93: 0 | AB93: 0 | AC93: 0 | AD93: 0 | AE93: 556267500 | AF93: 0 | AG93: 0 | AH93: 556267500 | AI93: 90000000 | AJ93: 0 | AK93: 0 | AL93: 90000000 | AM93: 49000000 | AN93: 0 | AO93: 0 | AP93: 49000000 | AQ93: 1407150000 | AR93: 0 | AS93: 0 | AT93: 1407150000 | AU93: 350000000 | AV93: 0 | AW93: 0 | AX93: 350000000 | AY93: 99000000 | AZ93: 0 | BA93: 0 | BB93: 99000000 | BC93: 420000000 | BD93: 0 | BE93: 0 | BF93: 420000000 | BG93: 296600000 | BH93: 0 | BI93: 0 | BJ93: 296600000 | BK93: 300000 | BL93: 0 | BM93: 0 | BN93: 300000 | BO93: 233100000 | BP93: 0 | BQ93: 0 | BR93: 233100000 | BS93: 25000000 | BT93: 0 | BU93: 0 | BV93: 25000000 | BW93: 699680000 | BX93: 0 | BY93: 0 | BZ93: 699680000 | CA93: 950000000 | CB93: 0 | CC93: 163000000 | CD93: 1113000000 | CE93: 0 | CF93: 0 | CG93: 0 | CH93: 0 | CI93: 201432500 | CJ93: 0 | CK93: 0 | CL93: 201432500 | CM93: 1670700000 | CN93: 0 | CO93: 0 | CP93: 1670700000 | CQ93: 445090000 | CR93: 0 | CS93: 0 | CT93: 445090000 | CU93: 610700000 | CV93: 0 | CW93: 0 | CX93: 610700000 | CY93: 3300000 | CZ93: 0 | DA93: 0 | DB93: 3300000
B94: 2026-09-01 | C94: 179300000 | D94: 0 | E94: 0 | F94: 179300000 | G94: 1297800000 | H94: 0 | I94: 0 | J94: 1297800000 | K94: 485600000 | L94: 0 | M94: 0 | N94: 485600000 | O94: 73500000 | P94: 0 | Q94: 0 | R94: 73500000 | S94: 340010000 | T94: 0 | U94: 0 | V94: 340010000 | W94: 172600000 | X94: 0 | Y94: 0 | Z94: 172600000 | AA94: 0 | AB94: 0 | AC94: 0 | AD94: 0 | AE94: 556267500 | AF94: 0 | AG94: 0 | AH94: 556267500 | AI94: 90000000 | AJ94: 0 | AK94: 0 | AL94: 90000000 | AM94: 49000000 | AN94: 0 | AO94: 0 | AP94: 49000000 | AQ94: 1407150000 | AR94: 0 | AS94: 0 | AT94: 1407150000 | AU94: 350000000 | AV94: 0 | AW94: 0 | AX94: 350000000 | AY94: 99000000 | AZ94: 0 | BA94: 0 | BB94: 99000000 | BC94: 420000000 | BD94: 0 | BE94: 0 | BF94: 420000000 | BG94: 296600000 | BH94: 0 | BI94: 0 | BJ94: 296600000 | BK94: 300000 | BL94: 0 | BM94: 0 | BN94: 300000 | BO94: 233100000 | BP94: 0 | BQ94: 0 | BR94: 233100000 | BS94: 25000000 | BT94: 0 | BU94: 0 | BV94: 25000000 | BW94: 699680000 | BX94: 0 | BY94: 0 | BZ94: 699680000 | CA94: 950000000 | CB94: 0 | CC94: 163000000 | CD94: 1113000000 | CE94: 0 | CF94: 0 | CG94: 0 | CH94: 0 | CI94: 201432500 | CJ94: 0 | CK94: 0 | CL94: 201432500 | CM94: 1670700000 | CN94: 0 | CO94: 0 | CP94: 1670700000 | CQ94: 445090000 | CR94: 0 | CS94: 0 | CT94: 445090000 | CU94: 610700000 | CV94: 0 | CW94: 0 | CX94: 610700000 | CY94: 3300000 | CZ94: 0 | DA94: 0 | DB94: 3300000
B95: 2026-10-01 | C95: 179300000 | D95: 0 | E95: 0 | F95: 179300000 | G95: 1297800000 | H95: 0 | I95: 0 | J95: 1297800000 | K95: 485600000 | L95: 0 | M95: 0 | N95: 485600000 | O95: 73500000 | P95: 0 | Q95: 0 | R95: 73500000 | S95: 340010000 | T95: 0 | U95: 0 | V95: 340010000 | W95: 172600000 | X95: 0 | Y95: 0 | Z95: 172600000 | AA95: 0 | AB95: 0 | AC95: 0 | AD95: 0 | AE95: 556267500 | AF95: 0 | AG95: 0 | AH95: 556267500 | AI95: 90000000 | AJ95: 0 | AK95: 0 | AL95: 90000000 | AM95: 49000000 | AN95: 0 | AO95: 0 | AP95: 49000000 | AQ95: 1407150000 | AR95: 0 | AS95: 0 | AT95: 1407150000 | AU95: 350000000 | AV95: 0 | AW95: 0 | AX95: 350000000 | AY95: 99000000 | AZ95: 0 | BA95: 0 | BB95: 99000000 | BC95: 420000000 | BD95: 0 | BE95: 0 | BF95: 420000000 | BG95: 296600000 | BH95: 0 | BI95: 0 | BJ95: 296600000 | BK95: 300000 | BL95: 0 | BM95: 0 | BN95: 300000 | BO95: 233100000 | BP95: 0 | BQ95: 0 | BR95: 233100000 | BS95: 25000000 | BT95: 0 | BU95: 0 | BV95: 25000000 | BW95: 699680000 | BX95: 0 | BY95: 0 | BZ95: 699680000 | CA95: 950000000 | CB95: 0 | CC95: 163000000 | CD95: 1113000000 | CE95: 0 | CF95: 0 | CG95: 0 | CH95: 0 | CI95: 201432500 | CJ95: 0 | CK95: 0 | CL95: 201432500 | CM95: 1670700000 | CN95: 0 | CO95: 0 | CP95: 1670700000 | CQ95: 445090000 | CR95: 0 | CS95: 0 | CT95: 445090000 | CU95: 610700000 | CV95: 0 | CW95: 0 | CX95: 610700000 | CY95: 3300000 | CZ95: 0 | DA95: 0 | DB95: 3300000
B96: 2026-11-01 | C96: 179300000 | D96: 0 | E96: 0 | F96: 179300000 | G96: 1297800000 | H96: 0 | I96: 0 | J96: 1297800000 | K96: 485600000 | L96: 0 | M96: 0 | N96: 485600000 | O96: 73500000 | P96: 0 | Q96: 0 | R96: 73500000 | S96: 340010000 | T96: 0 | U96: 0 | V96: 340010000 | W96: 172600000 | X96: 0 | Y96: 0 | Z96: 172600000 | AA96: 0 | AB96: 0 | AC96: 0 | AD96: 0 | AE96: 556267500 | AF96: 0 | AG96: 0 | AH96: 556267500 | AI96: 90000000 | AJ96: 0 | AK96: 0 | AL96: 90000000 | AM96: 49000000 | AN96: 0 | AO96: 0 | AP96: 49000000 | AQ96: 1407150000 | AR96: 0 | AS96: 0 | AT96: 1407150000 | AU96: 350000000 | AV96: 0 | AW96: 0 | AX96: 350000000 | AY96: 99000000 | AZ96: 0 | BA96: 0 | BB96: 99000000 | BC96: 420000000 | BD96: 0 | BE96: 0 | BF96: 420000000 | BG96: 296600000 | BH96: 0 | BI96: 0 | BJ96: 296600000 | BK96: 300000 | BL96: 0 | BM96: 0 | BN96: 300000 | BO96: 233100000 | BP96: 0 | BQ96: 0 | BR96: 233100000 | BS96: 25000000 | BT96: 0 | BU96: 0 | BV96: 25000000 | BW96: 699680000 | BX96: 0 | BY96: 0 | BZ96: 699680000 | CA96: 950000000 | CB96: 0 | CC96: 163000000 | CD96: 1113000000 | CE96: 0 | CF96: 0 | CG96: 0 | CH96: 0 | CI96: 201432500 | CJ96: 0 | CK96: 0 | CL96: 201432500 | CM96: 1670700000 | CN96: 0 | CO96: 0 | CP96: 1670700000 | CQ96: 445090000 | CR96: 0 | CS96: 0 | CT96: 445090000 | CU96: 610700000 | CV96: 0 | CW96: 0 | CX96: 610700000 | CY96: 3300000 | CZ96: 0 | DA96: 0 | DB96: 3300000
B97: 2026-12-01 | C97: 179300000 | D97: 0 | E97: 0 | F97: 179300000 | G97: 1297800000 | H97: 0 | I97: 0 | J97: 1297800000 | K97: 485600000 | L97: 0 | M97: 0 | N97: 485600000 | O97: 73500000 | P97: 0 | Q97: 0 | R97: 73500000 | S97: 340010000 | T97: 0 | U97: 0 | V97: 340010000 | W97: 172600000 | X97: 0 | Y97: 0 | Z97: 172600000 | AA97: 0 | AB97: 0 | AC97: 0 | AD97: 0 | AE97: 556267500 | AF97: 0 | AG97: 0 | AH97: 556267500 | AI97: 90000000 | AJ97: 0 | AK97: 0 | AL97: 90000000 | AM97: 49000000 | AN97: 0 | AO97: 0 | AP97: 49000000 | AQ97: 1407150000 | AR97: 0 | AS97: 0 | AT97: 1407150000 | AU97: 350000000 | AV97: 0 | AW97: 0 | AX97: 350000000 | AY97: 99000000 | AZ97: 0 | BA97: 0 | BB97: 99000000 | BC97: 420000000 | BD97: 0 | BE97: 0 | BF97: 420000000 | BG97: 296600000 | BH97: 0 | BI97: 0 | BJ97: 296600000 | BK97: 300000 | BL97: 0 | BM97: 0 | BN97: 300000 | BO97: 233100000 | BP97: 0 | BQ97: 0 | BR97: 233100000 | BS97: 25000000 | BT97: 0 | BU97: 0 | BV97: 25000000 | BW97: 699680000 | BX97: 0 | BY97: 0 | BZ97: 699680000 | CA97: 950000000 | CB97: 0 | CC97: 163000000 | CD97: 1113000000 | CE97: 0 | CF97: 0 | CG97: 0 | CH97: 0 | CI97: 201432500 | CJ97: 0 | CK97: 0 | CL97: 201432500 | CM97: 1670700000 | CN97: 0 | CO97: 0 | CP97: 1670700000 | CQ97: 445090000 | CR97: 0 | CS97: 0 | CT97: 445090000 | CU97: 610700000 | CV97: 0 | CW97: 0 | CX97: 610700000 | CY97: 3300000 | CZ97: 0 | DA97: 0 | DB97: 3300000
B98: 2027-01-01 | C98: 179300000 | D98: 0 | E98: 0 | F98: 179300000 | G98: 1297800000 | H98: 0 | I98: 0 | J98: 1297800000 | K98: 485600000 | L98: 0 | M98: 0 | N98: 485600000 | O98: 73500000 | P98: 0 | Q98: 0 | R98: 73500000 | S98: 340010000 | T98: 0 | U98: 0 | V98: 340010000 | W98: 172600000 | X98: 0 | Y98: 0 | Z98: 172600000 | AA98: 0 | AB98: 0 | AC98: 0 | AD98: 0 | AE98: 556267500 | AF98: 0 | AG98: 0 | AH98: 556267500 | AI98: 90000000 | AJ98: 0 | AK98: 0 | AL98: 90000000 | AM98: 49000000 | AN98: 0 | AO98: 0 | AP98: 49000000 | AQ98: 1407150000 | AR98: 0 | AS98: 0 | AT98: 1407150000 | AU98: 350000000 | AV98: 0 | AW98: 0 | AX98: 350000000 | AY98: 99000000 | AZ98: 0 | BA98: 0 | BB98: 99000000 | BC98: 420000000 | BD98: 0 | BE98: 0 | BF98: 420000000 | BG98: 296600000 | BH98: 0 | BI98: 0 | BJ98: 296600000 | BK98: 300000 | BL98: 0 | BM98: 0 | BN98: 300000 | BO98: 233100000 | BP98: 0 | BQ98: 0 | BR98: 233100000 | BS98: 25000000 | BT98: 0 | BU98: 0 | BV98: 25000000 | BW98: 699680000 | BX98: 0 | BY98: 0 | BZ98: 699680000 | CA98: 950000000 | CB98: 0 | CC98: 163000000 | CD98: 1113000000 | CE98: 0 | CF98: 0 | CG98: 0 | CH98: 0 | CI98: 201432500 | CJ98: 0 | CK98: 0 | CL98: 201432500 | CM98: 1670700000 | CN98: 0 | CO98: 0 | CP98: 1670700000 | CQ98: 445090000 | CR98: 0 | CS98: 0 | CT98: 445090000 | CU98: 610700000 | CV98: 0 | CW98: 0 | CX98: 610700000 | CY98: 3300000 | CZ98: 0 | DA98: 0 | DB98: 3300000
B99: 2027-02-01 | C99: 179300000 | D99: 0 | E99: 0 | F99: 179300000 | G99: 1297800000 | H99: 0 | I99: 0 | J99: 1297800000 | K99: 485600000 | L99: 0 | M99: 0 | N99: 485600000 | O99: 73500000 | P99: 0 | Q99: 0 | R99: 73500000 | S99: 340010000 | T99: 0 | U99: 0 | V99: 340010000 | W99: 172600000 | X99: 0 | Y99: 0 | Z99: 172600000 | AA99: 0 | AB99: 0 | AC99: 0 | AD99: 0 | AE99: 556267500 | AF99: 0 | AG99: 0 | AH99: 556267500 | AI99: 90000000 | AJ99: 0 | AK99: 0 | AL99: 90000000 | AM99: 49000000 | AN99: 0 | AO99: 0 | AP99: 49000000 | AQ99: 1407150000 | AR99: 0 | AS99: 0 | AT99: 1407150000 | AU99: 350000000 | AV99: 0 | AW99: 0 | AX99: 350000000 | AY99: 99000000 | AZ99: 0 | BA99: 0 | BB99: 99000000 | BC99: 420000000 | BD99: 0 | BE99: 0 | BF99: 420000000 | BG99: 296600000 | BH99: 0 | BI99: 0 | BJ99: 296600000 | BK99: 300000 | BL99: 0 | BM99: 0 | BN99: 300000 | BO99: 233100000 | BP99: 0 | BQ99: 0 | BR99: 233100000 | BS99: 25000000 | BT99: 0 | BU99: 0 | BV99: 25000000 | BW99: 699680000 | BX99: 0 | BY99: 0 | BZ99: 699680000 | CA99: 950000000 | CB99: 0 | CC99: 163000000 | CD99: 1113000000 | CE99: 0 | CF99: 0 | CG99: 0 | CH99: 0 | CI99: 201432500 | CJ99: 0 | CK99: 0 | CL99: 201432500 | CM99: 1670700000 | CN99: 0 | CO99: 0 | CP99: 1670700000 | CQ99: 445090000 | CR99: 0 | CS99: 0 | CT99: 445090000 | CU99: 610700000 | CV99: 0 | CW99: 0 | CX99: 610700000 | CY99: 3300000 | CZ99: 0 | DA99: 0 | DB99: 3300000
B100: 2027-03-01 | C100: 179300000 | D100: 0 | E100: 0 | F100: 179300000 | G100: 1297800000 | H100: 0 | I100: 0 | J100: 1297800000 | K100: 485600000 | L100: 0 | M100: 0 | N100: 485600000 | O100: 73500000 | P100: 0 | Q100: 0 | R100: 73500000 | S100: 340010000 | T100: 0 | U100: 0 | V100: 340010000 | W100: 172600000 | X100: 0 | Y100: 0 | Z100: 172600000 | AA100: 0 | AB100: 0 | AC100: 0 | AD100: 0 | AE100: 556267500 | AF100: 0 | AG100: 0 | AH100: 556267500 | AI100: 90000000 | AJ100: 0 | AK100: 0 | AL100: 90000000 | AM100: 49000000 | AN100: 0 | AO100: 0 | AP100: 49000000 | AQ100: 1407150000 | AR100: 0 | AS100: 0 | AT100: 1407150000 | AU100: 350000000 | AV100: 0 | AW100: 0 | AX100: 350000000 | AY100: 99000000 | AZ100: 0 | BA100: 0 | BB100: 99000000 | BC100: 420000000 | BD100: 0 | BE100: 0 | BF100: 420000000 | BG100: 296600000 | BH100: 0 | BI100: 0 | BJ100: 296600000 | BK100: 300000 | BL100: 0 | BM100: 0 | BN100: 300000 | BO100: 233100000 | BP100: 0 | BQ100: 0 | BR100: 233100000 | BS100: 25000000 | BT100: 0 | BU100: 0 | BV100: 25000000 | BW100: 699680000 | BX100: 0 | BY100: 0 | BZ100: 699680000 | CA100: 950000000 | CB100: 0 | CC100: 163000000 | CD100: 1113000000 | CE100: 0 | CF100: 0 | CG100: 0 | CH100: 0 | CI100: 201432500 | CJ100: 0 | CK100: 0 | CL100: 201432500 | CM100: 1670700000 | CN100: 0 | CO100: 0 | CP100: 1670700000 | CQ100: 445090000 | CR100: 0 | CS100: 0 | CT100: 445090000 | CU100: 610700000 | CV100: 0 | CW100: 0 | CX100: 610700000 | CY100: 3300000 | CZ100: 0 | DA100: 0 | DB100: 3300000
B101: 2027-04-01 | C101: 179300000 | D101: 0 | E101: 0 | F101: 179300000 | G101: 1297800000 | H101: 0 | I101: 0 | J101: 1297800000 | K101: 485600000 | L101: 0 | M101: 0 | N101: 485600000 | O101: 73500000 | P101: 0 | Q101: 0 | R101: 73500000 | S101: 340010000 | T101: 0 | U101: 0 | V101: 340010000 | W101: 172600000 | X101: 0 | Y101: 0 | Z101: 172600000 | AA101: 0 | AB101: 0 | AC101: 0 | AD101: 0 | AE101: 556267500 | AF101: 0 | AG101: 0 | AH101: 556267500 | AI101: 90000000 | AJ101: 0 | AK101: 0 | AL101: 90000000 | AM101: 49000000 | AN101: 0 | AO101: 0 | AP101: 49000000 | AQ101: 1407150000 | AR101: 0 | AS101: 0 | AT101: 1407150000 | AU101: 350000000 | AV101: 0 | AW101: 0 | AX101: 350000000 | AY101: 99000000 | AZ101: 0 | BA101: 0 | BB101: 99000000 | BC101: 420000000 | BD101: 0 | BE101: 0 | BF101: 420000000 | BG101: 296600000 | BH101: 0 | BI101: 0 | BJ101: 296600000 | BK101: 300000 | BL101: 0 | BM101: 0 | BN101: 300000 | BO101: 233100000 | BP101: 0 | BQ101: 0 | BR101: 233100000 | BS101: 25000000 | BT101: 0 | BU101: 0 | BV101: 25000000 | BW101: 699680000 | BX101: 0 | BY101: 0 | BZ101: 699680000 | CA101: 950000000 | CB101: 0 | CC101: 163000000 | CD101: 1113000000 | CE101: 0 | CF101: 0 | CG101: 0 | CH101: 0 | CI101: 201432500 | CJ101: 0 | CK101: 0 | CL101: 201432500 | CM101: 1670700000 | CN101: 0 | CO101: 0 | CP101: 1670700000 | CQ101: 445090000 | CR101: 0 | CS101: 0 | CT101: 445090000 | CU101: 610700000 | CV101: 0 | CW101: 0 | CX101: 610700000 | CY101: 3300000 | CZ101: 0 | DA101: 0 | DB101: 3300000
B102: 2027-05-01 | C102: 179300000 | D102: 0 | E102: 0 | F102: 179300000 | G102: 1297800000 | H102: 0 | I102: 0 | J102: 1297800000 | K102: 485600000 | L102: 0 | M102: 0 | N102: 485600000 | O102: 73500000 | P102: 0 | Q102: 0 | R102: 73500000 | S102: 340010000 | T102: 0 | U102: 0 | V102: 340010000 | W102: 172600000 | X102: 0 | Y102: 0 | Z102: 172600000 | AA102: 0 | AB102: 0 | AC102: 0 | AD102: 0 | AE102: 556267500 | AF102: 0 | AG102: 0 | AH102: 556267500 | AI102: 90000000 | AJ102: 0 | AK102: 0 | AL102: 90000000 | AM102: 49000000 | AN102: 0 | AO102: 0 | AP102: 49000000 | AQ102: 1407150000 | AR102: 0 | AS102: 0 | AT102: 1407150000 | AU102: 350000000 | AV102: 0 | AW102: 0 | AX102: 350000000 | AY102: 99000000 | AZ102: 0 | BA102: 0 | BB102: 99000000 | BC102: 420000000 | BD102: 0 | BE102: 0 | BF102: 420000000 | BG102: 296600000 | BH102: 0 | BI102: 0 | BJ102: 296600000 | BK102: 300000 | BL102: 0 | BM102: 0 | BN102: 300000 | BO102: 233100000 | BP102: 0 | BQ102: 0 | BR102: 233100000 | BS102: 25000000 | BT102: 0 | BU102: 0 | BV102: 25000000 | BW102: 699680000 | BX102: 0 | BY102: 0 | BZ102: 699680000 | CA102: 950000000 | CB102: 0 | CC102: 163000000 | CD102: 1113000000 | CE102: 0 | CF102: 0 | CG102: 0 | CH102: 0 | CI102: 201432500 | CJ102: 0 | CK102: 0 | CL102: 201432500 | CM102: 1670700000 | CN102: 0 | CO102: 0 | CP102: 1670700000 | CQ102: 445090000 | CR102: 0 | CS102: 0 | CT102: 445090000 | CU102: 610700000 | CV102: 0 | CW102: 0 | CX102: 610700000 | CY102: 3300000 | CZ102: 0 | DA102: 0 | DB102: 3300000
B103: 2027-06-01 | C103: 179300000 | D103: 0 | E103: 0 | F103: 179300000 | G103: 1297800000 | H103: 0 | I103: 0 | J103: 1297800000 | K103: 485600000 | L103: 0 | M103: 0 | N103: 485600000 | O103: 73500000 | P103: 0 | Q103: 0 | R103: 73500000 | S103: 340010000 | T103: 0 | U103: 0 | V103: 340010000 | W103: 172600000 | X103: 0 | Y103: 0 | Z103: 172600000 | AA103: 0 | AB103: 0 | AC103: 0 | AD103: 0 | AE103: 556267500 | AF103: 0 | AG103: 0 | AH103: 556267500 | AI103: 90000000 | AJ103: 0 | AK103: 0 | AL103: 90000000 | AM103: 49000000 | AN103: 0 | AO103: 0 | AP103: 49000000 | AQ103: 1407150000 | AR103: 0 | AS103: 0 | AT103: 1407150000 | AU103: 350000000 | AV103: 0 | AW103: 0 | AX103: 350000000 | AY103: 99000000 | AZ103: 0 | BA103: 0 | BB103: 99000000 | BC103: 420000000 | BD103: 0 | BE103: 0 | BF103: 420000000 | BG103: 296600000 | BH103: 0 | BI103: 0 | BJ103: 296600000 | BK103: 300000 | BL103: 0 | BM103: 0 | BN103: 300000 | BO103: 233100000 | BP103: 0 | BQ103: 0 | BR103: 233100000 | BS103: 25000000 | BT103: 0 | BU103: 0 | BV103: 25000000 | BW103: 699680000 | BX103: 0 | BY103: 0 | BZ103: 699680000 | CA103: 950000000 | CB103: 0 | CC103: 163000000 | CD103: 1113000000 | CE103: 0 | CF103: 0 | CG103: 0 | CH103: 0 | CI103: 201432500 | CJ103: 0 | CK103: 0 | CL103: 201432500 | CM103: 1670700000 | CN103: 0 | CO103: 0 | CP103: 1670700000 | CQ103: 445090000 | CR103: 0 | CS103: 0 | CT103: 445090000 | CU103: 610700000 | CV103: 0 | CW103: 0 | CX103: 610700000 | CY103: 3300000 | CZ103: 0 | DA103: 0 | DB103: 3300000
B104: 2027-07-01 | C104: 179300000 | D104: 0 | E104: 0 | F104: 179300000 | G104: 1297800000 | H104: 0 | I104: 0 | J104: 1297800000 | K104: 485600000 | L104: 0 | M104: 0 | N104: 485600000 | O104: 73500000 | P104: 0 | Q104: 0 | R104: 73500000 | S104: 340010000 | T104: 0 | U104: 0 | V104: 340010000 | W104: 172600000 | X104: 0 | Y104: 0 | Z104: 172600000 | AA104: 0 | AB104: 0 | AC104: 0 | AD104: 0 | AE104: 556267500 | AF104: 0 | AG104: 0 | AH104: 556267500 | AI104: 90000000 | AJ104: 0 | AK104: 0 | AL104: 90000000 | AM104: 49000000 | AN104: 0 | AO104: 0 | AP104: 49000000 | AQ104: 1407150000 | AR104: 0 | AS104: 0 | AT104: 1407150000 | AU104: 350000000 | AV104: 0 | AW104: 0 | AX104: 350000000 | AY104: 99000000 | AZ104: 0 | BA104: 0 | BB104: 99000000 | BC104: 420000000 | BD104: 0 | BE104: 0 | BF104: 420000000 | BG104: 296600000 | BH104: 0 | BI104: 0 | BJ104: 296600000 | BK104: 300000 | BL104: 0 | BM104: 0 | BN104: 300000 | BO104: 233100000 | BP104: 0 | BQ104: 0 | BR104: 233100000 | BS104: 25000000 | BT104: 0 | BU104: 0 | BV104: 25000000 | BW104: 699680000 | BX104: 0 | BY104: 0 | BZ104: 699680000 | CA104: 950000000 | CB104: 0 | CC104: 163000000 | CD104: 1113000000 | CE104: 0 | CF104: 0 | CG104: 0 | CH104: 0 | CI104: 201432500 | CJ104: 0 | CK104: 0 | CL104: 201432500 | CM104: 1670700000 | CN104: 0 | CO104: 0 | CP104: 1670700000 | CQ104: 445090000 | CR104: 0 | CS104: 0 | CT104: 445090000 | CU104: 610700000 | CV104: 0 | CW104: 0 | CX104: 610700000 | CY104: 3300000 | CZ104: 0 | DA104: 0 | DB104: 3300000
B105: 2027-08-01 | C105: 179300000 | D105: 0 | E105: 0 | F105: 179300000 | G105: 1297800000 | H105: 0 | I105: 0 | J105: 1297800000 | K105: 485600000 | L105: 0 | M105: 0 | N105: 485600000 | O105: 73500000 | P105: 0 | Q105: 0 | R105: 73500000 | S105: 340010000 | T105: 0 | U105: 0 | V105: 340010000 | W105: 172600000 | X105: 0 | Y105: 0 | Z105: 172600000 | AA105: 0 | AB105: 0 | AC105: 0 | AD105: 0 | AE105: 556267500 | AF105: 0 | AG105: 0 | AH105: 556267500 | AI105: 90000000 | AJ105: 0 | AK105: 0 | AL105: 90000000 | AM105: 49000000 | AN105: 0 | AO105: 0 | AP105: 49000000 | AQ105: 1407150000 | AR105: 0 | AS105: 0 | AT105: 1407150000 | AU105: 350000000 | AV105: 0 | AW105: 0 | AX105: 350000000 | AY105: 99000000 | AZ105: 0 | BA105: 0 | BB105: 99000000 | BC105: 420000000 | BD105: 0 | BE105: 0 | BF105: 420000000 | BG105: 296600000 | BH105: 0 | BI105: 0 | BJ105: 296600000 | BK105: 300000 | BL105: 0 | BM105: 0 | BN105: 300000 | BO105: 233100000 | BP105: 0 | BQ105: 0 | BR105: 233100000 | BS105: 25000000 | BT105: 0 | BU105: 0 | BV105: 25000000 | BW105: 699680000 | BX105: 0 | BY105: 0 | BZ105: 699680000 | CA105: 950000000 | CB105: 0 | CC105: 163000000 | CD105: 1113000000 | CE105: 0 | CF105: 0 | CG105: 0 | CH105: 0 | CI105: 201432500 | CJ105: 0 | CK105: 0 | CL105: 201432500 | CM105: 1670700000 | CN105: 0 | CO105: 0 | CP105: 1670700000 | CQ105: 445090000 | CR105: 0 | CS105: 0 | CT105: 445090000 | CU105: 610700000 | CV105: 0 | CW105: 0 | CX105: 610700000 | CY105: 3300000 | CZ105: 0 | DA105: 0 | DB105: 3300000
B106: 2027-09-01 | C106: 179300000 | D106: 0 | E106: 0 | F106: 179300000 | G106: 1297800000 | H106: 0 | I106: 0 | J106: 1297800000 | K106: 485600000 | L106: 0 | M106: 0 | N106: 485600000 | O106: 73500000 | P106: 0 | Q106: 0 | R106: 73500000 | S106: 340010000 | T106: 0 | U106: 0 | V106: 340010000 | W106: 172600000 | X106: 0 | Y106: 0 | Z106: 172600000 | AA106: 0 | AB106: 0 | AC106: 0 | AD106: 0 | AE106: 556267500 | AF106: 0 | AG106: 0 | AH106: 556267500 | AI106: 90000000 | AJ106: 0 | AK106: 0 | AL106: 90000000 | AM106: 49000000 | AN106: 0 | AO106: 0 | AP106: 49000000 | AQ106: 1407150000 | AR106: 0 | AS106: 0 | AT106: 1407150000 | AU106: 350000000 | AV106: 0 | AW106: 0 | AX106: 350000000 | AY106: 99000000 | AZ106: 0 | BA106: 0 | BB106: 99000000 | BC106: 420000000 | BD106: 0 | BE106: 0 | BF106: 420000000 | BG106: 296600000 | BH106: 0 | BI106: 0 | BJ106: 296600000 | BK106: 300000 | BL106: 0 | BM106: 0 | BN106: 300000 | BO106: 233100000 | BP106: 0 | BQ106: 0 | BR106: 233100000 | BS106: 25000000 | BT106: 0 | BU106: 0 | BV106: 25000000 | BW106: 699680000 | BX106: 0 | BY106: 0 | BZ106: 699680000 | CA106: 950000000 | CB106: 0 | CC106: 163000000 | CD106: 1113000000 | CE106: 0 | CF106: 0 | CG106: 0 | CH106: 0 | CI106: 201432500 | CJ106: 0 | CK106: 0 | CL106: 201432500 | CM106: 1670700000 | CN106: 0 | CO106: 0 | CP106: 1670700000 | CQ106: 445090000 | CR106: 0 | CS106: 0 | CT106: 445090000 | CU106: 610700000 | CV106: 0 | CW106: 0 | CX106: 610700000 | CY106: 3300000 | CZ106: 0 | DA106: 0 | DB106: 3300000
B107: 2027-10-01 | C107: 179300000 | D107: 0 | E107: 0 | F107: 179300000 | G107: 1297800000 | H107: 0 | I107: 0 | J107: 1297800000 | K107: 485600000 | L107: 0 | M107: 0 | N107: 485600000 | O107: 73500000 | P107: 0 | Q107: 0 | R107: 73500000 | S107: 340010000 | T107: 0 | U107: 0 | V107: 340010000 | W107: 172600000 | X107: 0 | Y107: 0 | Z107: 172600000 | AA107: 0 | AB107: 0 | AC107: 0 | AD107: 0 | AE107: 556267500 | AF107: 0 | AG107: 0 | AH107: 556267500 | AI107: 90000000 | AJ107: 0 | AK107: 0 | AL107: 90000000 | AM107: 49000000 | AN107: 0 | AO107: 0 | AP107: 49000000 | AQ107: 1407150000 | AR107: 0 | AS107: 0 | AT107: 1407150000 | AU107: 350000000 | AV107: 0 | AW107: 0 | AX107: 350000000 | AY107: 99000000 | AZ107: 0 | BA107: 0 | BB107: 99000000 | BC107: 420000000 | BD107: 0 | BE107: 0 | BF107: 420000000 | BG107: 296600000 | BH107: 0 | BI107: 0 | BJ107: 296600000 | BK107: 300000 | BL107: 0 | BM107: 0 | BN107: 300000 | BO107: 233100000 | BP107: 0 | BQ107: 0 | BR107: 233100000 | BS107: 25000000 | BT107: 0 | BU107: 0 | BV107: 25000000 | BW107: 699680000 | BX107: 0 | BY107: 0 | BZ107: 699680000 | CA107: 950000000 | CB107: 0 | CC107: 163000000 | CD107: 1113000000 | CE107: 0 | CF107: 0 | CG107: 0 | CH107: 0 | CI107: 201432500 | CJ107: 0 | CK107: 0 | CL107: 201432500 | CM107: 1670700000 | CN107: 0 | CO107: 0 | CP107: 1670700000 | CQ107: 445090000 | CR107: 0 | CS107: 0 | CT107: 445090000 | CU107: 610700000 | CV107: 0 | CW107: 0 | CX107: 610700000 | CY107: 3300000 | CZ107: 0 | DA107: 0 | DB107: 3300000
B108: 2027-11-01 | C108: 179300000 | D108: 0 | E108: 0 | F108: 179300000 | G108: 1297800000 | H108: 0 | I108: 0 | J108: 1297800000 | K108: 485600000 | L108: 0 | M108: 0 | N108: 485600000 | O108: 73500000 | P108: 0 | Q108: 0 | R108: 73500000 | S108: 340010000 | T108: 0 | U108: 0 | V108: 340010000 | W108: 172600000 | X108: 0 | Y108: 0 | Z108: 172600000 | AA108: 0 | AB108: 0 | AC108: 0 | AD108: 0 | AE108: 556267500 | AF108: 0 | AG108: 0 | AH108: 556267500 | AI108: 90000000 | AJ108: 0 | AK108: 0 | AL108: 90000000 | AM108: 49000000 | AN108: 0 | AO108: 0 | AP108: 49000000 | AQ108: 1407150000 | AR108: 0 | AS108: 0 | AT108: 1407150000 | AU108: 350000000 | AV108: 0 | AW108: 0 | AX108: 350000000 | AY108: 99000000 | AZ108: 0 | BA108: 0 | BB108: 99000000 | BC108: 420000000 | BD108: 0 | BE108: 0 | BF108: 420000000 | BG108: 296600000 | BH108: 0 | BI108: 0 | BJ108: 296600000 | BK108: 300000 | BL108: 0 | BM108: 0 | BN108: 300000 | BO108: 233100000 | BP108: 0 | BQ108: 0 | BR108: 233100000 | BS108: 25000000 | BT108: 0 | BU108: 0 | BV108: 25000000 | BW108: 699680000 | BX108: 0 | BY108: 0 | BZ108: 699680000 | CA108: 950000000 | CB108: 0 | CC108: 163000000 | CD108: 1113000000 | CE108: 0 | CF108: 0 | CG108: 0 | CH108: 0 | CI108: 201432500 | CJ108: 0 | CK108: 0 | CL108: 201432500 | CM108: 1670700000 | CN108: 0 | CO108: 0 | CP108: 1670700000 | CQ108: 445090000 | CR108: 0 | CS108: 0 | CT108: 445090000 | CU108: 610700000 | CV108: 0 | CW108: 0 | CX108: 610700000 | CY108: 3300000 | CZ108: 0 | DA108: 0 | DB108: 3300000
B109: 2027-12-01 | C109: 179300000 | D109: 0 | E109: 0 | F109: 179300000 | G109: 1297800000 | H109: 0 | I109: 0 | J109: 1297800000 | K109: 485600000 | L109: 0 | M109: 0 | N109: 485600000 | O109: 73500000 | P109: 0 | Q109: 0 | R109: 73500000 | S109: 340010000 | T109: 0 | U109: 0 | V109: 340010000 | W109: 172600000 | X109: 0 | Y109: 0 | Z109: 172600000 | AA109: 0 | AB109: 0 | AC109: 0 | AD109: 0 | AE109: 556267500 | AF109: 0 | AG109: 0 | AH109: 556267500 | AI109: 90000000 | AJ109: 0 | AK109: 0 | AL109: 90000000 | AM109: 49000000 | AN109: 0 | AO109: 0 | AP109: 49000000 | AQ109: 1407150000 | AR109: 0 | AS109: 0 | AT109: 1407150000 | AU109: 350000000 | AV109: 0 | AW109: 0 | AX109: 350000000 | AY109: 99000000 | AZ109: 0 | BA109: 0 | BB109: 99000000 | BC109: 420000000 | BD109: 0 | BE109: 0 | BF109: 420000000 | BG109: 296600000 | BH109: 0 | BI109: 0 | BJ109: 296600000 | BK109: 300000 | BL109: 0 | BM109: 0 | BN109: 300000 | BO109: 233100000 | BP109: 0 | BQ109: 0 | BR109: 233100000 | BS109: 25000000 | BT109: 0 | BU109: 0 | BV109: 25000000 | BW109: 699680000 | BX109: 0 | BY109: 0 | BZ109: 699680000 | CA109: 950000000 | CB109: 0 | CC109: 163000000 | CD109: 1113000000 | CE109: 0 | CF109: 0 | CG109: 0 | CH109: 0 | CI109: 201432500 | CJ109: 0 | CK109: 0 | CL109: 201432500 | CM109: 1670700000 | CN109: 0 | CO109: 0 | CP109: 1670700000 | CQ109: 445090000 | CR109: 0 | CS109: 0 | CT109: 445090000 | CU109: 610700000 | CV109: 0 | CW109: 0 | CX109: 610700000 | CY109: 3300000 | CZ109: 0 | DA109: 0 | DB109: 3300000
B110: 2028-01-01 | C110: 179300000 | D110: 0 | E110: 0 | F110: 179300000 | G110: 1297800000 | H110: 0 | I110: 0 | J110: 1297800000 | K110: 485600000 | L110: 0 | M110: 0 | N110: 485600000 | O110: 73500000 | P110: 0 | Q110: 0 | R110: 73500000 | S110: 340010000 | T110: 0 | U110: 0 | V110: 340010000 | W110: 172600000 | X110: 0 | Y110: 0 | Z110: 172600000 | AA110: 0 | AB110: 0 | AC110: 0 | AD110: 0 | AE110: 556267500 | AF110: 0 | AG110: 0 | AH110: 556267500 | AI110: 90000000 | AJ110: 0 | AK110: 0 | AL110: 90000000 | AM110: 49000000 | AN110: 0 | AO110: 0 | AP110: 49000000 | AQ110: 1407150000 | AR110: 0 | AS110: 0 | AT110: 1407150000 | AU110: 350000000 | AV110: 0 | AW110: 0 | AX110: 350000000 | AY110: 99000000 | AZ110: 0 | BA110: 0 | BB110: 99000000 | BC110: 420000000 | BD110: 0 | BE110: 0 | BF110: 420000000 | BG110: 296600000 | BH110: 0 | BI110: 0 | BJ110: 296600000 | BK110: 300000 | BL110: 0 | BM110: 0 | BN110: 300000 | BO110: 233100000 | BP110: 0 | BQ110: 0 | BR110: 233100000 | BS110: 25000000 | BT110: 0 | BU110: 0 | BV110: 25000000 | BW110: 699680000 | BX110: 0 | BY110: 0 | BZ110: 699680000 | CA110: 950000000 | CB110: 0 | CC110: 163000000 | CD110: 1113000000 | CE110: 0 | CF110: 0 | CG110: 0 | CH110: 0 | CI110: 201432500 | CJ110: 0 | CK110: 0 | CL110: 201432500 | CM110: 1670700000 | CN110: 0 | CO110: 0 | CP110: 1670700000 | CQ110: 445090000 | CR110: 0 | CS110: 0 | CT110: 445090000 | CU110: 610700000 | CV110: 0 | CW110: 0 | CX110: 610700000 | CY110: 3300000 | CZ110: 0 | DA110: 0 | DB110: 3300000
B111: 2028-02-01 | C111: 179300000 | D111: 0 | E111: 0 | F111: 179300000 | G111: 1297800000 | H111: 0 | I111: 0 | J111: 1297800000 | K111: 485600000 | L111: 0 | M111: 0 | N111: 485600000 | O111: 73500000 | P111: 0 | Q111: 0 | R111: 73500000 | S111: 340010000 | T111: 0 | U111: 0 | V111: 340010000 | W111: 172600000 | X111: 0 | Y111: 0 | Z111: 172600000 | AA111: 0 | AB111: 0 | AC111: 0 | AD111: 0 | AE111: 556267500 | AF111: 0 | AG111: 0 | AH111: 556267500 | AI111: 90000000 | AJ111: 0 | AK111: 0 | AL111: 90000000 | AM111: 49000000 | AN111: 0 | AO111: 0 | AP111: 49000000 | AQ111: 1407150000 | AR111: 0 | AS111: 0 | AT111: 1407150000 | AU111: 350000000 | AV111: 0 | AW111: 0 | AX111: 350000000 | AY111: 99000000 | AZ111: 0 | BA111: 0 | BB111: 99000000 | BC111: 420000000 | BD111: 0 | BE111: 0 | BF111: 420000000 | BG111: 296600000 | BH111: 0 | BI111: 0 | BJ111: 296600000 | BK111: 300000 | BL111: 0 | BM111: 0 | BN111: 300000 | BO111: 233100000 | BP111: 0 | BQ111: 0 | BR111: 233100000 | BS111: 25000000 | BT111: 0 | BU111: 0 | BV111: 25000000 | BW111: 699680000 | BX111: 0 | BY111: 0 | BZ111: 699680000 | CA111: 950000000 | CB111: 0 | CC111: 163000000 | CD111: 1113000000 | CE111: 0 | CF111: 0 | CG111: 0 | CH111: 0 | CI111: 201432500 | CJ111: 0 | CK111: 0 | CL111: 201432500 | CM111: 1670700000 | CN111: 0 | CO111: 0 | CP111: 1670700000 | CQ111: 445090000 | CR111: 0 | CS111: 0 | CT111: 445090000 | CU111: 610700000 | CV111: 0 | CW111: 0 | CX111: 610700000 | CY111: 3300000 | CZ111: 0 | DA111: 0 | DB111: 3300000
B112: 2028-03-01 | C112: 179300000 | D112: 0 | E112: 0 | F112: 179300000 | G112: 1297800000 | H112: 0 | I112: 0 | J112: 1297800000 | K112: 485600000 | L112: 0 | M112: 0 | N112: 485600000 | O112: 73500000 | P112: 0 | Q112: 0 | R112: 73500000 | S112: 340010000 | T112: 0 | U112: 0 | V112: 340010000 | W112: 172600000 | X112: 0 | Y112: 0 | Z112: 172600000 | AA112: 0 | AB112: 0 | AC112: 0 | AD112: 0 | AE112: 556267500 | AF112: 0 | AG112: 0 | AH112: 556267500 | AI112: 90000000 | AJ112: 0 | AK112: 0 | AL112: 90000000 | AM112: 49000000 | AN112: 0 | AO112: 0 | AP112: 49000000 | AQ112: 1407150000 | AR112: 0 | AS112: 0 | AT112: 1407150000 | AU112: 350000000 | AV112: 0 | AW112: 0 | AX112: 350000000 | AY112: 99000000 | AZ112: 0 | BA112: 0 | BB112: 99000000 | BC112: 420000000 | BD112: 0 | BE112: 0 | BF112: 420000000 | BG112: 296600000 | BH112: 0 | BI112: 0 | BJ112: 296600000 | BK112: 300000 | BL112: 0 | BM112: 0 | BN112: 300000 | BO112: 233100000 | BP112: 0 | BQ112: 0 | BR112: 233100000 | BS112: 25000000 | BT112: 0 | BU112: 0 | BV112: 25000000 | BW112: 699680000 | BX112: 0 | BY112: 0 | BZ112: 699680000 | CA112: 950000000 | CB112: 0 | CC112: 163000000 | CD112: 1113000000 | CE112: 0 | CF112: 0 | CG112: 0 | CH112: 0 | CI112: 201432500 | CJ112: 0 | CK112: 0 | CL112: 201432500 | CM112: 1670700000 | CN112: 0 | CO112: 0 | CP112: 1670700000 | CQ112: 445090000 | CR112: 0 | CS112: 0 | CT112: 445090000 | CU112: 610700000 | CV112: 0 | CW112: 0 | CX112: 610700000 | CY112: 3300000 | CZ112: 0 | DA112: 0 | DB112: 3300000
B113: 2028-04-01 | C113: 179300000 | D113: 0 | E113: 0 | F113: 179300000 | G113: 1297800000 | H113: 0 | I113: 0 | J113: 1297800000 | K113: 485600000 | L113: 0 | M113: 0 | N113: 485600000 | O113: 73500000 | P113: 0 | Q113: 0 | R113: 73500000 | S113: 340010000 | T113: 0 | U113: 0 | V113: 340010000 | W113: 172600000 | X113: 0 | Y113: 0 | Z113: 172600000 | AA113: 0 | AB113: 0 | AC113: 0 | AD113: 0 | AE113: 556267500 | AF113: 0 | AG113: 0 | AH113: 556267500 | AI113: 90000000 | AJ113: 0 | AK113: 0 | AL113: 90000000 | AM113: 49000000 | AN113: 0 | AO113: 0 | AP113: 49000000 | AQ113: 1407150000 | AR113: 0 | AS113: 0 | AT113: 1407150000 | AU113: 350000000 | AV113: 0 | AW113: 0 | AX113: 350000000 | AY113: 99000000 | AZ113: 0 | BA113: 0 | BB113: 99000000 | BC113: 420000000 | BD113: 0 | BE113: 0 | BF113: 420000000 | BG113: 296600000 | BH113: 0 | BI113: 0 | BJ113: 296600000 | BK113: 300000 | BL113: 0 | BM113: 0 | BN113: 300000 | BO113: 233100000 | BP113: 0 | BQ113: 0 | BR113: 233100000 | BS113: 25000000 | BT113: 0 | BU113: 0 | BV113: 25000000 | BW113: 699680000 | BX113: 0 | BY113: 0 | BZ113: 699680000 | CA113: 950000000 | CB113: 0 | CC113: 163000000 | CD113: 1113000000 | CE113: 0 | CF113: 0 | CG113: 0 | CH113: 0 | CI113: 201432500 | CJ113: 0 | CK113: 0 | CL113: 201432500 | CM113: 1670700000 | CN113: 0 | CO113: 0 | CP113: 1670700000 | CQ113: 445090000 | CR113: 0 | CS113: 0 | CT113: 445090000 | CU113: 610700000 | CV113: 0 | CW113: 0 | CX113: 610700000 | CY113: 3300000 | CZ113: 0 | DA113: 0 | DB113: 3300000
B114: 2028-05-01 | C114: 179300000 | D114: 0 | E114: 0 | F114: 179300000 | G114: 1297800000 | H114: 0 | I114: 0 | J114: 1297800000 | K114: 485600000 | L114: 0 | M114: 0 | N114: 485600000 | O114: 73500000 | P114: 0 | Q114: 0 | R114: 73500000 | S114: 340010000 | T114: 0 | U114: 0 | V114: 340010000 | W114: 172600000 | X114: 0 | Y114: 0 | Z114: 172600000 | AA114: 0 | AB114: 0 | AC114: 0 | AD114: 0 | AE114: 556267500 | AF114: 0 | AG114: 0 | AH114: 556267500 | AI114: 90000000 | AJ114: 0 | AK114: 0 | AL114: 90000000 | AM114: 49000000 | AN114: 0 | AO114: 0 | AP114: 49000000 | AQ114: 1407150000 | AR114: 0 | AS114: 0 | AT114: 1407150000 | AU114: 350000000 | AV114: 0 | AW114: 0 | AX114: 350000000 | AY114: 99000000 | AZ114: 0 | BA114: 0 | BB114: 99000000 | BC114: 420000000 | BD114: 0 | BE114: 0 | BF114: 420000000 | BG114: 296600000 | BH114: 0 | BI114: 0 | BJ114: 296600000 | BK114: 300000 | BL114: 0 | BM114: 0 | BN114: 300000 | BO114: 233100000 | BP114: 0 | BQ114: 0 | BR114: 233100000 | BS114: 25000000 | BT114: 0 | BU114: 0 | BV114: 25000000 | BW114: 699680000 | BX114: 0 | BY114: 0 | BZ114: 699680000 | CA114: 950000000 | CB114: 0 | CC114: 163000000 | CD114: 1113000000 | CE114: 0 | CF114: 0 | CG114: 0 | CH114: 0 | CI114: 201432500 | CJ114: 0 | CK114: 0 | CL114: 201432500 | CM114: 1670700000 | CN114: 0 | CO114: 0 | CP114: 1670700000 | CQ114: 445090000 | CR114: 0 | CS114: 0 | CT114: 445090000 | CU114: 610700000 | CV114: 0 | CW114: 0 | CX114: 610700000 | CY114: 3300000 | CZ114: 0 | DA114: 0 | DB114: 3300000
B115: 2028-06-01 | C115: 179300000 | D115: 0 | E115: 0 | F115: 179300000 | G115: 1297800000 | H115: 0 | I115: 0 | J115: 1297800000 | K115: 485600000 | L115: 0 | M115: 0 | N115: 485600000 | O115: 73500000 | P115: 0 | Q115: 0 | R115: 73500000 | S115: 340010000 | T115: 0 | U115: 0 | V115: 340010000 | W115: 172600000 | X115: 0 | Y115: 0 | Z115: 172600000 | AA115: 0 | AB115: 0 | AC115: 0 | AD115: 0 | AE115: 556267500 | AF115: 0 | AG115: 0 | AH115: 556267500 | AI115: 90000000 | AJ115: 0 | AK115: 0 | AL115: 90000000 | AM115: 49000000 | AN115: 0 | AO115: 0 | AP115: 49000000 | AQ115: 1407150000 | AR115: 0 | AS115: 0 | AT115: 1407150000 | AU115: 350000000 | AV115: 0 | AW115: 0 | AX115: 350000000 | AY115: 99000000 | AZ115: 0 | BA115: 0 | BB115: 99000000 | BC115: 420000000 | BD115: 0 | BE115: 0 | BF115: 420000000 | BG115: 296600000 | BH115: 0 | BI115: 0 | BJ115: 296600000 | BK115: 300000 | BL115: 0 | BM115: 0 | BN115: 300000 | BO115: 233100000 | BP115: 0 | BQ115: 0 | BR115: 233100000 | BS115: 25000000 | BT115: 0 | BU115: 0 | BV115: 25000000 | BW115: 699680000 | BX115: 0 | BY115: 0 | BZ115: 699680000 | CA115: 950000000 | CB115: 0 | CC115: 163000000 | CD115: 1113000000 | CE115: 0 | CF115: 0 | CG115: 0 | CH115: 0 | CI115: 201432500 | CJ115: 0 | CK115: 0 | CL115: 201432500 | CM115: 1670700000 | CN115: 0 | CO115: 0 | CP115: 1670700000 | CQ115: 445090000 | CR115: 0 | CS115: 0 | CT115: 445090000 | CU115: 610700000 | CV115: 0 | CW115: 0 | CX115: 610700000 | CY115: 3300000 | CZ115: 0 | DA115: 0 | DB115: 3300000
B116: 2028-07-01 | C116: 179300000 | D116: 0 | E116: 0 | F116: 179300000 | G116: 1297800000 | H116: 0 | I116: 0 | J116: 1297800000 | K116: 485600000 | L116: 0 | M116: 0 | N116: 485600000 | O116: 73500000 | P116: 0 | Q116: 0 | R116: 73500000 | S116: 340010000 | T116: 0 | U116: 0 | V116: 340010000 | W116: 172600000 | X116: 0 | Y116: 0 | Z116: 172600000 | AA116: 0 | AB116: 0 | AC116: 0 | AD116: 0 | AE116: 556267500 | AF116: 0 | AG116: 0 | AH116: 556267500 | AI116: 90000000 | AJ116: 0 | AK116: 0 | AL116: 90000000 | AM116: 49000000 | AN116: 0 | AO116: 0 | AP116: 49000000 | AQ116: 1407150000 | AR116: 0 | AS116: 0 | AT116: 1407150000 | AU116: 350000000 | AV116: 0 | AW116: 0 | AX116: 350000000 | AY116: 99000000 | AZ116: 0 | BA116: 0 | BB116: 99000000 | BC116: 420000000 | BD116: 0 | BE116: 0 | BF116: 420000000 | BG116: 296600000 | BH116: 0 | BI116: 0 | BJ116: 296600000 | BK116: 300000 | BL116: 0 | BM116: 0 | BN116: 300000 | BO116: 233100000 | BP116: 0 | BQ116: 0 | BR116: 233100000 | BS116: 25000000 | BT116: 0 | BU116: 0 | BV116: 25000000 | BW116: 699680000 | BX116: 0 | BY116: 0 | BZ116: 699680000 | CA116: 950000000 | CB116: 0 | CC116: 163000000 | CD116: 1113000000 | CE116: 0 | CF116: 0 | CG116: 0 | CH116: 0 | CI116: 201432500 | CJ116: 0 | CK116: 0 | CL116: 201432500 | CM116: 1670700000 | CN116: 0 | CO116: 0 | CP116: 1670700000 | CQ116: 445090000 | CR116: 0 | CS116: 0 | CT116: 445090000 | CU116: 610700000 | CV116: 0 | CW116: 0 | CX116: 610700000 | CY116: 3300000 | CZ116: 0 | DA116: 0 | DB116: 3300000
B117: 2028-08-01 | C117: 179300000 | D117: 0 | E117: 0 | F117: 179300000 | G117: 1297800000 | H117: 0 | I117: 0 | J117: 1297800000 | K117: 485600000 | L117: 0 | M117: 0 | N117: 485600000 | O117: 73500000 | P117: 0 | Q117: 0 | R117: 73500000 | S117: 340010000 | T117: 0 | U117: 0 | V117: 340010000 | W117: 172600000 | X117: 0 | Y117: 0 | Z117: 172600000 | AA117: 0 | AB117: 0 | AC117: 0 | AD117: 0 | AE117: 556267500 | AF117: 0 | AG117: 0 | AH117: 556267500 | AI117: 90000000 | AJ117: 0 | AK117: 0 | AL117: 90000000 | AM117: 49000000 | AN117: 0 | AO117: 0 | AP117: 49000000 | AQ117: 1407150000 | AR117: 0 | AS117: 0 | AT117: 1407150000 | AU117: 350000000 | AV117: 0 | AW117: 0 | AX117: 350000000 | AY117: 99000000 | AZ117: 0 | BA117: 0 | BB117: 99000000 | BC117: 420000000 | BD117: 0 | BE117: 0 | BF117: 420000000 | BG117: 296600000 | BH117: 0 | BI117: 0 | BJ117: 296600000 | BK117: 300000 | BL117: 0 | BM117: 0 | BN117: 300000 | BO117: 233100000 | BP117: 0 | BQ117: 0 | BR117: 233100000 | BS117: 25000000 | BT117: 0 | BU117: 0 | BV117: 25000000 | BW117: 699680000 | BX117: 0 | BY117: 0 | BZ117: 699680000 | CA117: 950000000 | CB117: 0 | CC117: 163000000 | CD117: 1113000000 | CE117: 0 | CF117: 0 | CG117: 0 | CH117: 0 | CI117: 201432500 | CJ117: 0 | CK117: 0 | CL117: 201432500 | CM117: 1670700000 | CN117: 0 | CO117: 0 | CP117: 1670700000 | CQ117: 445090000 | CR117: 0 | CS117: 0 | CT117: 445090000 | CU117: 610700000 | CV117: 0 | CW117: 0 | CX117: 610700000 | CY117: 3300000 | CZ117: 0 | DA117: 0 | DB117: 3300000
B118: 2028-09-01 | C118: 179300000 | D118: 0 | E118: 0 | F118: 179300000 | G118: 1297800000 | H118: 0 | I118: 0 | J118: 1297800000 | K118: 485600000 | L118: 0 | M118: 0 | N118: 485600000 | O118: 73500000 | P118: 0 | Q118: 0 | R118: 73500000 | S118: 340010000 | T118: 0 | U118: 0 | V118: 340010000 | W118: 172600000 | X118: 0 | Y118: 0 | Z118: 172600000 | AA118: 0 | AB118: 0 | AC118: 0 | AD118: 0 | AE118: 556267500 | AF118: 0 | AG118: 0 | AH118: 556267500 | AI118: 90000000 | AJ118: 0 | AK118: 0 | AL118: 90000000 | AM118: 49000000 | AN118: 0 | AO118: 0 | AP118: 49000000 | AQ118: 1407150000 | AR118: 0 | AS118: 0 | AT118: 1407150000 | AU118: 350000000 | AV118: 0 | AW118: 0 | AX118: 350000000 | AY118: 99000000 | AZ118: 0 | BA118: 0 | BB118: 99000000 | BC118: 420000000 | BD118: 0 | BE118: 0 | BF118: 420000000 | BG118: 296600000 | BH118: 0 | BI118: 0 | BJ118: 296600000 | BK118: 300000 | BL118: 0 | BM118: 0 | BN118: 300000 | BO118: 233100000 | BP118: 0 | BQ118: 0 | BR118: 233100000 | BS118: 25000000 | BT118: 0 | BU118: 0 | BV118: 25000000 | BW118: 699680000 | BX118: 0 | BY118: 0 | BZ118: 699680000 | CA118: 950000000 | CB118: 0 | CC118: 163000000 | CD118: 1113000000 | CE118: 0 | CF118: 0 | CG118: 0 | CH118: 0 | CI118: 201432500 | CJ118: 0 | CK118: 0 | CL118: 201432500 | CM118: 1670700000 | CN118: 0 | CO118: 0 | CP118: 1670700000 | CQ118: 445090000 | CR118: 0 | CS118: 0 | CT118: 445090000 | CU118: 610700000 | CV118: 0 | CW118: 0 | CX118: 610700000 | CY118: 3300000 | CZ118: 0 | DA118: 0 | DB118: 3300000
B119: 2028-10-01 | C119: 179300000 | D119: 0 | E119: 0 | F119: 179300000 | G119: 1297800000 | H119: 0 | I119: 0 | J119: 1297800000 | K119: 485600000 | L119: 0 | M119: 0 | N119: 485600000 | O119: 73500000 | P119: 0 | Q119: 0 | R119: 73500000 | S119: 340010000 | T119: 0 | U119: 0 | V119: 340010000 | W119: 172600000 | X119: 0 | Y119: 0 | Z119: 172600000 | AA119: 0 | AB119: 0 | AC119: 0 | AD119: 0 | AE119: 556267500 | AF119: 0 | AG119: 0 | AH119: 556267500 | AI119: 90000000 | AJ119: 0 | AK119: 0 | AL119: 90000000 | AM119: 49000000 | AN119: 0 | AO119: 0 | AP119: 49000000 | AQ119: 1407150000 | AR119: 0 | AS119: 0 | AT119: 1407150000 | AU119: 350000000 | AV119: 0 | AW119: 0 | AX119: 350000000 | AY119: 99000000 | AZ119: 0 | BA119: 0 | BB119: 99000000 | BC119: 420000000 | BD119: 0 | BE119: 0 | BF119: 420000000 | BG119: 296600000 | BH119: 0 | BI119: 0 | BJ119: 296600000 | BK119: 300000 | BL119: 0 | BM119: 0 | BN119: 300000 | BO119: 233100000 | BP119: 0 | BQ119: 0 | BR119: 233100000 | BS119: 25000000 | BT119: 0 | BU119: 0 | BV119: 25000000 | BW119: 699680000 | BX119: 0 | BY119: 0 | BZ119: 699680000 | CA119: 950000000 | CB119: 0 | CC119: 163000000 | CD119: 1113000000 | CE119: 0 | CF119: 0 | CG119: 0 | CH119: 0 | CI119: 201432500 | CJ119: 0 | CK119: 0 | CL119: 201432500 | CM119: 1670700000 | CN119: 0 | CO119: 0 | CP119: 1670700000 | CQ119: 445090000 | CR119: 0 | CS119: 0 | CT119: 445090000 | CU119: 610700000 | CV119: 0 | CW119: 0 | CX119: 610700000 | CY119: 3300000 | CZ119: 0 | DA119: 0 | DB119: 3300000
B120: 2028-11-01 | C120: 179300000 | D120: 0 | E120: 0 | F120: 179300000 | G120: 1297800000 | H120: 0 | I120: 0 | J120: 1297800000 | K120: 485600000 | L120: 0 | M120: 0 | N120: 485600000 | O120: 73500000 | P120: 0 | Q120: 0 | R120: 73500000 | S120: 340010000 | T120: 0 | U120: 0 | V120: 340010000 | W120: 172600000 | X120: 0 | Y120: 0 | Z120: 172600000 | AA120: 0 | AB120: 0 | AC120: 0 | AD120: 0 | AE120: 556267500 | AF120: 0 | AG120: 0 | AH120: 556267500 | AI120: 90000000 | AJ120: 0 | AK120: 0 | AL120: 90000000 | AM120: 49000000 | AN120: 0 | AO120: 0 | AP120: 49000000 | AQ120: 1407150000 | AR120: 0 | AS120: 0 | AT120: 1407150000 | AU120: 350000000 | AV120: 0 | AW120: 0 | AX120: 350000000 | AY120: 99000000 | AZ120: 0 | BA120: 0 | BB120: 99000000 | BC120: 420000000 | BD120: 0 | BE120: 0 | BF120: 420000000 | BG120: 296600000 | BH120: 0 | BI120: 0 | BJ120: 296600000 | BK120: 300000 | BL120: 0 | BM120: 0 | BN120: 300000 | BO120: 233100000 | BP120: 0 | BQ120: 0 | BR120: 233100000 | BS120: 25000000 | BT120: 0 | BU120: 0 | BV120: 25000000 | BW120: 699680000 | BX120: 0 | BY120: 0 | BZ120: 699680000 | CA120: 950000000 | CB120: 0 | CC120: 163000000 | CD120: 1113000000 | CE120: 0 | CF120: 0 | CG120: 0 | CH120: 0 | CI120: 201432500 | CJ120: 0 | CK120: 0 | CL120: 201432500 | CM120: 1670700000 | CN120: 0 | CO120: 0 | CP120: 1670700000 | CQ120: 445090000 | CR120: 0 | CS120: 0 | CT120: 445090000 | CU120: 610700000 | CV120: 0 | CW120: 0 | CX120: 610700000 | CY120: 3300000 | CZ120: 0 | DA120: 0 | DB120: 3300000
B121: 2028-12-01 | C121: 179300000 | D121: 0 | E121: 0 | F121: 179300000 | G121: 1297800000 | H121: 0 | I121: 0 | J121: 1297800000 | K121: 485600000 | L121: 0 | M121: 0 | N121: 485600000 | O121: 73500000 | P121: 0 | Q121: 0 | R121: 73500000 | S121: 340010000 | T121: 0 | U121: 0 | V121: 340010000 | W121: 172600000 | X121: 0 | Y121: 0 | Z121: 172600000 | AA121: 0 | AB121: 0 | AC121: 0 | AD121: 0 | AE121: 556267500 | AF121: 0 | AG121: 0 | AH121: 556267500 | AI121: 90000000 | AJ121: 0 | AK121: 0 | AL121: 90000000 | AM121: 49000000 | AN121: 0 | AO121: 0 | AP121: 49000000 | AQ121: 1407150000 | AR121: 0 | AS121: 0 | AT121: 1407150000 | AU121: 350000000 | AV121: 0 | AW121: 0 | AX121: 350000000 | AY121: 99000000 | AZ121: 0 | BA121: 0 | BB121: 99000000 | BC121: 420000000 | BD121: 0 | BE121: 0 | BF121: 420000000 | BG121: 296600000 | BH121: 0 | BI121: 0 | BJ121: 296600000 | BK121: 300000 | BL121: 0 | BM121: 0 | BN121: 300000 | BO121: 233100000 | BP121: 0 | BQ121: 0 | BR121: 233100000 | BS121: 25000000 | BT121: 0 | BU121: 0 | BV121: 25000000 | BW121: 699680000 | BX121: 0 | BY121: 0 | BZ121: 699680000 | CA121: 950000000 | CB121: 0 | CC121: 163000000 | CD121: 1113000000 | CE121: 0 | CF121: 0 | CG121: 0 | CH121: 0 | CI121: 201432500 | CJ121: 0 | CK121: 0 | CL121: 201432500 | CM121: 1670700000 | CN121: 0 | CO121: 0 | CP121: 1670700000 | CQ121: 445090000 | CR121: 0 | CS121: 0 | CT121: 445090000 | CU121: 610700000 | CV121: 0 | CW121: 0 | CX121: 610700000 | CY121: 3300000 | CZ121: 0 | DA121: 0 | DB121: 3300000
B122: 2029-01-01 | C122: 179300000 | D122: 0 | E122: 0 | F122: 179300000 | G122: 1297800000 | H122: 0 | I122: 0 | J122: 1297800000 | K122: 485600000 | L122: 0 | M122: 0 | N122: 485600000 | O122: 73500000 | P122: 0 | Q122: 0 | R122: 73500000 | S122: 340010000 | T122: 0 | U122: 0 | V122: 340010000 | W122: 172600000 | X122: 0 | Y122: 0 | Z122: 172600000 | AA122: 0 | AB122: 0 | AC122: 0 | AD122: 0 | AE122: 556267500 | AF122: 0 | AG122: 0 | AH122: 556267500 | AI122: 90000000 | AJ122: 0 | AK122: 0 | AL122: 90000000 | AM122: 49000000 | AN122: 0 | AO122: 0 | AP122: 49000000 | AQ122: 1407150000 | AR122: 0 | AS122: 0 | AT122: 1407150000 | AU122: 350000000 | AV122: 0 | AW122: 0 | AX122: 350000000 | AY122: 99000000 | AZ122: 0 | BA122: 0 | BB122: 99000000 | BC122: 420000000 | BD122: 0 | BE122: 0 | BF122: 420000000 | BG122: 296600000 | BH122: 0 | BI122: 0 | BJ122: 296600000 | BK122: 300000 | BL122: 0 | BM122: 0 | BN122: 300000 | BO122: 233100000 | BP122: 0 | BQ122: 0 | BR122: 233100000 | BS122: 25000000 | BT122: 0 | BU122: 0 | BV122: 25000000 | BW122: 699680000 | BX122: 0 | BY122: 0 | BZ122: 699680000 | CA122: 950000000 | CB122: 0 | CC122: 163000000 | CD122: 1113000000 | CE122: 0 | CF122: 0 | CG122: 0 | CH122: 0 | CI122: 201432500 | CJ122: 0 | CK122: 0 | CL122: 201432500 | CM122: 1670700000 | CN122: 0 | CO122: 0 | CP122: 1670700000 | CQ122: 445090000 | CR122: 0 | CS122: 0 | CT122: 445090000 | CU122: 610700000 | CV122: 0 | CW122: 0 | CX122: 610700000 | CY122: 3300000 | CZ122: 0 | DA122: 0 | DB122: 3300000
B123: 2029-02-01 | C123: 179300000 | D123: 0 | E123: 0 | F123: 179300000 | G123: 1297800000 | H123: 0 | I123: 0 | J123: 1297800000 | K123: 485600000 | L123: 0 | M123: 0 | N123: 485600000 | O123: 73500000 | P123: 0 | Q123: 0 | R123: 73500000 | S123: 340010000 | T123: 0 | U123: 0 | V123: 340010000 | W123: 172600000 | X123: 0 | Y123: 0 | Z123: 172600000 | AA123: 0 | AB123: 0 | AC123: 0 | AD123: 0 | AE123: 556267500 | AF123: 0 | AG123: 0 | AH123: 556267500 | AI123: 90000000 | AJ123: 0 | AK123: 0 | AL123: 90000000 | AM123: 49000000 | AN123: 0 | AO123: 0 | AP123: 49000000 | AQ123: 1407150000 | AR123: 0 | AS123: 0 | AT123: 1407150000 | AU123: 350000000 | AV123: 0 | AW123: 0 | AX123: 350000000 | AY123: 99000000 | AZ123: 0 | BA123: 0 | BB123: 99000000 | BC123: 420000000 | BD123: 0 | BE123: 0 | BF123: 420000000 | BG123: 296600000 | BH123: 0 | BI123: 0 | BJ123: 296600000 | BK123: 300000 | BL123: 0 | BM123: 0 | BN123: 300000 | BO123: 233100000 | BP123: 0 | BQ123: 0 | BR123: 233100000 | BS123: 25000000 | BT123: 0 | BU123: 0 | BV123: 25000000 | BW123: 699680000 | BX123: 0 | BY123: 0 | BZ123: 699680000 | CA123: 950000000 | CB123: 0 | CC123: 163000000 | CD123: 1113000000 | CE123: 0 | CF123: 0 | CG123: 0 | CH123: 0 | CI123: 201432500 | CJ123: 0 | CK123: 0 | CL123: 201432500 | CM123: 1670700000 | CN123: 0 | CO123: 0 | CP123: 1670700000 | CQ123: 445090000 | CR123: 0 | CS123: 0 | CT123: 445090000 | CU123: 610700000 | CV123: 0 | CW123: 0 | CX123: 610700000 | CY123: 3300000 | CZ123: 0 | DA123: 0 | DB123: 3300000
B124: 2029-03-01 | C124: 179300000 | D124: 0 | E124: 0 | F124: 179300000 | G124: 1297800000 | H124: 0 | I124: 0 | J124: 1297800000 | K124: 485600000 | L124: 0 | M124: 0 | N124: 485600000 | O124: 73500000 | P124: 0 | Q124: 0 | R124: 73500000 | S124: 340010000 | T124: 0 | U124: 0 | V124: 340010000 | W124: 172600000 | X124: 0 | Y124: 0 | Z124: 172600000 | AA124: 0 | AB124: 0 | AC124: 0 | AD124: 0 | AE124: 556267500 | AF124: 0 | AG124: 0 | AH124: 556267500 | AI124: 90000000 | AJ124: 0 | AK124: 0 | AL124: 90000000 | AM124: 49000000 | AN124: 0 | AO124: 0 | AP124: 49000000 | AQ124: 1407150000 | AR124: 0 | AS124: 0 | AT124: 1407150000 | AU124: 350000000 | AV124: 0 | AW124: 0 | AX124: 350000000 | AY124: 99000000 | AZ124: 0 | BA124: 0 | BB124: 99000000 | BC124: 420000000 | BD124: 0 | BE124: 0 | BF124: 420000000 | BG124: 296600000 | BH124: 0 | BI124: 0 | BJ124: 296600000 | BK124: 300000 | BL124: 0 | BM124: 0 | BN124: 300000 | BO124: 233100000 | BP124: 0 | BQ124: 0 | BR124: 233100000 | BS124: 25000000 | BT124: 0 | BU124: 0 | BV124: 25000000 | BW124: 699680000 | BX124: 0 | BY124: 0 | BZ124: 699680000 | CA124: 950000000 | CB124: 0 | CC124: 163000000 | CD124: 1113000000 | CE124: 0 | CF124: 0 | CG124: 0 | CH124: 0 | CI124: 201432500 | CJ124: 0 | CK124: 0 | CL124: 201432500 | CM124: 1670700000 | CN124: 0 | CO124: 0 | CP124: 1670700000 | CQ124: 445090000 | CR124: 0 | CS124: 0 | CT124: 445090000 | CU124: 610700000 | CV124: 0 | CW124: 0 | CX124: 610700000 | CY124: 3300000 | CZ124: 0 | DA124: 0 | DB124: 3300000
B125: 2029-04-01 | C125: 179300000 | D125: 0 | E125: 0 | F125: 179300000 | G125: 1297800000 | H125: 0 | I125: 0 | J125: 1297800000 | K125: 485600000 | L125: 0 | M125: 0 | N125: 485600000 | O125: 73500000 | P125: 0 | Q125: 0 | R125: 73500000 | S125: 340010000 | T125: 0 | U125: 0 | V125: 340010000 | W125: 172600000 | X125: 0 | Y125: 0 | Z125: 172600000 | AA125: 0 | AB125: 0 | AC125: 0 | AD125: 0 | AE125: 556267500 | AF125: 0 | AG125: 0 | AH125: 556267500 | AI125: 90000000 | AJ125: 0 | AK125: 0 | AL125: 90000000 | AM125: 49000000 | AN125: 0 | AO125: 0 | AP125: 49000000 | AQ125: 1407150000 | AR125: 0 | AS125: 0 | AT125: 1407150000 | AU125: 350000000 | AV125: 0 | AW125: 0 | AX125: 350000000 | AY125: 99000000 | AZ125: 0 | BA125: 0 | BB125: 99000000 | BC125: 420000000 | BD125: 0 | BE125: 0 | BF125: 420000000 | BG125: 296600000 | BH125: 0 | BI125: 0 | BJ125: 296600000 | BK125: 300000 | BL125: 0 | BM125: 0 | BN125: 300000 | BO125: 233100000 | BP125: 0 | BQ125: 0 | BR125: 233100000 | BS125: 25000000 | BT125: 0 | BU125: 0 | BV125: 25000000 | BW125: 699680000 | BX125: 0 | BY125: 0 | BZ125: 699680000 | CA125: 950000000 | CB125: 0 | CC125: 163000000 | CD125: 1113000000 | CE125: 0 | CF125: 0 | CG125: 0 | CH125: 0 | CI125: 201432500 | CJ125: 0 | CK125: 0 | CL125: 201432500 | CM125: 1670700000 | CN125: 0 | CO125: 0 | CP125: 1670700000 | CQ125: 445090000 | CR125: 0 | CS125: 0 | CT125: 445090000 | CU125: 610700000 | CV125: 0 | CW125: 0 | CX125: 610700000 | CY125: 3300000 | CZ125: 0 | DA125: 0 | DB125: 3300000
B126: 2029-05-01 | C126: 179300000 | D126: 0 | E126: 0 | F126: 179300000 | G126: 1297800000 | H126: 0 | I126: 0 | J126: 1297800000 | K126: 485600000 | L126: 0 | M126: 0 | N126: 485600000 | O126: 73500000 | P126: 0 | Q126: 0 | R126: 73500000 | S126: 340010000 | T126: 0 | U126: 0 | V126: 340010000 | W126: 172600000 | X126: 0 | Y126: 0 | Z126: 172600000 | AA126: 0 | AB126: 0 | AC126: 0 | AD126: 0 | AE126: 556267500 | AF126: 0 | AG126: 0 | AH126: 556267500 | AI126: 90000000 | AJ126: 0 | AK126: 0 | AL126: 90000000 | AM126: 49000000 | AN126: 0 | AO126: 0 | AP126: 49000000 | AQ126: 1407150000 | AR126: 0 | AS126: 0 | AT126: 1407150000 | AU126: 350000000 | AV126: 0 | AW126: 0 | AX126: 350000000 | AY126: 99000000 | AZ126: 0 | BA126: 0 | BB126: 99000000 | BC126: 420000000 | BD126: 0 | BE126: 0 | BF126: 420000000 | BG126: 296600000 | BH126: 0 | BI126: 0 | BJ126: 296600000 | BK126: 300000 | BL126: 0 | BM126: 0 | BN126: 300000 | BO126: 233100000 | BP126: 0 | BQ126: 0 | BR126: 233100000 | BS126: 25000000 | BT126: 0 | BU126: 0 | BV126: 25000000 | BW126: 699680000 | BX126: 0 | BY126: 0 | BZ126: 699680000 | CA126: 950000000 | CB126: 0 | CC126: 163000000 | CD126: 1113000000 | CE126: 0 | CF126: 0 | CG126: 0 | CH126: 0 | CI126: 201432500 | CJ126: 0 | CK126: 0 | CL126: 201432500 | CM126: 1670700000 | CN126: 0 | CO126: 0 | CP126: 1670700000 | CQ126: 445090000 | CR126: 0 | CS126: 0 | CT126: 445090000 | CU126: 610700000 | CV126: 0 | CW126: 0 | CX126: 610700000 | CY126: 3300000 | CZ126: 0 | DA126: 0 | DB126: 3300000
B127: 2029-06-01 | C127: 179300000 | D127: 0 | E127: 0 | F127: 179300000 | G127: 1297800000 | H127: 0 | I127: 0 | J127: 1297800000 | K127: 485600000 | L127: 0 | M127: 0 | N127: 485600000 | O127: 73500000 | P127: 0 | Q127: 0 | R127: 73500000 | S127: 340010000 | T127: 0 | U127: 0 | V127: 340010000 | W127: 172600000 | X127: 0 | Y127: 0 | Z127: 172600000 | AA127: 0 | AB127: 0 | AC127: 0 | AD127: 0 | AE127: 556267500 | AF127: 0 | AG127: 0 | AH127: 556267500 | AI127: 90000000 | AJ127: 0 | AK127: 0 | AL127: 90000000 | AM127: 49000000 | AN127: 0 | AO127: 0 | AP127: 49000000 | AQ127: 1407150000 | AR127: 0 | AS127: 0 | AT127: 1407150000 | AU127: 350000000 | AV127: 0 | AW127: 0 | AX127: 350000000 | AY127: 99000000 | AZ127: 0 | BA127: 0 | BB127: 99000000 | BC127: 420000000 | BD127: 0 | BE127: 0 | BF127: 420000000 | BG127: 296600000 | BH127: 0 | BI127: 0 | BJ127: 296600000 | BK127: 300000 | BL127: 0 | BM127: 0 | BN127: 300000 | BO127: 233100000 | BP127: 0 | BQ127: 0 | BR127: 233100000 | BS127: 25000000 | BT127: 0 | BU127: 0 | BV127: 25000000 | BW127: 699680000 | BX127: 0 | BY127: 0 | BZ127: 699680000 | CA127: 950000000 | CB127: 0 | CC127: 163000000 | CD127: 1113000000 | CE127: 0 | CF127: 0 | CG127: 0 | CH127: 0 | CI127: 201432500 | CJ127: 0 | CK127: 0 | CL127: 201432500 | CM127: 1670700000 | CN127: 0 | CO127: 0 | CP127: 1670700000 | CQ127: 445090000 | CR127: 0 | CS127: 0 | CT127: 445090000 | CU127: 610700000 | CV127: 0 | CW127: 0 | CX127: 610700000 | CY127: 3300000 | CZ127: 0 | DA127: 0 | DB127: 3300000
B128: 2029-07-01 | C128: 179300000 | D128: 0 | E128: 0 | F128: 179300000 | G128: 1297800000 | H128: 0 | I128: 0 | J128: 1297800000 | K128: 485600000 | L128: 0 | M128: 0 | N128: 485600000 | O128: 73500000 | P128: 0 | Q128: 0 | R128: 73500000 | S128: 340010000 | T128: 0 | U128: 0 | V128: 340010000 | W128: 172600000 | X128: 0 | Y128: 0 | Z128: 172600000 | AA128: 0 | AB128: 0 | AC128: 0 | AD128: 0 | AE128: 556267500 | AF128: 0 | AG128: 0 | AH128: 556267500 | AI128: 90000000 | AJ128: 0 | AK128: 0 | AL128: 90000000 | AM128: 49000000 | AN128: 0 | AO128: 0 | AP128: 49000000 | AQ128: 1407150000 | AR128: 0 | AS128: 0 | AT128: 1407150000 | AU128: 350000000 | AV128: 0 | AW128: 0 | AX128: 350000000 | AY128: 99000000 | AZ128: 0 | BA128: 0 | BB128: 99000000 | BC128: 420000000 | BD128: 0 | BE128: 0 | BF128: 420000000 | BG128: 296600000 | BH128: 0 | BI128: 0 | BJ128: 296600000 | BK128: 300000 | BL128: 0 | BM128: 0 | BN128: 300000 | BO128: 233100000 | BP128: 0 | BQ128: 0 | BR128: 233100000 | BS128: 25000000 | BT128: 0 | BU128: 0 | BV128: 25000000 | BW128: 699680000 | BX128: 0 | BY128: 0 | BZ128: 699680000 | CA128: 950000000 | CB128: 0 | CC128: 163000000 | CD128: 1113000000 | CE128: 0 | CF128: 0 | CG128: 0 | CH128: 0 | CI128: 201432500 | CJ128: 0 | CK128: 0 | CL128: 201432500 | CM128: 1670700000 | CN128: 0 | CO128: 0 | CP128: 1670700000 | CQ128: 445090000 | CR128: 0 | CS128: 0 | CT128: 445090000 | CU128: 610700000 | CV128: 0 | CW128: 0 | CX128: 610700000 | CY128: 3300000 | CZ128: 0 | DA128: 0 | DB128: 3300000
B129: 2029-08-01 | C129: 179300000 | D129: 0 | E129: 0 | F129: 179300000 | G129: 1297800000 | H129: 0 | I129: 0 | J129: 1297800000 | K129: 485600000 | L129: 0 | M129: 0 | N129: 485600000 | O129: 73500000 | P129: 0 | Q129: 0 | R129: 73500000 | S129: 340010000 | T129: 0 | U129: 0 | V129: 340010000 | W129: 172600000 | X129: 0 | Y129: 0 | Z129: 172600000 | AA129: 0 | AB129: 0 | AC129: 0 | AD129: 0 | AE129: 556267500 | AF129: 0 | AG129: 0 | AH129: 556267500 | AI129: 90000000 | AJ129: 0 | AK129: 0 | AL129: 90000000 | AM129: 49000000 | AN129: 0 | AO129: 0 | AP129: 49000000 | AQ129: 1407150000 | AR129: 0 | AS129: 0 | AT129: 1407150000 | AU129: 350000000 | AV129: 0 | AW129: 0 | AX129: 350000000 | AY129: 99000000 | AZ129: 0 | BA129: 0 | BB129: 99000000 | BC129: 420000000 | BD129: 0 | BE129: 0 | BF129: 420000000 | BG129: 296600000 | BH129: 0 | BI129: 0 | BJ129: 296600000 | BK129: 300000 | BL129: 0 | BM129: 0 | BN129: 300000 | BO129: 233100000 | BP129: 0 | BQ129: 0 | BR129: 233100000 | BS129: 25000000 | BT129: 0 | BU129: 0 | BV129: 25000000 | BW129: 699680000 | BX129: 0 | BY129: 0 | BZ129: 699680000 | CA129: 950000000 | CB129: 0 | CC129: 163000000 | CD129: 1113000000 | CE129: 0 | CF129: 0 | CG129: 0 | CH129: 0 | CI129: 201432500 | CJ129: 0 | CK129: 0 | CL129: 201432500 | CM129: 1670700000 | CN129: 0 | CO129: 0 | CP129: 1670700000 | CQ129: 445090000 | CR129: 0 | CS129: 0 | CT129: 445090000 | CU129: 610700000 | CV129: 0 | CW129: 0 | CX129: 610700000 | CY129: 3300000 | CZ129: 0 | DA129: 0 | DB129: 3300000
B130: 2029-09-01 | C130: 179300000 | D130: 0 | E130: 0 | F130: 179300000 | G130: 1297800000 | H130: 0 | I130: 0 | J130: 1297800000 | K130: 485600000 | L130: 0 | M130: 0 | N130: 485600000 | O130: 73500000 | P130: 0 | Q130: 0 | R130: 73500000 | S130: 340010000 | T130: 0 | U130: 0 | V130: 340010000 | W130: 172600000 | X130: 0 | Y130: 0 | Z130: 172600000 | AA130: 0 | AB130: 0 | AC130: 0 | AD130: 0 | AE130: 556267500 | AF130: 0 | AG130: 0 | AH130: 556267500 | AI130: 90000000 | AJ130: 0 | AK130: 0 | AL130: 90000000 | AM130: 49000000 | AN130: 0 | AO130: 0 | AP130: 49000000 | AQ130: 1407150000 | AR130: 0 | AS130: 0 | AT130: 1407150000 | AU130: 350000000 | AV130: 0 | AW130: 0 | AX130: 350000000 | AY130: 99000000 | AZ130: 0 | BA130: 0 | BB130: 99000000 | BC130: 420000000 | BD130: 0 | BE130: 0 | BF130: 420000000 | BG130: 296600000 | BH130: 0 | BI130: 0 | BJ130: 296600000 | BK130: 300000 | BL130: 0 | BM130: 0 | BN130: 300000 | BO130: 233100000 | BP130: 0 | BQ130: 0 | BR130: 233100000 | BS130: 25000000 | BT130: 0 | BU130: 0 | BV130: 25000000 | BW130: 699680000 | BX130: 0 | BY130: 0 | BZ130: 699680000 | CA130: 950000000 | CB130: 0 | CC130: 163000000 | CD130: 1113000000 | CE130: 0 | CF130: 0 | CG130: 0 | CH130: 0 | CI130: 201432500 | CJ130: 0 | CK130: 0 | CL130: 201432500 | CM130: 1670700000 | CN130: 0 | CO130: 0 | CP130: 1670700000 | CQ130: 445090000 | CR130: 0 | CS130: 0 | CT130: 445090000 | CU130: 610700000 | CV130: 0 | CW130: 0 | CX130: 610700000 | CY130: 3300000 | CZ130: 0 | DA130: 0 | DB130: 3300000
B131: 2029-10-01 | C131: 179300000 | D131: 0 | E131: 0 | F131: 179300000 | G131: 1297800000 | H131: 0 | I131: 0 | J131: 1297800000 | K131: 485600000 | L131: 0 | M131: 0 | N131: 485600000 | O131: 73500000 | P131: 0 | Q131: 0 | R131: 73500000 | S131: 340010000 | T131: 0 | U131: 0 | V131: 340010000 | W131: 172600000 | X131: 0 | Y131: 0 | Z131: 172600000 | AA131: 0 | AB131: 0 | AC131: 0 | AD131: 0 | AE131: 556267500 | AF131: 0 | AG131: 0 | AH131: 556267500 | AI131: 90000000 | AJ131: 0 | AK131: 0 | AL131: 90000000 | AM131: 49000000 | AN131: 0 | AO131: 0 | AP131: 49000000 | AQ131: 1407150000 | AR131: 0 | AS131: 0 | AT131: 1407150000 | AU131: 350000000 | AV131: 0 | AW131: 0 | AX131: 350000000 | AY131: 99000000 | AZ131: 0 | BA131: 0 | BB131: 99000000 | BC131: 420000000 | BD131: 0 | BE131: 0 | BF131: 420000000 | BG131: 296600000 | BH131: 0 | BI131: 0 | BJ131: 296600000 | BK131: 300000 | BL131: 0 | BM131: 0 | BN131: 300000 | BO131: 233100000 | BP131: 0 | BQ131: 0 | BR131: 233100000 | BS131: 25000000 | BT131: 0 | BU131: 0 | BV131: 25000000 | BW131: 699680000 | BX131: 0 | BY131: 0 | BZ131: 699680000 | CA131: 950000000 | CB131: 0 | CC131: 163000000 | CD131: 1113000000 | CE131: 0 | CF131: 0 | CG131: 0 | CH131: 0 | CI131: 201432500 | CJ131: 0 | CK131: 0 | CL131: 201432500 | CM131: 1670700000 | CN131: 0 | CO131: 0 | CP131: 1670700000 | CQ131: 445090000 | CR131: 0 | CS131: 0 | CT131: 445090000 | CU131: 610700000 | CV131: 0 | CW131: 0 | CX131: 610700000 | CY131: 3300000 | CZ131: 0 | DA131: 0 | DB131: 3300000
B132: 2029-11-01 | C132: 179300000 | D132: 0 | E132: 0 | F132: 179300000 | G132: 1297800000 | H132: 0 | I132: 0 | J132: 1297800000 | K132: 485600000 | L132: 0 | M132: 0 | N132: 485600000 | O132: 73500000 | P132: 0 | Q132: 0 | R132: 73500000 | S132: 340010000 | T132: 0 | U132: 0 | V132: 340010000 | W132: 172600000 | X132: 0 | Y132: 0 | Z132: 172600000 | AA132: 0 | AB132: 0 | AC132: 0 | AD132: 0 | AE132: 556267500 | AF132: 0 | AG132: 0 | AH132: 556267500 | AI132: 90000000 | AJ132: 0 | AK132: 0 | AL132: 90000000 | AM132: 49000000 | AN132: 0 | AO132: 0 | AP132: 49000000 | AQ132: 1407150000 | AR132: 0 | AS132: 0 | AT132: 1407150000 | AU132: 350000000 | AV132: 0 | AW132: 0 | AX132: 350000000 | AY132: 99000000 | AZ132: 0 | BA132: 0 | BB132: 99000000 | BC132: 420000000 | BD132: 0 | BE132: 0 | BF132: 420000000 | BG132: 296600000 | BH132: 0 | BI132: 0 | BJ132: 296600000 | BK132: 300000 | BL132: 0 | BM132: 0 | BN132: 300000 | BO132: 233100000 | BP132: 0 | BQ132: 0 | BR132: 233100000 | BS132: 25000000 | BT132: 0 | BU132: 0 | BV132: 25000000 | BW132: 699680000 | BX132: 0 | BY132: 0 | BZ132: 699680000 | CA132: 950000000 | CB132: 0 | CC132: 163000000 | CD132: 1113000000 | CE132: 0 | CF132: 0 | CG132: 0 | CH132: 0 | CI132: 201432500 | CJ132: 0 | CK132: 0 | CL132: 201432500 | CM132: 1670700000 | CN132: 0 | CO132: 0 | CP132: 1670700000 | CQ132: 445090000 | CR132: 0 | CS132: 0 | CT132: 445090000 | CU132: 610700000 | CV132: 0 | CW132: 0 | CX132: 610700000 | CY132: 3300000 | CZ132: 0 | DA132: 0 | DB132: 3300000
B133: 2029-12-01 | C133: 179300000 | D133: 0 | E133: 0 | F133: 179300000 | G133: 1297800000 | H133: 0 | I133: 0 | J133: 1297800000 | K133: 485600000 | L133: 0 | M133: 0 | N133: 485600000 | O133: 73500000 | P133: 0 | Q133: 0 | R133: 73500000 | S133: 340010000 | T133: 0 | U133: 0 | V133: 340010000 | W133: 172600000 | X133: 0 | Y133: 0 | Z133: 172600000 | AA133: 0 | AB133: 0 | AC133: 0 | AD133: 0 | AE133: 556267500 | AF133: 0 | AG133: 0 | AH133: 556267500 | AI133: 90000000 | AJ133: 0 | AK133: 0 | AL133: 90000000 | AM133: 49000000 | AN133: 0 | AO133: 0 | AP133: 49000000 | AQ133: 1407150000 | AR133: 0 | AS133: 0 | AT133: 1407150000 | AU133: 350000000 | AV133: 0 | AW133: 0 | AX133: 350000000 | AY133: 99000000 | AZ133: 0 | BA133: 0 | BB133: 99000000 | BC133: 420000000 | BD133: 0 | BE133: 0 | BF133: 420000000 | BG133: 296600000 | BH133: 0 | BI133: 0 | BJ133: 296600000 | BK133: 300000 | BL133: 0 | BM133: 0 | BN133: 300000 | BO133: 233100000 | BP133: 0 | BQ133: 0 | BR133: 233100000 | BS133: 25000000 | BT133: 0 | BU133: 0 | BV133: 25000000 | BW133: 699680000 | BX133: 0 | BY133: 0 | BZ133: 699680000 | CA133: 950000000 | CB133: 0 | CC133: 163000000 | CD133: 1113000000 | CE133: 0 | CF133: 0 | CG133: 0 | CH133: 0 | CI133: 201432500 | CJ133: 0 | CK133: 0 | CL133: 201432500 | CM133: 1670700000 | CN133: 0 | CO133: 0 | CP133: 1670700000 | CQ133: 445090000 | CR133: 0 | CS133: 0 | CT133: 445090000 | CU133: 610700000 | CV133: 0 | CW133: 0 | CX133: 610700000 | CY133: 3300000 | CZ133: 0 | DA133: 0 | DB133: 3300000
B134: 2030-01-01 | C134: 179300000 | D134: 0 | E134: 0 | F134: 179300000 | G134: 1297800000 | H134: 0 | I134: 0 | J134: 1297800000 | K134: 485600000 | L134: 0 | M134: 0 | N134: 485600000 | O134: 73500000 | P134: 0 | Q134: 0 | R134: 73500000 | S134: 340010000 | T134: 0 | U134: 0 | V134: 340010000 | W134: 172600000 | X134: 0 | Y134: 0 | Z134: 172600000 | AA134: 0 | AB134: 0 | AC134: 0 | AD134: 0 | AE134: 556267500 | AF134: 0 | AG134: 0 | AH134: 556267500 | AI134: 90000000 | AJ134: 0 | AK134: 0 | AL134: 90000000 | AM134: 49000000 | AN134: 0 | AO134: 0 | AP134: 49000000 | AQ134: 1407150000 | AR134: 0 | AS134: 0 | AT134: 1407150000 | AU134: 350000000 | AV134: 0 | AW134: 0 | AX134: 350000000 | AY134: 99000000 | AZ134: 0 | BA134: 0 | BB134: 99000000 | BC134: 420000000 | BD134: 0 | BE134: 0 | BF134: 420000000 | BG134: 296600000 | BH134: 0 | BI134: 0 | BJ134: 296600000 | BK134: 300000 | BL134: 0 | BM134: 0 | BN134: 300000 | BO134: 233100000 | BP134: 0 | BQ134: 0 | BR134: 233100000 | BS134: 25000000 | BT134: 0 | BU134: 0 | BV134: 25000000 | BW134: 699680000 | BX134: 0 | BY134: 0 | BZ134: 699680000 | CA134: 950000000 | CB134: 0 | CC134: 163000000 | CD134: 1113000000 | CE134: 0 | CF134: 0 | CG134: 0 | CH134: 0 | CI134: 201432500 | CJ134: 0 | CK134: 0 | CL134: 201432500 | CM134: 1670700000 | CN134: 0 | CO134: 0 | CP134: 1670700000 | CQ134: 445090000 | CR134: 0 | CS134: 0 | CT134: 445090000 | CU134: 610700000 | CV134: 0 | CW134: 0 | CX134: 610700000 | CY134: 3300000 | CZ134: 0 | DA134: 0 | DB134: 3300000
B135: 2030-02-01 | C135: 179300000 | D135: 0 | E135: 0 | F135: 179300000 | G135: 1297800000 | H135: 0 | I135: 0 | J135: 1297800000 | K135: 485600000 | L135: 0 | M135: 0 | N135: 485600000 | O135: 73500000 | P135: 0 | Q135: 0 | R135: 73500000 | S135: 340010000 | T135: 0 | U135: 0 | V135: 340010000 | W135: 172600000 | X135: 0 | Y135: 0 | Z135: 172600000 | AA135: 0 | AB135: 0 | AC135: 0 | AD135: 0 | AE135: 556267500 | AF135: 0 | AG135: 0 | AH135: 556267500 | AI135: 90000000 | AJ135: 0 | AK135: 0 | AL135: 90000000 | AM135: 49000000 | AN135: 0 | AO135: 0 | AP135: 49000000 | AQ135: 1407150000 | AR135: 0 | AS135: 0 | AT135: 1407150000 | AU135: 350000000 | AV135: 0 | AW135: 0 | AX135: 350000000 | AY135: 99000000 | AZ135: 0 | BA135: 0 | BB135: 99000000 | BC135: 420000000 | BD135: 0 | BE135: 0 | BF135: 420000000 | BG135: 296600000 | BH135: 0 | BI135: 0 | BJ135: 296600000 | BK135: 300000 | BL135: 0 | BM135: 0 | BN135: 300000 | BO135: 233100000 | BP135: 0 | BQ135: 0 | BR135: 233100000 | BS135: 25000000 | BT135: 0 | BU135: 0 | BV135: 25000000 | BW135: 699680000 | BX135: 0 | BY135: 0 | BZ135: 699680000 | CA135: 950000000 | CB135: 0 | CC135: 163000000 | CD135: 1113000000 | CE135: 0 | CF135: 0 | CG135: 0 | CH135: 0 | CI135: 201432500 | CJ135: 0 | CK135: 0 | CL135: 201432500 | CM135: 1670700000 | CN135: 0 | CO135: 0 | CP135: 1670700000 | CQ135: 445090000 | CR135: 0 | CS135: 0 | CT135: 445090000 | CU135: 610700000 | CV135: 0 | CW135: 0 | CX135: 610700000 | CY135: 3300000 | CZ135: 0 | DA135: 0 | DB135: 3300000
B136: 2030-03-01 | C136: 179300000 | D136: 0 | E136: 0 | F136: 179300000 | G136: 1297800000 | H136: 0 | I136: 0 | J136: 1297800000 | K136: 485600000 | L136: 0 | M136: 0 | N136: 485600000 | O136: 73500000 | P136: 0 | Q136: 0 | R136: 73500000 | S136: 340010000 | T136: 0 | U136: 0 | V136: 340010000 | W136: 172600000 | X136: 0 | Y136: 0 | Z136: 172600000 | AA136: 0 | AB136: 0 | AC136: 0 | AD136: 0 | AE136: 556267500 | AF136: 0 | AG136: 0 | AH136: 556267500 | AI136: 90000000 | AJ136: 0 | AK136: 0 | AL136: 90000000 | AM136: 49000000 | AN136: 0 | AO136: 0 | AP136: 49000000 | AQ136: 1407150000 | AR136: 0 | AS136: 0 | AT136: 1407150000 | AU136: 350000000 | AV136: 0 | AW136: 0 | AX136: 350000000 | AY136: 99000000 | AZ136: 0 | BA136: 0 | BB136: 99000000 | BC136: 420000000 | BD136: 0 | BE136: 0 | BF136: 420000000 | BG136: 296600000 | BH136: 0 | BI136: 0 | BJ136: 296600000 | BK136: 300000 | BL136: 0 | BM136: 0 | BN136: 300000 | BO136: 233100000 | BP136: 0 | BQ136: 0 | BR136: 233100000 | BS136: 25000000 | BT136: 0 | BU136: 0 | BV136: 25000000 | BW136: 699680000 | BX136: 0 | BY136: 0 | BZ136: 699680000 | CA136: 950000000 | CB136: 0 | CC136: 163000000 | CD136: 1113000000 | CE136: 0 | CF136: 0 | CG136: 0 | CH136: 0 | CI136: 201432500 | CJ136: 0 | CK136: 0 | CL136: 201432500 | CM136: 1670700000 | CN136: 0 | CO136: 0 | CP136: 1670700000 | CQ136: 445090000 | CR136: 0 | CS136: 0 | CT136: 445090000 | CU136: 610700000 | CV136: 0 | CW136: 0 | CX136: 610700000 | CY136: 3300000 | CZ136: 0 | DA136: 0 | DB136: 3300000
B137: 2030-04-01 | C137: 179300000 | D137: 0 | E137: 0 | F137: 179300000 | G137: 1297800000 | H137: 0 | I137: 0 | J137: 1297800000 | K137: 485600000 | L137: 0 | M137: 0 | N137: 485600000 | O137: 73500000 | P137: 0 | Q137: 0 | R137: 73500000 | S137: 340010000 | T137: 0 | U137: 0 | V137: 340010000 | W137: 172600000 | X137: 0 | Y137: 0 | Z137: 172600000 | AA137: 0 | AB137: 0 | AC137: 0 | AD137: 0 | AE137: 556267500 | AF137: 0 | AG137: 0 | AH137: 556267500 | AI137: 90000000 | AJ137: 0 | AK137: 0 | AL137: 90000000 | AM137: 49000000 | AN137: 0 | AO137: 0 | AP137: 49000000 | AQ137: 1407150000 | AR137: 0 | AS137: 0 | AT137: 1407150000 | AU137: 350000000 | AV137: 0 | AW137: 0 | AX137: 350000000 | AY137: 99000000 | AZ137: 0 | BA137: 0 | BB137: 99000000 | BC137: 420000000 | BD137: 0 | BE137: 0 | BF137: 420000000 | BG137: 296600000 | BH137: 0 | BI137: 0 | BJ137: 296600000 | BK137: 300000 | BL137: 0 | BM137: 0 | BN137: 300000 | BO137: 233100000 | BP137: 0 | BQ137: 0 | BR137: 233100000 | BS137: 25000000 | BT137: 0 | BU137: 0 | BV137: 25000000 | BW137: 699680000 | BX137: 0 | BY137: 0 | BZ137: 699680000 | CA137: 950000000 | CB137: 0 | CC137: 163000000 | CD137: 1113000000 | CE137: 0 | CF137: 0 | CG137: 0 | CH137: 0 | CI137: 201432500 | CJ137: 0 | CK137: 0 | CL137: 201432500 | CM137: 1670700000 | CN137: 0 | CO137: 0 | CP137: 1670700000 | CQ137: 445090000 | CR137: 0 | CS137: 0 | CT137: 445090000 | CU137: 610700000 | CV137: 0 | CW137: 0 | CX137: 610700000 | CY137: 3300000 | CZ137: 0 | DA137: 0 | DB137: 3300000
B138: 2030-05-01 | C138: 179300000 | D138: 0 | E138: 0 | F138: 179300000 | G138: 1297800000 | H138: 0 | I138: 0 | J138: 1297800000 | K138: 485600000 | L138: 0 | M138: 0 | N138: 485600000 | O138: 73500000 | P138: 0 | Q138: 0 | R138: 73500000 | S138: 340010000 | T138: 0 | U138: 0 | V138: 340010000 | W138: 172600000 | X138: 0 | Y138: 0 | Z138: 172600000 | AA138: 0 | AB138: 0 | AC138: 0 | AD138: 0 | AE138: 556267500 | AF138: 0 | AG138: 0 | AH138: 556267500 | AI138: 90000000 | AJ138: 0 | AK138: 0 | AL138: 90000000 | AM138: 49000000 | AN138: 0 | AO138: 0 | AP138: 49000000 | AQ138: 1407150000 | AR138: 0 | AS138: 0 | AT138: 1407150000 | AU138: 350000000 | AV138: 0 | AW138: 0 | AX138: 350000000 | AY138: 99000000 | AZ138: 0 | BA138: 0 | BB138: 99000000 | BC138: 420000000 | BD138: 0 | BE138: 0 | BF138: 420000000 | BG138: 296600000 | BH138: 0 | BI138: 0 | BJ138: 296600000 | BK138: 300000 | BL138: 0 | BM138: 0 | BN138: 300000 | BO138: 233100000 | BP138: 0 | BQ138: 0 | BR138: 233100000 | BS138: 25000000 | BT138: 0 | BU138: 0 | BV138: 25000000 | BW138: 699680000 | BX138: 0 | BY138: 0 | BZ138: 699680000 | CA138: 950000000 | CB138: 0 | CC138: 163000000 | CD138: 1113000000 | CE138: 0 | CF138: 0 | CG138: 0 | CH138: 0 | CI138: 201432500 | CJ138: 0 | CK138: 0 | CL138: 201432500 | CM138: 1670700000 | CN138: 0 | CO138: 0 | CP138: 1670700000 | CQ138: 445090000 | CR138: 0 | CS138: 0 | CT138: 445090000 | CU138: 610700000 | CV138: 0 | CW138: 0 | CX138: 610700000 | CY138: 3300000 | CZ138: 0 | DA138: 0 | DB138: 3300000
B139: 2030-06-01 | C139: 179300000 | D139: 0 | E139: 0 | F139: 179300000 | G139: 1297800000 | H139: 0 | I139: 0 | J139: 1297800000 | K139: 485600000 | L139: 0 | M139: 0 | N139: 485600000 | O139: 73500000 | P139: 0 | Q139: 0 | R139: 73500000 | S139: 340010000 | T139: 0 | U139: 0 | V139: 340010000 | W139: 172600000 | X139: 0 | Y139: 0 | Z139: 172600000 | AA139: 0 | AB139: 0 | AC139: 0 | AD139: 0 | AE139: =542700000+13567500 -> 556267500 | AF139: 0 | AG139: 0 | AH139: =542700000+13567500 -> 556267500 | AI139: 90000000 | AJ139: 0 | AK139: 0 | AL139: 90000000 | AM139: 49000000 | AN139: 0 | AO139: 0 | AP139: 49000000 | AQ139: 1407150000 | AR139: 0 | AS139: 0 | AT139: 1407150000 | AU139: 350000000 | AV139: 0 | AW139: 0 | AX139: 350000000 | AY139: 99000000 | AZ139: 0 | BA139: 0 | BB139: 99000000 | BC139: 420000000 | BD139: 0 | BE139: 0 | BF139: 420000000 | BG139: 296600000 | BH139: 0 | BI139: 0 | BJ139: 296600000 | BK139: 300000 | BL139: 0 | BM139: 0 | BN139: 300000 | BO139: 233100000 | BP139: 0 | BQ139: 0 | BR139: 233100000 | BS139: 25000000 | BT139: 0 | BU139: 0 | BV139: 25000000 | BW139: 699680000 | BX139: 0 | BY139: 0 | BZ139: 699680000 | CA139: 950000000 | CB139: 0 | CC139: 163000000 | CD139: 1113000000 | CE139: 0 | CF139: 0 | CG139: 0 | CH139: 0 | CI139: 201432500 | CJ139: 0 | CK139: 0 | CL139: 201432500 | CM139: 1670700000 | CN139: 0 | CO139: 0 | CP139: 1670700000 | CQ139: 445090000 | CR139: 0 | CS139: 0 | CT139: 445090000 | CU139: 610700000 | CV139: 0 | CW139: 0 | CX139: 610700000 | CY139: 3300000 | CZ139: 0 | DA139: 0 | DB139: 3300000
B140: 2030-07-01 | C140: 179300000 | D140: 0 | E140: 0 | F140: 179300000 | G140: 1297800000 | H140: 0 | I140: 0 | J140: 1297800000 | K140: 485600000 | L140: 0 | M140: 0 | N140: 485600000 | O140: 73500000 | P140: 0 | Q140: 0 | R140: 73500000 | S140: 340010000 | T140: 0 | U140: 0 | V140: 340010000 | W140: 172600000 | X140: 0 | Y140: 0 | Z140: 172600000 | AA140: 0 | AB140: 0 | AC140: 0 | AD140: 0 | AE140: 556267500 | AF140: 0 | AG140: 0 | AH140: 556267500 | AI140: 90000000 | AJ140: 0 | AK140: 0 | AL140: 90000000 | AM140: 49000000 | AN140: 0 | AO140: 0 | AP140: 49000000 | AQ140: 1407150000 | AR140: 0 | AS140: 0 | AT140: 1407150000 | AU140: 350000000 | AV140: 0 | AW140: 0 | AX140: 350000000 | AY140: 99000000 | AZ140: 0 | BA140: 0 | BB140: 99000000 | BC140: 420000000 | BD140: 0 | BE140: 0 | BF140: 420000000 | BG140: 296600000 | BH140: 0 | BI140: 0 | BJ140: 296600000 | BK140: 300000 | BL140: 0 | BM140: 0 | BN140: 300000 | BO140: 233100000 | BP140: 0 | BQ140: 0 | BR140: 233100000 | BS140: 25000000 | BT140: 0 | BU140: 0 | BV140: 25000000 | BW140: 699680000 | BX140: 0 | BY140: 0 | BZ140: 699680000 | CA140: 950000000 | CB140: 0 | CC140: 163000000 | CD140: 1113000000 | CE140: 0 | CF140: 0 | CG140: 0 | CH140: 0 | CI140: 201432500 | CJ140: 0 | CK140: 0 | CL140: 201432500 | CM140: 1670700000 | CN140: 0 | CO140: 0 | CP140: 1670700000 | CQ140: 445090000 | CR140: 0 | CS140: 0 | CT140: 445090000 | CU140: 610700000 | CV140: 0 | CW140: 0 | CX140: 610700000 | CY140: 3300000 | CZ140: 0 | DA140: 0 | DB140: 3300000
B141: 2030-08-01 | C141: 179300000 | D141: 0 | E141: 0 | F141: 179300000 | G141: 1297800000 | H141: 0 | I141: 0 | J141: 1297800000 | K141: 485600000 | L141: 0 | M141: 0 | N141: 485600000 | O141: 73500000 | P141: 0 | Q141: 0 | R141: 73500000 | S141: 340010000 | T141: 0 | U141: 0 | V141: 340010000 | W141: 172600000 | X141: 0 | Y141: 0 | Z141: 172600000 | AA141: 0 | AB141: 0 | AC141: 0 | AD141: 0 | AE141: 556267500 | AF141: 0 | AG141: 0 | AH141: 556267500 | AI141: 90000000 | AJ141: 0 | AK141: 0 | AL141: 90000000 | AM141: 49000000 | AN141: 0 | AO141: 0 | AP141: 49000000 | AQ141: 1407150000 | AR141: 0 | AS141: 0 | AT141: 1407150000 | AU141: 350000000 | AV141: 0 | AW141: 0 | AX141: 350000000 | AY141: 99000000 | AZ141: 0 | BA141: 0 | BB141: 99000000 | BC141: 420000000 | BD141: 0 | BE141: 0 | BF141: 420000000 | BG141: 296600000 | BH141: 0 | BI141: 0 | BJ141: 296600000 | BK141: 300000 | BL141: 0 | BM141: 0 | BN141: 300000 | BO141: 233100000 | BP141: 0 | BQ141: 0 | BR141: 233100000 | BS141: 25000000 | BT141: 0 | BU141: 0 | BV141: 25000000 | BW141: 699680000 | BX141: 0 | BY141: 0 | BZ141: 699680000 | CA141: 950000000 | CB141: 0 | CC141: 163000000 | CD141: 1113000000 | CE141: 0 | CF141: 0 | CG141: 0 | CH141: 0 | CI141: 201432500 | CJ141: 0 | CK141: 0 | CL141: 201432500 | CM141: 1670700000 | CN141: 0 | CO141: 0 | CP141: 1670700000 | CQ141: 445090000 | CR141: 0 | CS141: 0 | CT141: 445090000 | CU141: 610700000 | CV141: 0 | CW141: 0 | CX141: 610700000 | CY141: 3300000 | CZ141: 0 | DA141: 0 | DB141: 3300000
B142: 2030-09-01 | C142: 179300000 | D142: 0 | E142: 0 | F142: 179300000 | G142: 1297800000 | H142: 0 | I142: 0 | J142: 1297800000 | K142: 485600000 | L142: 0 | M142: 0 | N142: 485600000 | O142: 73500000 | P142: 0 | Q142: 0 | R142: 73500000 | S142: 340010000 | T142: 0 | U142: 0 | V142: 340010000 | W142: 172600000 | X142: 0 | Y142: 0 | Z142: 172600000 | AA142: 0 | AB142: 0 | AC142: 0 | AD142: 0 | AE142: 556267500 | AF142: 0 | AG142: 0 | AH142: 556267500 | AI142: 90000000 | AJ142: 0 | AK142: 0 | AL142: 90000000 | AM142: 49000000 | AN142: 0 | AO142: 0 | AP142: 49000000 | AQ142: 1407150000 | AR142: 0 | AS142: 0 | AT142: 1407150000 | AU142: 350000000 | AV142: 0 | AW142: 0 | AX142: 350000000 | AY142: 99000000 | AZ142: 0 | BA142: 0 | BB142: 99000000 | BC142: 420000000 | BD142: 0 | BE142: 0 | BF142: 420000000 | BG142: 296600000 | BH142: 0 | BI142: 0 | BJ142: 296600000 | BK142: 300000 | BL142: 0 | BM142: 0 | BN142: 300000 | BO142: 233100000 | BP142: 0 | BQ142: 0 | BR142: 233100000 | BS142: 25000000 | BT142: 0 | BU142: 0 | BV142: 25000000 | BW142: 699680000 | BX142: 0 | BY142: 0 | BZ142: 699680000 | CA142: 950000000 | CB142: 0 | CC142: 163000000 | CD142: 1113000000 | CE142: 0 | CF142: 0 | CG142: 0 | CH142: 0 | CI142: 201432500 | CJ142: 0 | CK142: 0 | CL142: 201432500 | CM142: 1670700000 | CN142: 0 | CO142: 0 | CP142: 1670700000 | CQ142: 445090000 | CR142: 0 | CS142: 0 | CT142: 445090000 | CU142: 610700000 | CV142: 0 | CW142: 0 | CX142: 610700000 | CY142: 3300000 | CZ142: 0 | DA142: 0 | DB142: 3300000
B143: 2030-10-01 | C143: 179300000 | D143: 0 | E143: 0 | F143: 179300000 | G143: 1297800000 | H143: 0 | I143: 0 | J143: 1297800000 | K143: 485600000 | L143: 0 | M143: 0 | N143: 485600000 | O143: 73500000 | P143: 0 | Q143: 0 | R143: 73500000 | S143: 340010000 | T143: 0 | U143: 0 | V143: 340010000 | W143: 172600000 | X143: 0 | Y143: 0 | Z143: 172600000 | AA143: 0 | AB143: 0 | AC143: 0 | AD143: 0 | AE143: 556267500 | AF143: 0 | AG143: 0 | AH143: 556267500 | AI143: 90000000 | AJ143: 0 | AK143: 0 | AL143: 90000000 | AM143: 49000000 | AN143: 0 | AO143: 0 | AP143: 49000000 | AQ143: 1407150000 | AR143: 0 | AS143: 0 | AT143: 1407150000 | AU143: 350000000 | AV143: 0 | AW143: 0 | AX143: 350000000 | AY143: 99000000 | AZ143: 0 | BA143: 0 | BB143: 99000000 | BC143: 420000000 | BD143: 0 | BE143: 0 | BF143: 420000000 | BG143: 296600000 | BH143: 0 | BI143: 0 | BJ143: 296600000 | BK143: 300000 | BL143: 0 | BM143: 0 | BN143: 300000 | BO143: 233100000 | BP143: 0 | BQ143: 0 | BR143: 233100000 | BS143: 25000000 | BT143: 0 | BU143: 0 | BV143: 25000000 | BW143: 699680000 | BX143: 0 | BY143: 0 | BZ143: 699680000 | CA143: 950000000 | CB143: 0 | CC143: 163000000 | CD143: 1113000000 | CE143: 0 | CF143: 0 | CG143: 0 | CH143: 0 | CI143: 201432500 | CJ143: 0 | CK143: 0 | CL143: 201432500 | CM143: 1670700000 | CN143: 0 | CO143: 0 | CP143: 1670700000 | CQ143: 445090000 | CR143: 0 | CS143: 0 | CT143: 445090000 | CU143: 610700000 | CV143: 0 | CW143: 0 | CX143: 610700000 | CY143: 3300000 | CZ143: 0 | DA143: 0 | DB143: 3300000
B144: 2030-11-01 | C144: 179300000 | D144: 0 | E144: 0 | F144: 179300000 | G144: 1297800000 | H144: 0 | I144: 0 | J144: 1297800000 | K144: 485600000 | L144: 0 | M144: 0 | N144: 485600000 | O144: 73500000 | P144: 0 | Q144: 0 | R144: 73500000 | S144: 340010000 | T144: 0 | U144: 0 | V144: 340010000 | W144: 172600000 | X144: 0 | Y144: 0 | Z144: 172600000 | AA144: 0 | AB144: 0 | AC144: 0 | AD144: 0 | AE144: 556267500 | AF144: 0 | AG144: 0 | AH144: 556267500 | AI144: 90000000 | AJ144: 0 | AK144: 0 | AL144: 90000000 | AM144: 49000000 | AN144: 0 | AO144: 0 | AP144: 49000000 | AQ144: 1407150000 | AR144: 0 | AS144: 0 | AT144: 1407150000 | AU144: 350000000 | AV144: 0 | AW144: 0 | AX144: 350000000 | AY144: 99000000 | AZ144: 0 | BA144: 0 | BB144: 99000000 | BC144: 420000000 | BD144: 0 | BE144: 0 | BF144: 420000000 | BG144: 296600000 | BH144: 0 | BI144: 0 | BJ144: 296600000 | BK144: 300000 | BL144: 0 | BM144: 0 | BN144: 300000 | BO144: 233100000 | BP144: 0 | BQ144: 0 | BR144: 233100000 | BS144: 25000000 | BT144: 0 | BU144: 0 | BV144: 25000000 | BW144: 699680000 | BX144: 0 | BY144: 0 | BZ144: 699680000 | CA144: 950000000 | CB144: 0 | CC144: 163000000 | CD144: 1113000000 | CE144: 0 | CF144: 0 | CG144: 0 | CH144: 0 | CI144: 201432500 | CJ144: 0 | CK144: 0 | CL144: 201432500 | CM144: 1670700000 | CN144: 0 | CO144: 0 | CP144: 1670700000 | CQ144: 445090000 | CR144: 0 | CS144: 0 | CT144: 445090000 | CU144: 610700000 | CV144: 0 | CW144: 0 | CX144: 610700000 | CY144: 3300000 | CZ144: 0 | DA144: 0 | DB144: 3300000
B145: 2030-12-01 | C145: 179300000 | D145: 0 | E145: 0 | F145: 179300000 | G145: 1297800000 | H145: 0 | I145: 0 | J145: 1297800000 | K145: 485600000 | L145: 0 | M145: 0 | N145: 485600000 | O145: 73500000 | P145: 0 | Q145: 0 | R145: 73500000 | S145: 340010000 | T145: 0 | U145: 0 | V145: 340010000 | W145: 172600000 | X145: 0 | Y145: 0 | Z145: 172600000 | AA145: 0 | AB145: 0 | AC145: 0 | AD145: 0 | AE145: 556267500 | AF145: 0 | AG145: 0 | AH145: 556267500 | AI145: 90000000 | AJ145: 0 | AK145: 0 | AL145: 90000000 | AM145: 49000000 | AN145: 0 | AO145: 0 | AP145: 49000000 | AQ145: 1407150000 | AR145: 0 | AS145: 0 | AT145: 1407150000 | AU145: 350000000 | AV145: 0 | AW145: 0 | AX145: 350000000 | AY145: 99000000 | AZ145: 0 | BA145: 0 | BB145: 99000000 | BC145: 420000000 | BD145: 0 | BE145: 0 | BF145: 420000000 | BG145: 296600000 | BH145: 0 | BI145: 0 | BJ145: 296600000 | BK145: 300000 | BL145: 0 | BM145: 0 | BN145: 300000 | BO145: 233100000 | BP145: 0 | BQ145: 0 | BR145: 233100000 | BS145: 25000000 | BT145: 0 | BU145: 0 | BV145: 25000000 | BW145: 699680000 | BX145: 0 | BY145: 0 | BZ145: 699680000 | CA145: 950000000 | CB145: 0 | CC145: 163000000 | CD145: 1113000000 | CE145: 0 | CF145: 0 | CG145: 0 | CH145: 0 | CI145: 201432500 | CJ145: 0 | CK145: 0 | CL145: 201432500 | CM145: 1670700000 | CN145: 0 | CO145: 0 | CP145: 1670700000 | CQ145: 445090000 | CR145: 0 | CS145: 0 | CT145: 445090000 | CU145: 610700000 | CV145: 0 | CW145: 0 | CX145: 610700000 | CY145: 3300000 | CZ145: 0 | DA145: 0 | DB145: 3300000
B146: 2031-01-01 | C146: 179300000 | D146: 0 | E146: 0 | F146: 179300000 | G146: 1297800000 | H146: 0 | I146: 0 | J146: 1297800000 | K146: 485600000 | L146: 0 | M146: 0 | N146: 485600000 | O146: 73500000 | P146: 0 | Q146: 0 | R146: 73500000 | S146: 340010000 | T146: 0 | U146: 0 | V146: 340010000 | W146: 172600000 | X146: 0 | Y146: 0 | Z146: 172600000 | AA146: 0 | AB146: 0 | AC146: 0 | AD146: 0 | AE146: 556267500 | AF146: 0 | AG146: 0 | AH146: 556267500 | AI146: 90000000 | AJ146: 0 | AK146: 0 | AL146: 90000000 | AM146: 49000000 | AN146: 0 | AO146: 0 | AP146: 49000000 | AQ146: 1407150000 | AR146: 0 | AS146: 0 | AT146: 1407150000 | AU146: 350000000 | AV146: 0 | AW146: 0 | AX146: 350000000 | AY146: 99000000 | AZ146: 0 | BA146: 0 | BB146: 99000000 | BC146: 420000000 | BD146: 0 | BE146: 0 | BF146: 420000000 | BG146: 296600000 | BH146: 0 | BI146: 0 | BJ146: 296600000 | BK146: 300000 | BL146: 0 | BM146: 0 | BN146: 300000 | BO146: 233100000 | BP146: 0 | BQ146: 0 | BR146: 233100000 | BS146: 25000000 | BT146: 0 | BU146: 0 | BV146: 25000000 | BW146: 699680000 | BX146: 0 | BY146: 0 | BZ146: 699680000 | CA146: 950000000 | CB146: 0 | CC146: 163000000 | CD146: 1113000000 | CE146: 0 | CF146: 0 | CG146: 0 | CH146: 0 | CI146: 201432500 | CJ146: 0 | CK146: 0 | CL146: 201432500 | CM146: 1670700000 | CN146: 0 | CO146: 0 | CP146: 1670700000 | CQ146: 445090000 | CR146: 0 | CS146: 0 | CT146: 445090000 | CU146: 610700000 | CV146: 0 | CW146: 0 | CX146: 610700000 | CY146: 3300000 | CZ146: 0 | DA146: 0 | DB146: 3300000
B147: 2031-02-01 | C147: 179300000 | D147: 0 | E147: 0 | F147: 179300000 | G147: 1297800000 | H147: 0 | I147: 0 | J147: 1297800000 | K147: 485600000 | L147: 0 | M147: 0 | N147: 485600000 | O147: 73500000 | P147: 0 | Q147: 0 | R147: 73500000 | S147: 340010000 | T147: 0 | U147: 0 | V147: 340010000 | W147: 172600000 | X147: 0 | Y147: 0 | Z147: 172600000 | AA147: 0 | AB147: 0 | AC147: 0 | AD147: 0 | AE147: 556267500 | AF147: 0 | AG147: 0 | AH147: 556267500 | AI147: 90000000 | AJ147: 0 | AK147: 0 | AL147: 90000000 | AM147: 49000000 | AN147: 0 | AO147: 0 | AP147: 49000000 | AQ147: 1407150000 | AR147: 0 | AS147: 0 | AT147: 1407150000 | AU147: 350000000 | AV147: 0 | AW147: 0 | AX147: 350000000 | AY147: 99000000 | AZ147: 0 | BA147: 0 | BB147: 99000000 | BC147: 420000000 | BD147: 0 | BE147: 0 | BF147: 420000000 | BG147: 296600000 | BH147: 0 | BI147: 0 | BJ147: 296600000 | BK147: 300000 | BL147: 0 | BM147: 0 | BN147: 300000 | BO147: 233100000 | BP147: 0 | BQ147: 0 | BR147: 233100000 | BS147: 25000000 | BT147: 0 | BU147: 0 | BV147: 25000000 | BW147: 699680000 | BX147: 0 | BY147: 0 | BZ147: 699680000 | CA147: 950000000 | CB147: 0 | CC147: 163000000 | CD147: 1113000000 | CE147: 0 | CF147: 0 | CG147: 0 | CH147: 0 | CI147: 201432500 | CJ147: 0 | CK147: 0 | CL147: 201432500 | CM147: 1670700000 | CN147: 0 | CO147: 0 | CP147: 1670700000 | CQ147: 445090000 | CR147: 0 | CS147: 0 | CT147: 445090000 | CU147: 610700000 | CV147: 0 | CW147: 0 | CX147: 610700000 | CY147: 3300000 | CZ147: 0 | DA147: 0 | DB147: 3300000
B148: 2031-03-01 | C148: 179300000 | D148: 0 | E148: 0 | F148: 179300000 | G148: 1297800000 | H148: 0 | I148: 0 | J148: 1297800000 | K148: 485600000 | L148: 0 | M148: 0 | N148: 485600000 | O148: 73500000 | P148: 0 | Q148: 0 | R148: 73500000 | S148: 340010000 | T148: 0 | U148: 0 | V148: 340010000 | W148: 172600000 | X148: 0 | Y148: 0 | Z148: 172600000 | AA148: 0 | AB148: 0 | AC148: 0 | AD148: 0 | AE148: 556267500 | AF148: 0 | AG148: 0 | AH148: 556267500 | AI148: 90000000 | AJ148: 0 | AK148: 0 | AL148: 90000000 | AM148: 49000000 | AN148: 0 | AO148: 0 | AP148: 49000000 | AQ148: 1407150000 | AR148: 0 | AS148: 0 | AT148: 1407150000 | AU148: 350000000 | AV148: 0 | AW148: 0 | AX148: 350000000 | AY148: 99000000 | AZ148: 0 | BA148: 0 | BB148: 99000000 | BC148: 420000000 | BD148: 0 | BE148: 0 | BF148: 420000000 | BG148: 296600000 | BH148: 0 | BI148: 0 | BJ148: 296600000 | BK148: 300000 | BL148: 0 | BM148: 0 | BN148: 300000 | BO148: 233100000 | BP148: 0 | BQ148: 0 | BR148: 233100000 | BS148: 25000000 | BT148: 0 | BU148: 0 | BV148: 25000000 | BW148: 699680000 | BX148: 0 | BY148: 0 | BZ148: 699680000 | CA148: 950000000 | CB148: 0 | CC148: 163000000 | CD148: 1113000000 | CE148: 0 | CF148: 0 | CG148: 0 | CH148: 0 | CI148: 201432500 | CJ148: 0 | CK148: 0 | CL148: 201432500 | CM148: 1670700000 | CN148: 0 | CO148: 0 | CP148: 1670700000 | CQ148: 445090000 | CR148: 0 | CS148: 0 | CT148: 445090000 | CU148: 610700000 | CV148: 0 | CW148: 0 | CX148: 610700000 | CY148: 3300000 | CZ148: 0 | DA148: 0 | DB148: 3300000
B149: 2031-04-01 | C149: 179300000 | D149: 0 | E149: 0 | F149: 179300000 | G149: 1297800000 | H149: 0 | I149: 0 | J149: 1297800000 | K149: 485600000 | L149: 0 | M149: 0 | N149: 485600000 | O149: 73500000 | P149: 0 | Q149: 0 | R149: 73500000 | S149: 340010000 | T149: 0 | U149: 0 | V149: 340010000 | W149: 172600000 | X149: 0 | Y149: 0 | Z149: 172600000 | AA149: 0 | AB149: 0 | AC149: 0 | AD149: 0 | AE149: 556267500 | AF149: 0 | AG149: 0 | AH149: 556267500 | AI149: 90000000 | AJ149: 0 | AK149: 0 | AL149: 90000000 | AM149: 49000000 | AN149: 0 | AO149: 0 | AP149: 49000000 | AQ149: 1407150000 | AR149: 0 | AS149: 0 | AT149: 1407150000 | AU149: 350000000 | AV149: 0 | AW149: 0 | AX149: 350000000 | AY149: 99000000 | AZ149: 0 | BA149: 0 | BB149: 99000000 | BC149: 420000000 | BD149: 0 | BE149: 0 | BF149: 420000000 | BG149: 296600000 | BH149: 0 | BI149: 0 | BJ149: 296600000 | BK149: 300000 | BL149: 0 | BM149: 0 | BN149: 300000 | BO149: 233100000 | BP149: 0 | BQ149: 0 | BR149: 233100000 | BS149: 25000000 | BT149: 0 | BU149: 0 | BV149: 25000000 | BW149: 699680000 | BX149: 0 | BY149: 0 | BZ149: 699680000 | CA149: 950000000 | CB149: 0 | CC149: 163000000 | CD149: 1113000000 | CE149: 0 | CF149: 0 | CG149: 0 | CH149: 0 | CI149: 201432500 | CJ149: 0 | CK149: 0 | CL149: 201432500 | CM149: 1670700000 | CN149: 0 | CO149: 0 | CP149: 1670700000 | CQ149: 445090000 | CR149: 0 | CS149: 0 | CT149: 445090000 | CU149: 610700000 | CV149: 0 | CW149: 0 | CX149: 610700000 | CY149: 3300000 | CZ149: 0 | DA149: 0 | DB149: 3300000
B150: 2031-05-01 | C150: 179300000 | D150: 0 | E150: 0 | F150: 179300000 | G150: 1297800000 | H150: 0 | I150: 0 | J150: 1297800000 | K150: 485600000 | L150: 0 | M150: 0 | N150: 485600000 | O150: 73500000 | P150: 0 | Q150: 0 | R150: 73500000 | S150: 340010000 | T150: 0 | U150: 0 | V150: 340010000 | W150: 172600000 | X150: 0 | Y150: 0 | Z150: 172600000 | AA150: 0 | AB150: 0 | AC150: 0 | AD150: 0 | AE150: 556267500 | AF150: 0 | AG150: 0 | AH150: 556267500 | AI150: 90000000 | AJ150: 0 | AK150: 0 | AL150: 90000000 | AM150: 49000000 | AN150: 0 | AO150: 0 | AP150: 49000000 | AQ150: 1407150000 | AR150: 0 | AS150: 0 | AT150: 1407150000 | AU150: 350000000 | AV150: 0 | AW150: 0 | AX150: 350000000 | AY150: 99000000 | AZ150: 0 | BA150: 0 | BB150: 99000000 | BC150: 420000000 | BD150: 0 | BE150: 0 | BF150: 420000000 | BG150: 296600000 | BH150: 0 | BI150: 0 | BJ150: 296600000 | BK150: 300000 | BL150: 0 | BM150: 0 | BN150: 300000 | BO150: 233100000 | BP150: 0 | BQ150: 0 | BR150: 233100000 | BS150: 25000000 | BT150: 0 | BU150: 0 | BV150: 25000000 | BW150: 699680000 | BX150: 0 | BY150: 0 | BZ150: 699680000 | CA150: 950000000 | CB150: 0 | CC150: 163000000 | CD150: 1113000000 | CE150: 0 | CF150: 0 | CG150: 0 | CH150: 0 | CI150: 201432500 | CJ150: 0 | CK150: 0 | CL150: 201432500 | CM150: 1670700000 | CN150: 0 | CO150: 0 | CP150: 1670700000 | CQ150: 445090000 | CR150: 0 | CS150: 0 | CT150: 445090000 | CU150: 610700000 | CV150: 0 | CW150: 0 | CX150: 610700000 | CY150: 3300000 | CZ150: 0 | DA150: 0 | DB150: 3300000
B151: 2031-06-01 | C151: 179300000 | D151: 0 | E151: 0 | F151: 179300000 | G151: 1297800000 | H151: 0 | I151: 0 | J151: 1297800000 | K151: 485600000 | L151: 0 | M151: 0 | N151: 485600000 | O151: 73500000 | P151: 0 | Q151: 0 | R151: 73500000 | S151: 340010000 | T151: 0 | U151: 0 | V151: 340010000 | W151: 172600000 | X151: 0 | Y151: 0 | Z151: 172600000 | AA151: 0 | AB151: 0 | AC151: 0 | AD151: 0 | AE151: 556267500 | AF151: 0 | AG151: 0 | AH151: 556267500 | AI151: 90000000 | AJ151: 0 | AK151: 0 | AL151: 90000000 | AM151: 49000000 | AN151: 0 | AO151: 0 | AP151: 49000000 | AQ151: 1407150000 | AR151: 0 | AS151: 0 | AT151: 1407150000 | AU151: 350000000 | AV151: 0 | AW151: 0 | AX151: 350000000 | AY151: 99000000 | AZ151: 0 | BA151: 0 | BB151: 99000000 | BC151: 420000000 | BD151: 0 | BE151: 0 | BF151: 420000000 | BG151: 296600000 | BH151: 0 | BI151: 0 | BJ151: 296600000 | BK151: 300000 | BL151: 0 | BM151: 0 | BN151: 300000 | BO151: 233100000 | BP151: 0 | BQ151: 0 | BR151: 233100000 | BS151: 25000000 | BT151: 0 | BU151: 0 | BV151: 25000000 | BW151: 699680000 | BX151: 0 | BY151: 0 | BZ151: 699680000 | CA151: 950000000 | CB151: 0 | CC151: 163000000 | CD151: 1113000000 | CE151: 0 | CF151: 0 | CG151: 0 | CH151: 0 | CI151: 201432500 | CJ151: 0 | CK151: 0 | CL151: 201432500 | CM151: 1670700000 | CN151: 0 | CO151: 0 | CP151: 1670700000 | CQ151: 445090000 | CR151: 0 | CS151: 0 | CT151: 445090000 | CU151: 610700000 | CV151: 0 | CW151: 0 | CX151: 610700000 | CY151: 3300000 | CZ151: 0 | DA151: 0 | DB151: 3300000
B152: 2031-07-01 | C152: 179300000 | D152: 0 | E152: 0 | F152: 179300000 | G152: 1297800000 | H152: 0 | I152: 0 | J152: 1297800000 | K152: 485600000 | L152: 0 | M152: 0 | N152: 485600000 | O152: 73500000 | P152: 0 | Q152: 0 | R152: 73500000 | S152: 340010000 | T152: 0 | U152: 0 | V152: 340010000 | W152: 172600000 | X152: 0 | Y152: 0 | Z152: 172600000 | AA152: 0 | AB152: 0 | AC152: 0 | AD152: 0 | AE152: 556267500 | AF152: 0 | AG152: 0 | AH152: 556267500 | AI152: 90000000 | AJ152: 0 | AK152: 0 | AL152: 90000000 | AM152: 49000000 | AN152: 0 | AO152: 0 | AP152: 49000000 | AQ152: 1407150000 | AR152: 0 | AS152: 0 | AT152: 1407150000 | AU152: 350000000 | AV152: 0 | AW152: 0 | AX152: 350000000 | AY152: 99000000 | AZ152: 0 | BA152: 0 | BB152: 99000000 | BC152: 420000000 | BD152: 0 | BE152: 0 | BF152: 420000000 | BG152: 296600000 | BH152: 0 | BI152: 0 | BJ152: 296600000 | BK152: 300000 | BL152: 0 | BM152: 0 | BN152: 300000 | BO152: 233100000 | BP152: 0 | BQ152: 0 | BR152: 233100000 | BS152: 25000000 | BT152: 0 | BU152: 0 | BV152: 25000000 | BW152: 699680000 | BX152: 0 | BY152: 0 | BZ152: 699680000 | CA152: 950000000 | CB152: 0 | CC152: 163000000 | CD152: 1113000000 | CE152: 0 | CF152: 0 | CG152: 0 | CH152: 0 | CI152: 201432500 | CJ152: 0 | CK152: 0 | CL152: 201432500 | CM152: 1670700000 | CN152: 0 | CO152: 0 | CP152: 1670700000 | CQ152: 445090000 | CR152: 0 | CS152: 0 | CT152: 445090000 | CU152: 610700000 | CV152: 0 | CW152: 0 | CX152: 610700000 | CY152: 3300000 | CZ152: 0 | DA152: 0 | DB152: 3300000
B153: 2031-08-01 | C153: 179300000 | D153: 0 | E153: 0 | F153: 179300000 | G153: 1297800000 | H153: 0 | I153: 0 | J153: 1297800000 | K153: 485600000 | L153: 0 | M153: 0 | N153: 485600000 | O153: 73500000 | P153: 0 | Q153: 0 | R153: 73500000 | S153: 340010000 | T153: 0 | U153: 0 | V153: 340010000 | W153: 172600000 | X153: 0 | Y153: 0 | Z153: 172600000 | AA153: 0 | AB153: 0 | AC153: 0 | AD153: 0 | AE153: 556267500 | AF153: 0 | AG153: 0 | AH153: 556267500 | AI153: 90000000 | AJ153: 0 | AK153: 0 | AL153: 90000000 | AM153: 49000000 | AN153: 0 | AO153: 0 | AP153: 49000000 | AQ153: 1407150000 | AR153: 0 | AS153: 0 | AT153: 1407150000 | AU153: 350000000 | AV153: 0 | AW153: 0 | AX153: 350000000 | AY153: 99000000 | AZ153: 0 | BA153: 0 | BB153: 99000000 | BC153: 420000000 | BD153: 0 | BE153: 0 | BF153: 420000000 | BG153: 296600000 | BH153: 0 | BI153: 0 | BJ153: 296600000 | BK153: 300000 | BL153: 0 | BM153: 0 | BN153: 300000 | BO153: 233100000 | BP153: 0 | BQ153: 0 | BR153: 233100000 | BS153: 25000000 | BT153: 0 | BU153: 0 | BV153: 25000000 | BW153: 699680000 | BX153: 0 | BY153: 0 | BZ153: 699680000 | CA153: 950000000 | CB153: 0 | CC153: 163000000 | CD153: 1113000000 | CE153: 0 | CF153: 0 | CG153: 0 | CH153: 0 | CI153: 201432500 | CJ153: 0 | CK153: 0 | CL153: 201432500 | CM153: 1670700000 | CN153: 0 | CO153: 0 | CP153: 1670700000 | CQ153: 445090000 | CR153: 0 | CS153: 0 | CT153: 445090000 | CU153: 610700000 | CV153: 0 | CW153: 0 | CX153: 610700000 | CY153: 3300000 | CZ153: 0 | DA153: 0 | DB153: 3300000
B154: 2031-09-01 | C154: 179300000 | D154: 0 | E154: 0 | F154: 179300000 | G154: 1297800000 | H154: 0 | I154: 0 | J154: 1297800000 | K154: 485600000 | L154: 0 | M154: 0 | N154: 485600000 | O154: 73500000 | P154: 0 | Q154: 0 | R154: 73500000 | S154: 340010000 | T154: 0 | U154: 0 | V154: 340010000 | W154: 172600000 | X154: 0 | Y154: 0 | Z154: 172600000 | AA154: 0 | AB154: 0 | AC154: 0 | AD154: 0 | AE154: 556267500 | AF154: 0 | AG154: 0 | AH154: 556267500 | AI154: 90000000 | AJ154: 0 | AK154: 0 | AL154: 90000000 | AM154: 49000000 | AN154: 0 | AO154: 0 | AP154: 49000000 | AQ154: 1407150000 | AR154: 0 | AS154: 0 | AT154: 1407150000 | AU154: 350000000 | AV154: 0 | AW154: 0 | AX154: 350000000 | AY154: 99000000 | AZ154: 0 | BA154: 0 | BB154: 99000000 | BC154: 420000000 | BD154: 0 | BE154: 0 | BF154: 420000000 | BG154: 296600000 | BH154: 0 | BI154: 0 | BJ154: 296600000 | BK154: 300000 | BL154: 0 | BM154: 0 | BN154: 300000 | BO154: 233100000 | BP154: 0 | BQ154: 0 | BR154: 233100000 | BS154: 25000000 | BT154: 0 | BU154: 0 | BV154: 25000000 | BW154: 699680000 | BX154: 0 | BY154: 0 | BZ154: 699680000 | CA154: 950000000 | CB154: 0 | CC154: 163000000 | CD154: 1113000000 | CE154: 0 | CF154: 0 | CG154: 0 | CH154: 0 | CI154: 201432500 | CJ154: 0 | CK154: 0 | CL154: 201432500 | CM154: 1670700000 | CN154: 0 | CO154: 0 | CP154: 1670700000 | CQ154: 445090000 | CR154: 0 | CS154: 0 | CT154: 445090000 | CU154: 610700000 | CV154: 0 | CW154: 0 | CX154: 610700000 | CY154: 3300000 | CZ154: 0 | DA154: 0 | DB154: 3300000
B155: 2031-10-01 | C155: 179300000 | D155: 0 | E155: 0 | F155: 179300000 | G155: 1297800000 | H155: 0 | I155: 0 | J155: 1297800000 | K155: 485600000 | L155: 0 | M155: 0 | N155: 485600000 | O155: 73500000 | P155: 0 | Q155: 0 | R155: 73500000 | S155: 340010000 | T155: 0 | U155: 0 | V155: 340010000 | W155: 172600000 | X155: 0 | Y155: 0 | Z155: 172600000 | AA155: 0 | AB155: 0 | AC155: 0 | AD155: 0 | AE155: 556267500 | AF155: 0 | AG155: 0 | AH155: 556267500 | AI155: 90000000 | AJ155: 0 | AK155: 0 | AL155: 90000000 | AM155: 49000000 | AN155: 0 | AO155: 0 | AP155: 49000000 | AQ155: 1407150000 | AR155: 0 | AS155: 0 | AT155: 1407150000 | AU155: 350000000 | AV155: 0 | AW155: 0 | AX155: 350000000 | AY155: 99000000 | AZ155: 0 | BA155: 0 | BB155: 99000000 | BC155: 420000000 | BD155: 0 | BE155: 0 | BF155: 420000000 | BG155: 296600000 | BH155: 0 | BI155: 0 | BJ155: 296600000 | BK155: 300000 | BL155: 0 | BM155: 0 | BN155: 300000 | BO155: 233100000 | BP155: 0 | BQ155: 0 | BR155: 233100000 | BS155: 25000000 | BT155: 0 | BU155: 0 | BV155: 25000000 | BW155: 699680000 | BX155: 0 | BY155: 0 | BZ155: 699680000 | CA155: 950000000 | CB155: 0 | CC155: 163000000 | CD155: 1113000000 | CE155: 0 | CF155: 0 | CG155: 0 | CH155: 0 | CI155: 201432500 | CJ155: 0 | CK155: 0 | CL155: 201432500 | CM155: 1670700000 | CN155: 0 | CO155: 0 | CP155: 1670700000 | CQ155: 445090000 | CR155: 0 | CS155: 0 | CT155: 445090000 | CU155: 610700000 | CV155: 0 | CW155: 0 | CX155: 610700000 | CY155: 3300000 | CZ155: 0 | DA155: 0 | DB155: 3300000
B156: 2031-11-01 | C156: 179300000 | D156: 0 | E156: 0 | F156: 179300000 | G156: 1297800000 | H156: 0 | I156: 0 | J156: 1297800000 | K156: 485600000 | L156: 0 | M156: 0 | N156: 485600000 | O156: 73500000 | P156: 0 | Q156: 0 | R156: 73500000 | S156: 340010000 | T156: 0 | U156: 0 | V156: 340010000 | W156: 172600000 | X156: 0 | Y156: 0 | Z156: 172600000 | AA156: 0 | AB156: 0 | AC156: 0 | AD156: 0 | AE156: 556267500 | AF156: 0 | AG156: 0 | AH156: 556267500 | AI156: 90000000 | AJ156: 0 | AK156: 0 | AL156: 90000000 | AM156: 49000000 | AN156: 0 | AO156: 0 | AP156: 49000000 | AQ156: 1407150000 | AR156: 0 | AS156: 0 | AT156: 1407150000 | AU156: 350000000 | AV156: 0 | AW156: 0 | AX156: 350000000 | AY156: 99000000 | AZ156: 0 | BA156: 0 | BB156: 99000000 | BC156: 420000000 | BD156: 0 | BE156: 0 | BF156: 420000000 | BG156: 296600000 | BH156: 0 | BI156: 0 | BJ156: 296600000 | BK156: 300000 | BL156: 0 | BM156: 0 | BN156: 300000 | BO156: 233100000 | BP156: 0 | BQ156: 0 | BR156: 233100000 | BS156: 25000000 | BT156: 0 | BU156: 0 | BV156: 25000000 | BW156: 699680000 | BX156: 0 | BY156: 0 | BZ156: 699680000 | CA156: 950000000 | CB156: 0 | CC156: 163000000 | CD156: 1113000000 | CE156: 0 | CF156: 0 | CG156: 0 | CH156: 0 | CI156: 201432500 | CJ156: 0 | CK156: 0 | CL156: 201432500 | CM156: 1670700000 | CN156: 0 | CO156: 0 | CP156: 1670700000 | CQ156: 445090000 | CR156: 0 | CS156: 0 | CT156: 445090000 | CU156: 610700000 | CV156: 0 | CW156: 0 | CX156: 610700000 | CY156: 3300000 | CZ156: 0 | DA156: 0 | DB156: 3300000
B157: 2031-12-01 | C157: 179300000 | D157: 0 | E157: 0 | F157: 179300000 | G157: 1297800000 | H157: 0 | I157: 0 | J157: 1297800000 | K157: 485600000 | L157: 0 | M157: 0 | N157: 485600000 | O157: 73500000 | P157: 0 | Q157: 0 | R157: 73500000 | S157: 340010000 | T157: 0 | U157: 0 | V157: 340010000 | W157: 172600000 | X157: 0 | Y157: 0 | Z157: 172600000 | AA157: 0 | AB157: 0 | AC157: 0 | AD157: 0 | AE157: 556267500 | AF157: 0 | AG157: 0 | AH157: 556267500 | AI157: 90000000 | AJ157: 0 | AK157: 0 | AL157: 90000000 | AM157: 49000000 | AN157: 0 | AO157: 0 | AP157: 49000000 | AQ157: 1407150000 | AR157: 0 | AS157: 0 | AT157: 1407150000 | AU157: 350000000 | AV157: 0 | AW157: 0 | AX157: 350000000 | AY157: 99000000 | AZ157: 0 | BA157: 0 | BB157: 99000000 | BC157: 420000000 | BD157: 0 | BE157: 0 | BF157: 420000000 | BG157: 296600000 | BH157: 0 | BI157: 0 | BJ157: 296600000 | BK157: 300000 | BL157: 0 | BM157: 0 | BN157: 300000 | BO157: 233100000 | BP157: 0 | BQ157: 0 | BR157: 233100000 | BS157: 25000000 | BT157: 0 | BU157: 0 | BV157: 25000000 | BW157: 699680000 | BX157: 0 | BY157: 0 | BZ157: 699680000 | CA157: 950000000 | CB157: 0 | CC157: 163000000 | CD157: 1113000000 | CE157: 0 | CF157: 0 | CG157: 0 | CH157: 0 | CI157: 201432500 | CJ157: 0 | CK157: 0 | CL157: 201432500 | CM157: 1670700000 | CN157: 0 | CO157: 0 | CP157: 1670700000 | CQ157: 445090000 | CR157: 0 | CS157: 0 | CT157: 445090000 | CU157: 610700000 | CV157: 0 | CW157: 0 | CX157: 610700000 | CY157: 3300000 | CZ157: 0 | DA157: 0 | DB157: 3300000
B158: 2032-01-01 | C158: 179300000 | D158: 0 | E158: 0 | F158: 179300000 | G158: 1297800000 | H158: 0 | I158: 0 | J158: 1297800000 | K158: 485600000 | L158: 0 | M158: 0 | N158: 485600000 | O158: 73500000 | P158: 0 | Q158: 0 | R158: 73500000 | S158: 340010000 | T158: 0 | U158: 0 | V158: 340010000 | W158: 172600000 | X158: 0 | Y158: 0 | Z158: 172600000 | AA158: 0 | AB158: 0 | AC158: 0 | AD158: 0 | AE158: 556267500 | AF158: 0 | AG158: 0 | AH158: 556267500 | AI158: 90000000 | AJ158: 0 | AK158: 0 | AL158: 90000000 | AM158: 49000000 | AN158: 0 | AO158: 0 | AP158: 49000000 | AQ158: 1407150000 | AR158: 0 | AS158: 0 | AT158: 1407150000 | AU158: 350000000 | AV158: 0 | AW158: 0 | AX158: 350000000 | AY158: 99000000 | AZ158: 0 | BA158: 0 | BB158: 99000000 | BC158: 420000000 | BD158: 0 | BE158: 0 | BF158: 420000000 | BG158: 296600000 | BH158: 0 | BI158: 0 | BJ158: 296600000 | BK158: 300000 | BL158: 0 | BM158: 0 | BN158: 300000 | BO158: 233100000 | BP158: 0 | BQ158: 0 | BR158: 233100000 | BS158: 25000000 | BT158: 0 | BU158: 0 | BV158: 25000000 | BW158: 699680000 | BX158: 0 | BY158: 0 | BZ158: 699680000 | CA158: 950000000 | CB158: 0 | CC158: 163000000 | CD158: 1113000000 | CE158: 0 | CF158: 0 | CG158: 0 | CH158: 0 | CI158: 201432500 | CJ158: 0 | CK158: 0 | CL158: 201432500 | CM158: 1670700000 | CN158: 0 | CO158: 0 | CP158: 1670700000 | CQ158: 445090000 | CR158: 0 | CS158: 0 | CT158: 445090000 | CU158: 610700000 | CV158: 0 | CW158: 0 | CX158: 610700000 | CY158: 3300000 | CZ158: 0 | DA158: 0 | DB158: 3300000
B159: 2032-02-01 | C159: 179300000 | D159: 0 | E159: 0 | F159: 179300000 | G159: 1297800000 | H159: 0 | I159: 0 | J159: 1297800000 | K159: 485600000 | L159: 0 | M159: 0 | N159: 485600000 | O159: 73500000 | P159: 0 | Q159: 0 | R159: 73500000 | S159: 340010000 | T159: 0 | U159: 0 | V159: 340010000 | W159: 172600000 | X159: 0 | Y159: 0 | Z159: 172600000 | AA159: 0 | AB159: 0 | AC159: 0 | AD159: 0 | AE159: 556267500 | AF159: 0 | AG159: 0 | AH159: 556267500 | AI159: 90000000 | AJ159: 0 | AK159: 0 | AL159: 90000000 | AM159: 49000000 | AN159: 0 | AO159: 0 | AP159: 49000000 | AQ159: 1407150000 | AR159: 0 | AS159: 0 | AT159: 1407150000 | AU159: 350000000 | AV159: 0 | AW159: 0 | AX159: 350000000 | AY159: 99000000 | AZ159: 0 | BA159: 0 | BB159: 99000000 | BC159: 420000000 | BD159: 0 | BE159: 0 | BF159: 420000000 | BG159: 296600000 | BH159: 0 | BI159: 0 | BJ159: 296600000 | BK159: 300000 | BL159: 0 | BM159: 0 | BN159: 300000 | BO159: 233100000 | BP159: 0 | BQ159: 0 | BR159: 233100000 | BS159: 25000000 | BT159: 0 | BU159: 0 | BV159: 25000000 | BW159: 699680000 | BX159: 0 | BY159: 0 | BZ159: 699680000 | CA159: 950000000 | CB159: 0 | CC159: 163000000 | CD159: 1113000000 | CE159: 0 | CF159: 0 | CG159: 0 | CH159: 0 | CI159: 201432500 | CJ159: 0 | CK159: 0 | CL159: 201432500 | CM159: 1670700000 | CN159: 0 | CO159: 0 | CP159: 1670700000 | CQ159: 445090000 | CR159: 0 | CS159: 0 | CT159: 445090000 | CU159: 610700000 | CV159: 0 | CW159: 0 | CX159: 610700000 | CY159: 3300000 | CZ159: 0 | DA159: 0 | DB159: 3300000
B160: 2032-03-01 | C160: 179300000 | D160: 0 | E160: 0 | F160: 179300000 | G160: 1297800000 | H160: 0 | I160: 0 | J160: 1297800000 | K160: 485600000 | L160: 0 | M160: 0 | N160: 485600000 | O160: 73500000 | P160: 0 | Q160: 0 | R160: 73500000 | S160: 340010000 | T160: 0 | U160: 0 | V160: 340010000 | W160: 172600000 | X160: 0 | Y160: 0 | Z160: 172600000 | AA160: 0 | AB160: 0 | AC160: 0 | AD160: 0 | AE160: 556267500 | AF160: 0 | AG160: 0 | AH160: 556267500 | AI160: 90000000 | AJ160: 0 | AK160: 0 | AL160: 90000000 | AM160: 49000000 | AN160: 0 | AO160: 0 | AP160: 49000000 | AQ160: 1407150000 | AR160: 0 | AS160: 0 | AT160: 1407150000 | AU160: 350000000 | AV160: 0 | AW160: 0 | AX160: 350000000 | AY160: 99000000 | AZ160: 0 | BA160: 0 | BB160: 99000000 | BC160: 420000000 | BD160: 0 | BE160: 0 | BF160: 420000000 | BG160: 296600000 | BH160: 0 | BI160: 0 | BJ160: 296600000 | BK160: 300000 | BL160: 0 | BM160: 0 | BN160: 300000 | BO160: 233100000 | BP160: 0 | BQ160: 0 | BR160: 233100000 | BS160: 25000000 | BT160: 0 | BU160: 0 | BV160: 25000000 | BW160: 699680000 | BX160: 0 | BY160: 0 | BZ160: 699680000 | CA160: 950000000 | CB160: 0 | CC160: 163000000 | CD160: 1113000000 | CE160: 0 | CF160: 0 | CG160: 0 | CH160: 0 | CI160: 201432500 | CJ160: 0 | CK160: 0 | CL160: 201432500 | CM160: 1670700000 | CN160: 0 | CO160: 0 | CP160: 1670700000 | CQ160: 445090000 | CR160: 0 | CS160: 0 | CT160: 445090000 | CU160: 610700000 | CV160: 0 | CW160: 0 | CX160: 610700000 | CY160: 3300000 | CZ160: 0 | DA160: 0 | DB160: 3300000
B161: 2032-04-01 | C161: 179300000 | D161: 0 | E161: 0 | F161: 179300000 | G161: 1297800000 | H161: 0 | I161: 0 | J161: 1297800000 | K161: 485600000 | L161: 0 | M161: 0 | N161: 485600000 | O161: 73500000 | P161: 0 | Q161: 0 | R161: 73500000 | S161: 340010000 | T161: 0 | U161: 0 | V161: 340010000 | W161: 172600000 | X161: 0 | Y161: 0 | Z161: 172600000 | AA161: 0 | AB161: 0 | AC161: 0 | AD161: 0 | AE161: 556267500 | AF161: 0 | AG161: 0 | AH161: 556267500 | AI161: 90000000 | AJ161: 0 | AK161: 0 | AL161: 90000000 | AM161: 49000000 | AN161: 0 | AO161: 0 | AP161: 49000000 | AQ161: 1407150000 | AR161: 0 | AS161: 0 | AT161: 1407150000 | AU161: 350000000 | AV161: 0 | AW161: 0 | AX161: 350000000 | AY161: 99000000 | AZ161: 0 | BA161: 0 | BB161: 99000000 | BC161: 420000000 | BD161: 0 | BE161: 0 | BF161: 420000000 | BG161: 296600000 | BH161: 0 | BI161: 0 | BJ161: 296600000 | BK161: 300000 | BL161: 0 | BM161: 0 | BN161: 300000 | BO161: 233100000 | BP161: 0 | BQ161: 0 | BR161: 233100000 | BS161: 25000000 | BT161: 0 | BU161: 0 | BV161: 25000000 | BW161: 699680000 | BX161: 0 | BY161: 0 | BZ161: 699680000 | CA161: 950000000 | CB161: 0 | CC161: 163000000 | CD161: 1113000000 | CE161: 0 | CF161: 0 | CG161: 0 | CH161: 0 | CI161: 201432500 | CJ161: 0 | CK161: 0 | CL161: 201432500 | CM161: 1670700000 | CN161: 0 | CO161: 0 | CP161: 1670700000 | CQ161: 445090000 | CR161: 0 | CS161: 0 | CT161: 445090000 | CU161: 610700000 | CV161: 0 | CW161: 0 | CX161: 610700000 | CY161: 3300000 | CZ161: 0 | DA161: 0 | DB161: 3300000
B162: 2032-05-01 | C162: 179300000 | D162: 0 | E162: 0 | F162: 179300000 | G162: 1297800000 | H162: 0 | I162: 0 | J162: 1297800000 | K162: 485600000 | L162: 0 | M162: 0 | N162: 485600000 | O162: 73500000 | P162: 0 | Q162: 0 | R162: 73500000 | S162: 340010000 | T162: 0 | U162: 0 | V162: 340010000 | W162: 172600000 | X162: 0 | Y162: 0 | Z162: 172600000 | AA162: 0 | AB162: 0 | AC162: 0 | AD162: 0 | AE162: 556267500 | AF162: 0 | AG162: 0 | AH162: 556267500 | AI162: 90000000 | AJ162: 0 | AK162: 0 | AL162: 90000000 | AM162: 49000000 | AN162: 0 | AO162: 0 | AP162: 49000000 | AQ162: 1407150000 | AR162: 0 | AS162: 0 | AT162: 1407150000 | AU162: 350000000 | AV162: 0 | AW162: 0 | AX162: 350000000 | AY162: 99000000 | AZ162: 0 | BA162: 0 | BB162: 99000000 | BC162: 420000000 | BD162: 0 | BE162: 0 | BF162: 420000000 | BG162: 296600000 | BH162: 0 | BI162: 0 | BJ162: 296600000 | BK162: 300000 | BL162: 0 | BM162: 0 | BN162: 300000 | BO162: 233100000 | BP162: 0 | BQ162: 0 | BR162: 233100000 | BS162: 25000000 | BT162: 0 | BU162: 0 | BV162: 25000000 | BW162: 699680000 | BX162: 0 | BY162: 0 | BZ162: 699680000 | CA162: 950000000 | CB162: 0 | CC162: 163000000 | CD162: 1113000000 | CE162: 0 | CF162: 0 | CG162: 0 | CH162: 0 | CI162: 201432500 | CJ162: 0 | CK162: 0 | CL162: 201432500 | CM162: 1670700000 | CN162: 0 | CO162: 0 | CP162: 1670700000 | CQ162: 445090000 | CR162: 0 | CS162: 0 | CT162: 445090000 | CU162: 610700000 | CV162: 0 | CW162: 0 | CX162: 610700000 | CY162: 3300000 | CZ162: 0 | DA162: 0 | DB162: 3300000
B163: 2032-06-01 | C163: 179300000 | D163: 0 | E163: 0 | F163: 179300000 | G163: 1297800000 | H163: 0 | I163: 0 | J163: 1297800000 | K163: 485600000 | L163: 0 | M163: 0 | N163: 485600000 | O163: 73500000 | P163: 0 | Q163: 0 | R163: 73500000 | S163: 340010000 | T163: 0 | U163: 0 | V163: 340010000 | W163: 172600000 | X163: 0 | Y163: 0 | Z163: 172600000 | AA163: 0 | AB163: 0 | AC163: 0 | AD163: 0 | AE163: 556267500 | AF163: 0 | AG163: 0 | AH163: 556267500 | AI163: 90000000 | AJ163: 0 | AK163: 0 | AL163: 90000000 | AM163: 49000000 | AN163: 0 | AO163: 0 | AP163: 49000000 | AQ163: 1407150000 | AR163: 0 | AS163: 0 | AT163: 1407150000 | AU163: 350000000 | AV163: 0 | AW163: 0 | AX163: 350000000 | AY163: 99000000 | AZ163: 0 | BA163: 0 | BB163: 99000000 | BC163: 420000000 | BD163: 0 | BE163: 0 | BF163: 420000000 | BG163: 296600000 | BH163: 0 | BI163: 0 | BJ163: 296600000 | BK163: 300000 | BL163: 0 | BM163: 0 | BN163: 300000 | BO163: 233100000 | BP163: 0 | BQ163: 0 | BR163: 233100000 | BS163: 25000000 | BT163: 0 | BU163: 0 | BV163: 25000000 | BW163: 699680000 | BX163: 0 | BY163: 0 | BZ163: 699680000 | CA163: 950000000 | CB163: 0 | CC163: 163000000 | CD163: 1113000000 | CE163: 0 | CF163: 0 | CG163: 0 | CH163: 0 | CI163: 201432500 | CJ163: 0 | CK163: 0 | CL163: 201432500 | CM163: 1670700000 | CN163: 0 | CO163: 0 | CP163: 1670700000 | CQ163: 445090000 | CR163: 0 | CS163: 0 | CT163: 445090000 | CU163: 610700000 | CV163: 0 | CW163: 0 | CX163: 610700000 | CY163: 3300000 | CZ163: 0 | DA163: 0 | DB163: 3300000
B164: 2032-07-01 | C164: 179300000 | D164: 0 | E164: 0 | F164: 179300000 | G164: 1297800000 | H164: 0 | I164: 0 | J164: 1297800000 | K164: 485600000 | L164: 0 | M164: 0 | N164: 485600000 | O164: 73500000 | P164: 0 | Q164: 0 | R164: 73500000 | S164: 340010000 | T164: 0 | U164: 0 | V164: 340010000 | W164: 172600000 | X164: 0 | Y164: 0 | Z164: 172600000 | AA164: 0 | AB164: 0 | AC164: 0 | AD164: 0 | AE164: 556267500 | AF164: 0 | AG164: 0 | AH164: 556267500 | AI164: 90000000 | AJ164: 0 | AK164: 0 | AL164: 90000000 | AM164: 49000000 | AN164: 0 | AO164: 0 | AP164: 49000000 | AQ164: 1407150000 | AR164: 0 | AS164: 0 | AT164: 1407150000 | AU164: 350000000 | AV164: 0 | AW164: 0 | AX164: 350000000 | AY164: 99000000 | AZ164: 0 | BA164: 0 | BB164: 99000000 | BC164: 420000000 | BD164: 0 | BE164: 0 | BF164: 420000000 | BG164: 296600000 | BH164: 0 | BI164: 0 | BJ164: 296600000 | BK164: 300000 | BL164: 0 | BM164: 0 | BN164: 300000 | BO164: 233100000 | BP164: 0 | BQ164: 0 | BR164: 233100000 | BS164: 25000000 | BT164: 0 | BU164: 0 | BV164: 25000000 | BW164: 699680000 | BX164: 0 | BY164: 0 | BZ164: 699680000 | CA164: 950000000 | CB164: 0 | CC164: 163000000 | CD164: 1113000000 | CE164: 0 | CF164: 0 | CG164: 0 | CH164: 0 | CI164: 201432500 | CJ164: 0 | CK164: 0 | CL164: 201432500 | CM164: 1670700000 | CN164: 0 | CO164: 0 | CP164: 1670700000 | CQ164: 445090000 | CR164: 0 | CS164: 0 | CT164: 445090000 | CU164: 610700000 | CV164: 0 | CW164: 0 | CX164: 610700000 | CY164: 3300000 | CZ164: 0 | DA164: 0 | DB164: 3300000
B165: 2032-08-01 | C165: 179300000 | D165: 0 | E165: 0 | F165: 179300000 | G165: 1297800000 | H165: 0 | I165: 0 | J165: 1297800000 | K165: 485600000 | L165: 0 | M165: 0 | N165: 485600000 | O165: 73500000 | P165: 0 | Q165: 0 | R165: 73500000 | S165: 340010000 | T165: 0 | U165: 0 | V165: 340010000 | W165: 172600000 | X165: 0 | Y165: 0 | Z165: 172600000 | AA165: 0 | AB165: 0 | AC165: 0 | AD165: 0 | AE165: 556267500 | AF165: 0 | AG165: 0 | AH165: 556267500 | AI165: 90000000 | AJ165: 0 | AK165: 0 | AL165: 90000000 | AM165: 49000000 | AN165: 0 | AO165: 0 | AP165: 49000000 | AQ165: 1407150000 | AR165: 0 | AS165: 0 | AT165: 1407150000 | AU165: 350000000 | AV165: 0 | AW165: 0 | AX165: 350000000 | AY165: 99000000 | AZ165: 0 | BA165: 0 | BB165: 99000000 | BC165: 420000000 | BD165: 0 | BE165: 0 | BF165: 420000000 | BG165: 296600000 | BH165: 0 | BI165: 0 | BJ165: 296600000 | BK165: 300000 | BL165: 0 | BM165: 0 | BN165: 300000 | BO165: 233100000 | BP165: 0 | BQ165: 0 | BR165: 233100000 | BS165: 25000000 | BT165: 0 | BU165: 0 | BV165: 25000000 | BW165: 699680000 | BX165: 0 | BY165: 0 | BZ165: 699680000 | CA165: 950000000 | CB165: 0 | CC165: 163000000 | CD165: 1113000000 | CE165: 0 | CF165: 0 | CG165: 0 | CH165: 0 | CI165: 201432500 | CJ165: 0 | CK165: 0 | CL165: 201432500 | CM165: 1670700000 | CN165: 0 | CO165: 0 | CP165: 1670700000 | CQ165: 445090000 | CR165: 0 | CS165: 0 | CT165: 445090000 | CU165: 610700000 | CV165: 0 | CW165: 0 | CX165: 610700000 | CY165: 3300000 | CZ165: 0 | DA165: 0 | DB165: 3300000
B166: 2032-09-01 | C166: 179300000 | D166: 0 | E166: 0 | F166: 179300000 | G166: 1297800000 | H166: 0 | I166: 0 | J166: 1297800000 | K166: 485600000 | L166: 0 | M166: 0 | N166: 485600000 | O166: 73500000 | P166: 0 | Q166: 0 | R166: 73500000 | S166: 340010000 | T166: 0 | U166: 0 | V166: 340010000 | W166: 172600000 | X166: 0 | Y166: 0 | Z166: 172600000 | AA166: 0 | AB166: 0 | AC166: 0 | AD166: 0 | AE166: 556267500 | AF166: 0 | AG166: 0 | AH166: 556267500 | AI166: 90000000 | AJ166: 0 | AK166: 0 | AL166: 90000000 | AM166: 49000000 | AN166: 0 | AO166: 0 | AP166: 49000000 | AQ166: 1407150000 | AR166: 0 | AS166: 0 | AT166: 1407150000 | AU166: 350000000 | AV166: 0 | AW166: 0 | AX166: 350000000 | AY166: 99000000 | AZ166: 0 | BA166: 0 | BB166: 99000000 | BC166: 420000000 | BD166: 0 | BE166: 0 | BF166: 420000000 | BG166: 296600000 | BH166: 0 | BI166: 0 | BJ166: 296600000 | BK166: 300000 | BL166: 0 | BM166: 0 | BN166: 300000 | BO166: 233100000 | BP166: 0 | BQ166: 0 | BR166: 233100000 | BS166: 25000000 | BT166: 0 | BU166: 0 | BV166: 25000000 | BW166: 699680000 | BX166: 0 | BY166: 0 | BZ166: 699680000 | CA166: 950000000 | CB166: 0 | CC166: 163000000 | CD166: 1113000000 | CE166: 0 | CF166: 0 | CG166: 0 | CH166: 0 | CI166: 201432500 | CJ166: 0 | CK166: 0 | CL166: 201432500 | CM166: 1670700000 | CN166: 0 | CO166: 0 | CP166: 1670700000 | CQ166: 445090000 | CR166: 0 | CS166: 0 | CT166: 445090000 | CU166: 610700000 | CV166: 0 | CW166: 0 | CX166: 610700000 | CY166: 3300000 | CZ166: 0 | DA166: 0 | DB166: 3300000
B167: 2032-10-01 | C167: 179300000 | D167: 0 | E167: 0 | F167: 179300000 | G167: 1297800001 | H167: 0 | I167: 0 | J167: 1297800001 | K167: 485600000 | L167: 0 | M167: 0 | N167: 485600000 | O167: 73500000 | P167: 0 | Q167: 0 | R167: 73500000 | S167: 340010000 | T167: 0 | U167: 0 | V167: 340010000 | W167: 172600000 | X167: 0 | Y167: 0 | Z167: 172600000 | AA167: 0 | AB167: 0 | AC167: 0 | AD167: 0 | AE167: 556267500 | AF167: 0 | AG167: 0 | AH167: 556267500 | AI167: 90000000 | AJ167: 0 | AK167: 0 | AL167: 90000000 | AM167: 49000000 | AN167: 0 | AO167: 0 | AP167: 49000000 | AQ167: 1407150000 | AR167: 0 | AS167: 0 | AT167: 1407150000 | AU167: 350000000 | AV167: 0 | AW167: 0 | AX167: 350000000 | AY167: 99000000 | AZ167: 0 | BA167: 0 | BB167: 99000000 | BC167: 420000000 | BD167: 0 | BE167: 0 | BF167: 420000000 | BG167: 296600000 | BH167: 0 | BI167: 0 | BJ167: 296600000 | BK167: 300000 | BL167: 0 | BM167: 0 | BN167: 300000 | BO167: 233100000 | BP167: 0 | BQ167: 0 | BR167: 233100000 | BS167: 25000000 | BT167: 0 | BU167: 0 | BV167: 25000000 | BW167: 699680000 | BX167: 0 | BY167: 0 | BZ167: 699680000 | CA167: 950000000 | CB167: 0 | CC167: 163000000 | CD167: 1113000000 | CE167: 0 | CF167: 0 | CG167: 0 | CH167: 0 | CI167: 201432500 | CJ167: 0 | CK167: 0 | CL167: 201432500 | CM167: 1670700000 | CN167: 0 | CO167: 0 | CP167: 1670700000 | CQ167: 445090000 | CR167: 0 | CS167: 0 | CT167: 445090000 | CU167: 610700000 | CV167: 0 | CW167: 0 | CX167: 610700000 | CY167: 3300000 | CZ167: 0 | DA167: 0 | DB167: 3300000
B168: 2032-11-01 | C168: 179300000 | D168: 0 | E168: 0 | F168: 179300000 | G168: 1297800002 | H168: 0 | I168: 0 | J168: 1297800002 | K168: 485600000 | L168: 0 | M168: 0 | N168: 485600000 | O168: 73500000 | P168: 0 | Q168: 0 | R168: 73500000 | S168: 340010000 | T168: 0 | U168: 0 | V168: 340010000 | W168: 172600000 | X168: 0 | Y168: 0 | Z168: 172600000 | AA168: 0 | AB168: 0 | AC168: 0 | AD168: 0 | AE168: 556267500 | AF168: 0 | AG168: 0 | AH168: 556267500 | AI168: 90000000 | AJ168: 0 | AK168: 0 | AL168: 90000000 | AM168: 49000000 | AN168: 0 | AO168: 0 | AP168: 49000000 | AQ168: 1407150000 | AR168: 0 | AS168: 0 | AT168: 1407150000 | AU168: 350000000 | AV168: 0 | AW168: 0 | AX168: 350000000 | AY168: 99000000 | AZ168: 0 | BA168: 0 | BB168: 99000000 | BC168: 420000000 | BD168: 0 | BE168: 0 | BF168: 420000000 | BG168: 296600000 | BH168: 0 | BI168: 0 | BJ168: 296600000 | BK168: 300000 | BL168: 0 | BM168: 0 | BN168: 300000 | BO168: 233100000 | BP168: 0 | BQ168: 0 | BR168: 233100000 | BS168: 25000000 | BT168: 0 | BU168: 0 | BV168: 25000000 | BW168: 699680000 | BX168: 0 | BY168: 0 | BZ168: 699680000 | CA168: 950000000 | CB168: 0 | CC168: 163000000 | CD168: 1113000000 | CE168: 0 | CF168: 0 | CG168: 0 | CH168: 0 | CI168: 201432500 | CJ168: 0 | CK168: 0 | CL168: 201432500 | CM168: 1670700000 | CN168: 0 | CO168: 0 | CP168: 1670700000 | CQ168: 445090000 | CR168: 0 | CS168: 0 | CT168: 445090000 | CU168: 610700000 | CV168: 0 | CW168: 0 | CX168: 610700000 | CY168: 3300000 | CZ168: 0 | DA168: 0 | DB168: 3300000
B169: 2032-12-01 | C169: 179300000 | D169: 0 | E169: 0 | F169: 179300000 | G169: 1297800003 | H169: 0 | I169: 0 | J169: 1297800003 | K169: 485600000 | L169: 0 | M169: 0 | N169: 485600000 | O169: 73500000 | P169: 0 | Q169: 0 | R169: 73500000 | S169: 340010000 | T169: 0 | U169: 0 | V169: 340010000 | W169: 172600000 | X169: 0 | Y169: 0 | Z169: 172600000 | AA169: 0 | AB169: 0 | AC169: 0 | AD169: 0 | AE169: 556267500 | AF169: 0 | AG169: 0 | AH169: 556267500 | AI169: 90000000 | AJ169: 0 | AK169: 0 | AL169: 90000000 | AM169: 49000000 | AN169: 0 | AO169: 0 | AP169: 49000000 | AQ169: 1407150000 | AR169: 0 | AS169: 0 | AT169: 1407150000 | AU169: 350000000 | AV169: 0 | AW169: 0 | AX169: 350000000 | AY169: 99000000 | AZ169: 0 | BA169: 0 | BB169: 99000000 | BC169: 420000000 | BD169: 0 | BE169: 0 | BF169: 420000000 | BG169: 296600000 | BH169: 0 | BI169: 0 | BJ169: 296600000 | BK169: 300000 | BL169: 0 | BM169: 0 | BN169: 300000 | BO169: 233100000 | BP169: 0 | BQ169: 0 | BR169: 233100000 | BS169: 25000000 | BT169: 0 | BU169: 0 | BV169: 25000000 | BW169: 699680000 | BX169: 0 | BY169: 0 | BZ169: 699680000 | CA169: 950000000 | CB169: 0 | CC169: 163000000 | CD169: 1113000000 | CE169: 0 | CF169: 0 | CG169: 0 | CH169: 0 | CI169: 201432500 | CJ169: 0 | CK169: 0 | CL169: 201432500 | CM169: 1670700000 | CN169: 0 | CO169: 0 | CP169: 1670700000 | CQ169: 445090000 | CR169: 0 | CS169: 0 | CT169: 445090000 | CU169: 610700000 | CV169: 0 | CW169: 0 | CX169: 610700000 | CY169: 3300000 | CZ169: 0 | DA169: 0 | DB169: 3300000
B170: 2033-01-01 | C170: 179300000 | D170: 0 | E170: 0 | F170: 179300000 | G170: 1297800004 | H170: 0 | I170: 0 | J170: 1297800004 | K170: 485600000 | L170: 0 | M170: 0 | N170: 485600000 | O170: 73500000 | P170: 0 | Q170: 0 | R170: 73500000 | S170: 340010000 | T170: 0 | U170: 0 | V170: 340010000 | W170: 172600000 | X170: 0 | Y170: 0 | Z170: 172600000 | AA170: 0 | AB170: 0 | AC170: 0 | AD170: 0 | AE170: 556267500 | AF170: 0 | AG170: 0 | AH170: 556267500 | AI170: 90000000 | AJ170: 0 | AK170: 0 | AL170: 90000000 | AM170: 49000000 | AN170: 0 | AO170: 0 | AP170: 49000000 | AQ170: 1407150000 | AR170: 0 | AS170: 0 | AT170: 1407150000 | AU170: 350000000 | AV170: 0 | AW170: 0 | AX170: 350000000 | AY170: 99000000 | AZ170: 0 | BA170: 0 | BB170: 99000000 | BC170: 420000000 | BD170: 0 | BE170: 0 | BF170: 420000000 | BG170: 296600000 | BH170: 0 | BI170: 0 | BJ170: 296600000 | BK170: 300000 | BL170: 0 | BM170: 0 | BN170: 300000 | BO170: 233100000 | BP170: 0 | BQ170: 0 | BR170: 233100000 | BS170: 25000000 | BT170: 0 | BU170: 0 | BV170: 25000000 | BW170: 699680000 | BX170: 0 | BY170: 0 | BZ170: 699680000 | CA170: 950000000 | CB170: 0 | CC170: 163000000 | CD170: 1113000000 | CE170: 0 | CF170: 0 | CG170: 0 | CH170: 0 | CI170: 201432500 | CJ170: 0 | CK170: 0 | CL170: 201432500 | CM170: 1670700000 | CN170: 0 | CO170: 0 | CP170: 1670700000 | CQ170: 445090000 | CR170: 0 | CS170: 0 | CT170: 445090000 | CU170: 610700000 | CV170: 0 | CW170: 0 | CX170: 610700000 | CY170: 3300000 | CZ170: 0 | DA170: 0 | DB170: 3300000
B171: 2033-02-01 | C171: 179300000 | D171: 0 | E171: 0 | F171: 179300000 | G171: 1297800005 | H171: 0 | I171: 0 | J171: 1297800005 | K171: 485600000 | L171: 0 | M171: 0 | N171: 485600000 | O171: 73500000 | P171: 0 | Q171: 0 | R171: 73500000 | S171: 340010000 | T171: 0 | U171: 0 | V171: 340010000 | W171: 172600000 | X171: 0 | Y171: 0 | Z171: 172600000 | AA171: 0 | AB171: 0 | AC171: 0 | AD171: 0 | AE171: 556267500 | AF171: 0 | AG171: 0 | AH171: 556267500 | AI171: 90000000 | AJ171: 0 | AK171: 0 | AL171: 90000000 | AM171: 49000000 | AN171: 0 | AO171: 0 | AP171: 49000000 | AQ171: 1407150000 | AR171: 0 | AS171: 0 | AT171: 1407150000 | AU171: 350000000 | AV171: 0 | AW171: 0 | AX171: 350000000 | AY171: 99000000 | AZ171: 0 | BA171: 0 | BB171: 99000000 | BC171: 420000000 | BD171: 0 | BE171: 0 | BF171: 420000000 | BG171: 296600000 | BH171: 0 | BI171: 0 | BJ171: 296600000 | BK171: 300000 | BL171: 0 | BM171: 0 | BN171: 300000 | BO171: 233100000 | BP171: 0 | BQ171: 0 | BR171: 233100000 | BS171: 25000000 | BT171: 0 | BU171: 0 | BV171: 25000000 | BW171: 699680000 | BX171: 0 | BY171: 0 | BZ171: 699680000 | CA171: 950000000 | CB171: 0 | CC171: 163000000 | CD171: 1113000000 | CE171: 0 | CF171: 0 | CG171: 0 | CH171: 0 | CI171: 201432500 | CJ171: 0 | CK171: 0 | CL171: 201432500 | CM171: 1670700000 | CN171: 0 | CO171: 0 | CP171: 1670700000 | CQ171: 445090000 | CR171: 0 | CS171: 0 | CT171: 445090000 | CU171: 610700000 | CV171: 0 | CW171: 0 | CX171: 610700000 | CY171: 3300000 | CZ171: 0 | DA171: 0 | DB171: 3300000
B172: 2033-03-01 | C172: 179300000 | D172: 0 | E172: 0 | F172: 179300000 | G172: 1297800006 | H172: 0 | I172: 0 | J172: 1297800006 | K172: 485600000 | L172: 0 | M172: 0 | N172: 485600000 | O172: 73500000 | P172: 0 | Q172: 0 | R172: 73500000 | S172: 340010000 | T172: 0 | U172: 0 | V172: 340010000 | W172: 172600000 | X172: 0 | Y172: 0 | Z172: 172600000 | AA172: 0 | AB172: 0 | AC172: 0 | AD172: 0 | AE172: 556267500 | AF172: 0 | AG172: 0 | AH172: 556267500 | AI172: 90000000 | AJ172: 0 | AK172: 0 | AL172: 90000000 | AM172: 49000000 | AN172: 0 | AO172: 0 | AP172: 49000000 | AQ172: 1407150000 | AR172: 0 | AS172: 0 | AT172: 1407150000 | AU172: 350000000 | AV172: 0 | AW172: 0 | AX172: 350000000 | AY172: 99000000 | AZ172: 0 | BA172: 0 | BB172: 99000000 | BC172: 420000000 | BD172: 0 | BE172: 0 | BF172: 420000000 | BG172: 296600000 | BH172: 0 | BI172: 0 | BJ172: 296600000 | BK172: 300000 | BL172: 0 | BM172: 0 | BN172: 300000 | BO172: 233100000 | BP172: 0 | BQ172: 0 | BR172: 233100000 | BS172: 25000000 | BT172: 0 | BU172: 0 | BV172: 25000000 | BW172: 699680000 | BX172: 0 | BY172: 0 | BZ172: 699680000 | CA172: 950000000 | CB172: 0 | CC172: 163000000 | CD172: 1113000000 | CE172: 0 | CF172: 0 | CG172: 0 | CH172: 0 | CI172: 201432500 | CJ172: 0 | CK172: 0 | CL172: 201432500 | CM172: 1670700000 | CN172: 0 | CO172: 0 | CP172: 1670700000 | CQ172: 445090000 | CR172: 0 | CS172: 0 | CT172: 445090000 | CU172: 610700000 | CV172: 0 | CW172: 0 | CX172: 610700000 | CY172: 3300000 | CZ172: 0 | DA172: 0 | DB172: 3300000
B173: 2033-04-01 | C173: 179300000 | D173: 0 | E173: 0 | F173: 179300000 | G173: 1297800007 | H173: 0 | I173: 0 | J173: 1297800007 | K173: 485600000 | L173: 0 | M173: 0 | N173: 485600000 | O173: 73500000 | P173: 0 | Q173: 0 | R173: 73500000 | S173: 340010000 | T173: 0 | U173: 0 | V173: 340010000 | W173: 172600000 | X173: 0 | Y173: 0 | Z173: 172600000 | AA173: 0 | AB173: 0 | AC173: 0 | AD173: 0 | AE173: 556267500 | AF173: 0 | AG173: 0 | AH173: 556267500 | AI173: 90000000 | AJ173: 0 | AK173: 0 | AL173: 90000000 | AM173: 49000000 | AN173: 0 | AO173: 0 | AP173: 49000000 | AQ173: 1407150000 | AR173: 0 | AS173: 0 | AT173: 1407150000 | AU173: 350000000 | AV173: 0 | AW173: 0 | AX173: 350000000 | AY173: 99000000 | AZ173: 0 | BA173: 0 | BB173: 99000000 | BC173: 420000000 | BD173: 0 | BE173: 0 | BF173: 420000000 | BG173: 296600000 | BH173: 0 | BI173: 0 | BJ173: 296600000 | BK173: 300000 | BL173: 0 | BM173: 0 | BN173: 300000 | BO173: 233100000 | BP173: 0 | BQ173: 0 | BR173: 233100000 | BS173: 25000000 | BT173: 0 | BU173: 0 | BV173: 25000000 | BW173: 699680000 | BX173: 0 | BY173: 0 | BZ173: 699680000 | CA173: 950000000 | CB173: 0 | CC173: 163000000 | CD173: 1113000000 | CE173: 0 | CF173: 0 | CG173: 0 | CH173: 0 | CI173: 201432500 | CJ173: 0 | CK173: 0 | CL173: 201432500 | CM173: 1670700000 | CN173: 0 | CO173: 0 | CP173: 1670700000 | CQ173: 445090000 | CR173: 0 | CS173: 0 | CT173: 445090000 | CU173: 610700000 | CV173: 0 | CW173: 0 | CX173: 610700000 | CY173: 3300000 | CZ173: 0 | DA173: 0 | DB173: 3300000
B174: 2033-05-01 | C174: 179300000 | D174: 0 | E174: 0 | F174: 179300000 | G174: 1297800008 | H174: 0 | I174: 0 | J174: 1297800008 | K174: 485600000 | L174: 0 | M174: 0 | N174: 485600000 | O174: 73500000 | P174: 0 | Q174: 0 | R174: 73500000 | S174: 340010000 | T174: 0 | U174: 0 | V174: 340010000 | W174: 172600000 | X174: 0 | Y174: 0 | Z174: 172600000 | AA174: 0 | AB174: 0 | AC174: 0 | AD174: 0 | AE174: 556267500 | AF174: 0 | AG174: 0 | AH174: 556267500 | AI174: 90000000 | AJ174: 0 | AK174: 0 | AL174: 90000000 | AM174: 49000000 | AN174: 0 | AO174: 0 | AP174: 49000000 | AQ174: 1407150000 | AR174: 0 | AS174: 0 | AT174: 1407150000 | AU174: 350000000 | AV174: 0 | AW174: 0 | AX174: 350000000 | AY174: 99000000 | AZ174: 0 | BA174: 0 | BB174: 99000000 | BC174: 420000000 | BD174: 0 | BE174: 0 | BF174: 420000000 | BG174: 296600000 | BH174: 0 | BI174: 0 | BJ174: 296600000 | BK174: 300000 | BL174: 0 | BM174: 0 | BN174: 300000 | BO174: 233100000 | BP174: 0 | BQ174: 0 | BR174: 233100000 | BS174: 25000000 | BT174: 0 | BU174: 0 | BV174: 25000000 | BW174: 699680000 | BX174: 0 | BY174: 0 | BZ174: 699680000 | CA174: 950000000 | CB174: 0 | CC174: 163000000 | CD174: 1113000000 | CE174: 0 | CF174: 0 | CG174: 0 | CH174: 0 | CI174: 201432500 | CJ174: 0 | CK174: 0 | CL174: 201432500 | CM174: 1670700000 | CN174: 0 | CO174: 0 | CP174: 1670700000 | CQ174: 445090000 | CR174: 0 | CS174: 0 | CT174: 445090000 | CU174: 610700000 | CV174: 0 | CW174: 0 | CX174: 610700000 | CY174: 3300000 | CZ174: 0 | DA174: 0 | DB174: 3300000
B175: 2033-06-01 | C175: 179300000 | D175: 0 | E175: 0 | F175: 179300000 | G175: 1297800009 | H175: 0 | I175: 0 | J175: 1297800009 | K175: 485600000 | L175: 0 | M175: 0 | N175: 485600000 | O175: 73500000 | P175: 0 | Q175: 0 | R175: 73500000 | S175: 340010000 | T175: 0 | U175: 0 | V175: 340010000 | W175: 172600000 | X175: 0 | Y175: 0 | Z175: 172600000 | AA175: 0 | AB175: 0 | AC175: 0 | AD175: 0 | AE175: 556267500 | AF175: 0 | AG175: 0 | AH175: 556267500 | AI175: 90000000 | AJ175: 0 | AK175: 0 | AL175: 90000000 | AM175: 49000000 | AN175: 0 | AO175: 0 | AP175: 49000000 | AQ175: 1407150000 | AR175: 0 | AS175: 0 | AT175: 1407150000 | AU175: 350000000 | AV175: 0 | AW175: 0 | AX175: 350000000 | AY175: 99000000 | AZ175: 0 | BA175: 0 | BB175: 99000000 | BC175: 420000000 | BD175: 0 | BE175: 0 | BF175: 420000000 | BG175: 296600000 | BH175: 0 | BI175: 0 | BJ175: 296600000 | BK175: 300000 | BL175: 0 | BM175: 0 | BN175: 300000 | BO175: 233100000 | BP175: 0 | BQ175: 0 | BR175: 233100000 | BS175: 25000000 | BT175: 0 | BU175: 0 | BV175: 25000000 | BW175: 699680000 | BX175: 0 | BY175: 0 | BZ175: 699680000 | CA175: 950000000 | CB175: 0 | CC175: 163000000 | CD175: 1113000000 | CE175: 0 | CF175: 0 | CG175: 0 | CH175: 0 | CI175: 201432500 | CJ175: 0 | CK175: 0 | CL175: 201432500 | CM175: 1670700000 | CN175: 0 | CO175: 0 | CP175: 1670700000 | CQ175: 445090000 | CR175: 0 | CS175: 0 | CT175: 445090000 | CU175: 610700000 | CV175: 0 | CW175: 0 | CX175: 610700000 | CY175: 3300000 | CZ175: 0 | DA175: 0 | DB175: 3300000
B176: 2033-07-01 | C176: 179300000 | D176: 0 | E176: 0 | F176: 179300000 | G176: 1297800010 | H176: 0 | I176: 0 | J176: 1297800010 | K176: 485600000 | L176: 0 | M176: 0 | N176: 485600000 | O176: 73500000 | P176: 0 | Q176: 0 | R176: 73500000 | S176: 340010000 | T176: 0 | U176: 0 | V176: 340010000 | W176: 172600000 | X176: 0 | Y176: 0 | Z176: 172600000 | AA176: 0 | AB176: 0 | AC176: 0 | AD176: 0 | AE176: 556267500 | AF176: 0 | AG176: 0 | AH176: 556267500 | AI176: 90000000 | AJ176: 0 | AK176: 0 | AL176: 90000000 | AM176: 49000000 | AN176: 0 | AO176: 0 | AP176: 49000000 | AQ176: 1407150000 | AR176: 0 | AS176: 0 | AT176: 1407150000 | AU176: 350000000 | AV176: 0 | AW176: 0 | AX176: 350000000 | AY176: 99000000 | AZ176: 0 | BA176: 0 | BB176: 99000000 | BC176: 420000000 | BD176: 0 | BE176: 0 | BF176: 420000000 | BG176: 296600000 | BH176: 0 | BI176: 0 | BJ176: 296600000 | BK176: 300000 | BL176: 0 | BM176: 0 | BN176: 300000 | BO176: 233100000 | BP176: 0 | BQ176: 0 | BR176: 233100000 | BS176: 25000000 | BT176: 0 | BU176: 0 | BV176: 25000000 | BW176: 699680000 | BX176: 0 | BY176: 0 | BZ176: 699680000 | CA176: 950000000 | CB176: 0 | CC176: 163000000 | CD176: 1113000000 | CE176: 0 | CF176: 0 | CG176: 0 | CH176: 0 | CI176: 201432500 | CJ176: 0 | CK176: 0 | CL176: 201432500 | CM176: 1670700000 | CN176: 0 | CO176: 0 | CP176: 1670700000 | CQ176: 445090000 | CR176: 0 | CS176: 0 | CT176: 445090000 | CU176: 610700000 | CV176: 0 | CW176: 0 | CX176: 610700000 | CY176: 3300000 | CZ176: 0 | DA176: 0 | DB176: 3300000
B177: 2033-08-01 | C177: 179300000 | D177: 0 | E177: 0 | F177: 179300000 | G177: 1297800011 | H177: 0 | I177: 0 | J177: 1297800011 | K177: 485600000 | L177: 0 | M177: 0 | N177: 485600000 | O177: 73500000 | P177: 0 | Q177: 0 | R177: 73500000 | S177: 340010000 | T177: 0 | U177: 0 | V177: 340010000 | W177: 172600000 | X177: 0 | Y177: 0 | Z177: 172600000 | AA177: 0 | AB177: 0 | AC177: 0 | AD177: 0 | AE177: 556267500 | AF177: 0 | AG177: 0 | AH177: 556267500 | AI177: 90000000 | AJ177: 0 | AK177: 0 | AL177: 90000000 | AM177: 49000000 | AN177: 0 | AO177: 0 | AP177: 49000000 | AQ177: 1407150000 | AR177: 0 | AS177: 0 | AT177: 1407150000 | AU177: 350000000 | AV177: 0 | AW177: 0 | AX177: 350000000 | AY177: 99000000 | AZ177: 0 | BA177: 0 | BB177: 99000000 | BC177: 420000000 | BD177: 0 | BE177: 0 | BF177: 420000000 | BG177: 296600000 | BH177: 0 | BI177: 0 | BJ177: 296600000 | BK177: 300000 | BL177: 0 | BM177: 0 | BN177: 300000 | BO177: 233100000 | BP177: 0 | BQ177: 0 | BR177: 233100000 | BS177: 25000000 | BT177: 0 | BU177: 0 | BV177: 25000000 | BW177: 699680000 | BX177: 0 | BY177: 0 | BZ177: 699680000 | CA177: 950000000 | CB177: 0 | CC177: 163000000 | CD177: 1113000000 | CE177: 0 | CF177: 0 | CG177: 0 | CH177: 0 | CI177: 201432500 | CJ177: 0 | CK177: 0 | CL177: 201432500 | CM177: 1670700000 | CN177: 0 | CO177: 0 | CP177: 1670700000 | CQ177: 445090000 | CR177: 0 | CS177: 0 | CT177: 445090000 | CU177: 610700000 | CV177: 0 | CW177: 0 | CX177: 610700000 | CY177: 3300000 | CZ177: 0 | DA177: 0 | DB177: 3300000
B178: 2033-09-01 | C178: 179300000 | D178: 0 | E178: 0 | F178: 179300000 | G178: 1297800012 | H178: 0 | I178: 0 | J178: 1297800012 | K178: 485600000 | L178: 0 | M178: 0 | N178: 485600000 | O178: 73500000 | P178: 0 | Q178: 0 | R178: 73500000 | S178: 340010000 | T178: 0 | U178: 0 | V178: 340010000 | W178: 172600000 | X178: 0 | Y178: 0 | Z178: 172600000 | AA178: 0 | AB178: 0 | AC178: 0 | AD178: 0 | AE178: 556267500 | AF178: 0 | AG178: 0 | AH178: 556267500 | AI178: 90000000 | AJ178: 0 | AK178: 0 | AL178: 90000000 | AM178: 49000000 | AN178: 0 | AO178: 0 | AP178: 49000000 | AQ178: 1407150000 | AR178: 0 | AS178: 0 | AT178: 1407150000 | AU178: 350000000 | AV178: 0 | AW178: 0 | AX178: 350000000 | AY178: 99000000 | AZ178: 0 | BA178: 0 | BB178: 99000000 | BC178: 420000000 | BD178: 0 | BE178: 0 | BF178: 420000000 | BG178: 296600000 | BH178: 0 | BI178: 0 | BJ178: 296600000 | BK178: 300000 | BL178: 0 | BM178: 0 | BN178: 300000 | BO178: 233100000 | BP178: 0 | BQ178: 0 | BR178: 233100000 | BS178: 25000000 | BT178: 0 | BU178: 0 | BV178: 25000000 | BW178: 699680000 | BX178: 0 | BY178: 0 | BZ178: 699680000 | CA178: 950000000 | CB178: 0 | CC178: 163000000 | CD178: 1113000000 | CE178: 0 | CF178: 0 | CG178: 0 | CH178: 0 | CI178: 201432500 | CJ178: 0 | CK178: 0 | CL178: 201432500 | CM178: 1670700000 | CN178: 0 | CO178: 0 | CP178: 1670700000 | CQ178: 445090000 | CR178: 0 | CS178: 0 | CT178: 445090000 | CU178: 610700000 | CV178: 0 | CW178: 0 | CX178: 610700000 | CY178: 3300000 | CZ178: 0 | DA178: 0 | DB178: 3300000
B179: 2033-10-01 | C179: 179300000 | D179: 0 | E179: 0 | F179: 179300000 | G179: 1297800001 | H179: 0 | I179: 0 | J179: 1297800001 | K179: 485600000 | L179: 0 | M179: 0 | N179: 485600000 | O179: 73500000 | P179: 0 | Q179: 0 | R179: 73500000 | S179: 340010000 | T179: 0 | U179: 0 | V179: 340010000 | W179: 172600000 | X179: 0 | Y179: 0 | Z179: 172600000 | AA179: 0 | AB179: 0 | AC179: 0 | AD179: 0 | AE179: 556267500 | AF179: 0 | AG179: 0 | AH179: 556267500 | AI179: 90000000 | AJ179: 0 | AK179: 0 | AL179: 90000000 | AM179: 49000000 | AN179: 0 | AO179: 0 | AP179: 49000000 | AQ179: 1407150000 | AR179: 0 | AS179: 0 | AT179: 1407150000 | AU179: 350000000 | AV179: 0 | AW179: 0 | AX179: 350000000 | AY179: 99000000 | AZ179: 0 | BA179: 0 | BB179: 99000000 | BC179: 420000000 | BD179: 0 | BE179: 0 | BF179: 420000000 | BG179: 296600000 | BH179: 0 | BI179: 0 | BJ179: 296600000 | BK179: 300000 | BL179: 0 | BM179: 0 | BN179: 300000 | BO179: 233100000 | BP179: 0 | BQ179: 0 | BR179: 233100000 | BS179: 25000000 | BT179: 0 | BU179: 0 | BV179: 25000000 | BW179: 699680000 | BX179: 0 | BY179: 0 | BZ179: 699680000 | CA179: 950000000 | CB179: 0 | CC179: 163000000 | CD179: 1113000000 | CE179: 0 | CF179: 0 | CG179: 0 | CH179: 0 | CI179: 201432500 | CJ179: 0 | CK179: 0 | CL179: 201432500 | CM179: 1670700000 | CN179: 0 | CO179: 0 | CP179: 1670700000 | CQ179: 445090000 | CR179: 0 | CS179: 0 | CT179: 445090000 | CU179: 610700000 | CV179: 0 | CW179: 0 | CX179: 610700000 | CY179: 3300000 | CZ179: 0 | DA179: 0 | DB179: 3300000
B180: 2033-11-01 | C180: 179300000 | D180: 0 | E180: 0 | F180: 179300000 | G180: 1297800002 | H180: 0 | I180: 0 | J180: 1297800002 | K180: 485600000 | L180: 0 | M180: 0 | N180: 485600000 | O180: 73500000 | P180: 0 | Q180: 0 | R180: 73500000 | S180: 340010000 | T180: 0 | U180: 0 | V180: 340010000 | W180: 172600000 | X180: 0 | Y180: 0 | Z180: 172600000 | AA180: 0 | AB180: 0 | AC180: 0 | AD180: 0 | AE180: 556267500 | AF180: 0 | AG180: 0 | AH180: 556267500 | AI180: 90000000 | AJ180: 0 | AK180: 0 | AL180: 90000000 | AM180: 49000000 | AN180: 0 | AO180: 0 | AP180: 49000000 | AQ180: 1407150000 | AR180: 0 | AS180: 0 | AT180: 1407150000 | AU180: 350000000 | AV180: 0 | AW180: 0 | AX180: 350000000 | AY180: 99000000 | AZ180: 0 | BA180: 0 | BB180: 99000000 | BC180: 420000000 | BD180: 0 | BE180: 0 | BF180: 420000000 | BG180: 296600000 | BH180: 0 | BI180: 0 | BJ180: 296600000 | BK180: 300000 | BL180: 0 | BM180: 0 | BN180: 300000 | BO180: 233100000 | BP180: 0 | BQ180: 0 | BR180: 233100000 | BS180: 25000000 | BT180: 0 | BU180: 0 | BV180: 25000000 | BW180: 699680000 | BX180: 0 | BY180: 0 | BZ180: 699680000 | CA180: 950000000 | CB180: 0 | CC180: 163000000 | CD180: 1113000000 | CE180: 0 | CF180: 0 | CG180: 0 | CH180: 0 | CI180: 201432500 | CJ180: 0 | CK180: 0 | CL180: 201432500 | CM180: 1670700000 | CN180: 0 | CO180: 0 | CP180: 1670700000 | CQ180: 445090000 | CR180: 0 | CS180: 0 | CT180: 445090000 | CU180: 610700000 | CV180: 0 | CW180: 0 | CX180: 610700000 | CY180: 3300000 | CZ180: 0 | DA180: 0 | DB180: 3300000
B181: 2033-12-01 | C181: 179300000 | D181: 0 | E181: 0 | F181: 179300000 | G181: 1297800003 | H181: 0 | I181: 0 | J181: 1297800003 | K181: 485600000 | L181: 0 | M181: 0 | N181: 485600000 | O181: 73500000 | P181: 0 | Q181: 0 | R181: 73500000 | S181: 340010000 | T181: 0 | U181: 0 | V181: 340010000 | W181: 172600000 | X181: 0 | Y181: 0 | Z181: 172600000 | AA181: 0 | AB181: 0 | AC181: 0 | AD181: 0 | AE181: 556267500 | AF181: 0 | AG181: 0 | AH181: 556267500 | AI181: 90000000 | AJ181: 0 | AK181: 0 | AL181: 90000000 | AM181: 49000000 | AN181: 0 | AO181: 0 | AP181: 49000000 | AQ181: 1407150000 | AR181: 0 | AS181: 0 | AT181: 1407150000 | AU181: 350000000 | AV181: 0 | AW181: 0 | AX181: 350000000 | AY181: 99000000 | AZ181: 0 | BA181: 0 | BB181: 99000000 | BC181: 420000000 | BD181: 0 | BE181: 0 | BF181: 420000000 | BG181: 296600000 | BH181: 0 | BI181: 0 | BJ181: 296600000 | BK181: 300000 | BL181: 0 | BM181: 0 | BN181: 300000 | BO181: 233100000 | BP181: 0 | BQ181: 0 | BR181: 233100000 | BS181: 25000000 | BT181: 0 | BU181: 0 | BV181: 25000000 | BW181: 699680000 | BX181: 0 | BY181: 0 | BZ181: 699680000 | CA181: 950000000 | CB181: 0 | CC181: 163000000 | CD181: 1113000000 | CE181: 0 | CF181: 0 | CG181: 0 | CH181: 0 | CI181: 201432500 | CJ181: 0 | CK181: 0 | CL181: 201432500 | CM181: 1670700000 | CN181: 0 | CO181: 0 | CP181: 1670700000 | CQ181: 445090000 | CR181: 0 | CS181: 0 | CT181: 445090000 | CU181: 610700000 | CV181: 0 | CW181: 0 | CX181: 610700000 | CY181: 3300000 | CZ181: 0 | DA181: 0 | DB181: 3300000
B182: 2034-01-01 | C182: 179300000 | D182: 0 | E182: 0 | F182: 179300000 | G182: 1297800004 | H182: 0 | I182: 0 | J182: 1297800004 | K182: 485600000 | L182: 0 | M182: 0 | N182: 485600000 | O182: 73500000 | P182: 0 | Q182: 0 | R182: 73500000 | S182: 340010000 | T182: 0 | U182: 0 | V182: 340010000 | W182: 172600000 | X182: 0 | Y182: 0 | Z182: 172600000 | AA182: 0 | AB182: 0 | AC182: 0 | AD182: 0 | AE182: 556267500 | AF182: 0 | AG182: 0 | AH182: 556267500 | AI182: 90000000 | AJ182: 0 | AK182: 0 | AL182: 90000000 | AM182: 49000000 | AN182: 0 | AO182: 0 | AP182: 49000000 | AQ182: 1407150000 | AR182: 0 | AS182: 0 | AT182: 1407150000 | AU182: 350000000 | AV182: 0 | AW182: 0 | AX182: 350000000 | AY182: 99000000 | AZ182: 0 | BA182: 0 | BB182: 99000000 | BC182: 420000000 | BD182: 0 | BE182: 0 | BF182: 420000000 | BG182: 296600000 | BH182: 0 | BI182: 0 | BJ182: 296600000 | BK182: 300000 | BL182: 0 | BM182: 0 | BN182: 300000 | BO182: 233100000 | BP182: 0 | BQ182: 0 | BR182: 233100000 | BS182: 25000000 | BT182: 0 | BU182: 0 | BV182: 25000000 | BW182: 699680000 | BX182: 0 | BY182: 0 | BZ182: 699680000 | CA182: 950000000 | CB182: 0 | CC182: 163000000 | CD182: 1113000000 | CE182: 0 | CF182: 0 | CG182: 0 | CH182: 0 | CI182: 201432500 | CJ182: 0 | CK182: 0 | CL182: 201432500 | CM182: 1670700000 | CN182: 0 | CO182: 0 | CP182: 1670700000 | CQ182: 445090000 | CR182: 0 | CS182: 0 | CT182: 445090000 | CU182: 610700000 | CV182: 0 | CW182: 0 | CX182: 610700000 | CY182: 3300000 | CZ182: 0 | DA182: 0 | DB182: 3300000
B183: 2034-02-01 | C183: 179300000 | D183: 0 | E183: 0 | F183: 179300000 | G183: 1297800005 | H183: 0 | I183: 0 | J183: 1297800005 | K183: 485600000 | L183: 0 | M183: 0 | N183: 485600000 | O183: 73500000 | P183: 0 | Q183: 0 | R183: 73500000 | S183: 340010000 | T183: 0 | U183: 0 | V183: 340010000 | W183: 172600000 | X183: 0 | Y183: 0 | Z183: 172600000 | AA183: 0 | AB183: 0 | AC183: 0 | AD183: 0 | AE183: 556267500 | AF183: 0 | AG183: 0 | AH183: 556267500 | AI183: 90000000 | AJ183: 0 | AK183: 0 | AL183: 90000000 | AM183: 49000000 | AN183: 0 | AO183: 0 | AP183: 49000000 | AQ183: 1407150000 | AR183: 0 | AS183: 0 | AT183: 1407150000 | AU183: 350000000 | AV183: 0 | AW183: 0 | AX183: 350000000 | AY183: 99000000 | AZ183: 0 | BA183: 0 | BB183: 99000000 | BC183: 420000000 | BD183: 0 | BE183: 0 | BF183: 420000000 | BG183: 296600000 | BH183: 0 | BI183: 0 | BJ183: 296600000 | BK183: 300000 | BL183: 0 | BM183: 0 | BN183: 300000 | BO183: 233100000 | BP183: 0 | BQ183: 0 | BR183: 233100000 | BS183: 25000000 | BT183: 0 | BU183: 0 | BV183: 25000000 | BW183: 699680000 | BX183: 0 | BY183: 0 | BZ183: 699680000 | CA183: 950000000 | CB183: 0 | CC183: 163000000 | CD183: 1113000000 | CE183: 0 | CF183: 0 | CG183: 0 | CH183: 0 | CI183: 201432500 | CJ183: 0 | CK183: 0 | CL183: 201432500 | CM183: 1670700000 | CN183: 0 | CO183: 0 | CP183: 1670700000 | CQ183: 445090000 | CR183: 0 | CS183: 0 | CT183: 445090000 | CU183: 610700000 | CV183: 0 | CW183: 0 | CX183: 610700000 | CY183: 3300000 | CZ183: 0 | DA183: 0 | DB183: 3300000
B184: 2034-03-01 | C184: 179300000 | D184: 0 | E184: 0 | F184: 179300000 | G184: 1297800006 | H184: 0 | I184: 0 | J184: 1297800006 | K184: 485600000 | L184: 0 | M184: 0 | N184: 485600000 | O184: 73500000 | P184: 0 | Q184: 0 | R184: 73500000 | S184: 340010000 | T184: 0 | U184: 0 | V184: 340010000 | W184: 172600000 | X184: 0 | Y184: 0 | Z184: 172600000 | AA184: 0 | AB184: 0 | AC184: 0 | AD184: 0 | AE184: 556267500 | AF184: 0 | AG184: 0 | AH184: 556267500 | AI184: 90000000 | AJ184: 0 | AK184: 0 | AL184: 90000000 | AM184: 49000000 | AN184: 0 | AO184: 0 | AP184: 49000000 | AQ184: 1407150000 | AR184: 0 | AS184: 0 | AT184: 1407150000 | AU184: 350000000 | AV184: 0 | AW184: 0 | AX184: 350000000 | AY184: 99000000 | AZ184: 0 | BA184: 0 | BB184: 99000000 | BC184: 420000000 | BD184: 0 | BE184: 0 | BF184: 420000000 | BG184: 296600000 | BH184: 0 | BI184: 0 | BJ184: 296600000 | BK184: 300000 | BL184: 0 | BM184: 0 | BN184: 300000 | BO184: 233100000 | BP184: 0 | BQ184: 0 | BR184: 233100000 | BS184: 25000000 | BT184: 0 | BU184: 0 | BV184: 25000000 | BW184: 699680000 | BX184: 0 | BY184: 0 | BZ184: 699680000 | CA184: 950000000 | CB184: 0 | CC184: 163000000 | CD184: 1113000000 | CE184: 0 | CF184: 0 | CG184: 0 | CH184: 0 | CI184: 201432500 | CJ184: 0 | CK184: 0 | CL184: 201432500 | CM184: 1670700000 | CN184: 0 | CO184: 0 | CP184: 1670700000 | CQ184: 445090000 | CR184: 0 | CS184: 0 | CT184: 445090000 | CU184: 610700000 | CV184: 0 | CW184: 0 | CX184: 610700000 | CY184: 3300000 | CZ184: 0 | DA184: 0 | DB184: 3300000
B185: 2034-04-01 | C185: 179300000 | D185: 0 | E185: 0 | F185: 179300000 | G185: 1297800007 | H185: 0 | I185: 0 | J185: 1297800007 | K185: 485600000 | L185: 0 | M185: 0 | N185: 485600000 | O185: 73500000 | P185: 0 | Q185: 0 | R185: 73500000 | S185: 340010000 | T185: 0 | U185: 0 | V185: 340010000 | W185: 172600000 | X185: 0 | Y185: 0 | Z185: 172600000 | AA185: 0 | AB185: 0 | AC185: 0 | AD185: 0 | AE185: 556267500 | AF185: 0 | AG185: 0 | AH185: 556267500 | AI185: 90000000 | AJ185: 0 | AK185: 0 | AL185: 90000000 | AM185: 49000000 | AN185: 0 | AO185: 0 | AP185: 49000000 | AQ185: 1407150000 | AR185: 0 | AS185: 0 | AT185: 1407150000 | AU185: 350000000 | AV185: 0 | AW185: 0 | AX185: 350000000 | AY185: 99000000 | AZ185: 0 | BA185: 0 | BB185: 99000000 | BC185: 420000000 | BD185: 0 | BE185: 0 | BF185: 420000000 | BG185: 296600000 | BH185: 0 | BI185: 0 | BJ185: 296600000 | BK185: 300000 | BL185: 0 | BM185: 0 | BN185: 300000 | BO185: 233100000 | BP185: 0 | BQ185: 0 | BR185: 233100000 | BS185: 25000000 | BT185: 0 | BU185: 0 | BV185: 25000000 | BW185: 699680000 | BX185: 0 | BY185: 0 | BZ185: 699680000 | CA185: 950000000 | CB185: 0 | CC185: 163000000 | CD185: 1113000000 | CE185: 0 | CF185: 0 | CG185: 0 | CH185: 0 | CI185: 201432500 | CJ185: 0 | CK185: 0 | CL185: 201432500 | CM185: 1670700000 | CN185: 0 | CO185: 0 | CP185: 1670700000 | CQ185: 445090000 | CR185: 0 | CS185: 0 | CT185: 445090000 | CU185: 610700000 | CV185: 0 | CW185: 0 | CX185: 610700000 | CY185: 3300000 | CZ185: 0 | DA185: 0 | DB185: 3300000
B186: 2034-05-01 | C186: 179300000 | D186: 0 | E186: 0 | F186: 179300000 | G186: 1297800008 | H186: 0 | I186: 0 | J186: 1297800008 | K186: 485600000 | L186: 0 | M186: 0 | N186: 485600000 | O186: 73500000 | P186: 0 | Q186: 0 | R186: 73500000 | S186: 340010000 | T186: 0 | U186: 0 | V186: 340010000 | W186: 172600000 | X186: 0 | Y186: 0 | Z186: 172600000 | AA186: 0 | AB186: 0 | AC186: 0 | AD186: 0 | AE186: 556267500 | AF186: 0 | AG186: 0 | AH186: 556267500 | AI186: 90000000 | AJ186: 0 | AK186: 0 | AL186: 90000000 | AM186: 49000000 | AN186: 0 | AO186: 0 | AP186: 49000000 | AQ186: 1407150000 | AR186: 0 | AS186: 0 | AT186: 1407150000 | AU186: 350000000 | AV186: 0 | AW186: 0 | AX186: 350000000 | AY186: 99000000 | AZ186: 0 | BA186: 0 | BB186: 99000000 | BC186: 420000000 | BD186: 0 | BE186: 0 | BF186: 420000000 | BG186: 296600000 | BH186: 0 | BI186: 0 | BJ186: 296600000 | BK186: 300000 | BL186: 0 | BM186: 0 | BN186: 300000 | BO186: 233100000 | BP186: 0 | BQ186: 0 | BR186: 233100000 | BS186: 25000000 | BT186: 0 | BU186: 0 | BV186: 25000000 | BW186: 699680000 | BX186: 0 | BY186: 0 | BZ186: 699680000 | CA186: 950000000 | CB186: 0 | CC186: 163000000 | CD186: 1113000000 | CE186: 0 | CF186: 0 | CG186: 0 | CH186: 0 | CI186: 201432500 | CJ186: 0 | CK186: 0 | CL186: 201432500 | CM186: 1670700000 | CN186: 0 | CO186: 0 | CP186: 1670700000 | CQ186: 445090000 | CR186: 0 | CS186: 0 | CT186: 445090000 | CU186: 610700000 | CV186: 0 | CW186: 0 | CX186: 610700000 | CY186: 3300000 | CZ186: 0 | DA186: 0 | DB186: 3300000
B187: 2034-06-01 | C187: 179300000 | D187: 0 | E187: 0 | F187: 179300000 | G187: 1297800009 | H187: 0 | I187: 0 | J187: 1297800009 | K187: 485600000 | L187: 0 | M187: 0 | N187: 485600000 | O187: 73500000 | P187: 0 | Q187: 0 | R187: 73500000 | S187: 340010000 | T187: 0 | U187: 0 | V187: 340010000 | W187: 172600000 | X187: 0 | Y187: 0 | Z187: 172600000 | AA187: 0 | AB187: 0 | AC187: 0 | AD187: 0 | AE187: 556267500 | AF187: 0 | AG187: 0 | AH187: 556267500 | AI187: 90000000 | AJ187: 0 | AK187: 0 | AL187: 90000000 | AM187: 49000000 | AN187: 0 | AO187: 0 | AP187: 49000000 | AQ187: 1407150000 | AR187: 0 | AS187: 0 | AT187: 1407150000 | AU187: 350000000 | AV187: 0 | AW187: 0 | AX187: 350000000 | AY187: 99000000 | AZ187: 0 | BA187: 0 | BB187: 99000000 | BC187: 420000000 | BD187: 0 | BE187: 0 | BF187: 420000000 | BG187: 296600000 | BH187: 0 | BI187: 0 | BJ187: 296600000 | BK187: 300000 | BL187: 0 | BM187: 0 | BN187: 300000 | BO187: 233100000 | BP187: 0 | BQ187: 0 | BR187: 233100000 | BS187: 25000000 | BT187: 0 | BU187: 0 | BV187: 25000000 | BW187: 699680000 | BX187: 0 | BY187: 0 | BZ187: 699680000 | CA187: 950000000 | CB187: 0 | CC187: 163000000 | CD187: 1113000000 | CE187: 0 | CF187: 0 | CG187: 0 | CH187: 0 | CI187: 201432500 | CJ187: 0 | CK187: 0 | CL187: 201432500 | CM187: 1670700000 | CN187: 0 | CO187: 0 | CP187: 1670700000 | CQ187: 445090000 | CR187: 0 | CS187: 0 | CT187: 445090000 | CU187: 610700000 | CV187: 0 | CW187: 0 | CX187: 610700000 | CY187: 3300000 | CZ187: 0 | DA187: 0 | DB187: 3300000
B188: 2034-07-01 | C188: 179300000 | D188: 0 | E188: 0 | F188: 179300000 | G188: 1297800010 | H188: 0 | I188: 0 | J188: 1297800010 | K188: 485600000 | L188: 0 | M188: 0 | N188: 485600000 | O188: 73500000 | P188: 0 | Q188: 0 | R188: 73500000 | S188: 340010000 | T188: 0 | U188: 0 | V188: 340010000 | W188: 172600000 | X188: 0 | Y188: 0 | Z188: 172600000 | AA188: 0 | AB188: 0 | AC188: 0 | AD188: 0 | AE188: 556267500 | AF188: 0 | AG188: 0 | AH188: 556267500 | AI188: 90000000 | AJ188: 0 | AK188: 0 | AL188: 90000000 | AM188: 49000000 | AN188: 0 | AO188: 0 | AP188: 49000000 | AQ188: 1407150000 | AR188: 0 | AS188: 0 | AT188: 1407150000 | AU188: 350000000 | AV188: 0 | AW188: 0 | AX188: 350000000 | AY188: 99000000 | AZ188: 0 | BA188: 0 | BB188: 99000000 | BC188: 420000000 | BD188: 0 | BE188: 0 | BF188: 420000000 | BG188: 296600000 | BH188: 0 | BI188: 0 | BJ188: 296600000 | BK188: 300000 | BL188: 0 | BM188: 0 | BN188: 300000 | BO188: 233100000 | BP188: 0 | BQ188: 0 | BR188: 233100000 | BS188: 25000000 | BT188: 0 | BU188: 0 | BV188: 25000000 | BW188: 699680000 | BX188: 0 | BY188: 0 | BZ188: 699680000 | CA188: 950000000 | CB188: 0 | CC188: 163000000 | CD188: 1113000000 | CE188: 0 | CF188: 0 | CG188: 0 | CH188: 0 | CI188: 201432500 | CJ188: 0 | CK188: 0 | CL188: 201432500 | CM188: 1670700000 | CN188: 0 | CO188: 0 | CP188: 1670700000 | CQ188: 445090000 | CR188: 0 | CS188: 0 | CT188: 445090000 | CU188: 610700000 | CV188: 0 | CW188: 0 | CX188: 610700000 | CY188: 3300000 | CZ188: 0 | DA188: 0 | DB188: 3300000
B189: 2034-08-01 | C189: 179300000 | D189: 0 | E189: 0 | F189: 179300000 | G189: 1297800011 | H189: 0 | I189: 0 | J189: 1297800011 | K189: 485600000 | L189: 0 | M189: 0 | N189: 485600000 | O189: 73500000 | P189: 0 | Q189: 0 | R189: 73500000 | S189: 340010000 | T189: 0 | U189: 0 | V189: 340010000 | W189: 172600000 | X189: 0 | Y189: 0 | Z189: 172600000 | AA189: 0 | AB189: 0 | AC189: 0 | AD189: 0 | AE189: 556267500 | AF189: 0 | AG189: 0 | AH189: 556267500 | AI189: 90000000 | AJ189: 0 | AK189: 0 | AL189: 90000000 | AM189: 49000000 | AN189: 0 | AO189: 0 | AP189: 49000000 | AQ189: 1407150000 | AR189: 0 | AS189: 0 | AT189: 1407150000 | AU189: 350000000 | AV189: 0 | AW189: 0 | AX189: 350000000 | AY189: 99000000 | AZ189: 0 | BA189: 0 | BB189: 99000000 | BC189: 420000000 | BD189: 0 | BE189: 0 | BF189: 420000000 | BG189: 296600000 | BH189: 0 | BI189: 0 | BJ189: 296600000 | BK189: 300000 | BL189: 0 | BM189: 0 | BN189: 300000 | BO189: 233100000 | BP189: 0 | BQ189: 0 | BR189: 233100000 | BS189: 25000000 | BT189: 0 | BU189: 0 | BV189: 25000000 | BW189: 699680000 | BX189: 0 | BY189: 0 | BZ189: 699680000 | CA189: 950000000 | CB189: 0 | CC189: 163000000 | CD189: 1113000000 | CE189: 0 | CF189: 0 | CG189: 0 | CH189: 0 | CI189: 201432500 | CJ189: 0 | CK189: 0 | CL189: 201432500 | CM189: 1670700000 | CN189: 0 | CO189: 0 | CP189: 1670700000 | CQ189: 445090000 | CR189: 0 | CS189: 0 | CT189: 445090000 | CU189: 610700000 | CV189: 0 | CW189: 0 | CX189: 610700000 | CY189: 3300000 | CZ189: 0 | DA189: 0 | DB189: 3300000
B190: 2034-09-01 | C190: 179300000 | D190: 0 | E190: 0 | F190: 179300000 | G190: 1297800012 | H190: 0 | I190: 0 | J190: 1297800012 | K190: 485600000 | L190: 0 | M190: 0 | N190: 485600000 | O190: 73500000 | P190: 0 | Q190: 0 | R190: 73500000 | S190: 340010000 | T190: 0 | U190: 0 | V190: 340010000 | W190: 172600000 | X190: 0 | Y190: 0 | Z190: 172600000 | AA190: 0 | AB190: 0 | AC190: 0 | AD190: 0 | AE190: 556267500 | AF190: 0 | AG190: 0 | AH190: 556267500 | AI190: 90000000 | AJ190: 0 | AK190: 0 | AL190: 90000000 | AM190: 49000000 | AN190: 0 | AO190: 0 | AP190: 49000000 | AQ190: 1407150000 | AR190: 0 | AS190: 0 | AT190: 1407150000 | AU190: 350000000 | AV190: 0 | AW190: 0 | AX190: 350000000 | AY190: 99000000 | AZ190: 0 | BA190: 0 | BB190: 99000000 | BC190: 420000000 | BD190: 0 | BE190: 0 | BF190: 420000000 | BG190: 296600000 | BH190: 0 | BI190: 0 | BJ190: 296600000 | BK190: 300000 | BL190: 0 | BM190: 0 | BN190: 300000 | BO190: 233100000 | BP190: 0 | BQ190: 0 | BR190: 233100000 | BS190: 25000000 | BT190: 0 | BU190: 0 | BV190: 25000000 | BW190: 699680000 | BX190: 0 | BY190: 0 | BZ190: 699680000 | CA190: 950000000 | CB190: 0 | CC190: 163000000 | CD190: 1113000000 | CE190: 0 | CF190: 0 | CG190: 0 | CH190: 0 | CI190: 201432500 | CJ190: 0 | CK190: 0 | CL190: 201432500 | CM190: 1670700000 | CN190: 0 | CO190: 0 | CP190: 1670700000 | CQ190: 445090000 | CR190: 0 | CS190: 0 | CT190: 445090000 | CU190: 610700000 | CV190: 0 | CW190: 0 | CX190: 610700000 | CY190: 3300000 | CZ190: 0 | DA190: 0 | DB190: 3300000
